Workbook

Sheet Лист6 (hidden)
L2: Տ Ե Ղ Ե Կ Ա Ն Ք
N4: հազ.դրամ
A5: Հ/Հ | B5: Համայնքի անվանում | C5: Ընդամենը եկամուտ 2017թ պլան | D5: Ընդամենը ծախս 2017թ | E5: Ընդամենը ծախս 2017թ կլիենտ | F5: առ 13.11,2018 ըստ ծրագրի կլիենտ | G5: 13.11,18-29.12.18 | H5: Ընդամենը եկամուտ 2018թ | I5: Ընդամենը ծախս 2018թ | J5: Սեփական եկամուտ 2017թ. | K5: Սեփական եկամուտ 2018թ. | L5: Աշխատավարձի ֆոնդ (1 ամիս) 2018թ | M5: Աշխատավարձի ֆոնդ (1 ամիս) 2017թ | N5: Համայնքապետարանի աշխատողների թվաքանակ 2018թ. | O5: Համայնքապետարանի աշխատողների թվաքանակ 2017թ. | P5: ՀՈԱԿ-ի աշխատողների թվաքանակ 2018թ. | Q5: ՀՈԱԿ-ի աշխատողների թվաքանակ 2017թ. | R5: ֆինանսական համահարթեցման սկզբւնքով տրվող դոտացիա (2018)թ | S5: ֆինանսական համահարթեցման սկզբւնքով տրվող դոտացիա (2017)թ | T5: ճան. կապիտալ վերան 2018թ. | U5: Գիշերային լուսավորության 2018թ. | V5: Բազմաբնակարան շենքների շքամուրքերի նորոգում 2018 | W5: վարչ. սարքավ ձեռք բերում 2018թ. | X5: Ջեռուցման համակարգի անցկացում 2018 | Y5: խմելու ջրի անցկացում 2018 | Z5: նախագծա հետազոտական ծախս 2018թ. | AA5: աճեցվող ակտիվների ձեռք բերում 2018 | AB5: Կապիտալ ծրագրեր 2018 | AC5: Շենք շինությունների նորոգում 2017թ. | AD5: վարչ. սարքավ ձեռք բերում 2017թ. | AE5: նախագծա հետազոտական ծախս 2017թ. | AF5: Կապիտալ ծախս 2018թ. | AG5: Կապիտալ ծախս 2017թ.
A6: 1 | B6: Տաշիր | C6: 259675.5 | D6: 281477.3 | E6: =G6+F6 -> 0 | H6: 346324.4 | I6: 308453.4 | J6: =C6-S6 -> 111101.7 | K6: 138564 | L6: =5126600/1000 -> 5126.6 | M6: 3416.6 | N6: 41 | O6: 26 | P6: 57 | Q6: 57 | R6: 207660.4 | S6: 148573.8 | T6: 2550 | U6: 2800 | V6: 4300 | W6: 1000 | Z6: 500 | AA6: 3000 | AC6: 18574.7 | AD6: 1516 | AE6: 470 | AF6: =T6+U6+V6+W6+X6+Y6+Z6+AA6+AB6 -> 14150 | AG6: 20560.7
A7: 2 | B7: Բլագոդարնոե | C7: =Лист1!$C$6 -> 7160.349 | D7: 6754 | E7: =G7+F7 -> 6923.2 | F7: 6114 | G7: 809.2 | I7: 4950 | J7: 3660.349 | L7: 230 | M7: 359.9 | N7: 2 | O7: 4 | S7: 3500 | T7: 250 | U7: 420 | Y7: 3000 | AC7: 3670 | AF7: 3670 | AG7: =AC7+AD7+AE7 -> 3670
A8: 3 | B8: Կատնառար | C8: =Лист1!$C$7 -> 28561.4 | D8: 25206.5 | E8: 27295.4 | F8: 25825.5 | G8: 1469.9 | I8: 12140 | J8: 6788 | L8: 372.5 | M8: 1136.008 | N8: 4 | O8: 10 | S8: 21773.4 | U8: 700 | AC8: 1681 | AF8: 700 | AG8: 1681
A9: 4 | B9: Մեդովկա | C9: =Лист1!$C$8 -> 10345.8 | D9: 8196.1 | E9: 10687.8 | F9: 10456 | G9: 231.8 | I9: 5600 | J9: 6015.2 | L9: 220 | M9: 435 | N9: 2 | O9: 5 | S9: 4330.6 | U9: 420 | AC9: 1881 | AF9: 420 | AG9: 1881
A10: 5 | B10: Սարատովկա | C10: 12742 | D10: 11096.7 | E10: 12259.8 | F10: 11606.6 | G10: 653.2 | I10: 7250 | J10: 9241.1 | L10: 250 | M10: 667.7 | N10: 2 | O10: 6 | S10: 3500.9 | U10: 1400 | AF10: 1400 | AG10: =AC10+AD10+AE10 -> 0
A11: 6 | B11: Դաշտադեմ | C11: =Лист1!$C$10 -> 7581.912 | D11: 6821 | E11: 5552.4 | F11: 5397.4 | G11: 155 | I11: 3770 | J11: 4081.912 | L11: 220 | M11: 383.5 | N11: 2 | O11: 4 | S11: 3500 | AC11: 360.7 | AF11: 0 | AG11: 360.7
A12: 7 | B12: Մեղվահովիտ | C12: 8503.9 | D12: 7322 | E12: 7824.9 | F12: 7182.2 | G12: 642.7 | I12: 5630 | J12: 5003.9 | L12: 220 | M12: 478.6 | N12: 2 | O12: 5 | S12: 3500 | U12: 210 | AC12: 250 | AF12: 210 | AG12: 250
A13: 8 | B13: Նովոսելցեվո | C13: =Лист1!$C$12 -> 7103.1 | D13: 6727 | E13: 6635.2 | F13: 6279.5 | G13: 355.7 | I13: 4410 | J13: 3603.1 | L13: 230 | M13: 308.44 | N13: 2 | O13: 4 | S13: 3500 | U13: 350 | AC13: 930 | AF13: 350 | AG13: 930
A14: 9 | B14: Լեռնահովիտ | C14: 24896.6 | D14: 41600 | E14: 42280.8 | F14: 21729.6 | G14: 20551.2 | I14: 14760 | J14: 12526.8 | L14: 372.5 | M14: 746.8 | N14: 4 | O14: 6 | S14: 12369.8 | T14: 200 | U14: 700 | AC14: 6075 | AD14: 19900 | AF14: 900 | AG14: 25975
B15: Ընդամենը | C15: =SUM(C6:C14) -> 366570.561 | D15: =SUM(D6:D14) -> 395200.6 | F15: =SUM(F6:F14) -> 94590.8 | H15: =SUM(H6:H14) -> 346324.4 | I15: =SUM(I6:I14) -> 366963.4 | J15: =SUM(J6:J14) -> 162022.061 | K15: 138564 | L15: 7241.6 | M15: 7932.548 | N15: 61 | O15: 70 | P15: 57 | Q15: 57 | R15: 207660.4 | S15: =SUM(S6:S14) -> 204548.5 | T15: 3000 | U15: 7000 | V15: 4300 | W15: 1000 | X15: 0 | Y15: 3000 | Z15: 500 | AA15: 3000 | AB15: 0 | AC15: 33422.4 | AD15: 21416 | AE15: 470 | AF15: 21800 | AG15: =SUM(AG6:AG14) -> 55308.4
AD16: 19900 տրակտոր

Sheet Лист5 (hidden)
A2: Հ Ա Շ Վ Ա Ր Կ Ի Ձ Ե Վ Ա Չ Ա Փ
D7: ամսեկան | G7: տարեկ
A8: Åµ) Â³ÝÏ³ñÅ»ù Ù»ï³ÕÝ»ñÇó å³ïñ³ëïí³Í Çñ»ñÇ Ù³Ýñ³Í³Ë ³éáõí³×³éùÇ ÃáõÛÉïíáõÃÛ³Ý Ñ³Ù³ñ | B8: 2 | C8: 50000 | F8: 12 | G8: 100000
A9: ½) Ð³Ù³ÛÝùÇ ï³ñ³ÍùáõÙ Ñ»ÕáõÏ í³é»ÉÇùÇ, ï»ËÝÇÏ³Ï³Ý Ñ»ÕáõÏÝ»ñÇ, Ñ»ÕáõÏ³óí³Í ·³½»ñÇ Ù³Ýñ³Í³Ë ³é¨ïñÇ Ï»ï»ñáõÙ Ñ»ÕáõÏ í³é»ÉÇùÇ, ï»ËÝÇÏ³Ï³Ý Ñ»ÕáõÏÝ»ñÇ, Ñ»ÕáõÏ³óí³Í ·³½»ñÇ í³×³éùÇ ÃáõÛÉïíáõÃÛ³Ý Ñ³Ù³ñ | B9: 5 | C9: 200000 | F9: 12 | G9: 1000000
A10: Ã) Ð³Ù³ÛÝùÇ ï³ñ³ÍùáõÙ ³ñï³ùÇÝ ·áí³½¹ ï»Õ³¹ñ»Éáõ ÃáõÛÉïíáõÃÛ³Ý Ñ³Ù³ñ | G10: 606800
A11: - Բիթիէլ սերվիս | D11: 27000 դր | F11: 12 | G11: 324000
A12: --Վեոն Արմենիա | D12: 4893դր | F12: 12 | G12: 58700
A13: --Ֆինկա ՍՊԸ | D13: 8550դր | F13: 12 | G13: 102600
A14: --Գեմեգ ՍՊԸ | D14: 10125դր | F14: 12 | G14: 121500
A15: ³) Ð³Ù³ÛÝùÇ ï³ñ³ÍùáõÙ Ýáñ ß»Ýù»ñÇ, ßÇÝáõÃÛáõÝÝ»ñÇ (Ý»ñ³éÛ³É áã ÑÇÙÝ³Ï³Ý) ßÇÝ³ñ³ñáõÃÛáõÝ (ï»Õ³¹ñÙ³Ý) ÃáõÛÉïíáõÃÛ³Ý Ñ³Ù³ñ (ïáÕ 1133 + ïáÕ 1334), | G15: 300000
A16: ·) Ð³Ù³ÛÝùÇ í³ñã³Ï³Ý ï³ñ³ÍùáõÙ ß»Ýù»ñÇ, ßÇÝáõÃÛáõÝÝ»ñÇ, ù³Õ³ù³ßÇÝ³Ï³Ý ³ÛÉ ûµÛ»ÏïÝ»ñÇ ù³Ý¹Ù³Ý ÃáõÛÉïíáõÃÛ³Ý Ñ³Ù³ñ | B16: 10 | C16: 5000 | G16: 100000
A17: ¹) Ð³Ù³ÛÝùÇ ï³ñ³ÍùáõÙ á·»ÉÇó ËÙÇãùÝ»ñÇ ¨ (Ï³Ù) ÍË³ËáïÇ ³ñï³¹ñ³ÝùÇ í³×³éùÇ, ÇëÏ Ñ³Ýñ³ÛÇÝ ëÝÝ¹Ç ûµÛ»ÏïÝ»ñáõÙ` á·»ÉÇó ËÙÇãùÝ»ñÇ ¨ (Ï³Ù) ÍË³ËáïÇ ³ñï³¹ñ³ÝùÇ Çñ³óÙ³Ý ÃáõÛÉïíáõÃÛ³Ý Ñ³Ù³ñ | G17: 2500000
E19: =SUM(E8:E18) -> 0
A21: - -Տաշիր | B21: 35 | G21: 2144000
A22: Լեռնովիտ | B22: 4 | G22: 176000
A23: Կատնառատ | B23: 2 | G23: 80000
A24: Բլագոդարնոե | B24: 1 | G24: 40000
A25: Սարատովկա | B25: 1 | G25: 40000
A26: Մեդովկա | B26: 1 | G26: 20000
A28: հրավարություն | B28: 50000*6 | G28: 300000
A29: աղբահանություն
A30: բնակիչներ | B30: 4200 անձ | C30: 150 | D30: 630000 | E30: 12 | F30: 7560000 | H30: 13000000
A31: հանրային սննունդ | B31: 1250ք.մ | C31: 50 | D31: 62500 | E31: 12 | F31: 750000 | H31: 5000000
A32: մթերային խանութ | B32: 1316 քմ | C32: 50 | D32: 65800 | E32: 12 | F32: 789600
A33: մյուս խանութ | B33: 1700 քմ | C33: 50 | D33: 85000 | E33: 12 | F33: 1020000
A34: կրտության հիմն | B34: 1200քմ | C34: 10 | D34: 12000 | E34: 12 | F34: 144000
A35: մշակույթային | B35: 1570 քմ | C35: 10 | D35: 157000 | E35: 12 | F35: 188400
A36: հիվանդանո | B36: 4500 քմ | C36: 10 | D36: 45000 | E36: 12 | F36: 540000
F37: =SUM(F30:F36) -> 10992000 | H37: 18000000
B38: ծնողական վճարներ
A40: համար4 | B40: 140 | C40: 5500 | D40: =B40*C40 -> 770000 | E40: 11 | F40: =D40*E40 -> 8470000
A41: համար3 | B41: 50 | C41: 4500 | D41: =B41*C41 -> 225000 | E41: 8 | F41: =D41*E41 -> 1800000
A42: համար1 | B42: 25 | C42: 4500 | D42: 112500 | E42: 8 | F42: 900000
A43: ynd hoak | F43: =SUM(F40:F42) -> 11170000
A44: արվեստի դպրոց | B44: 101 | C44: 4000 | D44: 404000 | E44: 9 | F44: =D44*E44 -> 3636000
B45: 41 | C45: 2000 | D45: 82000 | E45: 9 | F45: =D45*E45 -> 738000
A46: ynd arv | F46: =SUM(F44:F45) -> 4374000
A47: մշակույթի կենտրոն | F47: 2000000
A48: ընդամեն ծնողական | F48: =F43+F46+F47 -> 17544000
A51: 2020թ իրավաբանական անձանց աղբահանության վճարը ըստ պայմանագրերի ամսեկան կազմում է 470,0հազ.դրամ *12 = 5640,0 հազ դր տարեկան

Sheet texekanq (hidden)
A1: îºÔºÎ²Üø
A2: Ñ³Ù³ÛÝùÇ µÛáõç»áí Ý³Ë³ï»ëí³Í
A3: Ñ³ñÏ³ï»ë³ÏÝ»ñÇ ³å³éùÇ ¨ Ñ³ßí³ñÏÝ»ñÇ í»ñ³µ»ñÛ³É
A5: Ð/Ð | B5: Ð³ñÏ³ï»ë³ÏÇ ³Ýí³ÝáõÙÁ | D5: ÀÝ¹³Ù»ÝÁ | E5: µÛáõç»áí Ý³Ë³ï»ëí³Í ³å³éù | F5: Ñ³ßí³ñÏ 2019Ã. | G5: ³å³éù ³é 01.01.2019Ã
A6: 1 | B6: ÐáÕÇ Ñ³ñÏ | C6: Æ.² | D6: 194 | F6: 194
C7: ü.² | D7: 24989.2 | E7: 800 | F7: 28989.2 | G7: 154700
C8: ÀÝ¹³Ù»ÝÁ | D8: 25183.2 | F8: =SUM(F6:F7) -> 29183.2
A9: 2 | B9: ¶áõÛù³Ñ³ñÏ | C9: Ñ³Ù³ÛÝùÇ í³ñã³Ï³Ý ï³ñ³ÍùÝ»ñáõÙ ·ïÝíáÕ ß»Ýù»ñÇ ¨ ßÇÝáõÃÛáõÝÝ»ñÇ Ñ³Ù³ñ | D9: 883.2 | E9: 200 | F9: 683.2 | G9: 1342
C10: ÷áË³¹ñ³ÙÇçáóÝ»ñÇ Ñ³Ù³ñ | D10: 41555.2 | E10: 0 | F10: 46555.2 | G10: 15000
A11: 3 | B11: ä³Ñáõëï.ÑáÕ»ñÇ | C11: Æ.²
B12: í³ñÓ³í×³ñÝ»ñ | C12: ü.² | D12: 37686.8 | E12: 1000 | F12: 36686.8 | G12: 2350
C13: ÀÝ¹³Ù»ÝÁ | D13: =SUM(D11:D12) -> 37686.8 | F13: 36686.8
A20: Ð²Ø²ÚÜøÆ ÔºÎ²ì²ðª
A22: ¶ÈÊ.üÆÜ²ÜêÆêî(Ð²Þì²ä²Ð)

Sheet Лист1 (hidden)
D4: ¶áõÛù³Ñ³ñÏ Ñ³Ù³ÛÝùÝ»ñÇ í³ñã³Ï³Ý ï³ñ³ÍùÝ»ñáõÙ ·ïÝíáÕ ß»Ýù»ñÇ ¨ ßÇÝáõÃÛáõÝÝ»ñÇ Ñ³Ù³ñ | E4: ÐáÕÇ Ñ³ñÏ Ñ³Ù³ÛÝùÝ»ñÇ í³ñã³Ï³Ý ï³ñ³ÍùÝ»ñáõÙ ·ïÝíáÕ ÑáÕÇ Ñ³Ù³ñ | F4: ¶áõÛù³Ñ³ñÏ ÷áË³¹ñ³ÙÇçáóÝ»ñÇ Ñ³Ù³ñ | G4: î»Õ³Ï³Ý ïáõñù»ñ | H4: ÐÇÙÝ³Ï³Ý ßÇÝáõÃÛáõÝÝ»ñÇ Ñ³Ù³ñ | I4: ù³Ý¹Ù³Ý ÃáõÛÉïíáõÃÛ³Ý Ñ³Ù³ñ | J4: ¹) Ð³Ù³ÛÝùÇ ï³ñ³ÍùáõÙ á·»ÉÇó ËÙÇãùÝ»ñÇ ¨ (Ï³Ù) ÍË³ËáïÇ ³ñï³¹ñ³ÝùÇ í³×³éùÇ, ÇëÏ Ñ³Ýñ³ÛÇÝ ëÝÝ¹Ç ûµÛ»ÏïÝ»ñáõÙ` á·»ÉÇó ËÙÇãùÝ»ñÇ ¨ (Ï³Ù) ÍË³ËáïÇ ³ñï³¹ñ³ÝùÇ Çñ³óÙ³Ý ÃáõÛÉïíáõÃÛ³Ý Ñ³Ù³ñ | K4: ») Ð³Ù³ÛÝùÇ ï³ñ³ÍùáõÙ µ³óûÃÛ³ í³×³éù Ï³½Ù³Ï»ñå»Éáõ ÃáõÛÉïíáõÃÛ³Ý Ñ³Ù³ñ | L4: ½) Ð³Ù³ÛÝùÇ ï³ñ³ÍùáõÙ Ñ»ÕáõÏ í³é»ÉÇùÇ, ï»ËÝÇÏ³Ï³Ý Ñ»ÕáõÏÝ»ñÇ, Ñ»ÕáõÏ³óí³Í ·³½»ñÇ Ù³Ýñ³Í³Ë ³é¨ïñÇ Ï»ï»ñáõÙ Ñ»ÕáõÏ í³é»ÉÇùÇ, ï»ËÝÇÏ³Ï³Ý Ñ»ÕáõÏÝ»ñÇ, Ñ»ÕáõÏ³óí³Í ·³½»ñÇ í³×³éùÇ ÃáõÛÉïíáõÃÛ³Ý Ñ³Ù³ñ | M4: Ã) Ð³Ù³ÛÝùÇ ï³ñ³ÍùáõÙ ³ñï³ùÇÝ ·áí³½¹ ï»Õ³¹ñ»Éáõ ÃáõÛÉïíáõÃÛ³Ý Ñ³Ù³ñ | N4: Åµ) Â³ÝÏ³ñÅ»ù Ù»ï³ÕÝ»ñÇó å³ïñ³ëïí³Í Çñ»ñÇ Ù³Ýñ³Í³Ë ³éáõí³×³éùÇ ÃáõÛÉïíáõÃÛ³Ý Ñ³Ù³ñ | O4: Ð³Ù³ÛÝùÇ µÛáõç» í×³ñíáÕ å»ï³Ï³Ý ïáõñù»ñ | P4: ³) ø³Õ³ù³óÇ³Ï³Ý Ï³óáõÃÛ³Ý ³Ïï»ñ ·ñ³Ýó»Éáõ, ¹ñ³Ýó Ù³ëÇÝ ù³Õ³ù³óÇÝ»ñÇÝ ÏñÏÝ³ÏÇ íÏ³Û³Ï³ÝÝ»ñ, ù³Õ³ù³óÇ³Ï³Ý Ï³óáõÃÛ³Ý ³Ïï»ñáõÙ Ï³ï³ñí³Í ·ñ³éáõÙÝ»ñáõÙ ÷á÷áËáõÃÛáõÝÝ»ñ, Éñ³óáõÙÝ»ñ, áõÕÕáõÙÝ»ñ Ï³ï³ñ»Éáõ ¨ í»ñ³Ï³Ý·ÝÙ³Ý Ï³å³ÏóáõÃÛ³Ùµ íÏ³Û³Ï³ÝÝ»ñ ï³Éáõ Ñ³Ù³ñ | Q4: µ) Üáï³ñ³Ï³Ý ·ñ³ë»ÝÛ³ÏÝ»ñÇ ÏáÕÙÇó Ýáï³ñ³Ï³Ý Í³é³ÛáõÃÛáõÝÝ»ñ Ï³ï³ñ»Éáõ, Ýáï³ñ³Ï³Ý Ï³ñ·áí í³í»ñ³óí³Í ÷³ëï³ÃÕÃ»ñÇ ÏñÏÝûñÇÝ³ÏÝ»ñ ï³Éáõ, Ýßí³Í Ù³ñÙÇÝÝ»ñÇ ÏáÕÙÇó ·áñÍ³ñùÝ»ñÇ Ý³Ë³·Í»ñ ¨ ¹ÇÙáõÙÝ»ñ Ï³½Ù»Éáõ, ÷³ëï³ÃÕÃ»ñÇ å³ï×»Ý»ñ Ñ³Ý»Éáõ ¨ ¹ñ³ÝóÇó ù³Õí³ÍùÝ»ñ ï³Éáõ Ñ³Ù³ñ | R4: ¶áõÛùÇ í³ñÓ³Ï³ÉáõÃÛáõÝÇó »Ï³ÙáõïÝ»ñ | S4: Համայնքի սեփականություն համարվող հողերի վարձավճարներ | T4: ²ÛÉ ·áõÛùÇ í³ñÓ³Ï³ÉáõÃÛáõÝÇó Ùáõïù»ñ | U4: î»Õ³Ï³Ý í×³ñÝ»ñ | V4: աղբահ | W4: գ/հ ծառ | X4: ծնող վճ | Y4: tuganq | Z4: ՔԿԱԳä»ïáõÃÛ³Ý ÏáÕÙÇó ï»Õ³Ï³Ý ÇÝùÝ³Ï³é³í³ñÙ³Ý Ù³ñÙÇÝÝ»ñÇÝ å³ïíÇñ³Ïí³Í ÉÇ³½áñáõÃÛáõÝÝ»ñÇ Çñ³Ï³Ý³óÙ³Ý Í³Ëë»ñÇ ýÇÝ³Ýë³íáñÙ³Ý Ñ³Ù³ñ å»ï³Ï³Ý µÛáõç»Çó ëï³óíáÕ ÙÇçáóÝ»ñ | AA4: ³) ä»ï³Ï³Ý µÛáõç»Çó ýÇÝ³Ýë³Ï³Ý Ñ³Ù³Ñ³ñÃ»óÙ³Ý ëÏ½µáõÝùáí ïñ³Ù³¹ñíáÕ ¹áï³óÇ³Ý»ñ | AB4: գ) Պետական բյուջեից ցումներ (սուբվենցիաներ) | AC4: ì³ñã³Ï³Ý µÛáõç»Ç å³Ñáõëï³ÛÇÝ ýáÝ¹Çó ýáÝ¹³ÛÇÝ µÛáõç» Ï³ï³ñíáÕ Ñ³ïÏ³óáõÙÝ»ñÇó Ùáõïù»ñ
B5: Տաշիր | C5: =D5+E5+F5+G5+O5+U5+AA5+R5+Z5+AB5+Y5 -> 253675.5 | D5: 1580 | E5: 4673 | F5: 18671.6 | G5: =H5+I5+J5+K5+L5+M5+N5 -> 3785 | H5: 200 | I5: 20 | J5: 1800 | K5: 265 | L5: 1000 | M5: 400 | N5: 100 | O5: =P5+Q5 -> 5000 | P5: 2500 | Q5: 2500 | R5: =S5+T5 -> 17357.8 | S5: 17011.8 | T5: 346 | U5: =V5+W5+X5 -> 22100 | V5: 6344 | W5: 756 | X5: 15000 | Y5: 50 | Z5: 3416.7 | AA5: 148573.8 | AB5: 28467.6
B6: Բլագոդարնոե | C6: =D6+E6+F6+G6+O6+U6+AA6+R6 -> 7160.349 | E6: 1766.1 | F6: 482.249 | G6: 12 | J6: 12 | O6: =P6+Q6 -> 0 | R6: =S6+T6 -> 1400 | S6: 1400 | U6: 0 | AA6: 3500
B7: Կատնառար | C7: 28561.4 | E7: 255.3 | F7: 1567.7 | G7: 50 | J7: 50 | O7: 0 | R7: 4915 | S7: 4915 | U7: 0 | AA7: 21773.4 | AC7: 2400
B8: Մեդովկա | C8: 10345.8 | D8: 20.3 | E8: 3177.5 | F8: 1377.4 | G8: 40 | J8: 40 | O8: 0 | R8: 1400 | S8: 1400 | U8: 0 | AA8: 4330.6 | AC8: 350
B9: Սարատովկա | C9: 11742.5 | D9: 15.6 | E9: 4649.8 | F9: 793.9 | G9: 12 | J9: 12 | O9: 0 | R9: 2750.3 | S9: 2750.3 | U9: 20 | AA9: 3500.9 | AC9: 1390
B10: Dաշտադեմ | C10: 7581.912 | D10: 11.612 | E10: 2359.7 | F10: 710.6 | G10: 0 | O10: 0 | R10: 1000 | S10: 1000 | U10: 0 | AA10: 3500 | AC10: 400
B11: Մեղվաօվիտ | C11: 8055.888 | D11: 9.988 | E11: 1860.9 | F11: 585 | G11: 0 | O11: 0 | R11: 2100 | S11: 2100 | U11: 0 | AA11: 3500 | AC11: 700
B12: Նովոսելցեվօ | C12: 7103.1 | E12: 1790 | F12: 307.5 | G12: 15 | J12: 15 | O12: 0 | R12: 1490.6 | S12: 1490.6 | T12: 0 | U12: 0 | AA12: 3500
B13: Լեռնահովիտ | C13: 23896.1 | D13: 27.9 | E13: 5654.8 | F13: 5293.6 | G13: =H13+I13+J13+K13+L13+M13+N13 -> 200 | J13: 200 | O13: 0 | R13: 350 | S13: 350 | T13: 0 | U13: 0 | AA13: 12369.8
B14: ընդամ | C14: =SUM(C5:C13) -> 358122.549 | D14: 1665.4 | E14: 26187.1 | F14: 29789.549 | G14: 4114 | H14: 200 | I14: 20 | J14: 2129 | K14: 265 | L14: 1000 | M14: 400 | N14: 100 | O14: 5000 | R14: =SUM(R5:R13) -> 32763.7 | S14: 32417.7 | T14: 346 | U14: 22120 | V14: 6344 | W14: 756 | X14: 15000 | Y14: 50 | Z14: 3416.7 | AA14: 204548.5 | AB14: 28467.6 | AC14: 5240
C16: =D16+E16+H16+I16+J16+K16+L16+M16+N16+P16+Q16+S16+T16+Y16+Z16+AA16+AB16+F16+U16 -> 359801.814 | D16: 1665.414 | E16: 27996.9 | F16: 29925.3 | G16: 4114 | H16: 200 | I16: 20 | J16: 2129 | K16: 765 | L16: 600 | M16: 400 | N16: 0 | O16: 5000 | P16: 2500 | Q16: 2500 | R16: =S16+T16 -> 32498.1 | S16: 31802.1 | T16: 696 | U16: 22120 | Y16: 50 | Z16: 3416 | AA16: 204548.5 | AB16: 28467.6 | AC16: 4016.314

Sheet gortcarn
G1: Հավելված 2
E2: ՀՀ Լոռու մարզի Տաշիր համայնքի ավագանու
E3: 2020 թվականիի դեկտեմբեր 29-ի N 103-Ն
A5: Ð²îì²Ì 2
A6: Ð²Ø²ÚÜøÆ ´ÚàôæºÆ Ì²ÊêºðÀ Àêî ¶àðÌ²è²Î²Ü ¸²ê²Î²ð¶Ø²Ü
H8: (Ñ³½³ñ ¹ñ³ÙÝ»ñáí)
A9: îáÕÇ NN | B9: ´³-ÅÇÝ | C9: ÊáõÙµ | D9: ¸³ë | E9: ´Ûáõç»ï³ÛÇÝ Í³Ëë»ñÇ ·áñÍ³é³Ï³Ý ¹³ë³Ï³ñ·Ù³Ý µ³ÅÇÝÝ»ñÇ, ËÙµ»ñÇ ¨ ¹³ë»ñÇ ³Ýí³ÝáõÙÝ»ñÁ | F9: Description | G9: ÀÝ¹³Ù»ÝÁ (ë.7 +ë.8) | H9: ³Û¹ ÃíáõÙ`
H10: í³ñã³Ï³Ý µÛáõç» | I10: ýáÝ¹³ÛÇÝ µÛáõç»
A11: 1 | B11: 2 | C11: 3 | D11: 4 | E11: 5 | G11: 6 | H11: 7 | I11: 8
A12: 2000 | B12: X | C12: X | D12: X | E12: ÀÜ¸²ØºÜÀ Ì²Êêºð (ïáÕ2100+ïáÕ2200+ïáÕ2300+ïáÕ2400+ïáÕ2500+ïáÕ2600+ ïáÕ2700+ïáÕ2800+ïáÕ2900+ïáÕ3000+ïáÕ3100) | G12: =H12+I12 -> 672706.7 | H12: =H13+H49+H67+H93+H146+H166+H186+H215+H245+H276+H308 -> 570706.7 | I12: =I13+I49+I67+I93+I146+I166+I186+I215+I245+I276+I308 -> 102000
A13: 2100 | B13: 01 | C13: 0 | D13: 0 | E13: ÀÜ¸Ð²Üàôð ´ÜàôÚÂÆ Ð²Üð²ÚÆÜ Ì²è²ÚàôÂÚàôÜÜºð (ïáÕ2110+ïáÕ2120+ïáÕ2130+ïáÕ2140+ïáÕ2150+ïáÕ2160+ïáÕ2170+ïáÕ2180) | F13: GENERAL PUBLIC SERVICES | G13: =G15+G24+G32+G35 -> 153981.4 | H13: =H15+H24+H35+H32 -> 148131 | I13: =I15+I32+I28+I35 -> 5850.4
E14: ³Û¹ ÃíáõÙ`
A15: 2110 | B15: 01 | C15: 1 | D15: 0 | E15: úñ»Ýë¹Çñ ¨ ·áñÍ³¹Çñ Ù³ñÙÇÝÝ»ñ, å»ï³Ï³Ý Ï³é³í³ñáõÙ, ‎ýÇÝ³Ýë³Ï³Ý ¨ Ñ³ñÏ³µÛáõç»ï³ÛÇÝ Ñ³ñ³µ»ñáõÃÛáõÝÝ»ñ, ³ñï³ùÇÝ Ñ³ñ³µ»ñáõÃÛáõÝÝ»ñ | F15: Executive and Legislative Organs, Financial and Fiscal Affairs, External Affairs | G15: =H15+I15 -> 137506.13 | H15: =H17 -> 135655.73 | I15: =I17 -> 1850.4
E16: áñÇó`
A17: 2111 | B17: 01 | C17: 1 | D17: 1 | E17: úñ»Ýë¹Çñ ¨ ·áñÍ³¹Çñ Ù³ñÙÇÝÝ»ñ,å»ï³Ï³Ý Ï³é³í³ñáõÙ | F17: Executive and legislative organs | G17: =H17+I17 -> 137506.13 | H17: =F36+aparat!F32 -> 135655.73 | I17: =aparat!F151 -> 1850.4
A18: 2112 | B18: 01 | C18: 1 | D18: 2 | E18: üÇÝ³Ýë³Ï³Ý ¨ Ñ³ñÏ³µÛáõç»ï³ÛÇÝ Ñ³ñ³µ»ñáõÃÛáõÝÝ»ñ | F18: Financial and fiscal affairs | G18: 0
A19: 2113 | B19: 01 | C19: 1 | D19: 3 | E19: ²ñï³ùÇÝ Ñ³ñ³µ»ñáõÃÛáõÝÝ»ñ | F19: External affairs | G19: 0
A20: 2120 | B20: 01 | C20: 2 | D20: 0 | E20: ²ñï³ùÇÝ ïÝï»ë³Ï³Ý û·ÝáõÃÛáõÝ | F20: Foreign Economic Aid | G20: 0 | H20: 0 | I20: 0
E21: áñÇó`
A22: 2121 | B22: 01 | C22: 2 | D22: 1 | E22: ²ñï³ùÇÝ ïÝï»ë³Ï³Ý ³ç³ÏóáõÃÛáõÝ | F22: Economic aid to developing countries and countries in transition | G22: 0
A23: 2122 | B23: 01 | C23: 2 | D23: 2 | E23: ØÇç³½·³ÛÇÝ Ï³½Ù³Ï»ñåáõÃÛáõÝÝ»ñÇ ÙÇçáóáí ïñ³Ù³¹ñíáÕ ïÝï»ë³Ï³Ý û·ÝáõÃÛáõÝ | F23: Economic aid routed through international organizations | G23: 0
A24: 2130 | B24: 01 | C24: 3 | D24: 0 | E24: ÀÝ¹Ñ³Ýáõñ µÝáõÛÃÇ Í³é³ÛáõÃÛáõÝÝ»ñ | F24: General Services | G24: =H24+I24 -> 3475.27 | H24: =H28 -> 3475.27 | I24: =I28 -> 0
E25: áñÇó`
A26: 2131 | B26: 01 | C26: 3 | D26: 1 | E26: ²ßË³ï³Ï³½ÙÇ /Ï³¹ñ»ñÇ/ ·Íáí ÁÝ¹Ñ³Ýáõñ µÝáõÛÃÇ Í³é³ÛáõÃÛáõÝÝ»ñ | F26: General personnel services | G26: 0
A27: 2132 | B27: 01 | C27: 3 | D27: 2 | E27: Ìñ³·ñÙ³Ý ¨ íÇ×³Ï³·ñ³Ï³Ý ÁÝ¹Ñ³Ýáõñ Í³é³ÛáõÃÛáõÝÝ»ñ | F27: Overall planning and statistical services | G27: 0
A28: 2133 | B28: 01 | C28: 3 | D28: 3 | E28: ÀÝ¹Ñ³Ýáõñ µÝáõÛÃÇ ³ÛÉ Í³é³ÛáõÃÛáõÝÝ»ñ | F28: Other general services | G28: =H28+I28 -> 3475.27 | H28: =zags!F32 -> 3475.27 | I28: =zags!F151 -> 0
A29: 2140 | B29: 01 | C29: 4 | D29: 0 | E29: ÀÝ¹Ñ³Ýáõñ µÝáõÛÃÇ Ñ»ï³½áï³Ï³Ý ³ßË³ï³Ýù | F29: Basic Research | G29: 0 | H29: 0 | I29: 0
E30: áñÇó`
A31: 2141 | B31: 01 | C31: 4 | D31: 1 | E31: ÀÝ¹Ñ³Ýáõñ µÝáõÛÃÇ Ñ»ï³½áï³Ï³Ý ³ßË³ï³Ýù | F31: Basic research | G31: 0
A32: 2150 | B32: 01 | C32: 5 | D32: 0 | E32: ÀÝ¹Ñ³Ýáõñ µÝáõÛÃÇ Ñ³Ýñ³ÛÇÝ Í³é³ÛáõÃÛáõÝÝ»ñÇ ·Íáí Ñ»ï³½áï³Ï³Ý ¨ Ý³Ë³·Í³ÛÇÝ ³ßË³ï³ÝùÝ»ñ | F32: R&D General Public Services | G32: =I32+H32 -> 12000 | H32: =H34 -> 8000 | I32: =I34 -> 4000
E33: áñÇó`
A34: 2151 | B34: 01 | C34: 5 | D34: 1 | E34: ÀÝ¹Ñ³Ýáõñ µÝáõÛÃÇ Ñ³Ýñ³ÛÇÝ Í³é³ÛáõÃÛáõÝÝ»ñ ·Íáí Ñ»ï³½áï³Ï³Ý ¨ Ý³Ë³·Í³ÛÇÝ ³ßË³ï³ÝùÝ»ñ | F34: R&D General public services | G34: =I34+H34 -> 12000 | H34: ='1.5.1'!F32 -> 8000 | I34: ='1.5.1'!F152 -> 4000
A35: 2160 | B35: 01 | C35: 6 | D35: 0 | E35: ÀÝ¹Ñ³Ýáõñ µÝáõÛÃÇ Ñ³Ýñ³ÛÇÝ Í³é³ÛáõÃÛáõÝÝ»ñ (³ÛÉ ¹³ë»ñÇÝ ãå³ïÏ³ÝáÕ) | F35: General Services Not Elsewhere Classified | G35: =G37 -> 1000 | H35: =H37 -> 1000 | I35: =I37 -> 0
E36: áñÇó`
A37: 2161 | B37: 01 | C37: 6 | D37: 1 | E37: ÀÝ¹Ñ³Ýáõñ µÝáõÛÃÇ Ñ³Ýñ³ÛÇÝ Í³é³ÛáõÃÛáõÝÝ»ñ (³ÛÉ ¹³ë»ñÇÝ ãå³ïÏ³ÝáÕ) | F37: General services not elsewhere classified | G37: =H37+I37 -> 1000 | H37: ='1.6.1'!F32 -> 1000 | I37: ='1.6.1'!F151 -> 0
A38: 2170 | B38: 01 | C38: 7 | D38: 0 | E38: ä»ï³Ï³Ý å³ñïùÇ ·Íáí ·áñÍ³éÝáõÃÛáõÝÝ»ñ | G38: 0 | H38: 0 | I38: 0
E39: áñÇó`
A40: 2171 | B40: 01 | C40: 7 | D40: 1 | E40: ä»ï³Ï³Ý å³ñïùÇ ·Íáí ·áñÍ³éÝáõÃÛáõÝÝ»ñ | G40: 0
A41: 2180 | B41: 01 | C41: 8 | D41: 0 | E41: Î³é³í³ñáõÃÛ³Ý ï³ñµ»ñ Ù³Ï³ñ¹³ÏÝ»ñÇ ÙÇç¨ Çñ³Ï³Ý³óíáÕ ÁÝ¹Ñ³Ýáõñ µÝáõÛÃÇ ïñ³Ýëý»ñïÝ»ñ | F41: Transfers of a General Character Between Different Levels of Government | G41: 0 | H41: 0 | I41: 0
E42: áñÇó`
A43: 2181 | B43: 01 | C43: 8 | D43: 1 | E43: Î³é³í³ñáõÃÛ³Ý ï³ñµ»ñ Ù³Ï³ñ¹³ÏÝ»ñÇ ÙÇç¨ Çñ³Ï³Ý³óíáÕ ÁÝ¹Ñ³Ýáõñ µÝáõÛÃÇ ïñ³Ýëý»ñïÝ»ñ | F43: Transfers of a general character between different levels of government | G43: 0 | H43: 0 | I43: 0
E44: áñÇó`
A45: 2182 | B45: 01 | C45: 8 | D45: 1 | E45: - ¹ñ³Ù³ßÝáñÑÝ»ñ ÐÐ å»ï³Ï³Ý µÛáõç»ÇÝ | G45: 0
A46: 2183 | B46: 01 | C46: 8 | D46: 1 | E46: - ¹ñ³Ù³ßÝáñÑÝ»ñ ÐÐ ³ÛÉ Ñ³Ù³ÛÝù»ñÇ µÛáõç»Ý»ñÇÝ | G46: 0
A47: 2184 | B47: 01 | C47: 8 | D47: 1 | E47: ³Û¹ ÃíáõÙ` ºñ¨³ÝÇ Ñ³Ù³ù³Õ³ù³ÛÇÝ Í³Ëë»ñÇ ýÇÝ³Ýë³íáñÙ³Ý Ñ³Ù³ñ | G47: 0
A48: 2185 | B48: 01 | C48: 8 | D48: 1 | G48: 0
A49: 2200 | B49: 02 | C49: 0 | D49: 0 | E49: ä²Þîä²ÜàôÂÚàôÜ (ïáÕ2210+2220+ïáÕ2230+ïáÕ2240+ïáÕ2250) | F49: DEFENSE | G49: =G54 -> 2000 | H49: =H54 -> 2000 | I49: 0
E50: ³Û¹ ÃíáõÙ`
A51: 2210 | B51: 02 | C51: 1 | D51: 0 | E51: è³½Ù³Ï³Ý å³ßïå³ÝáõÃÛáõÝ | F51: Military Defense | G51: 0 | H51: 0 | I51: 0
E52: áñÇó`
A53: 2211 | B53: 02 | C53: 1 | D53: 1 | E53: è³½Ù³Ï³Ý å³ßïå³ÝáõÃÛáõÝ | F53: Military defense | G53: 0
A54: 2220 | B54: 02 | C54: 2 | D54: 0 | E54: ø³Õ³ù³óÇ³Ï³Ý å³ßïå³ÝáõÃÛáõÝ | F54: Civil Defense | G54: =H54 -> 2000 | H54: =H56 -> 2000 | I54: 0
E55: áñÇó`
A56: 2221 | B56: 02 | C56: 2 | D56: 1 | E56: ø³Õ³ù³óÇ³Ï³Ý å³ßïå³ÝáõÃÛáõÝ | F56: Civil defense | G56: =H56 -> 2000 | H56: ='arandzin aih'!F32 -> 2000
A57: 2230 | B57: 02 | C57: 3 | D57: 0 | E57: ²ñï³ùÇÝ é³½Ù³Ï³Ý û·ÝáõÃÛáõÝ | F57: Foreign Military Aid | G57: 0 | H57: 0 | I57: 0
E58: áñÇó`
A59: 2231 | B59: 02 | C59: 3 | D59: 1 | E59: ²ñï³ùÇÝ é³½Ù³Ï³Ý û·ÝáõÃÛáõÝ | F59: Foreign military aid | G59: 0
A60: 2240 | B60: 02 | C60: 4 | D60: 0 | E60: Ð»ï³½áï³Ï³Ý ¨ Ý³Ë³·Í³ÛÇÝ ³ßË³ï³ÝùÝ»ñ å³ßïå³ÝáõÃÛ³Ý áÉáñïáõÙ | F60: R&D Defense | G60: 0 | H60: 0 | I60: 0
E61: áñÇó`
A62: 2241 | B62: 02 | C62: 4 | D62: 1 | E62: Ð»ï³½áï³Ï³Ý ¨ Ý³Ë³·Í³ÛÇÝ ³ßË³ï³ÝùÝ»ñ å³ßïå³ÝáõÃÛ³Ý áÉáñïáõÙ | F62: R&D Defense | G62: 0
E63: áñÇó`
A64: 2250 | B64: 02 | C64: 5 | D64: 0 | E64: ä³ßïå³ÝáõÃÛáõÝ (³ÛÉ ¹³ë»ñÇÝ ãå³ïÏ³ÝáÕ) | F64: Defense Not Elsewhere Classified | G64: 0 | H64: 0 | I64: 0
E65: áñÇó`
A66: 2251 | B66: 02 | C66: 5 | D66: 1 | E66: ä³ßïå³ÝáõÃÛáõÝ (³ÛÉ ¹³ë»ñÇÝ ãå³ïÏ³ÝáÕ) | F66: Defense not elsewhere classified | G66: 0
A67: 2300 | B67: 03 | C67: 0 | D67: 0 | E67: Ð²ê²ð²Î²Î²Ü Î²ð¶, ²Üìî²Ü¶àôÂÚàôÜ ¨ ¸²î²Î²Ü ¶àðÌàôÜºàôÂÚàôÜ (ïáÕ2310+ïáÕ2320+ïáÕ2330+ïáÕ2340+ïáÕ2350+ïáÕ2360+ïáÕ2370) | F67: PUBLIC ORDER AND SAFETY | G67: =G74 -> 0 | H67: =H74 -> 0 | I67: 0
E68: ³Û¹ ÃíáõÙ`
A69: 2310 | B69: 03 | C69: 1 | D69: 0 | E69: Ð³ë³ñ³Ï³Ï³Ý Ï³ñ· ¨ ³Ýíï³Ý·áõÃÛáõÝ | F69: Police Services | G69: 0 | H69: 0 | I69: 0
E70: áñÇó`
A71: 2311 | B71: 03 | C71: 1 | D71: 1 | E71: àëïÇÏ³ÝáõÃÛáõÝ | F71: Police services | G71: 0
A72: 2312 | B72: 03 | C72: 1 | D72: 2 | E72: ²½·³ÛÇÝ ³Ýíï³Ý·áõÃÛáõÝ | G72: 0
A73: 2313 | B73: 03 | C73: 1 | D73: 3 | E73: ä»ï³Ï³Ý å³Ñå³ÝáõÃÛáõÝ | G73: 0
A74: 2320 | B74: 03 | C74: 2 | D74: 0 | E74: öñÏ³ñ³ñ Í³é³ÛáõÃÛáõÝ | F74: Fire Protection Services | G74: =G76 -> 0 | H74: =H76 -> 0 | I74: 0
E75: áñÇó`
A76: 2321 | B76: 03 | C76: 2 | D76: 1 | E76: öñÏ³ñ³ñ Í³é³ÛáõÃÛáõÝ | F76: Fire protection services | G76: =H76 -> 0 | H76: 0
A77: 2330 | B77: 03 | C77: 3 | D77: 0 | E77: ¸³ï³Ï³Ý ·áñÍáõÝ»áõÃÛáõÝ ¨ Çñ³í³Ï³Ý å³ßïå³ÝáõÃÛáõÝ | F77: Law Courts | G77: 0 | H77: 0 | I77: 0
E78: áñÇó`
A79: 2331 | B79: 03 | C79: 3 | D79: 1 | E79: ¸³ï³ñ³ÝÝ»ñ | F79: Law courts | G79: 0
A80: 2332 | B80: 03 | C80: 3 | D80: 2 | E80: Æñ³í³Ï³Ý å³ßïå³ÝáõÃÛáõÝ | G80: 0
A81: 2340 | B81: 03 | C81: 4 | D81: 0 | E81: ¸³ï³Ë³½áõÃÛáõÝ | G81: 0 | H81: 0 | I81: 0
E82: áñÇó`
A83: 2341 | B83: 03 | C83: 4 | D83: 1 | E83: ¸³ï³Ë³½áõÃÛáõÝ | G83: 0
A84: 2350 | B84: 03 | C84: 5 | D84: 0 | E84: Î³É³Ý³í³Ûñ»ñ | F84: Prisons | G84: 0 | H84: 0 | I84: 0
E85: áñÇó`
A86: 2351 | B86: 03 | C86: 5 | D86: 1 | E86: Î³É³Ý³í³Ûñ»ñ | F86: Prisons | G86: 0
A87: 2360 | B87: 03 | C87: 6 | D87: 0 | E87: Ð»ï³½áï³Ï³Ý áõ Ý³Ë³·Í³ÛÇÝ ³ßË³ï³ÝùÝ»ñ Ñ³ë³ñ³Ï³Ï³Ý Ï³ñ·Ç ¨ ³Ýíï³Ý·áõÃÛ³Ý áÉáñïáõÙ | F87: R&D Public Order and Safety | G87: 0 | H87: 0 | I87: 0
E88: áñÇó`
A89: 2361 | B89: 03 | C89: 6 | D89: 1 | E89: Ð»ï³½áï³Ï³Ý áõ Ý³Ë³·Í³ÛÇÝ ³ßË³ï³ÝùÝ»ñ Ñ³ë³ñ³Ï³Ï³Ý Ï³ñ·Ç ¨ ³Ýíï³Ý·áõÃÛ³Ý áÉáñïáõÙ | F89: R&D Public order and safety | G89: 0
A90: 2370 | B90: 03 | C90: 7 | D90: 0 | E90: Ð³ë³ñ³Ï³Ï³Ý Ï³ñ· ¨ ³Ýíï³Ý·áõÃÛáõÝ (³ÛÉ ¹³ë»ñÇÝ ãå³ïÏ³ÝáÕ) | F90: Public Order and Safety Not Elsewhere Classified | G90: 0 | H90: 0 | I90: 0
E91: áñÇó`
A92: 2371 | B92: 03 | C92: 7 | D92: 1 | E92: Ð³ë³ñ³Ï³Ï³Ý Ï³ñ· ¨ ³Ýíï³Ý·áõÃÛáõÝ (³ÛÉ ¹³ë»ñÇÝ ãå³ïÏ³ÝáÕ) | F92: Public order and safety not elsewhere classified | G92: 0
A93: 2400 | B93: 04 | C93: 0 | D93: 0 | E93: îÜîºê²Î²Ü Ð²ð²´ºðàôÂÚàôÜÜºð (ïáÕ2410+ïáÕ2420+ïáÕ2430+ïáÕ2440+ïáÕ2450+ïáÕ2460+ïáÕ2470+ïáÕ2480+ïáÕ2490) | F93: ECONOMIC AFFAIRS | G93: =H93+I93 -> 29627.6 | H93: =H99+H118+H143 -> 3000 | I93: =I118+I143+I99 -> 26627.6
E94: ³Û¹ ÃíáõÙ`
A95: 2410 | B95: 04 | C95: 1 | D95: 0 | E95: ÀÝ¹Ñ³Ýáõñ µÝáõÛÃÇ ïÝï»ë³Ï³Ý, ³é¨ïñ³ÛÇÝ ¨ ³ßË³ï³ÝùÇ ·Íáí Ñ³ñ³µ»ñáõÃÛáõÝÝ»ñ | F95: General Economic, Commercial and Labor Affairs | G95: 0 | H95: 0 | I95: 0
E96: áñÇó`
A97: 2411 | B97: 04 | C97: 1 | D97: 1 | E97: ÀÝ¹Ñ³Ýáõñ µÝáõÛÃÇ ïÝï»ë³Ï³Ý ¨ ³é¨ïñ³ÛÇÝ Ñ³ñ³µ»ñáõÃÛáõÝÝ»ñ | F97: General economic and commercial affairs | G97: 0
A98: 2412 | B98: 04 | C98: 1 | D98: 2 | E98: ²ßË³ï³ÝùÇ Ñ»ï Ï³åí³Í ÁÝ¹Ñ³Ýáõñ µÝáõÛÃÇ Ñ³ñ³µ»ñáõÃÛáõÝÝ»ñ | F98: General labor affairs | G98: 0
A99: 2420 | B99: 04 | C99: 2 | D99: 0 | E99: ¶ÛáõÕ³ïÝï»ëáõÃÛáõÝ, ³Ýï³é³ÛÇÝ ïÝï»ëáõÃÛáõÝ, ÓÏÝáñëáõÃÛáõÝ ¨ áñëáñ¹áõÃÛáõÝ | F99: Agriculture, Forestry, Fishing and Hunting | G99: =I99 -> 15000 | H99: =H101 -> 0 | I99: =I101 -> 15000
E100: áñÇó`
A101: 2421 | B101: 04 | C101: 2 | D101: 1 | E101: ¶ÛáõÕ³ïÝï»ëáõÃÛáõÝ | F101: Agriculture | G101: =I101 -> 15000 | H101: =anasnabyz!F32 -> 0 | I101: ='subv gux'!F135 -> 15000
A102: 2422 | B102: 04 | C102: 2 | D102: 2 | E102: ²Ýï³é³ÛÇÝ ïÝï»ëáõÃÛáõÝ | F102: Forestry | G102: 0
A103: 2423 | B103: 04 | C103: 2 | D103: 3 | E103: ÒÏÝáñëáõÃÛáõÝ ¨ áñëáñ¹áõÃÛáõÝ | F103: Fishing and hunting | G103: 0
A104: 2424 | B104: 04 | C104: 2 | D104: 4 | E104: àéá·áõÙ | G104: 0
A105: 2430 | B105: 04 | C105: 3 | D105: 0 | E105: ì³é»ÉÇù ¨ ¿Ý»ñ·»ïÇÏ³ | F105: Fuel and Energy | G105: 0 | H105: 0 | I105: 0
E106: áñÇó`
A107: 2431 | B107: 04 | C107: 3 | D107: 1 | E107: ø³ñ³ÍáõË ¨ ³ÛÉ Ï³ñÍñ µÝ³Ï³Ý í³é»ÉÇù | F107: Coal and other solid mineral fuels | G107: 0
A108: 2432 | B108: 04 | C108: 3 | D108: 2 | E108: Ü³íÃ³ÙÃ»ñù ¨ µÝ³Ï³Ý ·³½ | F108: Petroleum and natural gas | G108: 0 | H108: 0 | I108: 0
A109: 2433 | B109: 04 | C109: 3 | D109: 3 | E109: ØÇçáõÏ³ÛÇÝ í³é»ÉÇù | F109: Nuclear fuel | G109: 0
A110: 2434 | B110: 04 | C110: 3 | D110: 4 | E110: ì³é»ÉÇùÇ ³ÛÉ ï»ë³ÏÝ»ñ | F110: Other fuels | G110: 0
A111: 2435 | B111: 04 | C111: 3 | D111: 5 | E111: ¾É»Ïïñ³¿Ý»ñ·Ç³ | F111: Electricity | G111: 0
A112: 2436 | B112: 04 | C112: 3 | D112: 6 | E112: àã ¿É»Ïïñ³Ï³Ý ¿Ý»ñ·Ç³ | F112: Non-electric energy | G112: 0
A113: 2440 | B113: 04 | C113: 4 | D113: 0 | E113: È»éÝ³³ñ¹ÛáõÝ³Ñ³ÝáõÙ, ³ñ¹ÛáõÝ³µ»ñáõÃÛáõÝ ¨ ßÇÝ³ñ³ñáõÃÛáõÝ | F113: Mining, Manufacturing and Construction | G113: 0 | H113: 0 | I113: 0
E114: áñÇó`
A115: 2441 | B115: 04 | C115: 4 | D115: 1 | E115: Ð³Ýù³ÛÇÝ é»ëáõñëÝ»ñÇ ³ñ¹ÛáõÝ³Ñ³ÝáõÙ, µ³ó³éáõÃÛ³Ùµ µÝ³Ï³Ý í³é»ÉÇùÇ | F115: Mining of mineral resources other than mineral fuels | G115: 0
A116: 2442 | B116: 04 | C116: 4 | D116: 2 | E116: ²ñ¹ÛáõÝ³µ»ñáõÃÛáõÝ | F116: Manufacturing | G116: 0
A117: 2443 | B117: 04 | C117: 4 | D117: 3 | E117: ÞÇÝ³ñ³ñáõÃÛáõÝ | F117: Construction | G117: 0
A118: 2450 | B118: 04 | C118: 5 | D118: 0 | E118: îñ³Ýëåáñï | F118: Transport | G118: =G120 -> 24627.6 | H118: =H120 -> 3000 | I118: =I120 -> 21627.6
E119: áñÇó`
A120: 2451 | B120: 04 | C120: 5 | D120: 1 | E120: ×³Ý³å³ñÑ³ÛÇÝ ïñ³Ýëåáñï | F120: Road transport | G120: =H120+I120 -> 24627.6 | H120: ='arandzin chanaparh'!F33 -> 3000 | I120: ='arandzin chanaparh'!F135+'subv chanap'!F135 -> 21627.6
A121: 2452 | B121: 04 | C121: 5 | D121: 2 | E121: æñ³ÛÇÝ ïñ³Ýëåáñï | F121: Water transport | G121: 0
A122: 2453 | B122: 04 | C122: 5 | D122: 3 | E122: ºñÏ³ÃáõÕ³ÛÇÝ ïñ³Ýëåáñï | F122: Railway transport | G122: 0
A123: 2454 | B123: 04 | C123: 5 | D123: 4 | E123: ú¹³ÛÇÝ ïñ³Ýëåáñï | F123: Air transport | G123: 0
A124: 2455 | B124: 04 | C124: 5 | D124: 5 | E124: ÊáÕáí³Ï³ß³ñ³ÛÇÝ ¨ ³ÛÉ ïñ³Ýëåáñï | F124: Pipeline and other transport | G124: 0
A125: 2460 | B125: 04 | C125: 6 | D125: 0 | E125: Î³å | F125: Communication | G125: 0 | H125: 0 | I125: 0
E126: áñÇó`
A127: 2461 | B127: 04 | C127: 6 | D127: 1 | E127: Î³å | F127: Communication | G127: 0
A128: 2470 | B128: 04 | C128: 7 | D128: 0 | E128: ²ÛÉ µÝ³·³í³éÝ»ñ | F128: Other Industries | G128: 0 | H128: 0 | I128: 0
E129: áñÇó`
A130: 2471 | B130: 04 | C130: 7 | D130: 1 | E130: Ø»Í³Í³Ë ¨ Ù³Ýñ³Í³Ë ³é¨ïáõñ, ³åñ³ÝùÝ»ñÇ å³Ñå³ÝáõÙ ¨ å³Ñ»ëï³íáñáõÙ | F130: Distributive trades, storage and warehousing | G130: 0
A131: 2472 | B131: 04 | C131: 7 | D131: 2 | E131: ÐÛáõñ³ÝáóÝ»ñ ¨ Ñ³ë³ñ³Ï³Ï³Ý ëÝÝ¹Ç ûµÛ»ÏïÝ»ñ | F131: Hotels and restaurants | G131: 0
A132: 2473 | B132: 04 | C132: 7 | D132: 3 | E132: ¼µáë³ßñçáõÃÛáõÝ | F132: Tourism | G132: 0
A133: 2474 | B133: 04 | C133: 7 | D133: 4 | E133: ¼³ñ·³óÙ³Ý µ³½Ù³Ýå³ï³Ï Íñ³·ñ»ñ | F133: Multipurpose development projects | G133: 0
A134: 2480 | B134: 04 | C134: 8 | D134: 0 | E134: îÝï»ë³Ï³Ý Ñ³ñ³µ»ñáõÃÛáõÝÝ»ñÇ ·Íáí Ñ»ï³½áï³Ï³Ý ¨ Ý³Ë³·Í³ÛÇÝ ³ßË³ï³ÝùÝ»ñ | F134: R&D Economic Affairs | G134: 0 | H134: 0 | I134: 0
E135: áñÇó`
A136: 2481 | B136: 04 | C136: 8 | D136: 1 | E136: ÀÝ¹Ñ³Ýáõñ µÝáõÛÃÇ ïÝï»ë³Ï³Ý, ³é¨ïñ³ÛÇÝ ¨ ³ßË³ï³ÝùÇ Ñ³ñó»ñÇ ·Íáí Ñ»ï³½áï³Ï³Ý ¨ Ý³Ë³·Í³ÛÇÝ ³ßË³ï³ÝùÝ»ñ | F136: R&D General economic, commercial and labor affairs | G136: 0
A137: 2482 | B137: 04 | C137: 8 | D137: 2 | E137: ¶ÛáõÕ³ïÝï»ëáõÃÛ³Ý, ³Ýï³é³ÛÇÝ ïÝï»ëáõÃÛ³Ý, ÓÏÝáñëáõÃÛ³Ý ¨ áñëáñ¹áõÃÛ³Ý ·Íáí Ñ»ï³½áï³Ï³Ý ¨ Ý³Ë³·Í³ÛÇÝ ³ßË³ï³ÝùÝ»ñ | F137: R&D Agriculture, forestry, fishing and hunting | G137: 0
A138: 2483 | B138: 04 | C138: 8 | D138: 3 | E138: ì³é»ÉÇùÇ ¨ ¿Ý»ñ·»ïÇÏ³ÛÇ ·Íáí Ñ»ï³½áï³Ï³Ý ¨ Ý³Ë³·Í³ÛÇÝ ³ßË³ï³ÝùÝ»ñ | F138: R&D Fuel and energy | G138: 0
A139: 2484 | B139: 04 | C139: 8 | D139: 4 | E139: È»éÝ³³ñ¹ÛáõÝ³Ñ³ÝÙ³Ý, ³ñ¹ÛáõÝ³µ»ñáõÃÛ³Ý ¨ ßÇÝ³ñ³ñáõÃÛ³Ý ·Íáí Ñ»ï³½áï³Ï³Ý ¨ Ý³Ë³·Í³ÛÇÝ ³ßË³ï³ÝùÝ»ñ | F139: R&D Mining, manufacturing and construction | G139: 0
A140: 2485 | B140: 04 | C140: 8 | D140: 5 | E140: îñ³ÝëåáñïÇ ·Íáí Ñ»ï³½áï³Ï³Ý ¨ Ý³Ë³·Í³ÛÇÝ ³ßË³ï³ÝùÝ»ñ | F140: R&D Transport | G140: 0
A141: 2486 | B141: 04 | C141: 8 | D141: 6 | E141: Î³åÇ ·Íáí Ñ»ï³½áï³Ï³Ý ¨ Ý³Ë³·Í³ÛÇÝ ³ßË³ï³ÝùÝ»ñ | F141: R&D Communications | G141: 0
A142: 2487 | B142: 04 | C142: 8 | D142: 7 | E142: ²ÛÉ µÝ³·³í³éÝ»ñÇ ·Íáí Ñ»ï³½áï³Ï³Ý ¨ Ý³Ë³·Í³ÛÇÝ ³ßË³ï³ÝùÝ»ñ | F142: R&D Other industries | G142: 0
A143: 2490 | B143: 04 | C143: 9 | D143: 0 | E143: îÝï»ë³Ï³Ý Ñ³ñ³µ»ñáõÃÛáõÝÝ»ñ (³ÛÉ ¹³ë»ñÇÝ ãå³ïÏ³ÝáÕ) | F143: Economic Affairs Not Elsewhere Classified | G143: =G145 -> -10000 | H143: 0 | I143: =I145 -> -10000
E144: áñÇó`
A145: 2491 | B145: 04 | C145: 9 | D145: 1 | E145: îÝï»ë³Ï³Ý Ñ³ñ³µ»ñáõÃÛáõÝÝ»ñ (³ÛÉ ¹³ë»ñÇÝ ãå³ïÏ³ÝáÕ) | F145: Economic affairs not elsewhere classified | G145: =H145+I145 -> -10000 | I145: =tnt.harab.!F32 -> -10000
A146: 2500 | B146: 05 | C146: 0 | D146: 0 | E146: Þðæ²Î² ØÆæ²ì²ÚðÆ ä²Þîä²ÜàôÂÚàôÜ (ïáÕ2510+ïáÕ2520+ïáÕ2530+ïáÕ2540+ïáÕ2550+ïáÕ2560) | F146: ENVIRONMENTAL PROTECTION | G146: =H146+I146 -> 60000 | H146: =H148+H163+H151 -> 55500 | I146: =I148+I151+I154+I157+I160+I163 -> 4500
E147: ³Û¹ ÃíáõÙ`
A148: 2510 | B148: 05 | C148: 1 | D148: 0 | E148: ²Õµ³Ñ³ÝáõÙ | F148: Waste Management | G148: =H148 -> 47000 | H148: =H150 -> 47000 | I148: 0
E149: áñÇó`
A150: 2511 | B150: 05 | C150: 1 | D150: 1 | E150: ²Õµ³Ñ³ÝáõÙ | F150: Waste management | G150: =H150 -> 47000 | H150: ='arandzin axbahan.'!F46 -> 47000
A151: 2520 | B151: 05 | C151: 2 | D151: 0 | E151: Î»Õï³çñ»ñÇ Ñ»é³óáõÙ | F151: Waste Water Management | G151: =H151 -> 1000 | H151: =H153 -> 1000 | I151: =I153 -> 0
E152: áñÇó`
A153: 2521 | B153: 05 | C153: 2 | D153: 1 | E153: Î»Õï³çñ»ñÇ Ñ»é³óáõÙ | F153: Waste water management | G153: =H153+I153 -> 1000 | H153: =kext.grer!F32 -> 1000 | I153: =kext.grer!F134 -> 0
A154: 2530 | B154: 05 | C154: 3 | D154: 0 | E154: Þñç³Ï³ ÙÇç³í³ÛñÇ ³ÕïáïÙ³Ý ¹»Ù å³Ûù³ñ | F154: Pollution Abatement | G154: 0 | H154: 0 | I154: 0
E155: áñÇó`
A156: 2531 | B156: 05 | C156: 3 | D156: 1 | E156: Þñç³Ï³ ÙÇç³í³ÛñÇ ³ÕïáïÙ³Ý ¹»Ù å³Ûù³ñ | F156: Pollution abatement | G156: 0
A157: 2540 | B157: 05 | C157: 4 | D157: 0 | E157: Î»Ýë³µ³½Ù³½³ÝáõÃÛ³Ý ¨ µÝáõÃÛ³Ý å³ßïå³ÝáõÃÛáõÝ | F157: Protection of Biodiversity and Landscape | G157: 0 | H157: 0 | I157: 0
E158: áñÇó`
A159: 2541 | B159: 05 | C159: 4 | D159: 1 | E159: Î»Ýë³µ³½Ù³½³ÝáõÃÛ³Ý ¨ µÝáõÃÛ³Ý å³ßïå³ÝáõÃÛáõÝ | F159: Protection of biodiversity and landscape | G159: 0
A160: 2550 | B160: 05 | C160: 5 | D160: 0 | E160: Þñç³Ï³ ÙÇç³í³ÛñÇ å³ßïå³ÝáõÃÛ³Ý ·Íáí Ñ»ï³½áï³Ï³Ý ¨ Ý³Ë³·Í³ÛÇÝ ³ßË³ï³ÝùÝ»ñ | F160: R&D Environmental Protection | G160: 0 | H160: 0 | I160: 0
E161: áñÇó`
A162: 2551 | B162: 05 | C162: 5 | D162: 1 | E162: Þñç³Ï³ ÙÇç³í³ÛñÇ å³ßïå³ÝáõÃÛ³Ý ·Íáí Ñ»ï³½áï³Ï³Ý ¨ Ý³Ë³·Í³ÛÇÝ ³ßË³ï³ÝùÝ»ñ | F162: R&D Environmental protection | G162: 0
A163: 2560 | B163: 05 | C163: 6 | D163: 0 | E163: Þñç³Ï³ ÙÇç³í³ÛñÇ å³ßïå³ÝáõÃÛáõÝ (³ÛÉ ¹³ë»ñÇÝ ãå³ïÏ³ÝáÕ) | F163: Environmental Protection Not Elsewhere Classified | G163: =G165 -> 12000 | H163: =H165 -> 7500 | I163: =I165 -> 4500
E164: áñÇó`
A165: 2561 | B165: 05 | C165: 6 | D165: 1 | E165: Þñç³Ï³ ÙÇç³í³ÛñÇ å³ßïå³ÝáõÃÛáõÝ (³ÛÉ ¹³ë»ñÇÝ ãå³ïÏ³ÝáÕ) | F165: Environmental protection not elsewhere classified | G165: =H165+I165 -> 12000 | H165: =Shner!F34 -> 7500 | I165: =Shner!F136 -> 4500
A166: 2600 | B166: 06 | C166: 0 | D166: 0 | E166: ´Ü²Î²ð²Ü²ÚÆÜ ÞÆÜ²ð²ðàôÂÚàôÜ ºì ÎàØàôÜ²È Ì²è²ÚàôÂÚàôÜ (ïáÕ3610+ïáÕ3620+ïáÕ3630+ïáÕ3640+ïáÕ3650+ïáÕ3660) | F166: HOUSING AND COMMUNITY AMENITIES | G166: =H166+I166 -> 158932 | H166: =H183+H174+H168+H177 -> 93910 | I166: =I177+I185+I168+I174 -> 65022
E167: ³Û¹ ÃíáõÙ`
A168: 2610 | B168: 06 | C168: 1 | D168: 0 | E168: ´Ý³Ï³ñ³Ý³ÛÇÝ ßÇÝ³ñ³ñáõÃÛáõÝ | F168: Housing Development | G168: =H168+I168 -> 24050 | H168: =H170 -> 3000 | I168: =I170 -> 21050
E169: áñÇó`
A170: 2611 | B170: 06 | C170: 1 | D170: 1 | E170: ´Ý³Ï³ñ³Ý³ÛÇÝ ßÇÝ³ñ³ñáõÃÛáõÝ | F170: Housing development | G170: =H170+I170 -> 24050 | H170: =bnak.chin!F32 -> 3000 | I170: =bnak.chin!F151+'subv bnak'!F155 -> 21050
A171: 2620 | B171: 06 | C171: 2 | D171: 0 | E171: Ð³Ù³ÛÝù³ÛÇÝ ½³ñ·³óáõÙ | F171: Community Development | G171: 0 | H171: 0 | I171: 0
E172: áñÇó`
A173: 2621 | B173: 06 | C173: 2 | D173: 1 | E173: Ð³Ù³ÛÝù³ÛÇÝ ½³ñ·³óáõÙ | F173: Community development | G173: 0
A174: 2630 | B174: 06 | C174: 3 | D174: 0 | E174: æñ³Ù³ï³Ï³ñ³ñáõÙ | F174: Water Supply | G174: =H174+I174 -> 23554 | H174: =rhamat!F32 -> 1500 | I174: =I176 -> 22054
E175: áñÇó`
A176: 2631 | B176: 06 | C176: 3 | D176: 1 | E176: æñ³Ù³ï³Ï³ñ³ñáõÙ | F176: Water supply | G176: =H176+I176 -> 23554 | H176: =rhamat!F32 -> 1500 | I176: =+'subv rhamat'!F142 -> 22054
A177: 2640 | B177: 06 | C177: 4 | D177: 0 | E177: öáÕáóÝ»ñÇ Éáõë³íáñáõÙ | F177: Street Lighting | G177: =G179 -> 24418 | H177: =H179 -> 4000 | I177: =I179 -> 20418
E178: áñÇó`
A179: 2641 | B179: 06 | C179: 4 | D179: 1 | E179: öáÕáóÝ»ñÇ Éáõë³íáñáõÙ | F179: Street lighting | G179: =H179+I179 -> 24418 | H179: =poxoc.lusav.!F32 -> 4000 | I179: ='subv pox iusav'!F139 -> 20418
A180: 2650 | B180: 06 | C180: 5 | D180: 0 | E180: ´Ý³Ï³ñ³Ý³ÛÇÝ ßÇÝ³ñ³ñáõÃÛ³Ý ¨ ÏáÙáõÝ³É Í³é³ÛáõÃÛáõÝÝ»ñÇ ·Íáí Ñ»ï³½áï³Ï³Ý ¨ Ý³Ë³·Í³ÛÇÝ ³ßË³ï³ÝùÝ»ñ | F180: R&D Housing and Community Amenities | G180: 0 | H180: 0 | I180: 0
E181: áñÇó`
A182: 2651 | B182: 06 | C182: 5 | D182: 1 | E182: ´Ý³Ï³ñ³Ý³ÛÇÝ ßÇÝ³ñ³ñáõÃÛ³Ý ¨ ÏáÙáõÝ³É Í³é³ÛáõÃÛáõÝÝ»ñÇ ·Íáí Ñ»ï³½áï³Ï³Ý ¨ Ý³Ë³·Í³ÛÇÝ ³ßË³ï³ÝùÝ»ñ | F182: R&D Housing and community amenities | G182: 0
A183: 2660 | B183: 06 | C183: 6 | D183: 0 | E183: ´Ý³Ï³ñ³Ý³ÛÇÝ ßÇÝ³ñ³ñáõÃÛ³Ý ¨ ÏáÙáõÝ³É Í³é³ÛáõÃÛáõÝÝ»ñ (³ÛÉ ¹³ë»ñÇÝ ãå³ïÏ³ÝáÕ) | F183: Housing and Community Amenities Not Elsewhere Classified | G183: =G185 -> 86910 | H183: =H185 -> 85410 | I183: =I185 -> 1500
E184: áñÇó`
A185: 2661 | B185: 06 | C185: 6 | D185: 1 | E185: ´Ý³Ï³ñ³Ý³ÛÇÝ ßÇÝ³ñ³ñáõÃÛ³Ý ¨ ÏáÙáõÝ³É Í³é³ÛáõÃÛáõÝÝ»ñ (³ÛÉ ¹³ë»ñÇÝ ãå³ïÏ³ÝáÕ) | F185: Housing and community amenities not elsewhere classified | G185: =H185+I185 -> 86910 | H185: =qts!F32+'qts partq'!F32+Sheet3!F32 -> 85410 | I185: =Sheet3!F151+'qts partq'!F151+qts!F151 -> 1500
A186: 2700 | B186: 07 | C186: 0 | D186: 0 | E186: ²èàÔæ²ä²ÐàôÂÚàôÜ (ïáÕ2710+ïáÕ2720+ïáÕ2730+ïáÕ2740+ïáÕ2750+ïáÕ2760) | F186: HEALTH | G186: =H186+I186 -> 500 | H186: =H205 -> 500 | I186: =I205 -> 0
E187: ³Û¹ ÃíáõÙ`
A188: 2710 | B188: 07 | C188: 1 | D188: 0 | E188: ´ÅßÏ³Ï³Ý ³åñ³ÝùÝ»ñ, ë³ñù»ñ ¨ ë³ñù³íáñáõÙÝ»ñ | F188: Medical products, Appliances and Equipment | G188: 0 | H188: 0 | I188: 0
E189: áñÇó`
A190: 2711 | B190: 07 | C190: 1 | D190: 1 | E190: ¸»Õ³·áñÍ³Ï³Ý ³åñ³ÝùÝ»ñ | F190: Pharmaceutical products | G190: 0
A191: 2712 | B191: 07 | C191: 1 | D191: 2 | E191: ²ÛÉ µÅßÏ³Ï³Ý ³åñ³ÝùÝ»ñ | F191: Other medical products | G191: 0
A192: 2713 | B192: 07 | C192: 1 | D192: 3 | E192: ´ÅßÏ³Ï³Ý ë³ñù»ñ ¨ ë³ñù³íáñáõÙÝ»ñ | F192: Therapeutic appliances and equipment | G192: 0
A193: 2720 | B193: 07 | C193: 2 | D193: 0 | E193: ²ñï³ÑÇí³Ý¹³Ýáó³ÛÇÝ Í³é³ÛáõÃÛáõÝÝ»ñ | F193: Outpatient Services | G193: 0 | H193: 0 | I193: 0
E194: áñÇó`
A195: 2721 | B195: 07 | C195: 2 | D195: 1 | E195: ÀÝ¹Ñ³Ýáõñ µÝáõÛÃÇ µÅßÏ³Ï³Ý Í³é³ÛáõÃÛáõÝÝ»ñ | F195: General medical services | G195: 0
A196: 2722 | B196: 07 | C196: 2 | D196: 2 | E196: Ø³ëÝ³·Çï³óí³Í µÅßÏ³Ï³Ý Í³é³ÛáõÃÛáõÝÝ»ñ | F196: Specialized medical services | G196: 0
A197: 2723 | B197: 07 | C197: 2 | D197: 3 | E197: êïáÙ³ïáÉá·Ç³Ï³Ý Í³é³ÛáõÃÛáõÝÝ»ñ | F197: Dental services | G197: 0
A198: 2724 | B198: 07 | C198: 2 | D198: 4 | E198: ä³ñ³µÅßÏ³Ï³Ý Í³é³ÛáõÃÛáõÝÝ»ñ | F198: Paramedical services | G198: 0
A199: 2730 | B199: 07 | C199: 3 | D199: 0 | E199: ÐÇí³Ý¹³Ýáó³ÛÇÝ Í³é³ÛáõÃÛáõÝÝ»ñ | F199: Hospital Services | G199: 0 | H199: 0 | I199: 0
E200: áñÇó`
A201: 2731 | B201: 07 | C201: 3 | D201: 1 | E201: ÀÝ¹Ñ³Ýáõñ µÝáõÛÃÇ ÑÇí³Ý¹³Ýáó³ÛÇÝ Í³é³ÛáõÃÛáõÝÝ»ñ | F201: General hospital services | G201: =H201 -> 0 | H201: 0
A202: 2732 | B202: 07 | C202: 3 | D202: 2 | E202: Ø³ëÝ³·Çï³óí³Í ÑÇí³Ý¹³Ýáó³ÛÇÝ Í³é³ÛáõÃÛáõÝÝ»ñ | F202: Specialized hospital services | G202: 0
... 110 more rows

Sheet aparat (hidden)
I1: Ð³í»Éí³Í N 2
H3: úñÇÝ³Ï»ÉÇ Ó¨ N1
G4: h³ëï³ïí»É ¿ ÐÐ ýÇÝ³ÝëÝ»ñÇ ¨ ¿ÏáÝáÙÇÏ³ÛÇ
H5: Ý³Ë³ñ³ñÇ 23 ÑáõÉÇëÇ 2007 Ãí³Ï³ÝÇ
B6: §Ð ² ê î ² î àô Ø ºØª¦ | G6: N 597-Ü Ññ³Ù³Ýáí
A8: Ý³Ë³Ñ³ßÇíÁª 137506,13 հարյուր երեսունյոթ միլիոն հինգ հարյուր վեց հազ.հարյուր երեսուն դրամ
A9: ( ÁÝ¹³Ù»ÝÁ ·áõÙ³ñÁ Ãí»ñáí ¨ ï³é»ñáí****)
A10: _______________________________________________________________________________________________________________ Ñ³½³ñ ¹ñ³Ù ·áõÙ³ñáí:
A12: __________________________________________________________________________________________ | B12: Է.Արշակյան | H12: Î.î.
A13: (ÐÐ å»ï³Ï³Ý Ï³é³í³ñÙ³Ý Ù³ñÙÝÇ Õ»Ï³í³ñÇ /Ñ³Ù³ÛÝùÇ Õ»Ï³í³ñÇ/ ëïáñ³·ñáõÃÛáõÝÁ ¨ ².Ð.².)
A14: § ¦ դեկտեմբերի 2020թ
B15: Ü²Ê²Ð²ÞÆì*
B16: ´ Ú àô æ º î ² Ú Æ Ü Ð Æ Ø Ü ² ð Î Æ ä ² Ð ä ² Ü Ø ² Ü Ì ² Ê ê º ð Æ
A17: §01¦ §ÐáõÝí³ñÇ ¦ 2013 Ã.-- §31¦§դեկտեմբերի ¦ 2013 Ã §դեկտեմբերի ¦ 2013 Ã. Å³Ù³Ý³Ï³Ñ³ïí³ÍÇ Ñ³Ù³ñ | B17: §01¦ §ÐáõÝí³ñÇ ¦ 2021 Ã. -- §30¦ §¹»Ïï»Ùµ»ñÇ ¦ 2021 Ã.
A19: 1. ÐÇÙÝ³ñÏÇ ³Ýí³ÝáõÙÁ î³ßÇñÇ ù³Õ³ù³պ»ï³ñ³Ý | G19: 8. * ´Ûáõç»ï³ÛÇÝ Í³Ëë»ñÇ ·áñÍ³é³Ï³Ý ¹³ë³Ï³ñ·.
G20: Í³ÍÏ³·Çñ | H20: 01 | I20: 1 | J20: 1
A21: 3. ÐÇÙÝ³ñÏÇ ï»Õ³µ³ßËÙ³Ý Ù³ñ½Ç ¨ Ñ³Ù³ÛÝùÇ Ïá¹Ý Áëï | G21: 9. Ìñ³·ñÇ ³Ýí³ÝáõÙÁ___Ï³é³í³ñÙ³Ý ³å³ñ³ï
A22: µÛáõç»ï³ÛÇÝ Í³Ëë»ñÇ ï³ñ³Íù³ÛÇÝ ¹³ë³Ï³ñ·Ù³Ý | G22: ________________________________
A23: 4. ** ÐÐ å»ï³Ï³Ý Ï³é³í³ñÙ³Ý (ï»Õ³Ï³Ý ÇÝùÝ³Ï³é³í³ñÙ³Ý) Ù³ñÙÝÇ | G23: 10. Ìñ³·ñÇ Ïá¹Á
A24: ³Ýí³ÝáõÙÁ Լոռու մարզպետարան | G24: 11.*** ÐÐ å»ï³Ï³Ý Ï³é³í³ñÙ³Ý (îÆ)
A25: 5. ÐÇÙÝ³ñÏÁ ëå³ë³ñÏáÕ ï»Õ³Ï³Ý ·³ÝÓ³å»ï³Ï³Ý µ³ÅÝÇ (î¶´) ³Ýí³ÝáõÙÁ Տաշիրի | G25: Ù³ñÙÝÇ Ïá¹Ý Áëï µÛáõç»ï³ÛÇÝ Í³Ëë»ñÇ ·»ñ³ï»ëã³Ï.
A26: 6. ÐÇÙÝ³ñÏÇª ï»Õ³Ï³Ý ·³ÝÓ³å»ï³Ï³Ý µ³ÅÝáõÙ (î¶´) Ñ³ßí³éÙ³Ý Ñ³Ù³ñÁ | G26: ¹³ë³Ï³ñ·Ù³Ý
A27: 7. üÇÝ³Ýë³íáñÙ³Ý ³ÕµÛáõñÇ Ïá¹Á (ÐÐ å»ï³Ï³Ý µÛáõç»ª 1, Ñ³Ù³ÛÝùÇ µÛáõç»ª 2) | E27: 2 | G27: 12. â³÷Ç ÙÇ³íáñÁª Ñ³½³ñ ¹ñ³Ù
A29: îáÕÇ NN | B29: ´Ûáõç»ï³ÛÇÝ Í³Ëë»ñÇ ïÝï»ë³·Çï³Ï³Ý ¹³ë³Ï³ñ·Ù³Ý ï³ññ»ñ | D29: ÜáõÛÝ Å³Ù³Ý³Ï³Ñ³ïí³ÍÇ Ñ³Ù³ñ Ý³ËÏÇÝáõÙ Ñ³ëï³ïí³Íª ·áñÍáÕ | F29: êáõÛÝ Ý³Ë³Ñ³ßíáí Ñ³ëï³ïíáÕ óáõó³ÝÇßÝ»ñÁ | G29: ³Û¹ ÃíáõÙª Áëï »é³ÙëÛ³ÏÝ»ñÇ (»é³ÙëÛ³ÏÇ ³ÙÇëÝ»ñÇ)³×áÕ³Ï³Ý
B30: ³Ýí³ÝáõÙÝ»ñÁ | C30: NN | D30: Ý³Ë³Ñ³ßíÇ óáõó³ÝÇßÝ»ñÁ | E30: Ý³Ë³Ñ³ßíáõÙ Ï³ï³ñí³Í ÷á÷áËáõÃÛáõÝ-Ý»ñÁ (³í»É³óáõÙÁª /+/, å³Ï³ë»óáõÙÁª/-/ | G30: I | H30: II | I30: III | J30: IV
A31: ² | B31: ´ | C31: ¶ | D31: 1 | E31: 2 | F31: 3 | G31: 4 | H31: 5 | I31: 6 | J31: 7
A32: 1100000 | B32: ². ÀÜÂ²òÆÎ Ì²Êêºðª ÀÜ¸²ØºÜÀ, | C32: x | D32: =D33+D42+D131 -> 135655.73 | E32: =E33+E43+E55+E66+E69+E135+E51+E77 -> 0 | F32: =F33+F42+F131+F132 -> 135655.73 | G32: =G33+G42+G131+G132 -> 33630 | H32: =H33+H42+H131+H132 -> 68150 | I32: =I33+I42+I138 -> 95500 | J32: =J33+J42+J131+J132 -> 135655.73
A33: 1110000 | B33: 1.äºî²Î²Ü, îºÔ²Î²Ü ÆÜøÜ²Î²è²ì²ðØ²Ü Ø²ðØÆÜÜºðÆ, ¸ð²Üò ºÜÂ²Î² ´Úàôæºî²ÚÆÜ ÐÆØÜ²ðÎÜºðÆ ²ÞÊ²îàÔÜºðÆ ²ÞÊ²î²ì²ðÒÀª ÀÜ¸²ØºÜÀ, ³Û¹ ÃíáõÙª | C33: x | D33: =D34 -> 97000 | E33: =E34 -> 0 | F33: 97000 | G33: 22500 | H33: 50000 | I33: 68500 | J33: 97000
A34: 1110000 | B34: 1,1 ²ßË³ï³ÝùÇ í³ñÓ³ïñáõÃÛáõÝ | C34: x | D34: =SUM(D35:D41) -> 97000 | E34: =SUM(E35:E41) -> 0 | F34: =SUM(F35:F41) -> 97000 | G34: =G35+G36 -> 22500 | H34: =H35+H36 -> 50000 | I34: =I35+I36 -> 68500 | J34: 97000
A35: 1111000 | B35: -²ßË³ïáÕÝ»ñÇ ³ßË³ï³í³ñÓ»ñ ¨ Ñ³í»É³í×³ñÝ»ñ | C35: 411100 | D35: 90000 | E35: 0 | F35: =D35+E35 -> 90000 | G35: 22500 | H35: 50000 | I35: 68000 | J35: =F35 -> 90000
A36: 1112000 | B36: - ä³ñ·¨³ïñáõÙÝ»ñ, ¹ñ³Ù³Ï³Ý Ëñ³ËáõëáõÙÝ»ñ ¨ Ñ³ïáõÏ í×³ñÝ»ñ | C36: 411200 | D36: 7000 | E36: 0 | F36: =D36+E36 -> 7000 | G36: 0 | H36: 0 | I36: 500 | J36: =F36 -> 7000
A37: 1113000 | B37: -ø³Õ³ù³óÇ³Ï³Ý, ¹³ï³Ï³Ý ¨ å»ï³Ï³Ý Í³é³ÛáÕÝ»ñÇ å³ñ·¨³ïñáõÙ | C37: 411300 | F37: 0 | J37: 0
A38: 1114000 | B38: -ÐÐ ýÇÝ³ÝëÝ»ñÇ ¨ ¿ÏáÝáÙÇÏ³ÛÇ Ý³Ë³ñ³ñáõÃÛ³Ý, Ñ³ñÏ³ÛÇÝ ¨ Ù³ùë³ÛÇÝ Ù³ñÙÇÝÝ»ñÇ ³ßË³ïáÕÝ»ñÇ å³ñ·¨³ïñáõÙ | C38: 411400 | F38: 0 | J38: 0
A39: 1115000 | B39: -²ÛÉ í³ñÓ³ïñáõÃÛáõÝÝ»ñ | C39: 411500 | F39: 0 | J39: 0
A40: 1116000 | B40: -´Ý»Õ»Ý ³ßË³ï³í³ñÓ»ñ ¨ Ñ³í»É³í×³ñÝ»ñ | C40: 412100 | F40: 0 | J40: 0
A41: 1117000 | B41: - êáóÇ³É³Ï³Ý ³å³ÑáíáõÃÛ³Ý í×³ñÝ»ñ | C41: 413100 | D41: 0 | E41: 0 | F41: 0 | G41: 0 | H41: 0 | I41: 0 | J41: =F41 -> 0
A42: 1120000 | B42: 2 Ì³é³ÛáõÃÛáõÝÝ»ñÇ ¨ ³åñ³ÝùÝ»ñÇ Ó»éù µ»ñáõÙ | C42: x | D42: =D43+D55+D66+D69+D51+D64 -> 38450 | F42: =F43+F55+F66+F69+F51+F64 -> 38450 | G42: =G43+G51+G55+G64+G66+G69 -> 11080 | H42: =H43+H51+H55+H64+H66+H69 -> 18050 | I42: =I43+I51+I64+I66+I69+I55 -> 26850 | J42: =F42 -> 38450
A43: 1121000 | B43: 2.1 Þ³ñáõÝ³Ï³Ï³Ý Í³Ëë»ñ | D43: =SUM(D44:D49) -> 20300 | E43: =SUM(E45:E49) -> 0 | F43: =SUM(F44:F49) -> 20300 | G43: =SUM(G44:G49) -> 5900 | H43: =H45+H46+H47+H48 -> 9500 | I43: =I45+I46+I47+I48 -> 14400 | J43: =SUM(J44:J49) -> 20300
A44: 1121100 | B44: -·áñÍ³éÝ³Ï³Ý ¨ µ³ÝÏ³ÛÇÝ Í³é³ÛáõÃÛáõÝÝ»ñÇ Í³Ëë»ñ | C44: 421100 | E44: 0 | F44: =D44+E44 -> 0 | J44: 0
A45: 1121200 | B45: -¿Ý»ñ·»ïÇÏ Í³é³ÛáõÃÛáõÝÝ»ñ | C45: 421200 | D45: 17500 | E45: 0 | F45: 17500 | G45: 5000 | H45: 8000 | I45: 12000 | J45: =F45 -> 17500
A46: 1121300 | B46: -ÎáÙáõÝ³É Í³é³ÛáõÃÛáõÝÝ»ñ | C46: 421300 | D46: 300 | E46: 0 | F46: 300 | G46: 150 | H46: 150 | I46: 300 | J46: =F46 -> 300
A47: 1121400 | B47: -Î³åÇ Í³é³ÛáõÃÛáõÝÝ»ñ | C47: 421400 | D47: 2200 | E47: 0 | F47: 2200 | G47: 600 | H47: 1200 | I47: 1800 | J47: =F47 -> 2200
A48: 1121500 | B48: -²å³Ñáí³·ñ³Ï³Ý Í³Ëë»ñ | C48: 421500 | D48: 300 | E48: 0 | F48: 300 | G48: 150 | H48: 150 | I48: 300 | J48: =F48 -> 300
A49: 1121600 | B49: -¶áõÛùÇ ¨ ë³ñù³íáñáõÙÝ»ñÇ í³ñÓ³Ï³ÉáõÃÛáõÝ | C49: 421600 | F49: 0 | J49: 0
A50: 1121700 | B50: -²ñï³·»ñ³ï»ëã³Ï³Ý Í³Ëë»ñ | C50: 421700 | J50: 0
A51: 1122000 | B51: 2.2 ¶áñÍáõÕáõÙÝ»ñÇ ¨ ßñç³·³ÛáõÃÛ³Ý Í³Ëë»ñ | C51: x | D51: =D52+D53+D54 -> 1500 | E51: =E53+E52 -> 0 | F51: =D51+E51 -> 1500 | G51: =G52+G53 -> 150 | H51: =H52+H53 -> 400 | I51: =I52+I53 -> 1000 | J51: =F51 -> 1500
A52: 1122100 | B52: -Ü»ñùÇÝ ·áñÍáõÕáõÙÝ»ñ | C52: 422100 | D52: 1500 | E52: 0 | F52: =D52+E52 -> 1500 | G52: 150 | H52: 400 | I52: 1000 | J52: =F52 -> 1500
A53: 1122200 | B53: -²ñï³ë³ÑÙ³ÝÛ³Ý ·áñÍáõÕáõÙÝ»ñÇ ·Íáí Í³Ëë»ñ | C53: 422200 | D53: 0 | E53: 0 | F53: =D53+E53 -> 0 | G53: 0 | H53: 0 | I53: 0 | J53: =F53 -> 0
A54: 1122300 | B54: -²ÛÉ ïñ³Ýëåáñï³ÛÇÝ Í³Ëë»ñ | C54: 422900 | J54: 0
A55: 1123000 | B55: 2.3 ä³ÛÙ³Ý³·ñ³ÛÇÝ ³ÛÉ Í³é³ÛáõÃÛáõÝÝ»ñÇ Ó»éù µ»ñáõÙ | C55: x | D55: =SUM(D56:D63) -> 7200 | E55: =E63+E57+E62 -> 0 | F55: =SUM(F56:F63) -> 7200 | G55: =SUM(G56:G63) -> 2130 | H55: =H57+H59+H62+H63+H58 -> 3900 | I55: =I57+I59+I62+I63+I58 -> 5100 | J55: =F55 -> 7200
A56: 1123100 | B56: -ì³ñã³Ï³Ý Í³é³ÛáõÃÛáõÝÝ»ñ | C56: 423100 | F56: =D56+E56 -> 0 | J56: =F56 -> 0
A57: 1123200 | B57: -Ð³Ù³Ï³ñ·ã³ÛÇÝ Í³é³ÛáõÃÛáõÝÝ»ñ | C57: 423200 | D57: 1500 | E57: 0 | F57: =D57+E57 -> 1500 | G57: 500 | H57: 1000 | I57: 1500 | J57: =F57 -> 1500
A58: 1123300 | B58: -²ßË³ï³Ï³½ÙÇ Ù³ëÝ³·Çï³Ï³Ý ½³ñ·³óÙ³Ý Í³é³ÛáõÃÛáõÝÝ»ñ | C58: 423300 | D58: 100 | E58: 0 | F58: 100 | G58: 50 | H58: 50 | I58: 100 | J58: =F58 -> 100
A59: 1123400 | B59: -î»Õ³Ï³ïí³Ï³Ý Í³é³ÛáõÃÛáõÝÝ»ñ | C59: 423400 | D59: 800 | E59: 0 | F59: 800 | G59: 280 | H59: 350 | I59: 400 | J59: =F59 -> 800 | K59: 0
A60: 1123500 | B60: -Î³é³í³ñã³Ï³Ý Í³é³ÛáõÃÛáõÝÝ»ñ | C60: 423500 | F60: 0 | J60: 0
A61: 1123600 | B61: - Î»Ýó³Õ³ÛÇÝ ¨ Ñ³Ýñ³ÛÇÝ ëÝÝ¹Ç Í³é³ÛáõÃÛáõÝÝ»ñ | C61: 423600 | F61: 0 | J61: 0
A62: 1123700 | B62: -Ü»ñÏ³Û³óáõóã³Ï³Ý Í³Ëë»ñ | C62: 423700 | D62: 800 | E62: 0 | F62: 800 | G62: 300 | H62: 500 | I62: 600 | J62: 800
A63: 1123800 | B63: -ÀÝ¹Ñ³Ýáõñ µÝáõÛÃÇ ³ÛÉ Í³é³ÛáõÃÛáõÝÝ»ñ | C63: 423900 | D63: 4000 | E63: 0 | F63: 4000 | G63: 1000 | H63: 2000 | I63: 2500 | J63: 4000
A64: 1124000 | B64: 2.4 ²ÛÉ Ù³ëÝ³·Çï³Ï³Ý Í³é³ÛáõÃÛáõÝÝ»ñÇ Ó»éù µ»ñáõÙ | C64: x | D64: =D65 -> 2000 | F64: =F65 -> 2000 | G64: =G65 -> 300 | H64: =H65 -> 500 | I64: =I65 -> 800 | J64: 2000
A65: 1124100 | B65: -Ø³ëÝ³·Çï³Ï³Ý Í³é³ÛáõÃÛáõÝÝ»ñ | C65: 424100 | D65: 2000 | E65: 0 | F65: =D65+E65 -> 2000 | G65: 300 | H65: 500 | I65: 800 | J65: 2000
A66: 1125000 | B66: 2.5 ÀÝÃ³óÇÏ Ýáñá·áõÙ ¨ å³Ñå³ÝáõÙ (Í³é³ÛáõÃÛáõÝÝ»ñ ¨ ÝÛáõÃ»ñ) | C66: x | D66: =D67+D68 -> 1500 | E66: =SUM(E67:E68) -> 0 | F66: =F67+F68 -> 1500 | G66: =G67+G68 -> 500 | H66: =H67+H68 -> 700 | I66: =I67+I68 -> 1000 | J66: =J67+J68 -> 1500
A67: 1125100 | B67: -Þ»Ýù»ñÇ ¨ Ï³éáõÛóÝ»ñÇ ÁÝÃ³óÇÏ Ýáñá·áõÙ ¨ å³Ñå³ÝáõÙ | C67: 425100 | D67: 0 | F67: =D67+E67 -> 0 | I67: 0 | J67: =F67 -> 0
A68: 1125200 | B68: -Ø»ù»Ý³Ý»ñÇ ¨ ë³ñù³íáñáõÙÝ»ñÇ ÁÝÃ³óÇÏ Ýáñá·áõÙ ¨ å³Ñå³ÝáõÙ | C68: 425200 | D68: 1500 | E68: 0 | F68: =D68+E68 -> 1500 | G68: 500 | H68: 700 | I68: 1000 | J68: 1500
A69: 1126000 | B69: 2.6 ÜÛáõÃ»ñ | C69: x | D69: =SUM(D70:D77) -> 5950 | E69: 0 | F69: =SUM(F70:F77) -> 5950 | G69: =SUM(G70:G77) -> 2100 | H69: =SUM(H70:H77) -> 3050 | I69: =I70+I73+I76+I77 -> 4550 | J69: 5950
A70: 1126100 | B70: -¶ñ³ë»ÝÛ³Ï³ÛÇÝ ÝÛáõÃ»ñ ¨ Ñ³·áõëï | C70: 426100 | D70: 950 | E70: 0 | F70: =D70+E70 -> 950 | G70: 300 | H70: 500 | I70: 750 | J70: 950
A71: 1126200 | B71: -¶ÛáõÕ³ïÝï»ë³Ï³Ý ³åñ³ÝùÝ»ñ | C71: 426200 | F71: =D71+E71 -> 0 | J71: 0
A72: 1126300 | B72: -ì»ñ³å³ïñ³ëïÙ³Ý ¨ áõëáõóÙ³Ý ÝÛáõÃ»ñ | C72: 426300 | F72: 0 | J72: 0
A73: 1126400 | B73: -îñ³Ýëåáñï³ÛÇÝ ÝÛáõÃ»ñ | C73: 426400 | D73: 4000 | E73: 0 | F73: 4000 | G73: 1500 | H73: 2000 | I73: 3000 | J73: 4000
A74: 1126500 | B74: -Þñç³Ï³ ÙÇç³í³ÛñÇ å³ßïå³ÝáõÃÛ³Ý ¨ ·Çï³Ï³Ý ÝÛáõÃ»ñ | C74: 426500 | F74: 0 | J74: 0
A75: 1126600 | B75: -²éáÕç³å³Ñ³Ï³Ý ¨ É³µáñ³ïáñ ÝÛáõÃ»ñ | C75: 426600 | F75: 0 | J75: =F75 -> 0
A76: 1126700 | B76: -Î»Ýó³Õ³ÛÇÝ ¨ Ñ³Ýñ³ÛÇÝ ëÝÝ¹Ç ÝÛáõÃ»ñ | C76: 426700 | D76: 400 | F76: 400 | G76: 100 | H76: 200 | I76: 300 | J76: =F76 -> 400
A77: 1126800 | B77: -Ð³ïáõÏ Ýå³ï³Ï³ÛÇÝ ³ÛÉ ÝÛáõÃ»ñ | C77: 426900 | D77: 600 | E77: 0 | F77: 600 | G77: 200 | H77: 350 | I77: 500 | J77: =F77 -> 600
A78: 1130000 | B78: 3 îáÏáë³í×³ñÝ»ñ | C78: x | D78: 0 | F78: 0 | G78: 0 | H78: 0 | I78: 0 | J78: 0
A79: 1130100 | B79: -Ü»ñùÇÝ ³ñÅ»ÃÕÃ»ñÇ ïáÏáë³í×³ñÝ»ñ | C79: 441100 | J79: 0
A80: 1130200 | B80: -Ü»ñùÇÝ í³ñÏ»ñÇ ïáÏáë³í×³ñÝ»ñ | C80: 441200 | J80: 0
A81: 1130300 | B81: -²ñï³ùÇÝ ³ñÅ»ÃÕÃ»ñÇ ·Íáí ïáÏáë³í×³ñÝ»ñ | C81: 442100 | J81: 0
A82: 1130400 | B82: -²ñï³ùÇÝ í³ñÏ»ñÇ ·Íáí ïáÏáë³í×³ñÝ»ñ | C82: 442200 | J82: 0
A83: 1131000 | B83: öáË³éáõÃÛáõÝÝ»ñÇ Ñ»ï Ï³åí³Í í×³ñÝ»ñ | C83: x | J83: 0
A84: 1131100 | B84: -öáË³Ý³ÏÙ³Ý Ïáõñë»ñÇ µ³ó³ë³Ï³Ý ï³ñµ»ñáõÃÛáõÝ | C84: 443100 | J84: 0
A85: 1131200 | B85: -îáõÛÅ»ñ | C85: 443200 | J85: 0
A86: 1131300 | B86: -öáË³éáõÃÛáõÝÝ»ñÇ ·Íáí ïáõñù»ñ | C86: 443300 | J86: 0
A87: 1140000 | B87: 4. êáõµëÇ¹Ç³Ý»ñ | C87: x | D87: 0 | F87: 0 | G87: 0 | H87: 0 | I87: 0 | J87: 0
A88: 1141000 | B88: -êáõµëÇ¹Ç³Ý»ñ áã-ýÇÝ³Ýë³Ï³Ý å»ï³Ï³Ý Ï³½Ù³Ï»ñåáõÃÛáõÝÝ»ñÇÝ | C88: 451100 | J88: 0
A89: 1142000 | B89: -êáõµëÇ¹Ç³Ý»ñ ýÇÝ³Ýë³Ï³Ý å»ï³Ï³Ý Ï³½Ù³Ï»ñåáõÃÛáõÝÝ»ñÇÝ | C89: 451200 | J89: 0
A90: 1143000 | B90: -êáõµëÇ¹Ç³Ý»ñ áã å»ï³Ï³Ý áã ýÇÝ³Ýë³Ï³Ý Ï³½Ù³Ï»ñåáõÃÛáõÝÝ»ñÇÝ | C90: 452100 | J90: 0
A91: 1144000 | B91: -êáõµëÇ¹Ç³Ý»ñ áã å»ï³Ï³Ý ýÇÝ³Ýë³Ï³Ý Ï³½Ù³Ï»ñåáõÃÛáõÝÝ»ñÇÝ | C91: 452200 | J91: 0
A92: 1150000 | B92: 5.¸ñ³Ù³ßÝáñÑÝ»ñ | C92: x | D92: 0 | F92: 0 | G92: 0 | H92: 0 | I92: 0 | J92: 0
A93: 1151000 | B93: ¸ñ³Ù³ßÝáñÑÝ»ñ ûï³ñ»ñÏñÛ³ Ï³é³í³ñáõÃÛáõÝÝ»ñÇÝ | C93: x | D93: 0 | F93: 0 | G93: 0 | H93: 0 | I93: 0 | J93: 0
A94: 1151100 | B94: ÀÝÃ³óÇÏ ¹ñ³Ù³ßÝáñÑÝ»ñ ûï³ñ»ñÏñÛ³ Ï³é³í³ñáõÃÛáõÝÝ»ñÇÝ | C94: 461100 | J94: 0
A95: 1151200 | B95: Î³åÇï³É ¹ñ³Ù³ßÝáñÑÝ»ñ ûï³ñ»ñÏñÛ³ Ï³é³í³ñáõÃÛáõÝÝ»ñÇÝ | C95: 461200 | J95: 0
A96: 1152000 | B96: ¸ñ³Ù³ßÝáñÑÝ»ñ ÙÇç³½·³ÛÇÝ Ï³½Ù³Ï»ñåáõÃÛáõÝÝ»ñÇÝ | C96: x | D96: 0 | F96: 0 | G96: 0 | H96: 0 | I96: 0 | J96: 0
A97: 1152100 | B97: ÀÝÃ³óÇÏ ¹ñ³Ù³ßÝáñÑÝ»ñ ÙÇç³½·³ÛÇÝ Ï³½Ù³Ï»ñåáõÃÛáõÝÝ»ñÇÝ | C97: 462100 | J97: 0
A98: 1152200 | B98: Î³åÇï³É ¹ñ³Ù³ßÝáñÑ»ñ ÙÇç³½·³ÛÇÝ Ï³½Ù³Ï»ñåáõÃÛáõÝÝ»ñÇÝ | C98: 462200 | J98: 0
A99: 1153000 | B99: ÀÝÃ³óÇÏ ¹ñ³Ù³ßÝáñÑÝ»ñ å»ï³Ï³Ý Ñ³ïí³ÍÇ ³ÛÉ Ù³Ï³ñ¹³ÏÝ»ñÇÝ | C99: x | D99: 0 | F99: 0 | G99: 0 | H99: 0 | I99: 0 | J99: 0
A100: 1153100 | B100: ÀÝÃ³óÇÏ ¹ñ³Ù³ßÝáñÑÝ»ñ å»ï³Ï³Ý Ï³é³í³ñÙ³Ý Ñ³ïí³ÍÇÝ | C100: 463100 | J100: 0
A101: 1153200 | B101: ÀÝÃ³óÇÏ ëáõµí»ÝóÇ³Ý»ñ Ñ³Ù³ÛÝùÝ»ñÇÝ | C101: 463200 | J101: 0
A102: 1153300 | B102: ä»ï³Ï³Ý µÛáõç»Çó Ñ³Ù³ÛÝùÝ»ñÇ µÛáõç»Ý»ñÇÝ ýÇÝ³Ýë³Ï³Ý Ñ³Ù³Ñ³ñÃ»óÙ³Ý ëÏ½µáõÝùáí ïñíáÕ ¹áï³óÇ³Ý»ñ | C102: 463300 | J102: 0
A103: 1153400 | B103: úñ»ÝùÝ»ñÇ ÏÇñ³ñÏÙ³Ý ³ñ¹ÛáõÝùáõÙ Ñ³Ù³ÛÝùÝ»ñÇ µÛáõç»Ý»ñÇ ÏáñáõëïÝ»ñÇ ÷áËÑ³ïáõóáõÙ | C103: 463400 | J103: 0
A104: 1153500 | B104: ²ÛÉ ÁÝÃ³óÇÏ ¹ñ³Ù³ßÝáñÑÝ»ñ Ñ³Ù³ÛÝùÝ»ñÇÝ | C104: 463500 | J104: 0
A105: 1153700 | B105: ÀÝÃ³óÇÏ ¹ñ³Ù³ßÝáñÑÝ»ñ å»ï³Ï³Ý ¨ Ñ³Ù³ÛÝùÝ»ñÇ áã ³é¨ïñ³ÛÇÝ Ï³½Ù³Ï»ñåáõÃÛáõÝÝ»ñÇÝ | C105: 463700 | J105: 0
A106: 1153800 | B106: ÀÝÃ³óÇÏ ¹ñ³Ù³ßÝáñÑÝ»ñ å»ï³Ï³Ý ¨ Ñ³Ù³ÛÝùÝ»ñÇ ³é¨ïñ³ÛÇÝ Ï³½Ù³Ï»ñåáõÃÛáõÝÝ»ñÇÝ | C106: 463800 | J106: 0
A107: 1153900 | B107: ²ÛÉ ÁÝÃ³óÇÏ ¹ñ³Ù³ßÝáñÑÝ»ñ | C107: 463900 | J107: 0
A108: 1154000 | B108: Î³åÇï³É ¹ñ³Ù³ßÝáñÑÝ»ñ å»ï³Ï³Ý Ñ³ïí³ÍÇ ³ÛÉ Ù³Ï³ñ¹³ÏÝ»ñÇÝ | C108: x | D108: 0 | F108: 0 | G108: 0 | H108: 0 | I108: 0 | J108: 0
A109: 1154100 | B109: Î³åÇï³É ¹ñ³Ù³ßÝáñÑÝ»ñ å»ï³Ï³Ý Ï³é³í³ñÙ³Ý Ñ³ïí³ÍÇÝ | C109: 465100 | J109: 0
A110: 1154200 | B110: Î³åÇï³É ëáõµí»ÝóÇ³Ý»ñ Ñ³Ù³ÛÝùÝ»ñÇÝ | C110: 465200 | J110: 0
A111: 1154300 | B111: ²ÛÉ Ï³åÇï³É ¹ñ³Ù³ßÝáñÑÝ»ñ Ñ³Ù³ÛÝùÝ»ñÇÝ | C111: 465300 | J111: 0
A112: 1154500 | B112: Î³åÇï³É ¹ñ³Ù³ßÝáñÑÝ»ñ å»ï³Ï³Ý ¨ Ñ³Ù³ÛÝùÝ»ñÇ áã ³é¨ïñ³ÛÇÝ Ï³½Ù³Ï»ñåáõÃÛáõÝÝ»ñÇÝ | C112: 465500 | J112: 0
A113: 1154600 | B113: Î³åÇï³É ¹ñ³Ù³ßÝáñÑÝ»ñ å»ï³Ï³Ý ¨ Ñ³Ù³ÛÝù³ÛÇÝ ³é¨ïñ³ÛÇÝ Ï³½Ù³Ï»ñåáõÃÛáõÝÝ»ñÇÝ | C113: 465600 | J113: 0
A114: 1154700 | B114: ²ÛÉ Ï³åÇï³É ¹ñ³Ù³ßÝáñÑÝ»ñ | C114: 465700 | J114: 0
A115: 1160000 | B115: 6. êàòÆ²È²Î²Ü Üä²êîÜºð ºì ÎºÜê²ÂàÞ²ÎÜºð | C115: x | D115: 0 | F115: 0 | G115: 0 | H115: 0 | I115: 0 | J115: 0
A116: 1161000 | B116: 6.1 êàòÆ²È²Î²Ü ²ä²ÐàìàôÂÚ²Ü Üä²êîÜºð | C116: x | D116: 0 | F116: 0 | G116: 0 | H116: 0 | I116: 0 | J116: 0
A117: 1161100 | B117: -îÝ³ÛÇÝ ïÝï»ëáõÃÛáõÝÝ»ñÇÝ ¹ñ³Ùáí í×³ñíáÕ ëáóÇ³É³Ï³Ý ³å³ÑáíáõÃÛ³Ý í×³ñÝ»ñ | C117: 471100 | J117: 0
A118: 1161200 | B118: -êáóÇ³É³Ï³Ý ³å³ÑáíáõÃÛ³Ý µÝ»Õ»Ý Ýå³ëïÝ»ñ Í³é³ÛáõÃÛáõÝÝ»ñ Ù³ïáõóáÕÝ»ñÇÝ | C118: 471200 | J118: 0
A119: 1162000 | B119: 6.2 êàòÆ²È²Î²Ü ú¶ÜàôÂÚ²Ü ¸ð²Ø²Î²Ü ²ðî²Ð²ÚîàôÂÚ²Ø´ Üä²êîÜºð (´ÚàôæºÆò) | C119: x | D119: 0 | F119: 0 | G119: 0 | H119: 0 | I119: 0 | J119: 0
A120: 1162100 | B120: -ÐÇí³Ý¹áõÃÛ³Ý ¨ Ñ³ßÙ³Ý¹³ÙáõÃÛ³Ý Ýå³ëïÝ»ñ µÛáõç»Çó | C120: 472100 | J120: 0
A121: 1162200 | B121: -Ø³ÛñáõÃÛ³Ý Ýå³ëïÝ»ñ µÛáõç»Çó | C121: 472200 | J121: 0
A122: 1162300 | B122: -ºñ»Ë³Ý»ñÇ Ï³Ù ÁÝï³Ý»Ï³Ý Ýå³ëïÝ»ñ µÛáõç»Çó | C122: 472300 | J122: 0
A123: 1162400 | B123: -¶áñÍ³½ñÏáõÃÛ³Ý Ýå³ëïÝ»ñ µÛáõç»Çó | C123: 472400 | J123: 0
A124: 1162500 | B124: -Î»Ýë³Ãáß³ÏÇ ³ÝóÝ»Éáõ Ñ»ï Ï³åí³Í ¨ ï³ñÇù³ÛÇÝ Ýå³ëïÝ»ñ µÛáõç»Çó | C124: 472500 | J124: 0
A125: 1162600 | B125: -ÐáõÕ³ñÏ³íáñáõÃÛ³Ý Ýå³ëïÝ»ñ µÛáõç»Çó | C125: 472600 | J125: 0
A126: 1162700 | B126: -ÎñÃ³Ï³Ý, Ùß³ÏáõÃ³ÛÇÝ ¨ ëåáñï³ÛÇÝ Ýå³ëïÝ»ñ µÛáõç»Çó | C126: 472700 | J126: 0
A127: 1162800 | B127: -´Ý³Ï³ñ³Ý³ÛÇÝ Ýå³ëïÝ»ñ µÛáõç»Çó | C127: 472800 | J127: 0
A128: 1162900 | B128: -²ÛÉ Ýå³ëïÝ»ñ µÛáõç»Çó | C128: 472900 | J128: 0
A129: 1163000 | B129: 6.3 ÎºÜê²ÂàÞ²ÎÜºð | C129: x | D129: 0 | F129: 0 | G129: 0 | H129: 0 | I129: 0 | J129: 0
A130: 1163100 | B130: -Ï»Ýë³Ãáß³ÏÝ»ñ | C130: 474100 | J130: 0
A131: 1170000 | B131: 7. ²ÚÈ Ì²Êêºð | C131: x | D131: =D135 -> 205.73 | F131: =F135 -> 205.73 | G131: =G135 -> 50 | H131: =H135 -> 100 | I131: =I135 -> 150 | J131: =J135 -> 205.73
A132: 1171000 | B132: 7.1 ÜìÆð²îìàôÂÚàôÜÜºð àâ-Î²è²ì²ðâ²Î²Ü (Ð²ê²ð²Î²Î²Ü) Î²¼Ø²ÎºðäàôÂÚàôÜÜºðÆÜ | C132: x | D132: 0 | E132: =E134 -> 0 | F132: 0 | G132: 0 | H132: 0 | I132: 0 | J132: 0
A133: 1171100 | B133: -îÝ³ÛÇÝ ïÝï»ëáõÃÛáõÝÝ»ñÇÝ Í³é³ÛáõÃÛáõÝÝ»ñ Ù³ïáõóáÕ` ß³ÑáõÛÃ ãÑ»ï³åÝ¹áÕ Ï³½Ù³Ï»ñåáõÃÛáõÝÝ»ñÇÝ ÝíÇñ³ïíáõÃÛáõÝÝ»ñ | C133: 481100 | J133: 0
A134: 1171200 | B134: -ÜíÇñ³ïíáõÃÛáõÝÝ»ñ ³ÛÉ ß³ÑáõÛÃ ãÑ»ï³åÝ¹áÕ Ï³½Ù³Ï»ñåáõÃÛáõÝÝ»ñÇÝ | C134: 481900 | D134: 0 | E134: 0 | F134: =D134+E134 -> 0 | I134: 0 | J134: 0
A135: 1172000 | B135: 7.2 Ð²ðÎºð, ä²ðî²¸Æð ìÖ²ðÜºð ºì îàôÚÄºð, àðàÜø Î²è²ì²ðØ²Ü î²ð´ºð Ø²Î²ð¸²ÎÜºðÆ ÎàÔØÆò ÎÆð²èìàôØ ºÜ ØÆØÚ²Üò ÜÎ²îØ²Ø´ | C135: x | D135: =D137+D138 -> 205.73 | E135: =E138 -> 0 | F135: =F137+F138 -> 205.73 | G135: =G137+G138 -> 50 | H135: =H137+H138 -> 100 | I135: =I137+I138 -> 150 | J135: =F135 -> 205.73
A136: 1172100 | B136: -²ßË³ï³í³ñÓÇ ýáÝ¹ | C136: 482100 | F136: =D136+E136 -> 0 | J136: 0
A137: 1172200 | B137: -²ÛÉ Ñ³ñÏ»ñ | C137: 482200 | D137: 0 | E137: 0 | F137: =D137+E137 -> 0 | G137: 0 | H137: 0 | I137: 0 | J137: =F137 -> 0
A138: 1172300 | B138: -ä³ñï³¹Çñ í×³ñÝ»ñ | C138: 482300 | D138: 205.73 | E138: 0 | F138: =D138+E138 -> 205.73 | G138: 50 | H138: 100 | I138: 150 | J138: =F138 -> 205.73
A139: 1172400 | B139: -ä»ï³Ï³Ý Ñ³ïí³ÍÇ ï³ñµ»ñ Ù³Ï³ñ¹³ÏÝ»ñÇ ÏáÕÙÇó ÙÇÙÛ³Ýó ÝÏ³ïÙ³Ùµ ÏÇñ³éíáÕ ïáõÛÅ»ñ | C139: 482400 | J139: 0
A140: 1173000 | B140: 7.3 ¸²î²ð²ÜÜºðÆ ÎàÔØÆò ÜÞ²Ü²Îì²Ì îàôÚÄºð ºì îàô¶²ÜøÜºð | C140: x | D140: 0 | F140: 0 | G140: 0 | H140: 0 | I140: 0 | J140: 0
A141: 1173100 | B141: -¸³ï³ñ³ÝÝ»ñÇ ÏáÕÙÇó Ýß³Ý³Ïí³Í ïáõÛÅ»ñ ¨ ïáõ·³ÝùÝ»ñ | C141: 483100 | J141: 0
A142: 1174000 | B142: 7.4 ´Ü²Î²Ü ²ÔºîÜºðÆò Î²Ø ²ÚÈ ´Ü²Î²Ü ä²îÖ²èÜºðàì ²è²æ²ò²Ì ìÜ²êÜºðÆ Î²Ø ìÜ²êì²ÌøÜºðÆ ìºð²Î²Ü¶ÜàôØ | C142: x | D142: 0 | F142: 0 | G142: 0 | H142: 0 | I142: 0 | J142: 0
A143: 1174100 | B143: -´Ý³Ï³Ý ³Õ»ïÝ»ñÇó ³é³ç³ó³Í íÝ³ëí³ÍùÝ»ñÇ Ï³Ù íÝ³ëÝ»ñÇ í»ñ³Ï³Ý·ÝáõÙ | C143: 484100 | J143: 0
A144: 1174200 | B144: -²ÛÉ µÝ³Ï³Ý å³ï×³éÝ»ñáí ëï³ó³Í íÝ³ëí³ÍùÝ»ñÇ í»ñ³Ï³Ý·ÝáõÙ | C144: 484200 | J144: 0
A145: 1175000 | B145: 7.5 Î²è²ì²ðØ²Ü Ø²ðØÆÜÜºðÆ ¶àðÌàôÜºàôÂÚ²Ü Ðºîºì²Üøàì ²è²æ²ò²Ì ìÜ²êÜºðÆ Î²Ø ìÜ²êì²ÌøÜºðÆ ìºð²Î²Ü¶ÜàôØ | C145: x | D145: 0 | F145: 0 | G145: 0 | H145: 0 | I145: 0 | J145: 0
A146: 1175100 | B146: -Î³é³í³ñÙ³Ý Ù³ñÙÇÝÝ»ñÇ ·áñÍáõÝ»áõÃÛ³Ý Ñ»ï¨³Ýùáí ³é³ç³ó³Í íÝ³ëí³ÍùÝ»ñÇ Ï³Ù íÝ³ëÝ»ñÇ í»ñ³Ï³Ý·ÝáõÙ | C146: 485100 | J146: 0
A147: 1176000 | B147: 7.6 ²ÚÈ Ì²Êêºð | C147: x | D147: 0 | F147: 0 | G147: 0 | H147: 0 | I147: 0 | J147: 0
A148: 1176100 | B148: -²ÛÉ Í³Ëë»ñ | C148: 486100 | J148: 0
A149: 1177000 | B149: 7.7 ä²Ðàôêî²ÚÆÜ ØÆæàòÜºð | C149: x | D149: 0 | F149: 0 | G149: 0 | H149: 0 | I149: 0 | J149: 0
A150: 1177100 | B150: -ä³Ñáõëï³ÛÇÝ ÙÇçáóÝ»ñ | C150: 489100 | J150: 0
A151: 1200000 | B151: Բ, àâ-üÆÜ²Üê²Î²Ü ²ÎîÆìÜºðÆ ¶Ìàì Ì²Êêºð | C151: x | D151: =D152 -> 1850.4 | E151: =E155 -> 0 | F151: =F152 -> 1850.4 | G151: =G152 -> 1850.4 | H151: =H152 -> 1850.4 | I151: =I152 -> 1850.4 | J151: =F152 -> 1850.4
A152: 1210000 | B152: 1.ÐÆØÜ²Î²Ü ØÆæàòÜºð | C152: x | D152: =D157+D158+D155+D156+D160 -> 1850.4 | E152: =E151+E157 -> 0 | F152: =F157+F158+F155+F156+F160 -> 1850.4 | G152: =SUM(G153:G165) -> 1850.4 | H152: =SUM(H153:H165) -> 1850.4 | I152: =SUM(I153:I165) -> 1850.4 | J152: =F152 -> 1850.4
A153: 1211000 | B153: -Þ»Ýù»ñÇ ¨ ßÇÝáõÃÛáõÝÝ»ñÇ Ó»éù µ»ñáõÙ | C153: 511100 | F153: =D153+E153 -> 0 | J153: 0
A154: 1212000 | B154: -Þ»Ýù»ñÇ ¨ ßÇÝáõÃÛáõÝÝ»ñÇ Ï³éáõóáõÙ | C154: 511200 | F154: =D154+E154 -> 0 | J154: 0
A155: 1213000 | B155: -Þ»Ýù»ñÇ ¨ ßÇÝáõÃÛáõÝ. Ï³åÇï³É í»ñ³Ýáñá·áõÙ | C155: 511300 | D155: 0 | E155: 0 | F155: =D155+E155 -> 0 | G155: 0 | H155: 0 | I155: 0 | J155: 0
A156: 1214000 | B156: -îñ³Ýëåáñï³ÛÇÝ ë³ñù³íáñáõÙÝ»ñ | C156: 512100 | D156: 500 | F156: 500 | G156: 500 | H156: 500 | I156: 500 | J156: 500
A157: 1215000 | B157: -ì³ñã³Ï³Ý ë³ñù³íáñáõÙÝ»ñ | C157: 512200 | D157: 1350.4 | E157: 0 | F157: =D157+E157 -> 1350.4 | G157: 1350.4 | H157: 1350.4 | I157: 1350.4 | J157: 1350.4
A158: 1216000 | B158: -²ÛÉ Ù»ù»Ý³Ý»ñ ¨ ë³ñù³íáñáõÙÝ»ñ | C158: 512900 | D158: 0 | E158: 0 | F158: 0 | G158: 0 | H158: 0 | I158: 0 | J158: 0
A159: 1217000 | B159: -²×»óíáÕ ³ÏïÇíÝ»ñ | C159: 513100 | F159: 0 | J159: 0
A160: 1218100 | B160: -àã-ÝÛáõÃ³Ï³Ý ÑÇÙÝ³Ï³Ý ÙÇçáóÝ»ñ | C160: 513200 | D160: 0 | E160: 0 | F160: 0 | G160: 0 | H160: 0 | I160: 0 | J160: 0
A161: 1218200 | B161: -¶»á¹»½Ç³Ï³Ý ù³ñï»½³·ñ³Ï³Ý Í³Ëë»ñ | C161: 513300 | F161: 0 | J161: 0
A162: 1218300 | B162: -Ü³Ë³·Í³Ñ»ï³½áï³Ï³Ý Í³Ëë»ñ | C162: 513400 | D162: 0 | F162: 0 | I162: 0 | J162: =F162 -> 0
A163: 1220000 | B163: 2.ä²Þ²ðÜºð | C163: x | D163: 0 | F163: 0 | G163: 0 | H163: 0 | I163: 0 | J163: 0
A164: 1221000 | B164: -è³½Ù³í³ñ³Ï³Ý å³ß³ñÝ»ñ | C164: 521100 | J164: 0
A165: 1222000 | B165: -ÜÛáõÃ»ñ ¨ å³ñ³·³Ý»ñ | C165: 522100 | J165: 0
A166: 1223000 | B166: -ì»ñ³í³×³éùÇ Ñ³Ù³ñ Ý³Ë³ï»ëí³Í ³åñ³ÝùÝ»ñ | C166: 523100 | J166: 0
A167: 1224000 | B167: -êå³éÙ³Ý Ýå³ï³Ïáí å³ÑíáÕ å³ß³ñÝ»ñ | C167: 524100 | J167: 0
A168: 1230000 | B168: 3.´²ðÒð²ðÄºø ²ÎîÆìÜºð | C168: x | D168: 0 | F168: 0 | G168: 0 | H168: 0 | I168: 0 | J168: 0
A169: 1231000 | B169: -´³ñÓñ³ñÅ»ù ³ÏïÇíÝ»ñ | C169: 531100 | J169: 0
A170: 1240000 | B170: 4.â²ðî²¸ðì²Ì ԱԿՏԻՎՆԵՐ | C170: x | D170: 0 | F170: 0 | G170: 0 | H170: 0 | I170: 0 | J170: 0
A171: 1241000 | B171: -ÐáÕ | C171: 541100 | J171: 0
A172: 1242000 | B172: -ÀÝ¹»ñù³ÛÇÝ ³ÏïÇíÝ»ñ | C172: 542100
A173: 1243000 | B173: -²ÛÉ µÝ³Ï³Ý Í³·áõÙ áõÝ»óáÕ ³ÏïÇíÝ»ñ | C173: 543100
A174: 1244000 | B174: -àã ÝÛáõÃ³Ï³Ý ã³ñï³¹ñí³Í ³ÏïÇíÝ»ñ | C174: 544100
A175: 1000000 | B175: ԸՆԴԱՄԵՆԸ ԾԱԽՍԵՐ` | C175: x | D175: =D32+D151 -> 137506.13 | E175: =E32+E152 -> 0 | F175: =F32+F151 -> 137506.13 | G175: =G32+G151 -> 35480.4 | H175: =H32+H151 -> 70000.4 | I175: =I32+I151 -> 97350.4 | J175: =J32+J151 -> 137506.13
A177: §17¦ § դեÏï»Ùµ»ñ ¦ 2020 Ã.
A179: ÐÆØÜ²ðÎÆ ÔºÎ²ì²ðª _______________ Է. Արշակյան _________________
A180: (ëïáñ³·ñáõÃÛáõÝ) (².Ð.².)
A181: Î.î.
A183: üÆÜ²Üê²Î²Ü Ì²è²ÚàôÂÚ²Ü äºîª ________________ Ն.Մուրադյան ___________________
A184: (¶ÈÊ²ìàð Ð²Þì²ä²Ð) (ëïáñ³·ñáõÃÛáõÝ) (².Ð.².)

Sheet zags (hidden)
I1: Ð³í»Éí³Í N 2
H3: úñÇÝ³Ï»ÉÇ Ó¨ N1
G4: h³ëï³ïí»É ¿ ÐÐ ýÇÝ³ÝëÝ»ñÇ ¨ ¿ÏáÝáÙÇÏ³ÛÇ
H5: Ý³Ë³ñ³ñÇ 23 ÑáõÉÇëÇ 2007 Ãí³Ï³ÝÇ
B6: §Ð ² ê î ² î àô Ø ºØª¦ | G6: N 597-Ü Ññ³Ù³Ýáí
A8: Ý³Ë³Ñ³ßÇíÁª 3475,27 երեք ÙÇÉÇáÝ չորս Ñ³ñÛáõñ յոթանասունհինգ հազ. երկու հարյուր յոթանասուն դրամ
A9: ( ÁÝ¹³Ù»ÝÁ ·áõÙ³ñÁ Ãí»ñáí ¨ ï³é»ñáí****)
A10: _______________________________________________________________________________________________________________ Ñ³½³ñ ¹ñ³Ù ·áõÙ³ñáí:
A12: __________________________________________________________________________________________ | B12: Է. Արշակյան | H12: Î.î.
A13: (ÐÐ å»ï³Ï³Ý Ï³é³í³ñÙ³Ý Ù³ñÙÝÇ Õ»Ï³í³ñÇ /Ñ³Ù³ÛÝùÇ Õ»Ï³í³ñÇ/ ëïáñ³·ñáõÃÛáõÝÁ ¨ ².Ð.².)
A14: § ¦ դեկտեմբերի 2020թ
B15: Ü²Ê²Ð²ÞÆì*
B16: ´ Ú àô æ º î ² Ú Æ Ü Ð Æ Ø Ü ² ð Î Æ ä ² Ð ä ² Ü Ø ² Ü Ì ² Ê ê º ð Æ
B17: §01¦ §ÐáõÝí³ñÇ ¦ 2021 Ã. -- §30¦ §¹»Ïï»Ùµ»ñÇ ¦ 2021 Ã.
A19: 1. ÐÇÙÝ³ñÏÇ ³Ýí³ÝáõÙÁ ՔԿԱԳ | G19: 8. ***** ´Ûáõç»ï³ÛÇÝ Í³Ëë»ñÇ ·áñÍ³é³Ï³Ý ¹³ë³Ï³ñ·.
G20: Í³ÍÏ³·Çñ | H20: 01 | I20: 3 | J20: 3
A21: 3. ÐÇÙÝ³ñÏÇ ï»Õ³µ³ßËÙ³Ý Ù³ñ½Ç ¨ Ñ³Ù³ÛÝùÇ Ïá¹Ý Áëï | G21: 9. Ìñ³·ñÇ ³Ýí³ÝáõÙÁ_պատվիրակված լիազոր.
A22: µÛáõç»ï³ÛÇÝ Í³Ëë»ñÇ ï³ñ³Íù³ÛÇÝ ¹³ë³Ï³ñ·Ù³Ý | G22: ________________________________
A23: 4. ** ÐÐ å»ï³Ï³Ý Ï³é³í³ñÙ³Ý (ï»Õ³Ï³Ý ÇÝùÝ³Ï³é³í³ñÙ³Ý) Ù³ñÙÝÇ | G23: 10. Ìñ³·ñÇ Ïá¹Á
A24: ³Ýí³ÝáõÙÁ Լոռու մարզպետարան | G24: 11.*** ÐÐ å»ï³Ï³Ý Ï³é³í³ñÙ³Ý (îÆ)
A25: 5. ÐÇÙÝ³ñÏÁ ëå³ë³ñÏáÕ ï»Õ³Ï³Ý ·³ÝÓ³å»ï³Ï³Ý µ³ÅÝÇ (î¶´) ³Ýí³ÝáõÙÁ Տաշիրի | G25: Ù³ñÙÝÇ Ïá¹Ý Áëï µÛáõç»ï³ÛÇÝ Í³Ëë»ñÇ ·»ñ³ï»ëã³Ï.
A26: 6. ÐÇÙÝ³ñÏÇª ï»Õ³Ï³Ý ·³ÝÓ³å»ï³Ï³Ý µ³ÅÝáõÙ (î¶´) Ñ³ßí³éÙ³Ý Ñ³Ù³ñÁ | G26: ¹³ë³Ï³ñ·Ù³Ý
A27: 7. üÇÝ³Ýë³íáñÙ³Ý ³ÕµÛáõñÇ Ïá¹Á (ÐÐ å»ï³Ï³Ý µÛáõç»ª 1, Ñ³Ù³ÛÝùÇ µÛáõç»ª 2) | E27: 2 | G27: 12. â³÷Ç ÙÇ³íáñÁª Ñ³½³ñ ¹ñ³Ù
A29: îáÕÇ NN | B29: ´Ûáõç»ï³ÛÇÝ Í³Ëë»ñÇ ïÝï»ë³·Çï³Ï³Ý ¹³ë³Ï³ñ·Ù³Ý ï³ññ»ñ | D29: ÜáõÛÝ Å³Ù³Ý³Ï³Ñ³ïí³ÍÇ Ñ³Ù³ñ Ý³ËÏÇÝáõÙ Ñ³ëï³ïí³Íª ·áñÍáÕ | F29: êáõÛÝ Ý³Ë³Ñ³ßíáí Ñ³ëï³ïíáÕ óáõó³ÝÇßÝ»ñÁ | G29: ³Û¹ ÃíáõÙª Áëï »é³ÙëÛ³ÏÝ»ñÇ (»é³ÙëÛ³ÏÇ ³ÙÇëÝ»ñÇ)³×áÕ³Ï³Ý
B30: ³Ýí³ÝáõÙÝ»ñÁ | C30: NN | D30: Ý³Ë³Ñ³ßíÇ óáõó³ÝÇßÝ»ñÁ | E30: Ý³Ë³Ñ³ßíáõÙ Ï³ï³ñí³Í ÷á÷áËáõÃÛáõÝ-Ý»ñÁ (³í»É³óáõÙÁª /+/, å³Ï³ë»óáõÙÁª/-/ | G30: I | H30: II | I30: III | J30: IV
A31: ² | B31: ´ | C31: ¶ | D31: 1 | E31: 2 | F31: 3 | G31: 4 | H31: 5 | I31: 6 | J31: 7
A32: 1100000 | B32: ². ÀÜÂ²òÆÎ Ì²Êêºðª ÀÜ¸²ØºÜÀ, | C32: x | D32: =D33+D42+D138 -> 3475.27 | E32: =E33+E42+E51+E66+E69+E63 -> 0 | F32: =F33+F42+F138 -> 3475.27 | G32: =G33+G42+G131 -> 855 | H32: =H33+H42+H131 -> 1665 | I32: =I33+I42+I131 -> 2395 | J32: =J33+J42+J131 -> 3475.27
A33: 1110000 | B33: 1.äºî²Î²Ü, îºÔ²Î²Ü ÆÜøÜ²Î²è²ì²ðØ²Ü Ø²ðØÆÜÜºðÆ, ¸ð²Üò ºÜÂ²Î² ´Úàôæºî²ÚÆÜ ÐÆØÜ²ðÎÜºðÆ ²ÞÊ²îàÔÜºðÆ ²ÞÊ²î²ì²ðÒÀª ÀÜ¸²ØºÜÀ, ³Û¹ ÃíáõÙª | C33: x | D33: =D34 -> 3335.8 | E33: =E35 -> 0 | F33: =F34 -> 3335.8 | G33: =G34 -> 830 | H33: =H34 -> 1615 | I33: =I34 -> 2310 | J33: =J34 -> 3335.8
A34: 1110000 | B34: 1,1 ²ßË³ï³ÝùÇ í³ñÓ³ïñáõÃÛáõÝ | C34: x | D34: =SUM(D35:D41) -> 3335.8 | F34: =SUM(F35:F41) -> 3335.8 | G34: =SUM(G35:G41) -> 830 | H34: =SUM(H35:H41) -> 1615 | I34: =SUM(I35:I41) -> 2310 | J34: =SUM(J35:J41) -> 3335.8
A35: 1111000 | B35: -²ßË³ïáÕÝ»ñÇ ³ßË³ï³í³ñÓ»ñ ¨ Ñ³í»É³í×³ñÝ»ñ | C35: 411100 | D35: 3335.8 | E35: 0 | F35: =D35+E35 -> 3335.8 | G35: 830 | H35: 1615 | I35: 2310 | J35: =F35 -> 3335.8
A36: 1112000 | B36: - ä³ñ·¨³ïñáõÙÝ»ñ, ¹ñ³Ù³Ï³Ý Ëñ³ËáõëáõÙÝ»ñ ¨ Ñ³ïáõÏ í×³ñÝ»ñ | C36: 411200 | D36: 0 | F36: =D36+E36 -> 0 | H36: 0 | I36: 0 | J36: =F36 -> 0
A37: 1113000 | B37: -ø³Õ³ù³óÇ³Ï³Ý, ¹³ï³Ï³Ý ¨ å»ï³Ï³Ý Í³é³ÛáÕÝ»ñÇ å³ñ·¨³ïñáõÙ | C37: 411300 | F37: 0 | J37: 0
A38: 1114000 | B38: -ÐÐ ýÇÝ³ÝëÝ»ñÇ ¨ ¿ÏáÝáÙÇÏ³ÛÇ Ý³Ë³ñ³ñáõÃÛ³Ý, Ñ³ñÏ³ÛÇÝ ¨ Ù³ùë³ÛÇÝ Ù³ñÙÇÝÝ»ñÇ ³ßË³ïáÕÝ»ñÇ å³ñ·¨³ïñáõÙ | C38: 411400 | F38: 0 | J38: 0
A39: 1115000 | B39: -²ÛÉ í³ñÓ³ïñáõÃÛáõÝÝ»ñ | C39: 411500 | F39: 0 | J39: 0
A40: 1116000 | B40: -´Ý»Õ»Ý ³ßË³ï³í³ñÓ»ñ ¨ Ñ³í»É³í×³ñÝ»ñ | C40: 412100 | F40: 0 | J40: 0
A41: 1117000 | B41: - êáóÇ³É³Ï³Ý ³å³ÑáíáõÃÛ³Ý í×³ñÝ»ñ | C41: 413100 | D41: 0 | F41: 0 | G41: 0 | H41: 0 | I41: 0 | J41: =F41 -> 0
A42: 1120000 | B42: 2 Ì³é³ÛáõÃÛáõÝÝ»ñÇ ¨ ³åñ³ÝùÝ»ñÇ Ó»éù µ»ñáõÙ | C42: x | D42: =D43+D55+D66+D69+D51+D64 -> 139.47 | E42: =E43 -> 0 | F42: =F43+F55+F66+F69+F51+F64 -> 139.47 | G42: =G43+G51+G55+G64+G66+G69 -> 25 | H42: =H43+H51+H55+H64+H66+H69 -> 50 | I42: =I43+I51+I55+I64+I66+I69 -> 85 | J42: =F42 -> 139.47
A43: 1121000 | B43: 2.1 Þ³ñáõÝ³Ï³Ï³Ý Í³Ëë»ñ | D43: =SUM(D44:D49) -> 87.6 | E43: =E45+E47 -> 0 | F43: =SUM(F44:F49) -> 87.6 | G43: =SUM(G44:G49) -> 25 | H43: =SUM(H44:H49) -> 50 | I43: =SUM(I44:I49) -> 71 | J43: =SUM(J44:J49) -> 87.6
A44: 1121100 | B44: -·áñÍ³éÝ³Ï³Ý ¨ µ³ÝÏ³ÛÇÝ Í³é³ÛáõÃÛáõÝÝ»ñÇ Í³Ëë»ñ | C44: 421100 | F44: =D44+E44 -> 0 | J44: 0
A45: 1121200 | B45: -¿Ý»ñ·»ïÇÏ Í³é³ÛáõÃÛáõÝÝ»ñ | C45: 421200 | D45: 0 | E45: 0 | F45: 0 | G45: 0 | H45: 0 | I45: 0 | J45: =F45 -> 0
A46: 1121300 | B46: -ÎáÙáõÝ³É Í³é³ÛáõÃÛáõÝÝ»ñ | C46: 421300 | D46: 0 | F46: 0 | G46: 0 | H46: 0 | I46: 0 | J46: =F46 -> 0
A47: 1121400 | B47: -Î³åÇ Í³é³ÛáõÃÛáõÝÝ»ñ | C47: 421400 | D47: 87.6 | E47: 0 | F47: 87.6 | G47: 25 | H47: 50 | I47: 71 | J47: =F47 -> 87.6
A48: 1121500 | B48: -²å³Ñáí³·ñ³Ï³Ý Í³Ëë»ñ | C48: 421500 | F48: 0 | J48: 0
A49: 1121600 | B49: -¶áõÛùÇ ¨ ë³ñù³íáñáõÙÝ»ñÇ í³ñÓ³Ï³ÉáõÃÛáõÝ | C49: 421600 | F49: 0 | J49: 0
A50: 1121700 | B50: -²ñï³·»ñ³ï»ëã³Ï³Ý Í³Ëë»ñ | C50: 421700 | J50: 0
A51: 1122000 | B51: 2.2 ¶áñÍáõÕáõÙÝ»ñÇ ¨ ßñç³·³ÛáõÃÛ³Ý Í³Ëë»ñ | C51: x | D51: =D52 -> 0 | E51: 0 | F51: 0 | G51: 0 | H51: 0 | I51: 0 | J51: 0
A52: 1122100 | B52: -Ü»ñùÇÝ ·áñÍáõÕáõÙÝ»ñ | C52: 422100 | D52: 0 | E52: 0 | F52: =D52+E52 -> 0 | G52: 0 | H52: 0 | I52: 0 | J52: =F52 -> 0
A53: 1122200 | B53: -²ñï³ë³ÑÙ³ÝÛ³Ý ·áñÍáõÕáõÙÝ»ñÇ ·Íáí Í³Ëë»ñ | C53: 422200 | F53: =D53+E53 -> 0 | J53: 0
A54: 1122300 | B54: -²ÛÉ ïñ³Ýëåáñï³ÛÇÝ Í³Ëë»ñ | C54: 422900 | F54: =D54+E54 -> 0 | J54: 0
A55: 1123000 | B55: 2.3 ä³ÛÙ³Ý³·ñ³ÛÇÝ ³ÛÉ Í³é³ÛáõÃÛáõÝÝ»ñÇ Ó»éù µ»ñáõÙ | C55: x | D55: =SUM(D56:D63) -> 0 | F55: =SUM(F56:F63) -> 0 | G55: =SUM(G56:G63) -> 0 | H55: =SUM(H56:H63) -> 0 | I55: =SUM(I56:I63) -> 0 | J55: =F55 -> 0
A56: 1123100 | B56: -ì³ñã³Ï³Ý Í³é³ÛáõÃÛáõÝÝ»ñ | C56: 423100 | F56: =D56+E56 -> 0 | J56: =F56 -> 0
A57: 1123200 | B57: -Ð³Ù³Ï³ñ·ã³ÛÇÝ Í³é³ÛáõÃÛáõÝÝ»ñ | C57: 423200 | D57: 0 | F57: =D57+E57 -> 0 | G57: 0 | H57: 0 | I57: 0 | J57: =F57 -> 0
A58: 1123300 | B58: -²ßË³ï³Ï³½ÙÇ Ù³ëÝ³·Çï³Ï³Ý ½³ñ·³óÙ³Ý Í³é³ÛáõÃÛáõÝÝ»ñ | C58: 423300 | F58: 0
A59: 1123400 | B59: -î»Õ³Ï³ïí³Ï³Ý Í³é³ÛáõÃÛáõÝÝ»ñ | C59: 423400 | D59: 0 | F59: 0 | G59: 0 | H59: 0 | I59: 0 | J59: =F59 -> 0
A60: 1123500 | B60: -Î³é³í³ñã³Ï³Ý Í³é³ÛáõÃÛáõÝÝ»ñ | C60: 423500 | F60: 0 | J60: 0
A61: 1123600 | B61: - Î»Ýó³Õ³ÛÇÝ ¨ Ñ³Ýñ³ÛÇÝ ëÝÝ¹Ç Í³é³ÛáõÃÛáõÝÝ»ñ | C61: 423600 | F61: 0 | J61: 0
A62: 1123700 | B62: -Ü»ñÏ³Û³óáõóã³Ï³Ý Í³Ëë»ñ | C62: 423700 | D62: 0 | F62: 0 | G62: 0 | H62: 0 | I62: 0 | J62: 0
A63: 1123800 | B63: -ÀÝ¹Ñ³Ýáõñ µÝáõÛÃÇ ³ÛÉ Í³é³ÛáõÃÛáõÝÝ»ñ | C63: 423900 | D63: 0 | E63: 0 | F63: 0 | G63: 0 | H63: 0 | I63: 0 | J63: 0
A64: 1124000 | B64: 2.4 ²ÛÉ Ù³ëÝ³·Çï³Ï³Ý Í³é³ÛáõÃÛáõÝÝ»ñÇ Ó»éù µ»ñáõÙ | C64: x | D64: =D65 -> 0 | F64: =F65 -> 0 | G64: =G65 -> 0 | H64: =H65 -> 0 | I64: =I65 -> 0 | J64: 0
A65: 1124100 | B65: -Ø³ëÝ³·Çï³Ï³Ý Í³é³ÛáõÃÛáõÝÝ»ñ | C65: 424100 | J65: 0
A66: 1125000 | B66: 2.5 ÀÝÃ³óÇÏ Ýáñá·áõÙ ¨ å³Ñå³ÝáõÙ (Í³é³ÛáõÃÛáõÝÝ»ñ ¨ ÝÛáõÃ»ñ) | C66: x | D66: =D67+D68 -> 51.87 | E66: 0 | F66: 51.87 | G66: 0 | H66: 0 | I66: 14 | J66: 51.87
A67: 1125100 | B67: -Þ»Ýù»ñÇ ¨ Ï³éáõÛóÝ»ñÇ ÁÝÃ³óÇÏ Ýáñá·áõÙ ¨ å³Ñå³ÝáõÙ | C67: 425100 | D67: 0 | E67: 0 | F67: =D67+E67 -> 0 | G67: 0 | H67: 0 | I67: 0 | J67: =F67 -> 0
A68: 1125200 | B68: -Ø»ù»Ý³Ý»ñÇ ¨ ë³ñù³íáñáõÙÝ»ñÇ ÁÝÃ³óÇÏ Ýáñá·áõÙ ¨ å³Ñå³ÝáõÙ | C68: 425200 | D68: 51.87 | E68: 0 | F68: =D68+E68 -> 51.87 | G68: 0 | H68: 0 | I68: 14 | J68: 51.87
A69: 1126000 | B69: 2.6 ÜÛáõÃ»ñ | C69: x | D69: =SUM(D70:D77) -> 0 | E69: =E77+E70 -> 0 | F69: =SUM(F70:F77) -> 0 | G69: =SUM(G70:G77) -> 0 | H69: =SUM(H70:H77) -> 0 | I69: =SUM(I70:I77) -> 0 | J69: 0
A70: 1126100 | B70: -¶ñ³ë»ÝÛ³Ï³ÛÇÝ ÝÛáõÃ»ñ ¨ Ñ³·áõëï | C70: 426100 | D70: 0 | E70: 0 | F70: =D70+E70 -> 0 | G70: 0 | H70: 0 | I70: 0 | J70: 0
A71: 1126200 | B71: -¶ÛáõÕ³ïÝï»ë³Ï³Ý ³åñ³ÝùÝ»ñ | C71: 426200 | F71: =D71+E71 -> 0 | J71: 0
A72: 1126300 | B72: -ì»ñ³å³ïñ³ëïÙ³Ý ¨ áõëáõóÙ³Ý ÝÛáõÃ»ñ | C72: 426300 | F72: 0 | J72: 0
A73: 1126400 | B73: -îñ³Ýëåáñï³ÛÇÝ ÝÛáõÃ»ñ | C73: 426400 | D73: 0 | F73: 0 | G73: 0 | H73: 0 | I73: 0 | J73: 0
A74: 1126500 | B74: -Þñç³Ï³ ÙÇç³í³ÛñÇ å³ßïå³ÝáõÃÛ³Ý ¨ ·Çï³Ï³Ý ÝÛáõÃ»ñ | C74: 426500 | F74: 0 | J74: 0
A75: 1126600 | B75: -²éáÕç³å³Ñ³Ï³Ý ¨ É³µáñ³ïáñ ÝÛáõÃ»ñ | C75: 426600 | F75: 0 | J75: =F75 -> 0
A76: 1126700 | B76: -Î»Ýó³Õ³ÛÇÝ ¨ Ñ³Ýñ³ÛÇÝ ëÝÝ¹Ç ÝÛáõÃ»ñ | C76: 426700 | D76: 0 | E76: 0 | F76: 0 | G76: 0 | H76: 0 | I76: 0 | J76: =F76 -> 0
A77: 1126800 | B77: -Ð³ïáõÏ Ýå³ï³Ï³ÛÇÝ ³ÛÉ ÝÛáõÃ»ñ | C77: 426900 | D77: 0 | E77: 0 | F77: =D77+E77 -> 0 | G77: 0 | H77: 0 | I77: 0 | J77: =F77 -> 0
A78: 1130000 | B78: 3 îáÏáë³í×³ñÝ»ñ | C78: x | D78: 0 | F78: 0 | G78: 0 | H78: 0 | I78: 0 | J78: 0
A79: 1130100 | B79: -Ü»ñùÇÝ ³ñÅ»ÃÕÃ»ñÇ ïáÏáë³í×³ñÝ»ñ | C79: 441100 | J79: 0
A80: 1130200 | B80: -Ü»ñùÇÝ í³ñÏ»ñÇ ïáÏáë³í×³ñÝ»ñ | C80: 441200 | J80: 0
A81: 1130300 | B81: -²ñï³ùÇÝ ³ñÅ»ÃÕÃ»ñÇ ·Íáí ïáÏáë³í×³ñÝ»ñ | C81: 442100 | J81: 0
A82: 1130400 | B82: -²ñï³ùÇÝ í³ñÏ»ñÇ ·Íáí ïáÏáë³í×³ñÝ»ñ | C82: 442200 | J82: 0
A83: 1131000 | B83: öáË³éáõÃÛáõÝÝ»ñÇ Ñ»ï Ï³åí³Í í×³ñÝ»ñ | C83: x | J83: 0
A84: 1131100 | B84: -öáË³Ý³ÏÙ³Ý Ïáõñë»ñÇ µ³ó³ë³Ï³Ý ï³ñµ»ñáõÃÛáõÝ | C84: 443100 | J84: 0
A85: 1131200 | B85: -îáõÛÅ»ñ | C85: 443200 | J85: 0
A86: 1131300 | B86: -öáË³éáõÃÛáõÝÝ»ñÇ ·Íáí ïáõñù»ñ | C86: 443300 | J86: 0
A87: 1140000 | B87: 4. êáõµëÇ¹Ç³Ý»ñ | C87: x | D87: 0 | F87: 0 | G87: 0 | H87: 0 | I87: 0 | J87: 0
A88: 1141000 | B88: -êáõµëÇ¹Ç³Ý»ñ áã-ýÇÝ³Ýë³Ï³Ý å»ï³Ï³Ý Ï³½Ù³Ï»ñåáõÃÛáõÝÝ»ñÇÝ | C88: 451100 | J88: 0
A89: 1142000 | B89: -êáõµëÇ¹Ç³Ý»ñ ýÇÝ³Ýë³Ï³Ý å»ï³Ï³Ý Ï³½Ù³Ï»ñåáõÃÛáõÝÝ»ñÇÝ | C89: 451200 | J89: 0
A90: 1143000 | B90: -êáõµëÇ¹Ç³Ý»ñ áã å»ï³Ï³Ý áã ýÇÝ³Ýë³Ï³Ý Ï³½Ù³Ï»ñåáõÃÛáõÝÝ»ñÇÝ | C90: 452100 | J90: 0
A91: 1144000 | B91: -êáõµëÇ¹Ç³Ý»ñ áã å»ï³Ï³Ý ýÇÝ³Ýë³Ï³Ý Ï³½Ù³Ï»ñåáõÃÛáõÝÝ»ñÇÝ | C91: 452200 | J91: 0
A92: 1150000 | B92: 5.¸ñ³Ù³ßÝáñÑÝ»ñ | C92: x | D92: 0 | F92: 0 | G92: 0 | H92: 0 | I92: 0 | J92: 0
A93: 1151000 | B93: ¸ñ³Ù³ßÝáñÑÝ»ñ ûï³ñ»ñÏñÛ³ Ï³é³í³ñáõÃÛáõÝÝ»ñÇÝ | C93: x | D93: 0 | F93: 0 | G93: 0 | H93: 0 | I93: 0 | J93: 0
A94: 1151100 | B94: ÀÝÃ³óÇÏ ¹ñ³Ù³ßÝáñÑÝ»ñ ûï³ñ»ñÏñÛ³ Ï³é³í³ñáõÃÛáõÝÝ»ñÇÝ | C94: 461100 | J94: 0
A95: 1151200 | B95: Î³åÇï³É ¹ñ³Ù³ßÝáñÑÝ»ñ ûï³ñ»ñÏñÛ³ Ï³é³í³ñáõÃÛáõÝÝ»ñÇÝ | C95: 461200 | J95: 0
A96: 1152000 | B96: ¸ñ³Ù³ßÝáñÑÝ»ñ ÙÇç³½·³ÛÇÝ Ï³½Ù³Ï»ñåáõÃÛáõÝÝ»ñÇÝ | C96: x | D96: 0 | F96: 0 | G96: 0 | H96: 0 | I96: 0 | J96: 0
A97: 1152100 | B97: ÀÝÃ³óÇÏ ¹ñ³Ù³ßÝáñÑÝ»ñ ÙÇç³½·³ÛÇÝ Ï³½Ù³Ï»ñåáõÃÛáõÝÝ»ñÇÝ | C97: 462100 | J97: 0
A98: 1152200 | B98: Î³åÇï³É ¹ñ³Ù³ßÝáñÑ»ñ ÙÇç³½·³ÛÇÝ Ï³½Ù³Ï»ñåáõÃÛáõÝÝ»ñÇÝ | C98: 462200 | J98: 0
A99: 1153000 | B99: ÀÝÃ³óÇÏ ¹ñ³Ù³ßÝáñÑÝ»ñ å»ï³Ï³Ý Ñ³ïí³ÍÇ ³ÛÉ Ù³Ï³ñ¹³ÏÝ»ñÇÝ | C99: x | D99: 0 | F99: 0 | G99: 0 | H99: 0 | I99: 0 | J99: 0
A100: 1153100 | B100: ÀÝÃ³óÇÏ ¹ñ³Ù³ßÝáñÑÝ»ñ å»ï³Ï³Ý Ï³é³í³ñÙ³Ý Ñ³ïí³ÍÇÝ | C100: 463100 | J100: 0
A101: 1153200 | B101: ÀÝÃ³óÇÏ ëáõµí»ÝóÇ³Ý»ñ Ñ³Ù³ÛÝùÝ»ñÇÝ | C101: 463200 | J101: 0
A102: 1153300 | B102: ä»ï³Ï³Ý µÛáõç»Çó Ñ³Ù³ÛÝùÝ»ñÇ µÛáõç»Ý»ñÇÝ ýÇÝ³Ýë³Ï³Ý Ñ³Ù³Ñ³ñÃ»óÙ³Ý ëÏ½µáõÝùáí ïñíáÕ ¹áï³óÇ³Ý»ñ | C102: 463300 | J102: 0
A103: 1153400 | B103: úñ»ÝùÝ»ñÇ ÏÇñ³ñÏÙ³Ý ³ñ¹ÛáõÝùáõÙ Ñ³Ù³ÛÝùÝ»ñÇ µÛáõç»Ý»ñÇ ÏáñáõëïÝ»ñÇ ÷áËÑ³ïáõóáõÙ | C103: 463400 | J103: 0
A104: 1153500 | B104: ²ÛÉ ÁÝÃ³óÇÏ ¹ñ³Ù³ßÝáñÑÝ»ñ Ñ³Ù³ÛÝùÝ»ñÇÝ | C104: 463500 | J104: 0
A105: 1153700 | B105: ÀÝÃ³óÇÏ ¹ñ³Ù³ßÝáñÑÝ»ñ å»ï³Ï³Ý ¨ Ñ³Ù³ÛÝùÝ»ñÇ áã ³é¨ïñ³ÛÇÝ Ï³½Ù³Ï»ñåáõÃÛáõÝÝ»ñÇÝ | C105: 463700 | J105: 0
A106: 1153800 | B106: ÀÝÃ³óÇÏ ¹ñ³Ù³ßÝáñÑÝ»ñ å»ï³Ï³Ý ¨ Ñ³Ù³ÛÝùÝ»ñÇ ³é¨ïñ³ÛÇÝ Ï³½Ù³Ï»ñåáõÃÛáõÝÝ»ñÇÝ | C106: 463800 | J106: 0
A107: 1153900 | B107: ²ÛÉ ÁÝÃ³óÇÏ ¹ñ³Ù³ßÝáñÑÝ»ñ | C107: 463900 | J107: 0
A108: 1154000 | B108: Î³åÇï³É ¹ñ³Ù³ßÝáñÑÝ»ñ å»ï³Ï³Ý Ñ³ïí³ÍÇ ³ÛÉ Ù³Ï³ñ¹³ÏÝ»ñÇÝ | C108: x | D108: 0 | F108: 0 | G108: 0 | H108: 0 | I108: 0 | J108: 0
A109: 1154100 | B109: Î³åÇï³É ¹ñ³Ù³ßÝáñÑÝ»ñ å»ï³Ï³Ý Ï³é³í³ñÙ³Ý Ñ³ïí³ÍÇÝ | C109: 465100 | J109: 0
A110: 1154200 | B110: Î³åÇï³É ëáõµí»ÝóÇ³Ý»ñ Ñ³Ù³ÛÝùÝ»ñÇÝ | C110: 465200 | J110: 0
A111: 1154300 | B111: ²ÛÉ Ï³åÇï³É ¹ñ³Ù³ßÝáñÑÝ»ñ Ñ³Ù³ÛÝùÝ»ñÇÝ | C111: 465300 | J111: 0
A112: 1154500 | B112: Î³åÇï³É ¹ñ³Ù³ßÝáñÑÝ»ñ å»ï³Ï³Ý ¨ Ñ³Ù³ÛÝùÝ»ñÇ áã ³é¨ïñ³ÛÇÝ Ï³½Ù³Ï»ñåáõÃÛáõÝÝ»ñÇÝ | C112: 465500 | J112: 0
A113: 1154600 | B113: Î³åÇï³É ¹ñ³Ù³ßÝáñÑÝ»ñ å»ï³Ï³Ý ¨ Ñ³Ù³ÛÝù³ÛÇÝ ³é¨ïñ³ÛÇÝ Ï³½Ù³Ï»ñåáõÃÛáõÝÝ»ñÇÝ | C113: 465600 | J113: 0
A114: 1154700 | B114: ²ÛÉ Ï³åÇï³É ¹ñ³Ù³ßÝáñÑÝ»ñ | C114: 465700 | J114: 0
A115: 1160000 | B115: 6. êàòÆ²È²Î²Ü Üä²êîÜºð ºì ÎºÜê²ÂàÞ²ÎÜºð | C115: x | D115: 0 | F115: 0 | G115: 0 | H115: 0 | I115: 0 | J115: 0
A116: 1161000 | B116: 6.1 êàòÆ²È²Î²Ü ²ä²ÐàìàôÂÚ²Ü Üä²êîÜºð | C116: x | D116: 0 | F116: 0 | G116: 0 | H116: 0 | I116: 0 | J116: 0
A117: 1161100 | B117: -îÝ³ÛÇÝ ïÝï»ëáõÃÛáõÝÝ»ñÇÝ ¹ñ³Ùáí í×³ñíáÕ ëáóÇ³É³Ï³Ý ³å³ÑáíáõÃÛ³Ý í×³ñÝ»ñ | C117: 471100 | J117: 0
A118: 1161200 | B118: -êáóÇ³É³Ï³Ý ³å³ÑáíáõÃÛ³Ý µÝ»Õ»Ý Ýå³ëïÝ»ñ Í³é³ÛáõÃÛáõÝÝ»ñ Ù³ïáõóáÕÝ»ñÇÝ | C118: 471200 | J118: 0
A119: 1162000 | B119: 6.2 êàòÆ²È²Î²Ü ú¶ÜàôÂÚ²Ü ¸ð²Ø²Î²Ü ²ðî²Ð²ÚîàôÂÚ²Ø´ Üä²êîÜºð (´ÚàôæºÆò) | C119: x | D119: 0 | F119: 0 | G119: 0 | H119: 0 | I119: 0 | J119: 0
A120: 1162100 | B120: -ÐÇí³Ý¹áõÃÛ³Ý ¨ Ñ³ßÙ³Ý¹³ÙáõÃÛ³Ý Ýå³ëïÝ»ñ µÛáõç»Çó | C120: 472100 | J120: 0
A121: 1162200 | B121: -Ø³ÛñáõÃÛ³Ý Ýå³ëïÝ»ñ µÛáõç»Çó | C121: 472200 | J121: 0
A122: 1162300 | B122: -ºñ»Ë³Ý»ñÇ Ï³Ù ÁÝï³Ý»Ï³Ý Ýå³ëïÝ»ñ µÛáõç»Çó | C122: 472300 | J122: 0
A123: 1162400 | B123: -¶áñÍ³½ñÏáõÃÛ³Ý Ýå³ëïÝ»ñ µÛáõç»Çó | C123: 472400 | J123: 0
A124: 1162500 | B124: -Î»Ýë³Ãáß³ÏÇ ³ÝóÝ»Éáõ Ñ»ï Ï³åí³Í ¨ ï³ñÇù³ÛÇÝ Ýå³ëïÝ»ñ µÛáõç»Çó | C124: 472500 | J124: 0
A125: 1162600 | B125: -ÐáõÕ³ñÏ³íáñáõÃÛ³Ý Ýå³ëïÝ»ñ µÛáõç»Çó | C125: 472600 | J125: 0
A126: 1162700 | B126: -ÎñÃ³Ï³Ý, Ùß³ÏáõÃ³ÛÇÝ ¨ ëåáñï³ÛÇÝ Ýå³ëïÝ»ñ µÛáõç»Çó | C126: 472700 | J126: 0
A127: 1162800 | B127: -´Ý³Ï³ñ³Ý³ÛÇÝ Ýå³ëïÝ»ñ µÛáõç»Çó | C127: 472800 | J127: 0
A128: 1162900 | B128: -²ÛÉ Ýå³ëïÝ»ñ µÛáõç»Çó | C128: 472900 | J128: 0
A129: 1163000 | B129: 6.3 ÎºÜê²ÂàÞ²ÎÜºð | C129: x | D129: 0 | F129: 0 | G129: 0 | H129: 0 | I129: 0 | J129: 0
A130: 1163100 | B130: -Ï»Ýë³Ãáß³ÏÝ»ñ | C130: 474100 | J130: 0
A131: 1170000 | B131: 7. ²ÚÈ Ì²Êêºð | C131: x | D131: =D135 -> 0 | F131: =F135 -> 0 | G131: =G135 -> 0 | H131: =H135 -> 0 | I131: =I135 -> 0 | J131: =J135 -> 0
A132: 1171000 | B132: 7.1 ÜìÆð²îìàôÂÚàôÜÜºð àâ-Î²è²ì²ðâ²Î²Ü (Ð²ê²ð²Î²Î²Ü) Î²¼Ø²ÎºðäàôÂÚàôÜÜºðÆÜ | C132: x | D132: 0 | F132: 0 | G132: 0 | H132: 0 | I132: 0 | J132: 0
A133: 1171100 | B133: -îÝ³ÛÇÝ ïÝï»ëáõÃÛáõÝÝ»ñÇÝ Í³é³ÛáõÃÛáõÝÝ»ñ Ù³ïáõóáÕ` ß³ÑáõÛÃ ãÑ»ï³åÝ¹áÕ Ï³½Ù³Ï»ñåáõÃÛáõÝÝ»ñÇÝ ÝíÇñ³ïíáõÃÛáõÝÝ»ñ | C133: 481100 | J133: 0
A134: 1171200 | B134: -ÜíÇñ³ïíáõÃÛáõÝÝ»ñ ³ÛÉ ß³ÑáõÛÃ ãÑ»ï³åÝ¹áÕ Ï³½Ù³Ï»ñåáõÃÛáõÝÝ»ñÇÝ | C134: 481900 | J134: 0
A135: 1172000 | B135: 7.2 Ð²ðÎºð, ä²ðî²¸Æð ìÖ²ðÜºð ºì îàôÚÄºð, àðàÜø Î²è²ì²ðØ²Ü î²ð´ºð Ø²Î²ð¸²ÎÜºðÆ ÎàÔØÆò ÎÆð²èìàôØ ºÜ ØÆØÚ²Üò ÜÎ²îØ²Ø´ | C135: x | D135: =D137+D138 -> 0 | F135: =F137+F138 -> 0 | G135: =G137+G138 -> 0 | H135: =H137+H138 -> 0 | I135: =I137+I138 -> 0 | J135: =F135 -> 0
A136: 1172100 | B136: -²ßË³ï³í³ñÓÇ ýáÝ¹ | C136: 482100 | J136: 0
A137: 1172200 | B137: -²ÛÉ Ñ³ñÏ»ñ | C137: 482200 | D137: 0 | F137: 0 | G137: 0 | H137: 0 | I137: 0 | J137: =F137 -> 0
A138: 1172300 | B138: -ä³ñï³¹Çñ í×³ñÝ»ñ | C138: 482300 | D138: 0 | F138: 0 | G138: 0 | H138: 0 | I138: 0 | J138: =F138 -> 0
A139: 1172400 | B139: -ä»ï³Ï³Ý Ñ³ïí³ÍÇ ï³ñµ»ñ Ù³Ï³ñ¹³ÏÝ»ñÇ ÏáÕÙÇó ÙÇÙÛ³Ýó ÝÏ³ïÙ³Ùµ ÏÇñ³éíáÕ ïáõÛÅ»ñ | C139: 482400 | J139: 0
A140: 1173000 | B140: 7.3 ¸²î²ð²ÜÜºðÆ ÎàÔØÆò ÜÞ²Ü²Îì²Ì îàôÚÄºð ºì îàô¶²ÜøÜºð | C140: x | D140: 0 | F140: 0 | G140: 0 | H140: 0 | I140: 0 | J140: 0
A141: 1173100 | B141: -¸³ï³ñ³ÝÝ»ñÇ ÏáÕÙÇó Ýß³Ý³Ïí³Í ïáõÛÅ»ñ ¨ ïáõ·³ÝùÝ»ñ | C141: 483100 | J141: 0
A142: 1174000 | B142: 7.4 ´Ü²Î²Ü ²ÔºîÜºðÆò Î²Ø ²ÚÈ ´Ü²Î²Ü ä²îÖ²èÜºðàì ²è²æ²ò²Ì ìÜ²êÜºðÆ Î²Ø ìÜ²êì²ÌøÜºðÆ ìºð²Î²Ü¶ÜàôØ | C142: x | D142: 0 | F142: 0 | G142: 0 | H142: 0 | I142: 0 | J142: 0
A143: 1174100 | B143: -´Ý³Ï³Ý ³Õ»ïÝ»ñÇó ³é³ç³ó³Í íÝ³ëí³ÍùÝ»ñÇ Ï³Ù íÝ³ëÝ»ñÇ í»ñ³Ï³Ý·ÝáõÙ | C143: 484100 | J143: 0
A144: 1174200 | B144: -²ÛÉ µÝ³Ï³Ý å³ï×³éÝ»ñáí ëï³ó³Í íÝ³ëí³ÍùÝ»ñÇ í»ñ³Ï³Ý·ÝáõÙ | C144: 484200 | J144: 0
A145: 1175000 | B145: 7.5 Î²è²ì²ðØ²Ü Ø²ðØÆÜÜºðÆ ¶àðÌàôÜºàôÂÚ²Ü Ðºîºì²Üøàì ²è²æ²ò²Ì ìÜ²êÜºðÆ Î²Ø ìÜ²êì²ÌøÜºðÆ ìºð²Î²Ü¶ÜàôØ | C145: x | D145: 0 | F145: 0 | G145: 0 | H145: 0 | I145: 0 | J145: 0
A146: 1175100 | B146: -Î³é³í³ñÙ³Ý Ù³ñÙÇÝÝ»ñÇ ·áñÍáõÝ»áõÃÛ³Ý Ñ»ï¨³Ýùáí ³é³ç³ó³Í íÝ³ëí³ÍùÝ»ñÇ Ï³Ù íÝ³ëÝ»ñÇ í»ñ³Ï³Ý·ÝáõÙ | C146: 485100 | J146: 0
A147: 1176000 | B147: 7.6 ²ÚÈ Ì²Êêºð | C147: x | D147: 0 | F147: 0 | G147: 0 | H147: 0 | I147: 0 | J147: 0
A148: 1176100 | B148: -²ÛÉ Í³Ëë»ñ | C148: 486100 | J148: 0
A149: 1177000 | B149: 7.7 ä²Ðàôêî²ÚÆÜ ØÆæàòÜºð | C149: x | D149: 0 | F149: 0 | G149: 0 | H149: 0 | I149: 0 | J149: 0
A150: 1177100 | B150: -ä³Ñáõëï³ÛÇÝ ÙÇçáóÝ»ñ | C150: 489100 | J150: 0
A151: 1200000 | B151: Բ, àâ-üÆÜ²Üê²Î²Ü ²ÎîÆìÜºðÆ ¶Ìàì Ì²Êêºð | C151: x | D151: =D152 -> 0 | F151: =F152 -> 0 | G151: =G152 -> 0 | H151: =H152 -> 0 | I151: =I152 -> 0 | J151: =F152 -> 0
A152: 1210000 | B152: 1.ÐÆØÜ²Î²Ü ØÆæàòÜºð | C152: x | D152: =SUM(D153:D158) -> 0 | E152: =E157 -> 0 | F152: =F157 -> 0 | G152: =SUM(G153:G155) -> 0 | H152: =+SUM(H153:H155) -> 0 | I152: =SUM(I153:I157) -> 0 | J152: =F152 -> 0
A153: 1211000 | B153: -Þ»Ýù»ñÇ ¨ ßÇÝáõÃÛáõÝÝ»ñÇ Ó»éù µ»ñáõÙ | C153: 511100 | J153: =F153 -> 0
A154: 1212000 | B154: -Þ»Ýù»ñÇ ¨ ßÇÝáõÃÛáõÝÝ»ñÇ Ï³éáõóáõÙ | C154: 511200 | J154: =F154 -> 0
A155: 1213000 | B155: -Þ»Ýù»ñÇ ¨ ßÇÝáõÃÛáõÝÝ»ñÇ Ï³åÇï³É í»ñ³Ýáñá·áõÙ | C155: 511300 | D155: 0 | F155: 0 | G155: 0 | H155: 0 | I155: 0 | J155: =F155 -> 0
A156: 1214000 | B156: -îñ³Ýëåáñï³ÛÇÝ ë³ñù³íáñáõÙÝ»ñ | C156: 512100 | J156: 0
A157: 1215000 | B157: -ì³ñã³Ï³Ý ë³ñù³íáñáõÙÝ»ñ | C157: 512200 | D157: 0 | E157: 0 | F157: =D157+E157 -> 0 | G157: 0 | H157: 0 | I157: 0 | J157: =F157 -> 0
A158: 1216000 | B158: -²ÛÉ Ù»ù»Ý³Ý»ñ ¨ ë³ñù³íáñáõÙÝ»ñ | C158: 512900 | J158: 0
A159: 1217000 | B159: -²×»óíáÕ ³ÏïÇíÝ»ñ | C159: 513100 | J159: 0
A160: 1218100 | B160: -àã-ÝÛáõÃ³Ï³Ý ÑÇÙÝ³Ï³Ý ÙÇçáóÝ»ñ | C160: 513200 | J160: 0
A161: 1218200 | B161: -¶»á¹»½Ç³Ï³Ý ù³ñï»½³·ñ³Ï³Ý Í³Ëë»ñ | C161: 513300 | J161: 0
A162: 1218300 | B162: -Ü³Ë³·Í³Ñ»ï³½áï³Ï³Ý Í³Ëë»ñ | C162: 513400 | J162: 0
A163: 1220000 | B163: 2.ä²Þ²ðÜºð | C163: x | D163: 0 | F163: 0 | G163: 0 | H163: 0 | I163: 0 | J163: 0
A164: 1221000 | B164: -è³½Ù³í³ñ³Ï³Ý å³ß³ñÝ»ñ | C164: 521100 | J164: 0
A165: 1222000 | B165: -ÜÛáõÃ»ñ ¨ å³ñ³·³Ý»ñ | C165: 522100 | J165: 0
A166: 1223000 | B166: -ì»ñ³í³×³éùÇ Ñ³Ù³ñ Ý³Ë³ï»ëí³Í ³åñ³ÝùÝ»ñ | C166: 523100 | J166: 0
A167: 1224000 | B167: -êå³éÙ³Ý Ýå³ï³Ïáí å³ÑíáÕ å³ß³ñÝ»ñ | C167: 524100 | J167: 0
A168: 1230000 | B168: 3.´²ðÒð²ðÄºø ²ÎîÆìÜºð | C168: x | D168: 0 | F168: 0 | G168: 0 | H168: 0 | I168: 0 | J168: 0
A169: 1231000 | B169: -´³ñÓñ³ñÅ»ù ³ÏïÇíÝ»ñ | C169: 531100 | J169: 0
A170: 1240000 | B170: 4.â²ðî²¸ðì²Ì ԱԿՏԻՎՆԵՐ | C170: x | D170: 0 | F170: 0 | G170: 0 | H170: 0 | I170: 0 | J170: 0
A171: 1241000 | B171: -ÐáÕ | C171: 541100 | J171: 0
A172: 1242000 | B172: -ÀÝ¹»ñù³ÛÇÝ ³ÏïÇíÝ»ñ | C172: 542100
A173: 1243000 | B173: -²ÛÉ µÝ³Ï³Ý Í³·áõÙ áõÝ»óáÕ ³ÏïÇíÝ»ñ | C173: 543100
A174: 1244000 | B174: -àã ÝÛáõÃ³Ï³Ý ã³ñï³¹ñí³Í ³ÏïÇíÝ»ñ | C174: 544100
A175: 1000000 | B175: ԸՆԴԱՄԵՆԸ ԾԱԽՍԵՐ` | C175: x | D175: =D32+D151 -> 3475.27 | E175: =E32 -> 0 | F175: =F32+F151 -> 3475.27 | G175: =G32+G151 -> 855 | H175: =H32+H151+H157 -> 1665 | I175: =I32+I151 -> 2395 | J175: =J32+J151 -> 3475.27
A177: §17¦ § դեÏï»Ùµ»ñ ¦ 2020 Ã.
A179: ÐÆØÜ²ðÎÆ ÔºÎ²ì²ðª _______________ Ա Անախասյան _________________
A180: (ëïáñ³·ñáõÃÛáõÝ) (².Ð.².)
A181: Î.î.
A183: üÆÜ²Üê²Î²Ü Ì²è²ÚàôÂÚ²Ü äºîª ________________ Ն.Մուրադյան ___________________
A184: (¶ÈÊ²ìàð Ð²Þì²ä²Ð) (ëïáñ³·ñáõÃÛáõÝ) (².Ð.².)
A202: 5.5 áñ¨¿ ³Ùëí³ Ýáñ Ý³Ë³Ñ³ßíÇª 3-ñ¹ ëÛáõÝ³ÏáõÙ Ý»ñÏ³Û³óíáõÙ »Ý ïíÛ³É µÛáõç»ï³ÛÇÝ ï³ñí³ Ñ³Ù³å³ï³ëË³Ý ³Ùëí³ óáõó³ÝÇßÝ»ñÁ, ÇëÏ 4-Çó 7-ñ¹ ëÛáõÝ³ÏÝ»ñÁ ã»Ý Éñ³óíáõÙ:
A203: ** Ì²ÜàÂ²¶ðàôÂÚàôÜ II. N 1 ûñÇÝ³Ï»ÉÇ Ó¨Ç Ýßí³Í ïáÕÁ ÐÐ å»ï³Ï³Ý Ï³é³í³ñÙ³Ý ¨ ï»Õ³Ï³Ý ÇÝùÝ³Ï³é³í³ñÙ³Ý í»ñ³¹³ë Ù³ñÙÇÝÝ»ñÁ ã»Ý Éñ³óÝáõÙ:
A204: *** Ì²ÜàÂ²¶ðàôÂÚàôÜ III. N 1 ûñÇÝ³Ï»ÉÇ Ó¨Ç Ýßí³Í ïáÕÁ ÐÐ å»ï³Ï³Ý Ï³é³í³ñÙ³Ý ¨ ï»Õ³Ï³Ý ÇÝùÝ³Ï³é³í³ñÙ³Ý Ù³ñÙÇÝÝ»ñÁ Éñ³óÝáõÙ »Ý Çñ»Ýó Ñ³Ù³ñ µÛáõç»ï³ÛÇÝ Í³Ëë»ñÇ ·»ñ³ï»ëã³Ï³Ý ¹³ë³Ï³ñ·Ù³Ùµ ë³ÑÙ³Ý³Í Ïá¹Á:
A205: **** Ì²ÜàÂ²¶ðàôÂÚàôÜ IV. N 1 ûñÇÝ³Ï»ÉÇ Ó¨Ç Ýßí³Í ïáÕÁª ³ÝÏ³Ë Ýñ³ÝÇó, Ã» Ýáñ Ý³Ë³Ñ³ßÇíÁ áñ ¹»åùáõÙ ¿ Ñ³ëï³ïíáõÙ, Éñ³óíáõÙ ¿ N 1 ûñÇÝ³Ï»ÉÇ Ó¨Ç ³ÕÛáõë³ÏÇ §²¦ ëÛáõÝ³ÏáõÙ ³Ùñ³·ñí³Í N 1000000 (§ÀÝ¹³Ù»ÝÁ
A206: Í³Ëë»ñ¦) ïáÕÇ 3-ñ¹ ëÛáõÝ³ÏáõÙ µ»ñí³Í óáõó³ÝÇßÇ ·áõÙ³ñáí (Ãí»ñáí ¨ ï³é»ñáí):
A207: ***** Ì²ÜàÂ²¶ðàôÂÚàôÜ V. N 1 ûñÇÝ³Ï»ÉÇ Ó¨Ç Ýßí³Í ïáÕÁ Éñ³óíáõÙ ¿ Ññ³Ù³Ýáí Ñ³ëï³ïí³Í N 11 Ñ³í»Éí³ÍÇ` §´Ûáõç»ï³ÛÇÝ Í³Ëë»ñÇ ·áñÍ³é³Ï³Ý ¹³ë³Ï³ñ·áõÙ¦, ï³ññ»ñÇÝ Ñ³Ù³å³ï³ëË³Ý` µ³ÅÇÝ (2 ÝÇß), ËáõÙµ(1ÝÇß) ¨ ¹³ë (1ÝÇß):
A208: §__¦ §________________¦ 200_ Ã.
A210: ÐÆØÜ²ðÎÆ ÔºÎ²ì²ðª _______________ _________________
A211: (ëïáñ³·ñáõÃÛáõÝ) (².Ð.².)
A212: Î.î.
A214: üÆÜ²Üê²Î²Ü Ì²è²ÚàôÂÚ²Ü äºîª ________________ ___________________
A215: (¶ÈÊ²ìàð Ð²Þì²ä²Ð) (ëïáñ³·ñáõÃÛáõÝ) (².Ð.².)

Sheet 1.5.1 (hidden)
I1: Ð³í»Éí³Í N 2
H3: úñÇÝ³Ï»ÉÇ Ó¨ N1
G4: h³ëï³ïí»É ¿ ÐÐ ýÇÝ³ÝëÝ»ñÇ ¨ ¿ÏáÝáÙÇÏ³ÛÇ
H5: Ý³Ë³ñ³ñÇ 23 ÑáõÉÇëÇ 2007 Ãí³Ï³ÝÇ
B6: §Ð ² ê î ² î àô Ø ºØª¦ | G6: N 597-Ü Ññ³Ù³Ýáí
A8: Ý³Ë³Ñ³ßÇíÁ 12000,0 տասներկու միլիոն դրամ
A9: ( ÁÝ¹³Ù»ÝÁ ·áõÙ³ñÁ Ãí»ñáí ¨ ï³é»ñáí****)
A10: _______________________________________________________________________________________________________________ Ñ³½³ñ ¹ñ³Ù ·áõÙ³ñáí:
B12: Է. Արշակյան | H12: Î.î.
A13: (ÐÐ å»ï³Ï³Ý Ï³é³í³ñÙ³Ý Ù³ñÙÝÇ Õ»Ï³í³ñÇ /Ñ³Ù³ÛÝùÇ Õ»Ï³í³ñÇ/ ëïáñ³·ñáõÃÛáõÝÁ ¨ ².Ð.².)
A14: § ¦ դեկտեմբերի 2020թ
B15: Ü²Ê²Ð²ÞÆì*
B16: ´ Ú àô æ º î ² Ú Æ Ü Ð Æ Ø Ü ² ð Î Æ ä ² Ð ä ² Ü Ø ² Ü Ì ² Ê ê º ð Æ
A17: §01¦ §ÐáõÝí³ñÇ ¦ 2021 Ã. -- §30¦ §¹»Ïï»Ùµ»ñÇ ¦ 2021 Ã.
A19: 1. ÐÇÙÝ³ñÏÇ ³Ýí³ÝáõÙÁ Քաղաքապետարան | G19: 8. * ´Ûáõç»ï³ÛÇÝ Í³Ëë»ñÇ ·áñÍ³é³Ï³Ý ¹³ë³Ï³ñ·.
G20: Í³ÍÏ³·Çñ | H20: 1 | I20: 5 | J20: 1
A21: 3. ÐÇÙÝ³ñÏÇ ï»Õ³µ³ßËÙ³Ý Ù³ñ½Ç ¨ Ñ³Ù³ÛÝùÇ Ïá¹Ý Áëï | G21: 9. Ìñ³·ñÇ ³Ýí³ÝáõÙÁ_ընդանուր բնույթի հանր. ծառ.
A22: µÛáõç»ï³ÛÇÝ Í³Ëë»ñÇ ï³ñ³Íù³ÛÇÝ ¹³ë³Ï³ñ·Ù³Ý | G22: ________________________________
A23: 4. ** ÐÐ å»ï³Ï³Ý Ï³é³í³ñÙ³Ý (ï»Õ³Ï³Ý ÇÝùÝ³Ï³é³í³ñÙ³Ý) Ù³ñÙÝÇ | G23: 10. Ìñ³·ñÇ Ïá¹Á
A24: ³Ýí³ÝáõÙÁ Լոռու մարզպետարան | G24: 11.*** ÐÐ å»ï³Ï³Ý Ï³é³í³ñÙ³Ý (îÆ)
A25: 5. ÐÇÙÝ³ñÏÁ ëå³ë³ñÏáÕ ï»Õ³Ï³Ý ·³ÝÓ³å»ï³Ï³Ý µ³ÅÝÇ (î¶´) ³Ýí³ÝáõÙÁ Տաշիրի | G25: Ù³ñÙÝÇ Ïá¹Ý Áëï µÛáõç»ï³ÛÇÝ Í³Ëë»ñÇ ·»ñ³ï»ëã³Ï.
A26: 6. ÐÇÙÝ³ñÏÇª ï»Õ³Ï³Ý ·³ÝÓ³å»ï³Ï³Ý µ³ÅÝáõÙ (î¶´) Ñ³ßí³éÙ³Ý Ñ³Ù³ñÁ | G26: ¹³ë³Ï³ñ·Ù³Ý
A27: 7. üÇÝ³Ýë³íáñÙ³Ý ³ÕµÛáõñÇ Ïá¹Á (ÐÐ å»ï³Ï³Ý µÛáõç»ª 1, Ñ³Ù³ÛÝùÇ µÛáõç»ª 2) | E27: 2 | G27: 12. â³÷Ç ÙÇ³íáñÁª Ñ³½³ñ ¹ñ³Ù
A29: îáÕÇ NN | B29: ´Ûáõç»ï³ÛÇÝ Í³Ëë»ñÇ ïÝï»ë³·Çï³Ï³Ý ¹³ë³Ï³ñ·Ù³Ý ï³ññ»ñ | D29: ÜáõÛÝ Å³Ù³Ý³Ï³Ñ³ïí³ÍÇ Ñ³Ù³ñ Ý³ËÏÇÝáõÙ Ñ³ëï³ïí³Íª ·áñÍáÕ | F29: êáõÛÝ Ý³Ë³Ñ³ßíáí Ñ³ëï³ïíáÕ óáõó³ÝÇßÝ»ñÁ | G29: ³Û¹ ÃíáõÙª Áëï »é³ÙëÛ³ÏÝ»ñÇ (»é³ÙëÛ³ÏÇ ³ÙÇëÝ»ñÇ)³×áÕ³Ï³Ý
B30: ³Ýí³ÝáõÙÝ»ñÁ | C30: NN | D30: Ý³Ë³Ñ³ßíÇ óáõó³ÝÇßÝ»ñÁ | E30: Ý³Ë³Ñ³ßíáõÙ Ï³ï³ñí³Í ÷á÷áËáõÃÛáõÝ-Ý»ñÁ (³í»É³óáõÙÁª /+/, å³Ï³ë»óáõÙÁª/-/ | G30: I | H30: II | I30: III | J30: IV
A31: ² | B31: ´ | C31: ¶ | D31: 1 | E31: 2 | F31: 3 | G31: 4 | H31: 5 | I31: 6 | J31: 7
A32: 1100000 | B32: ². ÀÜÂ²òÆÎ Ì²Êêºðª ÀÜ¸²ØºÜÀ, | C32: x | D32: =D42+D135 -> 8000 | E32: =E65+E131 -> 0 | F32: =D32+E32 -> 8000 | G32: =G33+G42+G131 -> 2500 | H32: =H33+H42+H131 -> 4500 | I32: =I42+I135 -> 6500 | J32: =F32 -> 8000
A33: 1110000 | B33: 1.äºî²Î²Ü, îºÔ²Î²Ü ÆÜøÜ²Î²è²ì²ðØ²Ü Ø²ðØÆÜÜºðÆ, ¸ð²Üò ºÜÂ²Î² ´Úàôæºî²ÚÆÜ ÐÆØÜ²ðÎÜºðÆ ²ÞÊ²îàÔÜºðÆ ²ÞÊ²î²ì²ðÒÀª ÀÜ¸²ØºÜÀ, ³Û¹ ÃíáõÙª | C33: x | D33: =D34 -> 0 | F33: =F34 -> 0 | G33: =G34 -> 0 | H33: =H34 -> 0 | I33: =I34 -> 0 | J33: =J34 -> 0
A34: 1110000 | B34: 1,1 ²ßË³ï³ÝùÇ í³ñÓ³ïñáõÃÛáõÝ | C34: x | D34: =SUM(D35:D41) -> 0 | F34: =SUM(F35:F41) -> 0 | G34: =SUM(G35:G41) -> 0 | H34: =SUM(H35:H41) -> 0 | I34: =SUM(I35:I41) -> 0 | J34: =SUM(J35:J41) -> 0
A35: 1111000 | B35: -²ßË³ïáÕÝ»ñÇ ³ßË³ï³í³ñÓ»ñ ¨ Ñ³í»É³í×³ñÝ»ñ | C35: 411100 | D35: 0 | F35: 0 | G35: 0 | H35: 0 | I35: 0 | J35: =F35 -> 0
A36: 1112000 | B36: - ä³ñ·¨³ïñáõÙÝ»ñ, ¹ñ³Ù³Ï³Ý Ëñ³ËáõëáõÙÝ»ñ ¨ Ñ³ïáõÏ í×³ñÝ»ñ | C36: 411200 | D36: 0 | F36: 0 | G36: 0 | H36: 0 | I36: 0 | J36: =F36 -> 0
A37: 1113000 | B37: -ø³Õ³ù³óÇ³Ï³Ý, ¹³ï³Ï³Ý ¨ å»ï³Ï³Ý Í³é³ÛáÕÝ»ñÇ å³ñ·¨³ïñáõÙ | C37: 411300 | J37: 0
A38: 1114000 | B38: -ÐÐ ýÇÝ³ÝëÝ»ñÇ ¨ ¿ÏáÝáÙÇÏ³ÛÇ Ý³Ë³ñ³ñáõÃÛ³Ý, Ñ³ñÏ³ÛÇÝ ¨ Ù³ùë³ÛÇÝ Ù³ñÙÇÝÝ»ñÇ ³ßË³ïáÕÝ»ñÇ å³ñ·¨³ïñáõÙ | C38: 411400 | J38: 0
A39: 1115000 | B39: -²ÛÉ í³ñÓ³ïñáõÃÛáõÝÝ»ñ | C39: 411500 | J39: 0
A40: 1116000 | B40: -´Ý»Õ»Ý ³ßË³ï³í³ñÓ»ñ ¨ Ñ³í»É³í×³ñÝ»ñ | C40: 412100 | J40: 0
A41: 1117000 | B41: - êáóÇ³É³Ï³Ý ³å³ÑáíáõÃÛ³Ý í×³ñÝ»ñ | C41: 413100 | D41: 0 | F41: 0 | G41: 0 | H41: 0 | I41: 0 | J41: =F41 -> 0
A42: 1120000 | B42: 2 Ì³é³ÛáõÃÛáõÝÝ»ñÇ ¨ ³åñ³ÝùÝ»ñÇ Ó»éù µ»ñáõÙ | C42: x | D42: =D43+D55+D66+D69+D51+D64 -> 5500 | F42: =F43+F55+F66+F69+F51+F64 -> 5500 | G42: =G43+G51+G55+G64+G66+G69 -> 1500 | H42: =H43+H51+H55+H64+H66+H69 -> 2500 | I42: =I43+I51+I55+I64+I66+I69 -> 4000 | J42: =F42 -> 5500
A43: 1121000 | B43: 2.1 Þ³ñáõÝ³Ï³Ï³Ý Í³Ëë»ñ | D43: =SUM(D44:D49) -> 0 | F43: =SUM(F44:F49) -> 0 | G43: =SUM(G44:G49) -> 0 | H43: =SUM(H44:H49) -> 0 | I43: =SUM(I44:I49) -> 0 | J43: =SUM(J44:J49) -> 0
A44: 1121100 | B44: -·áñÍ³éÝ³Ï³Ý ¨ µ³ÝÏ³ÛÇÝ Í³é³ÛáõÃÛáõÝÝ»ñÇ Í³Ëë»ñ | C44: 421100 | J44: 0
A45: 1121200 | B45: -¿Ý»ñ·»ïÇÏ Í³é³ÛáõÃÛáõÝÝ»ñ | C45: 421200 | D45: 0 | F45: 0 | G45: 0 | H45: 0 | I45: 0 | J45: =F45 -> 0
A46: 1121300 | B46: -ÎáÙáõÝ³É Í³é³ÛáõÃÛáõÝÝ»ñ | C46: 421300 | D46: 0 | F46: 0 | G46: 0 | H46: 0 | I46: 0 | J46: =F46 -> 0
A47: 1121400 | B47: -Î³åÇ Í³é³ÛáõÃÛáõÝÝ»ñ | C47: 421400 | D47: 0 | F47: 0 | G47: 0 | H47: 0 | I47: 0 | J47: =F47 -> 0
A48: 1121500 | B48: -²å³Ñáí³·ñ³Ï³Ý Í³Ëë»ñ | C48: 421500 | J48: 0
A49: 1121600 | B49: -¶áõÛùÇ ¨ ë³ñù³íáñáõÙÝ»ñÇ í³ñÓ³Ï³ÉáõÃÛáõÝ | C49: 421600 | J49: 0
A50: 1121700 | B50: -²ñï³·»ñ³ï»ëã³Ï³Ý Í³Ëë»ñ | C50: 421700 | J50: 0
A51: 1122000 | B51: 2.2 ¶áñÍáõÕáõÙÝ»ñÇ ¨ ßñç³·³ÛáõÃÛ³Ý Í³Ëë»ñ | C51: x | D51: =D52 -> 0 | F51: =F52 -> 0 | G51: =G52 -> 0 | H51: =H52 -> 0 | I51: =I52 -> 0 | J51: =J52 -> 0
A52: 1122100 | B52: -Ü»ñùÇÝ ·áñÍáõÕáõÙÝ»ñ | C52: 422100 | D52: 0 | F52: 0 | G52: 0 | H52: 0 | I52: 0 | J52: =F52 -> 0
A53: 1122200 | B53: -²ñï³ë³ÑÙ³ÝÛ³Ý ·áñÍáõÕáõÙÝ»ñÇ ·Íáí Í³Ëë»ñ | C53: 422200 | J53: 0
A54: 1122300 | B54: -²ÛÉ ïñ³Ýëåáñï³ÛÇÝ Í³Ëë»ñ | C54: 422900 | J54: 0
A55: 1123000 | B55: 2.3 ä³ÛÙ³Ý³·ñ³ÛÇÝ ³ÛÉ Í³é³ÛáõÃÛáõÝÝ»ñÇ Ó»éù µ»ñáõÙ | C55: x | D55: =SUM(D56:D63) -> 0 | F55: =SUM(F56:F63) -> 0 | G55: =SUM(G56:G63) -> 0 | H55: =SUM(H56:H63) -> 0 | I55: =SUM(I56:I63) -> 0 | J55: =F55 -> 0
A56: 1123100 | B56: -ì³ñã³Ï³Ý Í³é³ÛáõÃÛáõÝÝ»ñ | C56: 423100 | J56: =F56 -> 0
A57: 1123200 | B57: -Ð³Ù³Ï³ñ·ã³ÛÇÝ Í³é³ÛáõÃÛáõÝÝ»ñ | C57: 423200 | D57: 0 | F57: 0 | G57: 0 | H57: 0 | I57: 0 | J57: =F57 -> 0
A58: 1123300 | B58: -²ßË³ï³Ï³½ÙÇ Ù³ëÝ³·Çï³Ï³Ý ½³ñ·³óÙ³Ý Í³é³ÛáõÃÛáõÝÝ»ñ | C58: 423300
A59: 1123400 | B59: -î»Õ³Ï³ïí³Ï³Ý Í³é³ÛáõÃÛáõÝÝ»ñ | C59: 423400 | D59: 0 | F59: 0 | G59: 0 | H59: 0 | I59: 0 | J59: =F59 -> 0
A60: 1123500 | B60: -Î³é³í³ñã³Ï³Ý Í³é³ÛáõÃÛáõÝÝ»ñ | C60: 423500 | J60: 0
A61: 1123600 | B61: - Î»Ýó³Õ³ÛÇÝ ¨ Ñ³Ýñ³ÛÇÝ ëÝÝ¹Ç Í³é³ÛáõÃÛáõÝÝ»ñ | C61: 423600 | J61: 0
A62: 1123700 | B62: -Ü»ñÏ³Û³óáõóã³Ï³Ý Í³Ëë»ñ | C62: 423700 | D62: 0 | F62: 0 | G62: 0 | H62: 0 | I62: 0 | J62: 0
A63: 1123800 | B63: -ÀÝ¹Ñ³Ýáõñ µÝáõÛÃÇ ³ÛÉ Í³é³ÛáõÃÛáõÝÝ»ñ | C63: 423900 | D63: 0 | F63: 0 | G63: 0 | H63: 0 | I63: 0 | J63: 0
A64: 1124000 | B64: 2.4 ²ÛÉ Ù³ëÝ³·Çï³Ï³Ý Í³é³ÛáõÃÛáõÝÝ»ñÇ Ó»éù µ»ñáõÙ | C64: x | D64: =D65 -> 5500 | F64: =F65 -> 5500 | G64: =G65 -> 1500 | H64: =H65 -> 2500 | I64: =I65 -> 4000 | J64: 5500
A65: 1124100 | B65: -Ø³ëÝ³·Çï³Ï³Ý Í³é³ÛáõÃÛáõÝÝ»ñ | C65: 424100 | D65: 5500 | E65: 0 | F65: =D65+E65 -> 5500 | G65: 1500 | H65: 2500 | I65: 4000 | J65: 5500
A66: 1125000 | B66: 2.5 ÀÝÃ³óÇÏ Ýáñá·áõÙ ¨ å³Ñå³ÝáõÙ (Í³é³ÛáõÃÛáõÝÝ»ñ ¨ ÝÛáõÃ»ñ) | C66: x | D66: =D67+D68 -> 0 | E66: =E114 -> 0 | F66: 0 | G66: 0 | H66: 0 | I66: 0 | J66: 0
A67: 1125100 | B67: -Þ»Ýù»ñÇ ¨ Ï³éáõÛóÝ»ñÇ ÁÝÃ³óÇÏ Ýáñá·áõÙ ¨ å³Ñå³ÝáõÙ | C67: 425100 | J67: =F67 -> 0
A68: 1125200 | B68: -Ø»ù»Ý³Ý»ñÇ ¨ ë³ñù³íáñáõÙÝ»ñÇ ÁÝÃ³óÇÏ Ýáñá·áõÙ ¨ å³Ñå³ÝáõÙ | C68: 425200 | D68: 0 | F68: 0 | G68: 0 | H68: 0 | I68: 0 | J68: 0
A69: 1126000 | B69: 2.6 ÜÛáõÃ»ñ | C69: x | D69: =SUM(D70:D77) -> 0 | F69: =SUM(F70:F77) -> 0 | G69: =SUM(G70:G77) -> 0 | H69: =SUM(H70:H77) -> 0 | I69: =SUM(I70:I77) -> 0 | J69: 0
A70: 1126100 | B70: -¶ñ³ë»ÝÛ³Ï³ÛÇÝ ÝÛáõÃ»ñ ¨ Ñ³·áõëï | C70: 426100 | D70: 0 | F70: 0 | G70: 0 | H70: 0 | I70: 0 | J70: 0
A71: 1126200 | B71: -¶ÛáõÕ³ïÝï»ë³Ï³Ý ³åñ³ÝùÝ»ñ | C71: 426200 | J71: 0
A72: 1126300 | B72: -ì»ñ³å³ïñ³ëïÙ³Ý ¨ áõëáõóÙ³Ý ÝÛáõÃ»ñ | C72: 426300 | J72: 0
A73: 1126400 | B73: -îñ³Ýëåáñï³ÛÇÝ ÝÛáõÃ»ñ | C73: 426400 | D73: 0 | F73: 0 | G73: 0 | H73: 0 | I73: 0 | J73: 0
A74: 1126500 | B74: -Þñç³Ï³ ÙÇç³í³ÛñÇ å³ßïå³ÝáõÃÛ³Ý ¨ ·Çï³Ï³Ý ÝÛáõÃ»ñ | C74: 426500 | J74: 0
A75: 1126600 | B75: -²éáÕç³å³Ñ³Ï³Ý ¨ É³µáñ³ïáñ ÝÛáõÃ»ñ | C75: 426600 | J75: =F75 -> 0
A76: 1126700 | B76: -Î»Ýó³Õ³ÛÇÝ ¨ Ñ³Ýñ³ÛÇÝ ëÝÝ¹Ç ÝÛáõÃ»ñ | C76: 426700 | D76: 0 | F76: 0 | G76: 0 | H76: 0 | I76: 0 | J76: =F76 -> 0
A77: 1126800 | B77: -Ð³ïáõÏ Ýå³ï³Ï³ÛÇÝ ³ÛÉ ÝÛáõÃ»ñ | C77: 426900 | D77: 0 | F77: 0 | G77: 0 | H77: 0 | I77: 0 | J77: =F77 -> 0
A78: 1130000 | B78: 3 îáÏáë³í×³ñÝ»ñ | C78: x | D78: 0 | F78: 0 | G78: 0 | H78: 0 | I78: 0 | J78: 0
A79: 1130100 | B79: -Ü»ñùÇÝ ³ñÅ»ÃÕÃ»ñÇ ïáÏáë³í×³ñÝ»ñ | C79: 441100 | J79: 0
A80: 1130200 | B80: -Ü»ñùÇÝ í³ñÏ»ñÇ ïáÏáë³í×³ñÝ»ñ | C80: 441200 | J80: 0
A81: 1130300 | B81: -²ñï³ùÇÝ ³ñÅ»ÃÕÃ»ñÇ ·Íáí ïáÏáë³í×³ñÝ»ñ | C81: 442100 | J81: 0
A82: 1130400 | B82: -²ñï³ùÇÝ í³ñÏ»ñÇ ·Íáí ïáÏáë³í×³ñÝ»ñ | C82: 442200 | J82: 0
A83: 1131000 | B83: öáË³éáõÃÛáõÝÝ»ñÇ Ñ»ï Ï³åí³Í í×³ñÝ»ñ | C83: x | J83: 0
A84: 1131100 | B84: -öáË³Ý³ÏÙ³Ý Ïáõñë»ñÇ µ³ó³ë³Ï³Ý ï³ñµ»ñáõÃÛáõÝ | C84: 443100 | J84: 0
A85: 1131200 | B85: -îáõÛÅ»ñ | C85: 443200 | J85: 0
A86: 1131300 | B86: -öáË³éáõÃÛáõÝÝ»ñÇ ·Íáí ïáõñù»ñ | C86: 443300 | J86: 0
A87: 1140000 | B87: 4. êáõµëÇ¹Ç³Ý»ñ | C87: x | D87: 0 | F87: 0 | G87: 0 | H87: 0 | I87: 0 | J87: 0
A88: 1141000 | B88: -êáõµëÇ¹Ç³Ý»ñ áã-ýÇÝ³Ýë³Ï³Ý å»ï³Ï³Ý Ï³½Ù³Ï»ñåáõÃÛáõÝÝ»ñÇÝ | C88: 451100 | J88: 0
A89: 1142000 | B89: -êáõµëÇ¹Ç³Ý»ñ ýÇÝ³Ýë³Ï³Ý å»ï³Ï³Ý Ï³½Ù³Ï»ñåáõÃÛáõÝÝ»ñÇÝ | C89: 451200 | J89: 0
A90: 1143000 | B90: -êáõµëÇ¹Ç³Ý»ñ áã å»ï³Ï³Ý áã ýÇÝ³Ýë³Ï³Ý Ï³½Ù³Ï»ñåáõÃÛáõÝÝ»ñÇÝ | C90: 452100 | J90: 0
A91: 1144000 | B91: -êáõµëÇ¹Ç³Ý»ñ áã å»ï³Ï³Ý ýÇÝ³Ýë³Ï³Ý Ï³½Ù³Ï»ñåáõÃÛáõÝÝ»ñÇÝ | C91: 452200 | J91: 0
A92: 1150000 | B92: 5.¸ñ³Ù³ßÝáñÑÝ»ñ | C92: x | D92: 0 | F92: 0 | G92: 0 | H92: 0 | I92: 0 | J92: 0
A93: 1151000 | B93: ¸ñ³Ù³ßÝáñÑÝ»ñ ûï³ñ»ñÏñÛ³ Ï³é³í³ñáõÃÛáõÝÝ»ñÇÝ | C93: x | D93: 0 | F93: 0 | G93: 0 | H93: 0 | I93: 0 | J93: 0
A94: 1151100 | B94: ÀÝÃ³óÇÏ ¹ñ³Ù³ßÝáñÑÝ»ñ ûï³ñ»ñÏñÛ³ Ï³é³í³ñáõÃÛáõÝÝ»ñÇÝ | C94: 461100 | J94: 0
A95: 1151200 | B95: Î³åÇï³É ¹ñ³Ù³ßÝáñÑÝ»ñ ûï³ñ»ñÏñÛ³ Ï³é³í³ñáõÃÛáõÝÝ»ñÇÝ | C95: 461200 | J95: 0
A96: 1152000 | B96: ¸ñ³Ù³ßÝáñÑÝ»ñ ÙÇç³½·³ÛÇÝ Ï³½Ù³Ï»ñåáõÃÛáõÝÝ»ñÇÝ | C96: x | D96: 0 | F96: 0 | G96: 0 | H96: 0 | I96: 0 | J96: 0
A97: 1152100 | B97: ÀÝÃ³óÇÏ ¹ñ³Ù³ßÝáñÑÝ»ñ ÙÇç³½·³ÛÇÝ Ï³½Ù³Ï»ñåáõÃÛáõÝÝ»ñÇÝ | C97: 462100 | J97: 0
A98: 1152200 | B98: Î³åÇï³É ¹ñ³Ù³ßÝáñÑ»ñ ÙÇç³½·³ÛÇÝ Ï³½Ù³Ï»ñåáõÃÛáõÝÝ»ñÇÝ | C98: 462200 | J98: 0
A99: 1153000 | B99: ÀÝÃ³óÇÏ ¹ñ³Ù³ßÝáñÑÝ»ñ å»ï³Ï³Ý Ñ³ïí³ÍÇ ³ÛÉ Ù³Ï³ñ¹³ÏÝ»ñÇÝ | C99: x | D99: 0 | F99: 0 | G99: 0 | H99: 0 | I99: 0 | J99: 0
A100: 1153100 | B100: ÀÝÃ³óÇÏ ¹ñ³Ù³ßÝáñÑÝ»ñ å»ï³Ï³Ý Ï³é³í³ñÙ³Ý Ñ³ïí³ÍÇÝ | C100: 463100 | J100: 0
A101: 1153200 | B101: ÀÝÃ³óÇÏ ëáõµí»ÝóÇ³Ý»ñ Ñ³Ù³ÛÝùÝ»ñÇÝ | C101: 463200 | J101: 0
A102: 1153300 | B102: ä»ï³Ï³Ý µÛáõç»Çó Ñ³Ù³ÛÝùÝ»ñÇ µÛáõç»Ý»ñÇÝ ýÇÝ³Ýë³Ï³Ý Ñ³Ù³Ñ³ñÃ»óÙ³Ý ëÏ½µáõÝùáí ïñíáÕ ¹áï³óÇ³Ý»ñ | C102: 463300 | J102: 0
A103: 1153400 | B103: úñ»ÝùÝ»ñÇ ÏÇñ³ñÏÙ³Ý ³ñ¹ÛáõÝùáõÙ Ñ³Ù³ÛÝùÝ»ñÇ µÛáõç»Ý»ñÇ ÏáñáõëïÝ»ñÇ ÷áËÑ³ïáõóáõÙ | C103: 463400 | J103: 0
A104: 1153500 | B104: ²ÛÉ ÁÝÃ³óÇÏ ¹ñ³Ù³ßÝáñÑÝ»ñ Ñ³Ù³ÛÝùÝ»ñÇÝ | C104: 463500 | J104: 0
A105: 1153700 | B105: ÀÝÃ³óÇÏ ¹ñ³Ù³ßÝáñÑÝ»ñ å»ï³Ï³Ý ¨ Ñ³Ù³ÛÝùÝ»ñÇ áã ³é¨ïñ³ÛÇÝ Ï³½Ù³Ï»ñåáõÃÛáõÝÝ»ñÇÝ | C105: 463700 | J105: 0
A106: 1153800 | B106: ÀÝÃ³óÇÏ ¹ñ³Ù³ßÝáñÑÝ»ñ å»ï³Ï³Ý ¨ Ñ³Ù³ÛÝùÝ»ñÇ ³é¨ïñ³ÛÇÝ Ï³½Ù³Ï»ñåáõÃÛáõÝÝ»ñÇÝ | C106: 463800 | J106: 0
A107: 1153900 | B107: ²ÛÉ ÁÝÃ³óÇÏ ¹ñ³Ù³ßÝáñÑÝ»ñ | C107: 463900 | D107: 0 | F107: 0 | I107: 0 | J107: =F107 -> 0
A108: 1154000 | B108: Î³åÇï³É ¹ñ³Ù³ßÝáñÑÝ»ñ å»ï³Ï³Ý Ñ³ïí³ÍÇ ³ÛÉ Ù³Ï³ñ¹³ÏÝ»ñÇÝ | C108: x | D108: 0 | F108: 0 | G108: 0 | H108: 0 | I108: 0 | J108: 0
A109: 1154100 | B109: Î³åÇï³É ¹ñ³Ù³ßÝáñÑÝ»ñ å»ï³Ï³Ý Ï³é³í³ñÙ³Ý Ñ³ïí³ÍÇÝ | C109: 465100 | J109: 0
A110: 1154200 | B110: Î³åÇï³É ëáõµí»ÝóÇ³Ý»ñ Ñ³Ù³ÛÝùÝ»ñÇÝ | C110: 465200 | J110: 0
A111: 1154300 | B111: ²ÛÉ Ï³åÇï³É ¹ñ³Ù³ßÝáñÑÝ»ñ Ñ³Ù³ÛÝùÝ»ñÇÝ | C111: 465300 | J111: 0
A112: 1154500 | B112: Î³åÇï³É ¹ñ³Ù³ßÝáñÑÝ»ñ å»ï³Ï³Ý ¨ Ñ³Ù³ÛÝùÝ»ñÇ áã ³é¨ïñ³ÛÇÝ Ï³½Ù³Ï»ñåáõÃÛáõÝÝ»ñÇÝ | C112: 465500 | J112: 0
A113: 1154600 | B113: Î³åÇï³É ¹ñ³Ù³ßÝáñÑÝ»ñ å»ï³Ï³Ý ¨ Ñ³Ù³ÛÝù³ÛÇÝ ³é¨ïñ³ÛÇÝ Ï³½Ù³Ï»ñåáõÃÛáõÝÝ»ñÇÝ | C113: 465600 | J113: 0
A114: 1154700 | B114: ²ÛÉ Ï³åÇï³É ¹ñ³Ù³ßÝáñÑÝ»ñ | C114: 465700 | D114: 0 | E114: 0 | F114: =D114+E114 -> 0 | G114: 0 | H114: 0 | I114: 0 | J114: =F114 -> 0
A115: 1160000 | B115: 6. êàòÆ²È²Î²Ü Üä²êîÜºð ºì ÎºÜê²ÂàÞ²ÎÜºð | C115: x | D115: 0 | F115: 0 | G115: 0 | H115: 0 | I115: 0 | J115: 0
A116: 1161000 | B116: 6.1 êàòÆ²È²Î²Ü ²ä²ÐàìàôÂÚ²Ü Üä²êîÜºð | C116: x | D116: 0 | F116: 0 | G116: 0 | H116: 0 | I116: 0 | J116: 0
A117: 1161100 | B117: -îÝ³ÛÇÝ ïÝï»ëáõÃÛáõÝÝ»ñÇÝ ¹ñ³Ùáí í×³ñíáÕ ëáóÇ³É³Ï³Ý ³å³ÑáíáõÃÛ³Ý í×³ñÝ»ñ | C117: 471100 | J117: 0
A118: 1161200 | B118: -êáóÇ³É³Ï³Ý ³å³ÑáíáõÃÛ³Ý µÝ»Õ»Ý Ýå³ëïÝ»ñ Í³é³ÛáõÃÛáõÝÝ»ñ Ù³ïáõóáÕÝ»ñÇÝ | C118: 471200 | J118: 0
A119: 1162000 | B119: 6.2 êàòÆ²È²Î²Ü ú¶ÜàôÂÚ²Ü ¸ð²Ø²Î²Ü ²ðî²Ð²ÚîàôÂÚ²Ø´ Üä²êîÜºð (´ÚàôæºÆò) | C119: x | D119: 0 | F119: 0 | G119: 0 | H119: 0 | I119: 0 | J119: 0
A120: 1162100 | B120: -ÐÇí³Ý¹áõÃÛ³Ý ¨ Ñ³ßÙ³Ý¹³ÙáõÃÛ³Ý Ýå³ëïÝ»ñ µÛáõç»Çó | C120: 472100 | J120: 0
A121: 1162200 | B121: -Ø³ÛñáõÃÛ³Ý Ýå³ëïÝ»ñ µÛáõç»Çó | C121: 472200 | J121: 0
A122: 1162300 | B122: -ºñ»Ë³Ý»ñÇ Ï³Ù ÁÝï³Ý»Ï³Ý Ýå³ëïÝ»ñ µÛáõç»Çó | C122: 472300 | J122: 0
A123: 1162400 | B123: -¶áñÍ³½ñÏáõÃÛ³Ý Ýå³ëïÝ»ñ µÛáõç»Çó | C123: 472400 | J123: 0
A124: 1162500 | B124: -Î»Ýë³Ãáß³ÏÇ ³ÝóÝ»Éáõ Ñ»ï Ï³åí³Í ¨ ï³ñÇù³ÛÇÝ Ýå³ëïÝ»ñ µÛáõç»Çó | C124: 472500 | J124: 0
A125: 1162600 | B125: -ÐáõÕ³ñÏ³íáñáõÃÛ³Ý Ýå³ëïÝ»ñ µÛáõç»Çó | C125: 472600 | J125: 0
A126: 1162700 | B126: -ÎñÃ³Ï³Ý, Ùß³ÏáõÃ³ÛÇÝ ¨ ëåáñï³ÛÇÝ Ýå³ëïÝ»ñ µÛáõç»Çó | C126: 472700 | J126: 0
A127: 1162800 | B127: -´Ý³Ï³ñ³Ý³ÛÇÝ Ýå³ëïÝ»ñ µÛáõç»Çó | C127: 472800 | J127: 0
A128: 1162900 | B128: -²ÛÉ Ýå³ëïÝ»ñ µÛáõç»Çó | C128: 472900 | J128: 0
A129: 1163000 | B129: 6.3 ÎºÜê²ÂàÞ²ÎÜºð | C129: x | D129: 0 | F129: 0 | G129: 0 | H129: 0 | I129: 0 | J129: 0
A130: 1163100 | B130: -Ï»Ýë³Ãáß³ÏÝ»ñ | C130: 474100 | J130: 0
A131: 1170000 | B131: 7. ²ÚÈ Ì²Êêºð | C131: x | D131: =D135 -> 2500 | E131: =E138 -> 0 | F131: =F135 -> 2500 | G131: =G135 -> 1000 | H131: =H135 -> 2000 | I131: =I135 -> 2500 | J131: =J135 -> 2500
A132: 1171000 | B132: 7.1 ÜìÆð²îìàôÂÚàôÜÜºð àâ-Î²è²ì²ðâ²Î²Ü (Ð²ê²ð²Î²Î²Ü) Î²¼Ø²ÎºðäàôÂÚàôÜÜºðÆÜ | C132: x | D132: 0 | F132: 0 | G132: 0 | H132: 0 | I132: 0 | J132: 0
A133: 1171100 | B133: -îÝ³ÛÇÝ ïÝï»ëáõÃÛáõÝÝ»ñÇÝ Í³é³ÛáõÃÛáõÝÝ»ñ Ù³ïáõóáÕ` ß³ÑáõÛÃ ãÑ»ï³åÝ¹áÕ Ï³½Ù³Ï»ñåáõÃÛáõÝÝ»ñÇÝ ÝíÇñ³ïíáõÃÛáõÝÝ»ñ | C133: 481100 | J133: 0
A134: 1171200 | B134: -ÜíÇñ³ïíáõÃÛáõÝÝ»ñ ³ÛÉ ß³ÑáõÛÃ ãÑ»ï³åÝ¹áÕ Ï³½Ù³Ï»ñåáõÃÛáõÝÝ»ñÇÝ | C134: 481900 | J134: 0
A135: 1172000 | B135: 7.2 Ð²ðÎºð, ä²ðî²¸Æð ìÖ²ðÜºð ºì îàôÚÄºð, àðàÜø Î²è²ì²ðØ²Ü î²ð´ºð Ø²Î²ð¸²ÎÜºðÆ ÎàÔØÆò ÎÆð²èìàôØ ºÜ ØÆØÚ²Üò ÜÎ²îØ²Ø´ | C135: x | D135: =D137+D138 -> 2500 | F135: =F137+F138 -> 2500 | G135: =G137+G138 -> 1000 | H135: =H137+H138 -> 2000 | I135: =I137+I138 -> 2500 | J135: =F135 -> 2500
A136: 1172100 | B136: -²ßË³ï³í³ñÓÇ ýáÝ¹ | C136: 482100 | J136: 0
A137: 1172200 | B137: -²ÛÉ Ñ³ñÏ»ñ | C137: 482200 | D137: 0 | E137: 0 | F137: 0 | G137: 0 | H137: 0 | I137: 0 | J137: =F137 -> 0
A138: 1172300 | B138: -ä³ñï³¹Çñ í×³ñÝ»ñ | C138: 482300 | D138: 2500 | E138: 0 | F138: =D138+E138 -> 2500 | G138: 1000 | H138: 2000 | I138: 2500 | J138: =F138 -> 2500
A139: 1172400 | B139: -ä»ï³Ï³Ý Ñ³ïí³ÍÇ ï³ñµ»ñ Ù³Ï³ñ¹³ÏÝ»ñÇ ÏáÕÙÇó ÙÇÙÛ³Ýó ÝÏ³ïÙ³Ùµ ÏÇñ³éíáÕ ïáõÛÅ»ñ | C139: 482400 | J139: 0
A140: 1173000 | B140: 7.3 ¸²î²ð²ÜÜºðÆ ÎàÔØÆò ÜÞ²Ü²Îì²Ì îàôÚÄºð ºì îàô¶²ÜøÜºð | C140: x | D140: 0 | F140: 0 | G140: 0 | H140: 0 | I140: 0 | J140: 0
A141: 1173100 | B141: -¸³ï³ñ³ÝÝ»ñÇ ÏáÕÙÇó Ýß³Ý³Ïí³Í ïáõÛÅ»ñ ¨ ïáõ·³ÝùÝ»ñ | C141: 483100 | J141: 0
A142: 1174000 | B142: 7.4 ´Ü²Î²Ü ²ÔºîÜºðÆò Î²Ø ²ÚÈ ´Ü²Î²Ü ä²îÖ²èÜºðàì ²è²æ²ò²Ì ìÜ²êÜºðÆ Î²Ø ìÜ²êì²ÌøÜºðÆ ìºð²Î²Ü¶ÜàôØ | C142: x | D142: 0 | F142: 0 | G142: 0 | H142: 0 | I142: 0 | J142: 0
A143: 1174100 | B143: -´Ý³Ï³Ý ³Õ»ïÝ»ñÇó ³é³ç³ó³Í íÝ³ëí³ÍùÝ»ñÇ Ï³Ù íÝ³ëÝ»ñÇ í»ñ³Ï³Ý·ÝáõÙ | C143: 484100 | J143: 0
A144: 1174200 | B144: -²ÛÉ µÝ³Ï³Ý å³ï×³éÝ»ñáí ëï³ó³Í íÝ³ëí³ÍùÝ»ñÇ í»ñ³Ï³Ý·ÝáõÙ | C144: 484200 | J144: 0
A145: 1175000 | B145: 7.5 Î²è²ì²ðØ²Ü Ø²ðØÆÜÜºðÆ ¶àðÌàôÜºàôÂÚ²Ü Ðºîºì²Üøàì ²è²æ²ò²Ì ìÜ²êÜºðÆ Î²Ø ìÜ²êì²ÌøÜºðÆ ìºð²Î²Ü¶ÜàôØ | C145: x | D145: 0 | F145: 0 | G145: 0 | H145: 0 | I145: 0 | J145: 0
A146: 1175100 | B146: -Î³é³í³ñÙ³Ý Ù³ñÙÇÝÝ»ñÇ ·áñÍáõÝ»áõÃÛ³Ý Ñ»ï¨³Ýùáí ³é³ç³ó³Í íÝ³ëí³ÍùÝ»ñÇ Ï³Ù íÝ³ëÝ»ñÇ í»ñ³Ï³Ý·ÝáõÙ | C146: 485100 | J146: 0
A147: 1176000 | B147: 7.6 ²ÚÈ Ì²Êêºð | C147: x | D147: 0 | F147: 0 | G147: 0 | H147: 0 | I147: 0 | J147: 0
A148: 1176100 | B148: -²ÛÉ Í³Ëë»ñ | C148: 486100 | J148: 0
A149: 1177000 | B149: 7.7 ä²Ðàôêî²ÚÆÜ ØÆæàòÜºð | C149: x | D149: 0 | F149: 0 | G149: 0 | H149: 0 | I149: 0 | J149: 0
A150: 1177100 | B150: -ä³Ñáõëï³ÛÇÝ ÙÇçáóÝ»ñ | C150: 489100 | J150: 0
A151: 1200000 | B151: Բ, àâ-üÆÜ²Üê²Î²Ü ²ÎîÆìÜºðÆ ¶Ìàì Ì²Êêºð | C151: x | D151: =D152 -> 4000 | E151: =E162 -> 0 | F151: =D151+E151 -> 4000 | G151: =G152 -> 4000 | H151: =H152 -> 4000 | I151: =I152 -> 4000 | J151: =F152 -> 4000
A152: 1210000 | B152: 1.ÐÆØÜ²Î²Ü ØÆæàòÜºð | C152: x | D152: =SUM(D153:D162) -> 4000 | E152: =E162 -> 0 | F152: =D152+E152 -> 4000 | G152: =SUM(G153:G162) -> 4000 | H152: =SUM(H153:H162) -> 4000 | I152: =SUM(I153:I162) -> 4000 | J152: =F152 -> 4000
A153: 1211000 | B153: -Þ»Ýù»ñÇ ¨ ßÇÝáõÃÛáõÝÝ»ñÇ Ó»éù µ»ñáõÙ | C153: 511100 | F153: =D153+E153 -> 0 | J153: =F153 -> 0
A154: 1212000 | B154: -Þ»Ýù»ñÇ ¨ ßÇÝáõÃÛáõÝÝ»ñÇ Ï³éáõóáõÙ | C154: 511200 | F154: 0 | J154: =F154 -> 0
A155: 1213000 | B155: -Þ»Ýù»ñÇ ¨ ßÇÝáõÃÛáõÝÝ»ñÇ Ï³åÇï³É í»ñ³Ýáñá·áõÙ | C155: 511300 | D155: 0 | F155: 0 | G155: 0 | H155: 0 | I155: 0 | J155: =F155 -> 0
A156: 1214000 | B156: -îñ³Ýëåáñï³ÛÇÝ ë³ñù³íáñáõÙÝ»ñ | C156: 512100 | F156: 0 | J156: 0
A157: 1215000 | B157: -ì³ñã³Ï³Ý ë³ñù³íáñáõÙÝ»ñ | C157: 512200 | D157: 0 | F157: 0 | I157: 0 | J157: =F157 -> 0
A158: 1216000 | B158: -²ÛÉ Ù»ù»Ý³Ý»ñ ¨ ë³ñù³íáñáõÙÝ»ñ | C158: 512900 | F158: 0 | J158: 0
A159: 1217000 | B159: -²×»óíáÕ ³ÏïÇíÝ»ñ | C159: 513100 | F159: 0 | J159: 0
A160: 1218100 | B160: -àã-ÝÛáõÃ³Ï³Ý ÑÇÙÝ³Ï³Ý ÙÇçáóÝ»ñ | C160: 513200 | F160: 0 | J160: 0
A161: 1218200 | B161: -¶»á¹»½Ç³Ï³Ý ù³ñï»½³·ñ³Ï³Ý Í³Ëë»ñ | C161: 513300 | F161: 0 | J161: 0
A162: 1218300 | B162: =-Лист6!L176 -> 0 | C162: 513400 | D162: 4000 | E162: 0 | F162: 4000 | G162: 4000 | H162: 4000 | I162: 4000 | J162: =F162 -> 4000
A163: 1220000 | B163: 2.ä²Þ²ðÜºð | C163: x | D163: 0 | F163: 0 | G163: 0 | H163: 0 | I163: 0 | J163: 0
A164: 1221000 | B164: -è³½Ù³í³ñ³Ï³Ý å³ß³ñÝ»ñ | C164: 521100 | F164: 0 | J164: 0
A165: 1222000 | B165: -ÜÛáõÃ»ñ ¨ å³ñ³·³Ý»ñ | C165: 522100 | F165: 0 | J165: 0
A166: 1223000 | B166: -ì»ñ³í³×³éùÇ Ñ³Ù³ñ Ý³Ë³ï»ëí³Í ³åñ³ÝùÝ»ñ | C166: 523100 | F166: 0 | J166: 0
A167: 1224000 | B167: -êå³éÙ³Ý Ýå³ï³Ïáí å³ÑíáÕ å³ß³ñÝ»ñ | C167: 524100 | F167: 0 | J167: 0
A168: 1230000 | B168: 3.´²ðÒð²ðÄºø ²ÎîÆìÜºð | C168: x | D168: 0 | F168: 0 | G168: 0 | H168: 0 | I168: 0 | J168: 0
A169: 1231000 | B169: -´³ñÓñ³ñÅ»ù ³ÏïÇíÝ»ñ | C169: 531100 | F169: 0 | J169: 0
A170: 1240000 | B170: 4.â²ðî²¸ðì²Ì ԱԿՏԻՎՆԵՐ | C170: x | D170: 0 | F170: 0 | G170: 0 | H170: 0 | I170: 0 | J170: 0
A171: 1241000 | B171: -ÐáÕ | C171: 541100 | F171: 0 | J171: 0
A172: 1242000 | B172: -ÀÝ¹»ñù³ÛÇÝ ³ÏïÇíÝ»ñ | C172: 542100 | F172: 0
A173: 1243000 | B173: -²ÛÉ µÝ³Ï³Ý Í³·áõÙ áõÝ»óáÕ ³ÏïÇíÝ»ñ | C173: 543100 | F173: 0
A174: 1244000 | B174: -àã ÝÛáõÃ³Ï³Ý ã³ñï³¹ñí³Í ³ÏïÇíÝ»ñ | C174: 544100 | F174: 0
A175: 1000000 | B175: ԸՆԴԱՄԵՆԸ ԾԱԽՍԵՐ` | C175: x | D175: =D32+D151 -> 12000 | E175: 0 | F175: 12000 | G175: 6500 | H175: 8500 | I175: 10500 | J175: 12000
A177: §17¦ § դեÏï»Ùµ»ñ ¦ 2020 Ã.
A179: ÐÆØÜ²ðÎÆ ÔºÎ²ì²ðª _______________ Է. Արշակյան _________________
A180: (ëïáñ³·ñáõÃÛáõÝ) (².Ð.².)
A181: Î.î.
A183: üÆÜ²Üê²Î²Ü Ì²è²ÚàôÂÚ²Ü äºîª ________________ Ն.Մուրադյան ___________________
A184: (¶ÈÊ²ìàð Ð²Þì²ä²Ð) (ëïáñ³·ñáõÃÛáõÝ) (².Ð.².)
A202: 5.5 áñ¨¿ ³Ùëí³ Ýáñ Ý³Ë³Ñ³ßíÇª 3-ñ¹ ëÛáõÝ³ÏáõÙ Ý»ñÏ³Û³óíáõÙ »Ý ïíÛ³É µÛáõç»ï³ÛÇÝ ï³ñí³ Ñ³Ù³å³ï³ëË³Ý ³Ùëí³ óáõó³ÝÇßÝ»ñÁ, ÇëÏ 4-Çó 7-ñ¹ ëÛáõÝ³ÏÝ»ñÁ ã»Ý Éñ³óíáõÙ:
A203: ** Ì²ÜàÂ²¶ðàôÂÚàôÜ II. N 1 ûñÇÝ³Ï»ÉÇ Ó¨Ç Ýßí³Í ïáÕÁ ÐÐ å»ï³Ï³Ý Ï³é³í³ñÙ³Ý ¨ ï»Õ³Ï³Ý ÇÝùÝ³Ï³é³í³ñÙ³Ý í»ñ³¹³ë Ù³ñÙÇÝÝ»ñÁ ã»Ý Éñ³óÝáõÙ:
A204: *** Ì²ÜàÂ²¶ðàôÂÚàôÜ III. N 1 ûñÇÝ³Ï»ÉÇ Ó¨Ç Ýßí³Í ïáÕÁ ÐÐ å»ï³Ï³Ý Ï³é³í³ñÙ³Ý ¨ ï»Õ³Ï³Ý ÇÝùÝ³Ï³é³í³ñÙ³Ý Ù³ñÙÇÝÝ»ñÁ Éñ³óÝáõÙ »Ý Çñ»Ýó Ñ³Ù³ñ µÛáõç»ï³ÛÇÝ Í³Ëë»ñÇ ·»ñ³ï»ëã³Ï³Ý ¹³ë³Ï³ñ·Ù³Ùµ ë³ÑÙ³Ý³Í Ïá¹Á:
A205: **** Ì²ÜàÂ²¶ðàôÂÚàôÜ IV. N 1 ûñÇÝ³Ï»ÉÇ Ó¨Ç Ýßí³Í ïáÕÁª ³ÝÏ³Ë Ýñ³ÝÇó, Ã» Ýáñ Ý³Ë³Ñ³ßÇíÁ áñ ¹»åùáõÙ ¿ Ñ³ëï³ïíáõÙ, Éñ³óíáõÙ ¿ N 1 ûñÇÝ³Ï»ÉÇ Ó¨Ç ³ÕÛáõë³ÏÇ §²¦ ëÛáõÝ³ÏáõÙ ³Ùñ³·ñí³Í N 1000000 (§ÀÝ¹³Ù»ÝÁ
A206: Í³Ëë»ñ¦) ïáÕÇ 3-ñ¹ ëÛáõÝ³ÏáõÙ µ»ñí³Í óáõó³ÝÇßÇ ·áõÙ³ñáí (Ãí»ñáí ¨ ï³é»ñáí):
A207: ***** Ì²ÜàÂ²¶ðàôÂÚàôÜ V. N 1 ûñÇÝ³Ï»ÉÇ Ó¨Ç Ýßí³Í ïáÕÁ Éñ³óíáõÙ ¿ Ññ³Ù³Ýáí Ñ³ëï³ïí³Í N 11 Ñ³í»Éí³ÍÇ` §´Ûáõç»ï³ÛÇÝ Í³Ëë»ñÇ ·áñÍ³é³Ï³Ý ¹³ë³Ï³ñ·áõÙ¦, ï³ññ»ñÇÝ Ñ³Ù³å³ï³ëË³Ý` µ³ÅÇÝ (2 ÝÇß), ËáõÙµ(1ÝÇß) ¨ ¹³ë (1ÝÇß):
A208: §__¦ §________________¦ 200_ Ã.
A210: ÐÆØÜ²ðÎÆ ÔºÎ²ì²ðª _______________ _________________
A211: (ëïáñ³·ñáõÃÛáõÝ) (².Ð.².)
A212: Î.î.
A214: üÆÜ²Üê²Î²Ü Ì²è²ÚàôÂÚ²Ü äºîª ________________ ___________________
A215: (¶ÈÊ²ìàð Ð²Þì²ä²Ð) (ëïáñ³·ñáõÃÛáõÝ) (².Ð.².)

Sheet 1.6.1 (hidden)
I1: Ð³í»Éí³Í N 2
H3: úñÇÝ³Ï»ÉÇ Ó¨ N1
G4: h³ëï³ïí»É ¿ ÐÐ ýÇÝ³ÝëÝ»ñÇ ¨ ¿ÏáÝáÙÇÏ³ÛÇ
H5: Ý³Ë³ñ³ñÇ 23 ÑáõÉÇëÇ 2007 Ãí³Ï³ÝÇ
B6: §Ð ² ê î ² î àô Ø ºØª¦ | G6: N 597-Ü Ññ³Ù³Ýáí
A8: Ý³Ë³Ñ³ßÇíÁª 1000,0 մեկ միլիոն դրամ
A9: ( ÁÝ¹³Ù»ÝÁ ·áõÙ³ñÁ Ãí»ñáí ¨ ï³é»ñáí****)
A10: _______________________________________________________________________________________________________________ Ñ³½³ñ ¹ñ³Ù ·áõÙ³ñáí:
A12: __________________________________________________________________________________________ | B12: Է. Արշակյան | H12: Î.î.
A13: (ÐÐ å»ï³Ï³Ý Ï³é³í³ñÙ³Ý Ù³ñÙÝÇ Õ»Ï³í³ñÇ /Ñ³Ù³ÛÝùÇ Õ»Ï³í³ñÇ/ ëïáñ³·ñáõÃÛáõÝÁ ¨ ².Ð.².)
A14: § ¦ դեկտեմբերի 2020թ
B15: Ü²Ê²Ð²ÞÆì*
B16: ´ Ú àô æ º î ² Ú Æ Ü Ð Æ Ø Ü ² ð Î Æ ä ² Ð ä ² Ü Ø ² Ü Ì ² Ê ê º ð Æ
B17: §01¦ §ÐáõÝí³ñÇ ¦ 2021 Ã. -- §30¦ §¹»Ïï»Ùµ»ñÇ ¦ 2021 Ã.
A19: 1. ÐÇÙÝ³ñÏÇ ³Ýí³ÝáõÙÁ Քաղաքապետարան | G19: 8. * ´Ûáõç»ï³ÛÇÝ Í³Ëë»ñÇ ·áñÍ³é³Ï³Ý ¹³ë³Ï³ñ·.
G20: Í³ÍÏ³·Çñ | H20: 1 | I20: 6 | J20: 1
A21: 3. ÐÇÙÝ³ñÏÇ ï»Õ³µ³ßËÙ³Ý Ù³ñ½Ç ¨ Ñ³Ù³ÛÝùÇ Ïá¹Ý Áëï | G21: 9. Ìñ³·ñÇ ³Ýí³ÝáõÙÁ_ընդհանուր բնույթի հանր .ծառ.
A22: µÛáõç»ï³ÛÇÝ Í³Ëë»ñÇ ï³ñ³Íù³ÛÇÝ ¹³ë³Ï³ñ·Ù³Ý | G22: ________________________________
A23: 4. ** ÐÐ å»ï³Ï³Ý Ï³é³í³ñÙ³Ý (ï»Õ³Ï³Ý ÇÝùÝ³Ï³é³í³ñÙ³Ý) Ù³ñÙÝÇ | G23: 10. Ìñ³·ñÇ Ïá¹Á
A24: ³Ýí³ÝáõÙÁ Լոռու մարզպետարան | G24: 11.*** ÐÐ å»ï³Ï³Ý Ï³é³í³ñÙ³Ý (îÆ)
A25: 5. ÐÇÙÝ³ñÏÁ ëå³ë³ñÏáÕ ï»Õ³Ï³Ý ·³ÝÓ³å»ï³Ï³Ý µ³ÅÝÇ (î¶´) ³Ýí³ÝáõÙÁ Տաշիրի | G25: Ù³ñÙÝÇ Ïá¹Ý Áëï µÛáõç»ï³ÛÇÝ Í³Ëë»ñÇ ·»ñ³ï»ëã³Ï.
A26: 6. ÐÇÙÝ³ñÏÇª ï»Õ³Ï³Ý ·³ÝÓ³å»ï³Ï³Ý µ³ÅÝáõÙ (î¶´) Ñ³ßí³éÙ³Ý Ñ³Ù³ñÁ | G26: ¹³ë³Ï³ñ·Ù³Ý
A27: 7. üÇÝ³Ýë³íáñÙ³Ý ³ÕµÛáõñÇ Ïá¹Á (ÐÐ å»ï³Ï³Ý µÛáõç»ª 1, Ñ³Ù³ÛÝùÇ µÛáõç»ª 2) | E27: 2 | G27: 12. â³÷Ç ÙÇ³íáñÁª Ñ³½³ñ ¹ñ³Ù
A29: îáÕÇ NN | B29: ´Ûáõç»ï³ÛÇÝ Í³Ëë»ñÇ ïÝï»ë³·Çï³Ï³Ý ¹³ë³Ï³ñ·Ù³Ý ï³ññ»ñ | D29: ÜáõÛÝ Å³Ù³Ý³Ï³Ñ³ïí³ÍÇ Ñ³Ù³ñ Ý³ËÏÇÝáõÙ Ñ³ëï³ïí³Íª ·áñÍáÕ | F29: êáõÛÝ Ý³Ë³Ñ³ßíáí Ñ³ëï³ïíáÕ óáõó³ÝÇßÝ»ñÁ | G29: ³Û¹ ÃíáõÙª Áëï »é³ÙëÛ³ÏÝ»ñÇ (»é³ÙëÛ³ÏÇ ³ÙÇëÝ»ñÇ)³×áÕ³Ï³Ý
B30: ³Ýí³ÝáõÙÝ»ñÁ | C30: NN | D30: Ý³Ë³Ñ³ßíÇ óáõó³ÝÇßÝ»ñÁ | E30: Ý³Ë³Ñ³ßíáõÙ Ï³ï³ñí³Í ÷á÷áËáõÃÛáõÝ-Ý»ñÁ (³í»É³óáõÙÁª /+/, å³Ï³ë»óáõÙÁª/-/ | G30: I | H30: II | I30: III | J30: IV
A31: ² | B31: ´ | C31: ¶ | D31: 1 | E31: 2 | F31: 3 | G31: 4 | H31: 5 | I31: 6 | J31: 7
A32: 1100000 | B32: ². ÀÜÂ²òÆÎ Ì²Êêºðª ÀÜ¸²ØºÜÀ, | C32: x | D32: =D107+D131+D98 -> 1000 | E32: =E98 -> 0 | F32: =F99+F131+F42+F98+F114 -> 1000 | G32: =G99+G131 -> 200 | H32: =H99+H131+H42+H114 -> 300 | I32: =I99+I131+I42+I98+I114 -> 400 | J32: =F32 -> 1000
A33: 1110000 | B33: 1.äºî²Î²Ü, îºÔ²Î²Ü ÆÜøÜ²Î²è²ì²ðØ²Ü Ø²ðØÆÜÜºðÆ, ¸ð²Üò ºÜÂ²Î² ´Úàôæºî²ÚÆÜ ÐÆØÜ²ðÎÜºðÆ ²ÞÊ²îàÔÜºðÆ ²ÞÊ²î²ì²ðÒÀª ÀÜ¸²ØºÜÀ, ³Û¹ ÃíáõÙª | C33: x | D33: =D34 -> 0 | F33: =F34 -> 0 | G33: =G34 -> 0 | H33: =H34 -> 0 | I33: =I34 -> 0 | J33: =J34 -> 0
A34: 1110000 | B34: 1,1 ²ßË³ï³ÝùÇ í³ñÓ³ïñáõÃÛáõÝ | C34: x | D34: =SUM(D35:D41) -> 0 | F34: =SUM(F35:F41) -> 0 | G34: =SUM(G35:G41) -> 0 | H34: =SUM(H35:H41) -> 0 | I34: =SUM(I35:I41) -> 0 | J34: =SUM(J35:J41) -> 0
A35: 1111000 | B35: -²ßË³ïáÕÝ»ñÇ ³ßË³ï³í³ñÓ»ñ ¨ Ñ³í»É³í×³ñÝ»ñ | C35: 411100 | D35: 0 | F35: 0 | G35: 0 | H35: 0 | I35: 0 | J35: =F35 -> 0
A36: 1112000 | B36: - ä³ñ·¨³ïñáõÙÝ»ñ, ¹ñ³Ù³Ï³Ý Ëñ³ËáõëáõÙÝ»ñ ¨ Ñ³ïáõÏ í×³ñÝ»ñ | C36: 411200 | D36: 0 | F36: 0 | G36: 0 | H36: 0 | I36: 0 | J36: =F36 -> 0
A37: 1113000 | B37: -ø³Õ³ù³óÇ³Ï³Ý, ¹³ï³Ï³Ý ¨ å»ï³Ï³Ý Í³é³ÛáÕÝ»ñÇ å³ñ·¨³ïñáõÙ | C37: 411300 | J37: 0
A38: 1114000 | B38: -ÐÐ ýÇÝ³ÝëÝ»ñÇ ¨ ¿ÏáÝáÙÇÏ³ÛÇ Ý³Ë³ñ³ñáõÃÛ³Ý, Ñ³ñÏ³ÛÇÝ ¨ Ù³ùë³ÛÇÝ Ù³ñÙÇÝÝ»ñÇ ³ßË³ïáÕÝ»ñÇ å³ñ·¨³ïñáõÙ | C38: 411400 | J38: 0
A39: 1115000 | B39: -²ÛÉ í³ñÓ³ïñáõÃÛáõÝÝ»ñ | C39: 411500 | J39: 0
A40: 1116000 | B40: -´Ý»Õ»Ý ³ßË³ï³í³ñÓ»ñ ¨ Ñ³í»É³í×³ñÝ»ñ | C40: 412100 | J40: 0
A41: 1117000 | B41: - êáóÇ³É³Ï³Ý ³å³ÑáíáõÃÛ³Ý í×³ñÝ»ñ | C41: 413100 | D41: 0 | F41: 0 | G41: 0 | H41: 0 | I41: 0 | J41: =F41 -> 0
A42: 1120000 | B42: 2 Ì³é³ÛáõÃÛáõÝÝ»ñÇ ¨ ³åñ³ÝùÝ»ñÇ Ó»éù µ»ñáõÙ | C42: x | D42: =D43+D55+D66+D69+D51+D64 -> 0 | F42: =F43+F55+F66+F69+F51+F64 -> 0 | G42: =G43+G51+G55+G64+G66+G69 -> 0 | H42: =H43+H51+H55+H64+H66+H69 -> 0 | I42: =I43+I51+I55+I64+I66+I69 -> 0 | J42: =F42 -> 0
A43: 1121000 | B43: 2.1 Þ³ñáõÝ³Ï³Ï³Ý Í³Ëë»ñ | D43: =SUM(D44:D49) -> 0 | F43: =SUM(F44:F49) -> 0 | G43: =SUM(G44:G49) -> 0 | H43: =SUM(H44:H49) -> 0 | I43: =SUM(I44:I49) -> 0 | J43: =SUM(J44:J49) -> 0
A44: 1121100 | B44: -·áñÍ³éÝ³Ï³Ý ¨ µ³ÝÏ³ÛÇÝ Í³é³ÛáõÃÛáõÝÝ»ñÇ Í³Ëë»ñ | C44: 421100 | J44: 0
A45: 1121200 | B45: -¿Ý»ñ·»ïÇÏ Í³é³ÛáõÃÛáõÝÝ»ñ | C45: 421200 | D45: 0 | F45: 0 | G45: 0 | H45: 0 | I45: 0 | J45: =F45 -> 0
A46: 1121300 | B46: -ÎáÙáõÝ³É Í³é³ÛáõÃÛáõÝÝ»ñ | C46: 421300 | D46: 0 | F46: 0 | G46: 0 | H46: 0 | I46: 0 | J46: =F46 -> 0
A47: 1121400 | B47: -Î³åÇ Í³é³ÛáõÃÛáõÝÝ»ñ | C47: 421400 | D47: 0 | F47: 0 | G47: 0 | H47: 0 | I47: 0 | J47: =F47 -> 0
A48: 1121500 | B48: -²å³Ñáí³·ñ³Ï³Ý Í³Ëë»ñ | C48: 421500 | J48: 0
A49: 1121600 | B49: -¶áõÛùÇ ¨ ë³ñù³íáñáõÙÝ»ñÇ í³ñÓ³Ï³ÉáõÃÛáõÝ | C49: 421600 | J49: 0
A50: 1121700 | B50: -²ñï³·»ñ³ï»ëã³Ï³Ý Í³Ëë»ñ | C50: 421700 | J50: 0
A51: 1122000 | B51: 2.2 ¶áñÍáõÕáõÙÝ»ñÇ ¨ ßñç³·³ÛáõÃÛ³Ý Í³Ëë»ñ | C51: x | D51: =D52 -> 0 | F51: =F52 -> 0 | G51: =G52 -> 0 | H51: =H52 -> 0 | I51: =I52 -> 0 | J51: =J52 -> 0
A52: 1122100 | B52: -Ü»ñùÇÝ ·áñÍáõÕáõÙÝ»ñ | C52: 422100 | D52: 0 | F52: 0 | G52: 0 | H52: 0 | I52: 0 | J52: =F52 -> 0
A53: 1122200 | B53: -²ñï³ë³ÑÙ³ÝÛ³Ý ·áñÍáõÕáõÙÝ»ñÇ ·Íáí Í³Ëë»ñ | C53: 422200 | J53: 0
A54: 1122300 | B54: -²ÛÉ ïñ³Ýëåáñï³ÛÇÝ Í³Ëë»ñ | C54: 422900 | J54: 0
A55: 1123000 | B55: 2.3 ä³ÛÙ³Ý³·ñ³ÛÇÝ ³ÛÉ Í³é³ÛáõÃÛáõÝÝ»ñÇ Ó»éù µ»ñáõÙ | C55: x | D55: =SUM(D56:D63) -> 0 | F55: =SUM(F56:F63) -> 0 | G55: =SUM(G56:G63) -> 0 | H55: =SUM(H56:H63) -> 0 | I55: =SUM(I56:I63) -> 0 | J55: =F55 -> 0
A56: 1123100 | B56: -ì³ñã³Ï³Ý Í³é³ÛáõÃÛáõÝÝ»ñ | C56: 423100 | J56: =F56 -> 0
A57: 1123200 | B57: -Ð³Ù³Ï³ñ·ã³ÛÇÝ Í³é³ÛáõÃÛáõÝÝ»ñ | C57: 423200 | D57: 0 | F57: 0 | G57: 0 | H57: 0 | I57: 0 | J57: =F57 -> 0
A58: 1123300 | B58: -²ßË³ï³Ï³½ÙÇ Ù³ëÝ³·Çï³Ï³Ý ½³ñ·³óÙ³Ý Í³é³ÛáõÃÛáõÝÝ»ñ | C58: 423300
A59: 1123400 | B59: -î»Õ³Ï³ïí³Ï³Ý Í³é³ÛáõÃÛáõÝÝ»ñ | C59: 423400 | D59: 0 | F59: 0 | G59: 0 | H59: 0 | I59: 0 | J59: =F59 -> 0
A60: 1123500 | B60: -Î³é³í³ñã³Ï³Ý Í³é³ÛáõÃÛáõÝÝ»ñ | C60: 423500 | E60: 0 | F60: =D60+E60 -> 0 | I60: 0 | J60: 0
A61: 1123600 | B61: - Î»Ýó³Õ³ÛÇÝ ¨ Ñ³Ýñ³ÛÇÝ ëÝÝ¹Ç Í³é³ÛáõÃÛáõÝÝ»ñ | C61: 423600 | J61: 0
A62: 1123700 | B62: -Ü»ñÏ³Û³óáõóã³Ï³Ý Í³Ëë»ñ | C62: 423700 | D62: 0 | F62: 0 | G62: 0 | H62: 0 | I62: 0 | J62: 0
A63: 1123800 | B63: -ÀÝ¹Ñ³Ýáõñ µÝáõÛÃÇ ³ÛÉ Í³é³ÛáõÃÛáõÝÝ»ñ | C63: 423900 | D63: 0 | F63: =D63 -> 0 | G63: 0 | H63: 0 | I63: 0 | J63: 0
A64: 1124000 | B64: 2.4 ²ÛÉ Ù³ëÝ³·Çï³Ï³Ý Í³é³ÛáõÃÛáõÝÝ»ñÇ Ó»éù µ»ñáõÙ | C64: x | D64: =D65 -> 0 | F64: =F65 -> 0 | G64: =G65 -> 0 | H64: =H65 -> 0 | I64: =I65 -> 0 | J64: 0
A65: 1124100 | B65: -Ø³ëÝ³·Çï³Ï³Ý Í³é³ÛáõÃÛáõÝÝ»ñ | C65: 424100 | F65: 0 | G65: 0 | H65: 0 | I65: 0 | J65: 0
A66: 1125000 | B66: 2.5 ÀÝÃ³óÇÏ Ýáñá·áõÙ ¨ å³Ñå³ÝáõÙ (Í³é³ÛáõÃÛáõÝÝ»ñ ¨ ÝÛáõÃ»ñ) | C66: x | D66: =D67+D68 -> 0 | F66: =F67+F68 -> 0 | G66: =G67+G68 -> 0 | H66: =H67+H68 -> 0 | I66: =I67+I68 -> 0 | J66: =J67+J68 -> 0
A67: 1125100 | B67: -Þ»Ýù»ñÇ ¨ Ï³éáõÛóÝ»ñÇ ÁÝÃ³óÇÏ Ýáñá·áõÙ ¨ å³Ñå³ÝáõÙ | C67: 425100 | J67: =F67 -> 0
A68: 1125200 | B68: -Ø»ù»Ý³Ý»ñÇ ¨ ë³ñù³íáñáõÙÝ»ñÇ ÁÝÃ³óÇÏ Ýáñá·áõÙ ¨ å³Ñå³ÝáõÙ | C68: 425200 | D68: 0 | F68: 0 | G68: 0 | H68: 0 | I68: 0 | J68: 0
A69: 1126000 | B69: 2.6 ÜÛáõÃ»ñ | C69: x | D69: =SUM(D70:D77) -> 0 | F69: =SUM(F70:F77) -> 0 | G69: =SUM(G70:G77) -> 0 | H69: =SUM(H70:H77) -> 0 | I69: =SUM(I70:I77) -> 0 | J69: 0
A70: 1126100 | B70: -¶ñ³ë»ÝÛ³Ï³ÛÇÝ ÝÛáõÃ»ñ ¨ Ñ³·áõëï | C70: 426100 | D70: 0 | F70: 0 | G70: 0 | H70: 0 | I70: 0 | J70: 0
A71: 1126200 | B71: -¶ÛáõÕ³ïÝï»ë³Ï³Ý ³åñ³ÝùÝ»ñ | C71: 426200 | J71: 0
A72: 1126300 | B72: -ì»ñ³å³ïñ³ëïÙ³Ý ¨ áõëáõóÙ³Ý ÝÛáõÃ»ñ | C72: 426300 | J72: 0
A73: 1126400 | B73: -îñ³Ýëåáñï³ÛÇÝ ÝÛáõÃ»ñ | C73: 426400 | D73: 0 | F73: 0 | G73: 0 | H73: 0 | I73: 0 | J73: 0
A74: 1126500 | B74: -Þñç³Ï³ ÙÇç³í³ÛñÇ å³ßïå³ÝáõÃÛ³Ý ¨ ·Çï³Ï³Ý ÝÛáõÃ»ñ | C74: 426500 | J74: 0
A75: 1126600 | B75: -²éáÕç³å³Ñ³Ï³Ý ¨ É³µáñ³ïáñ ÝÛáõÃ»ñ | C75: 426600 | J75: =F75 -> 0
A76: 1126700 | B76: -Î»Ýó³Õ³ÛÇÝ ¨ Ñ³Ýñ³ÛÇÝ ëÝÝ¹Ç ÝÛáõÃ»ñ | C76: 426700 | D76: 0 | E76: 0 | F76: =E76+D76 -> 0 | G76: 0 | H76: 0 | I76: 0 | J76: =F76 -> 0
A77: 1126800 | B77: -Ð³ïáõÏ Ýå³ï³Ï³ÛÇÝ ³ÛÉ ÝÛáõÃ»ñ | C77: 426900 | D77: 0 | F77: 0 | G77: 0 | H77: 0 | I77: 0 | J77: =F77 -> 0
A78: 1130000 | B78: 3 îáÏáë³í×³ñÝ»ñ | C78: x | D78: 0 | F78: 0 | G78: 0 | H78: 0 | I78: 0 | J78: 0
A79: 1130100 | B79: -Ü»ñùÇÝ ³ñÅ»ÃÕÃ»ñÇ ïáÏáë³í×³ñÝ»ñ | C79: 441100 | J79: 0
A80: 1130200 | B80: -Ü»ñùÇÝ í³ñÏ»ñÇ ïáÏáë³í×³ñÝ»ñ | C80: 441200 | J80: 0
A81: 1130300 | B81: -²ñï³ùÇÝ ³ñÅ»ÃÕÃ»ñÇ ·Íáí ïáÏáë³í×³ñÝ»ñ | C81: 442100 | J81: 0
A82: 1130400 | B82: -²ñï³ùÇÝ í³ñÏ»ñÇ ·Íáí ïáÏáë³í×³ñÝ»ñ | C82: 442200 | J82: 0
A83: 1131000 | B83: öáË³éáõÃÛáõÝÝ»ñÇ Ñ»ï Ï³åí³Í í×³ñÝ»ñ | C83: x | J83: 0
A84: 1131100 | B84: -öáË³Ý³ÏÙ³Ý Ïáõñë»ñÇ µ³ó³ë³Ï³Ý ï³ñµ»ñáõÃÛáõÝ | C84: 443100 | J84: 0
A85: 1131200 | B85: -îáõÛÅ»ñ | C85: 443200 | J85: 0
A86: 1131300 | B86: -öáË³éáõÃÛáõÝÝ»ñÇ ·Íáí ïáõñù»ñ | C86: 443300 | J86: 0
A87: 1140000 | B87: 4. êáõµëÇ¹Ç³Ý»ñ | C87: x | D87: 0 | F87: 0 | G87: 0 | H87: 0 | I87: 0 | J87: 0
A88: 1141000 | B88: -êáõµëÇ¹Ç³Ý»ñ áã-ýÇÝ³Ýë³Ï³Ý å»ï³Ï³Ý Ï³½Ù³Ï»ñåáõÃÛáõÝÝ»ñÇÝ | C88: 451100 | J88: 0
A89: 1142000 | B89: -êáõµëÇ¹Ç³Ý»ñ ýÇÝ³Ýë³Ï³Ý å»ï³Ï³Ý Ï³½Ù³Ï»ñåáõÃÛáõÝÝ»ñÇÝ | C89: 451200 | J89: 0
A90: 1143000 | B90: -êáõµëÇ¹Ç³Ý»ñ áã å»ï³Ï³Ý áã ýÇÝ³Ýë³Ï³Ý Ï³½Ù³Ï»ñåáõÃÛáõÝÝ»ñÇÝ | C90: 452100 | J90: 0
A91: 1144000 | B91: -êáõµëÇ¹Ç³Ý»ñ áã å»ï³Ï³Ý ýÇÝ³Ýë³Ï³Ý Ï³½Ù³Ï»ñåáõÃÛáõÝÝ»ñÇÝ | C91: 452200 | J91: 0
A92: 1150000 | B92: 5.¸ñ³Ù³ßÝáñÑÝ»ñ | C92: x | D92: 0 | F92: 0 | G92: 0 | H92: 0 | I92: 0 | J92: 0
A93: 1151000 | B93: ¸ñ³Ù³ßÝáñÑÝ»ñ ûï³ñ»ñÏñÛ³ Ï³é³í³ñáõÃÛáõÝÝ»ñÇÝ | C93: x | D93: 0 | F93: 0 | G93: 0 | H93: 0 | I93: 0 | J93: 0
A94: 1151100 | B94: ÀÝÃ³óÇÏ ¹ñ³Ù³ßÝáñÑÝ»ñ ûï³ñ»ñÏñÛ³ Ï³é³í³ñáõÃÛáõÝÝ»ñÇÝ | C94: 461100 | J94: 0
A95: 1151200 | B95: Î³åÇï³É ¹ñ³Ù³ßÝáñÑÝ»ñ ûï³ñ»ñÏñÛ³ Ï³é³í³ñáõÃÛáõÝÝ»ñÇÝ | C95: 461200 | J95: 0
A96: 1152000 | B96: ¸ñ³Ù³ßÝáñÑÝ»ñ ÙÇç³½·³ÛÇÝ Ï³½Ù³Ï»ñåáõÃÛáõÝÝ»ñÇÝ | C96: x | D96: 0 | F96: 0 | G96: 0 | H96: 0 | I96: 0 | J96: 0
A97: 1152100 | B97: ÀÝÃ³óÇÏ ¹ñ³Ù³ßÝáñÑÝ»ñ ÙÇç³½·³ÛÇÝ Ï³½Ù³Ï»ñåáõÃÛáõÝÝ»ñÇÝ | C97: 462100 | J97: 0
A98: 1152200 | B98: Î³åÇï³É ¹ñ³Ù³ßÝáñÑ»ñ ÙÇç³½·³ÛÇÝ Ï³½Ù³Ï»ñåáõÃÛáõÝÝ»ñÇÝ | C98: 462200 | D98: 0 | E98: 0 | F98: =D98+E98 -> 0 | I98: 0 | J98: =F98 -> 0
A99: 1153000 | B99: ÀÝÃ³óÇÏ ¹ñ³Ù³ßÝáñÑÝ»ñ å»ï³Ï³Ý Ñ³ïí³ÍÇ ³ÛÉ Ù³Ï³ñ¹³ÏÝ»ñÇÝ | C99: x | D99: 0 | F99: =F107 -> 500 | G99: =G107 -> 100 | H99: =H107 -> 100 | I99: =I107 -> 100 | J99: =J107 -> 500
A100: 1153100 | B100: ÀÝÃ³óÇÏ ¹ñ³Ù³ßÝáñÑÝ»ñ å»ï³Ï³Ý Ï³é³í³ñÙ³Ý Ñ³ïí³ÍÇÝ | C100: 463100 | J100: 0
A101: 1153200 | B101: ÀÝÃ³óÇÏ ëáõµí»ÝóÇ³Ý»ñ Ñ³Ù³ÛÝùÝ»ñÇÝ | C101: 463200 | J101: 0
A102: 1153300 | B102: ä»ï³Ï³Ý µÛáõç»Çó Ñ³Ù³ÛÝùÝ»ñÇ µÛáõç»Ý»ñÇÝ ýÇÝ³Ýë³Ï³Ý Ñ³Ù³Ñ³ñÃ»óÙ³Ý ëÏ½µáõÝùáí ïñíáÕ ¹áï³óÇ³Ý»ñ | C102: 463300 | J102: 0
A103: 1153400 | B103: úñ»ÝùÝ»ñÇ ÏÇñ³ñÏÙ³Ý ³ñ¹ÛáõÝùáõÙ Ñ³Ù³ÛÝùÝ»ñÇ µÛáõç»Ý»ñÇ ÏáñáõëïÝ»ñÇ ÷áËÑ³ïáõóáõÙ | C103: 463400 | J103: 0
A104: 1153500 | B104: ²ÛÉ ÁÝÃ³óÇÏ ¹ñ³Ù³ßÝáñÑÝ»ñ Ñ³Ù³ÛÝùÝ»ñÇÝ | C104: 463500 | J104: 0
A105: 1153700 | B105: ÀÝÃ³óÇÏ ¹ñ³Ù³ßÝáñÑÝ»ñ å»ï³Ï³Ý ¨ Ñ³Ù³ÛÝùÝ»ñÇ áã ³é¨ïñ³ÛÇÝ Ï³½Ù³Ï»ñåáõÃÛáõÝÝ»ñÇÝ | C105: 463700 | J105: 0
A106: 1153800 | B106: ÀÝÃ³óÇÏ ¹ñ³Ù³ßÝáñÑÝ»ñ å»ï³Ï³Ý ¨ Ñ³Ù³ÛÝùÝ»ñÇ ³é¨ïñ³ÛÇÝ Ï³½Ù³Ï»ñåáõÃÛáõÝÝ»ñÇÝ | C106: 463800 | J106: 0
A107: 1153900 | B107: ²ÛÉ ÁÝÃ³óÇÏ ¹ñ³Ù³ßÝáñÑÝ»ñ | C107: 463900 | D107: 500 | E107: 0 | F107: =D107+E107 -> 500 | G107: 100 | H107: 100 | I107: 100 | J107: =F107 -> 500
A108: 1154000 | B108: Î³åÇï³É ¹ñ³Ù³ßÝáñÑÝ»ñ å»ï³Ï³Ý Ñ³ïí³ÍÇ ³ÛÉ Ù³Ï³ñ¹³ÏÝ»ñÇÝ | C108: x | D108: 0 | F108: 0 | G108: 0 | H108: 0 | I108: 0 | J108: 0
A109: 1154100 | B109: Î³åÇï³É ¹ñ³Ù³ßÝáñÑÝ»ñ å»ï³Ï³Ý Ï³é³í³ñÙ³Ý Ñ³ïí³ÍÇÝ | C109: 465100 | J109: 0
A110: 1154200 | B110: Î³åÇï³É ëáõµí»ÝóÇ³Ý»ñ Ñ³Ù³ÛÝùÝ»ñÇÝ | C110: 465200 | J110: 0
A111: 1154300 | B111: ²ÛÉ Ï³åÇï³É ¹ñ³Ù³ßÝáñÑÝ»ñ Ñ³Ù³ÛÝùÝ»ñÇÝ | C111: 465300 | J111: 0
A112: 1154500 | B112: Î³åÇï³É ¹ñ³Ù³ßÝáñÑÝ»ñ å»ï³Ï³Ý ¨ Ñ³Ù³ÛÝùÝ»ñÇ áã ³é¨ïñ³ÛÇÝ Ï³½Ù³Ï»ñåáõÃÛáõÝÝ»ñÇÝ | C112: 465500 | J112: 0
A113: 1154600 | B113: Î³åÇï³É ¹ñ³Ù³ßÝáñÑÝ»ñ å»ï³Ï³Ý ¨ Ñ³Ù³ÛÝù³ÛÇÝ ³é¨ïñ³ÛÇÝ Ï³½Ù³Ï»ñåáõÃÛáõÝÝ»ñÇÝ | C113: 465600 | J113: 0
A114: 1154700 | B114: ²ÛÉ Ï³åÇï³É ¹ñ³Ù³ßÝáñÑÝ»ñ | C114: 465700 | D114: 0 | E114: 0 | F114: =D114+E114 -> 0 | G114: 0 | H114: 0 | I114: 0 | J114: =F114 -> 0
A115: 1160000 | B115: 6. êàòÆ²È²Î²Ü Üä²êîÜºð ºì ÎºÜê²ÂàÞ²ÎÜºð | C115: x | D115: 0 | F115: 0 | G115: 0 | H115: 0 | I115: 0 | J115: 0
A116: 1161000 | B116: 6.1 êàòÆ²È²Î²Ü ²ä²ÐàìàôÂÚ²Ü Üä²êîÜºð | C116: x | D116: 0 | F116: 0 | G116: 0 | H116: 0 | I116: 0 | J116: 0
A117: 1161100 | B117: -îÝ³ÛÇÝ ïÝï»ëáõÃÛáõÝÝ»ñÇÝ ¹ñ³Ùáí í×³ñíáÕ ëáóÇ³É³Ï³Ý ³å³ÑáíáõÃÛ³Ý í×³ñÝ»ñ | C117: 471100 | J117: 0
A118: 1161200 | B118: -êáóÇ³É³Ï³Ý ³å³ÑáíáõÃÛ³Ý µÝ»Õ»Ý Ýå³ëïÝ»ñ Í³é³ÛáõÃÛáõÝÝ»ñ Ù³ïáõóáÕÝ»ñÇÝ | C118: 471200 | J118: 0
A119: 1162000 | B119: 6.2 êàòÆ²È²Î²Ü ú¶ÜàôÂÚ²Ü ¸ð²Ø²Î²Ü ²ðî²Ð²ÚîàôÂÚ²Ø´ Üä²êîÜºð (´ÚàôæºÆò) | C119: x | D119: 0 | F119: 0 | G119: 0 | H119: 0 | I119: 0 | J119: 0
A120: 1162100 | B120: -ÐÇí³Ý¹áõÃÛ³Ý ¨ Ñ³ßÙ³Ý¹³ÙáõÃÛ³Ý Ýå³ëïÝ»ñ µÛáõç»Çó | C120: 472100 | J120: 0
A121: 1162200 | B121: -Ø³ÛñáõÃÛ³Ý Ýå³ëïÝ»ñ µÛáõç»Çó | C121: 472200 | J121: 0
A122: 1162300 | B122: -ºñ»Ë³Ý»ñÇ Ï³Ù ÁÝï³Ý»Ï³Ý Ýå³ëïÝ»ñ µÛáõç»Çó | C122: 472300 | J122: 0
A123: 1162400 | B123: -¶áñÍ³½ñÏáõÃÛ³Ý Ýå³ëïÝ»ñ µÛáõç»Çó | C123: 472400 | J123: 0
A124: 1162500 | B124: -Î»Ýë³Ãáß³ÏÇ ³ÝóÝ»Éáõ Ñ»ï Ï³åí³Í ¨ ï³ñÇù³ÛÇÝ Ýå³ëïÝ»ñ µÛáõç»Çó | C124: 472500 | J124: 0
A125: 1162600 | B125: -ÐáõÕ³ñÏ³íáñáõÃÛ³Ý Ýå³ëïÝ»ñ µÛáõç»Çó | C125: 472600 | J125: 0
A126: 1162700 | B126: -ÎñÃ³Ï³Ý, Ùß³ÏáõÃ³ÛÇÝ ¨ ëåáñï³ÛÇÝ Ýå³ëïÝ»ñ µÛáõç»Çó | C126: 472700 | J126: 0
A127: 1162800 | B127: -´Ý³Ï³ñ³Ý³ÛÇÝ Ýå³ëïÝ»ñ µÛáõç»Çó | C127: 472800 | J127: 0
A128: 1162900 | B128: -²ÛÉ Ýå³ëïÝ»ñ µÛáõç»Çó | C128: 472900 | J128: 0
A129: 1163000 | B129: 6.3 ÎºÜê²ÂàÞ²ÎÜºð | C129: x | D129: 0 | F129: 0 | G129: 0 | H129: 0 | I129: 0 | J129: 0
A130: 1163100 | B130: -Ï»Ýë³Ãáß³ÏÝ»ñ | C130: 474100 | J130: 0
A131: 1170000 | B131: 7. ²ÚÈ Ì²Êêºð | C131: x | D131: =D132 -> 500 | F131: =F132 -> 500 | G131: =G132 -> 100 | H131: =H132 -> 200 | I131: =I132 -> 300 | J131: =J132 -> 500
A132: 1171000 | B132: 7.1 ÜìÆð²îìàôÂÚàôÜÜºð àâ-Î²è²ì²ðâ²Î²Ü (Ð²ê²ð²Î²Î²Ü) Î²¼Ø²ÎºðäàôÂÚàôÜÜºðÆÜ | C132: x | D132: =D134 -> 500 | F132: =F134 -> 500 | G132: =G134 -> 100 | H132: =H134 -> 200 | I132: =I134 -> 300 | J132: =F132 -> 500
A133: 1171100 | B133: -îÝ³ÛÇÝ ïÝï»ëáõÃÛáõÝÝ»ñÇÝ Í³é³ÛáõÃÛáõÝÝ»ñ Ù³ïáõóáÕ` ß³ÑáõÛÃ ãÑ»ï³åÝ¹áÕ Ï³½Ù³Ï»ñåáõÃÛáõÝÝ»ñÇÝ ÝíÇñ³ïíáõÃÛáõÝÝ»ñ | C133: 481100 | J133: 0
A134: 1171200 | B134: -ÜíÇñ³ïíáõÃÛáõÝÝ»ñ ³ÛÉ ß³ÑáõÛÃ ãÑ»ï³åÝ¹áÕ Ï³½Ù³Ï»ñåáõÃÛáõÝÝ»ñÇÝ | C134: 481900 | D134: 500 | E134: 0 | F134: =D134+E134 -> 500 | G134: 100 | H134: 200 | I134: 300 | J134: =F134 -> 500
A135: 1172000 | B135: 7.2 Ð²ðÎºð, ä²ðî²¸Æð ìÖ²ðÜºð ºì îàôÚÄºð, àðàÜø Î²è²ì²ðØ²Ü î²ð´ºð Ø²Î²ð¸²ÎÜºðÆ ÎàÔØÆò ÎÆð²èìàôØ ºÜ ØÆØÚ²Üò ÜÎ²îØ²Ø´ | C135: x | D135: =D137+D138 -> 0 | F135: =F137+F138 -> 0 | G135: =G137+G138 -> 0 | H135: =H137+H138 -> 0 | I135: =I137+I138 -> 0 | J135: =F135 -> 0
A136: 1172100 | B136: -²ßË³ï³í³ñÓÇ ýáÝ¹ | C136: 482100 | J136: 0
A137: 1172200 | B137: -²ÛÉ Ñ³ñÏ»ñ | C137: 482200 | D137: 0 | F137: 0 | G137: 0 | H137: 0 | I137: 0 | J137: =F137 -> 0
A138: 1172300 | B138: -ä³ñï³¹Çñ í×³ñÝ»ñ | C138: 482300 | D138: 0 | F138: 0 | G138: 0 | H138: 0 | I138: 0 | J138: =F138 -> 0
A139: 1172400 | B139: -ä»ï³Ï³Ý Ñ³ïí³ÍÇ ï³ñµ»ñ Ù³Ï³ñ¹³ÏÝ»ñÇ ÏáÕÙÇó ÙÇÙÛ³Ýó ÝÏ³ïÙ³Ùµ ÏÇñ³éíáÕ ïáõÛÅ»ñ | C139: 482400 | J139: 0
A140: 1173000 | B140: 7.3 ¸²î²ð²ÜÜºðÆ ÎàÔØÆò ÜÞ²Ü²Îì²Ì îàôÚÄºð ºì îàô¶²ÜøÜºð | C140: x | D140: 0 | F140: 0 | G140: 0 | H140: 0 | I140: 0 | J140: 0
A141: 1173100 | B141: -¸³ï³ñ³ÝÝ»ñÇ ÏáÕÙÇó Ýß³Ý³Ïí³Í ïáõÛÅ»ñ ¨ ïáõ·³ÝùÝ»ñ | C141: 483100 | J141: 0
A142: 1174000 | B142: 7.4 ´Ü²Î²Ü ²ÔºîÜºðÆò Î²Ø ²ÚÈ ´Ü²Î²Ü ä²îÖ²èÜºðàì ²è²æ²ò²Ì ìÜ²êÜºðÆ Î²Ø ìÜ²êì²ÌøÜºðÆ ìºð²Î²Ü¶ÜàôØ | C142: x | D142: 0 | F142: 0 | G142: 0 | H142: 0 | I142: 0 | J142: 0
A143: 1174100 | B143: -´Ý³Ï³Ý ³Õ»ïÝ»ñÇó ³é³ç³ó³Í íÝ³ëí³ÍùÝ»ñÇ Ï³Ù íÝ³ëÝ»ñÇ í»ñ³Ï³Ý·ÝáõÙ | C143: 484100 | J143: 0
A144: 1174200 | B144: -²ÛÉ µÝ³Ï³Ý å³ï×³éÝ»ñáí ëï³ó³Í íÝ³ëí³ÍùÝ»ñÇ í»ñ³Ï³Ý·ÝáõÙ | C144: 484200 | J144: 0
A145: 1175000 | B145: 7.5 Î²è²ì²ðØ²Ü Ø²ðØÆÜÜºðÆ ¶àðÌàôÜºàôÂÚ²Ü Ðºîºì²Üøàì ²è²æ²ò²Ì ìÜ²êÜºðÆ Î²Ø ìÜ²êì²ÌøÜºðÆ ìºð²Î²Ü¶ÜàôØ | C145: x | D145: 0 | F145: 0 | G145: 0 | H145: 0 | I145: 0 | J145: 0
A146: 1175100 | B146: -Î³é³í³ñÙ³Ý Ù³ñÙÇÝÝ»ñÇ ·áñÍáõÝ»áõÃÛ³Ý Ñ»ï¨³Ýùáí ³é³ç³ó³Í íÝ³ëí³ÍùÝ»ñÇ Ï³Ù íÝ³ëÝ»ñÇ í»ñ³Ï³Ý·ÝáõÙ | C146: 485100 | J146: 0
A147: 1176000 | B147: 7.6 ²ÚÈ Ì²Êêºð | C147: x | D147: 0 | F147: 0 | G147: 0 | H147: 0 | I147: 0 | J147: 0
A148: 1176100 | B148: -²ÛÉ Í³Ëë»ñ | C148: 486100 | J148: 0
A149: 1177000 | B149: 7.7 ä²Ðàôêî²ÚÆÜ ØÆæàòÜºð | C149: x | D149: 0 | F149: 0 | G149: 0 | H149: 0 | I149: 0 | J149: 0
A150: 1177100 | B150: -ä³Ñáõëï³ÛÇÝ ÙÇçáóÝ»ñ | C150: 489100 | J150: 0
A151: 1200000 | B151: Բ, àâ-üÆÜ²Üê²Î²Ü ²ÎîÆìÜºðÆ ¶Ìàì Ì²Êêºð | C151: x | D151: =D152 -> 0 | E151: =E154 -> 0 | F151: =F152 -> 0 | G151: =G152 -> 0 | H151: =H152 -> 0 | I151: =I152 -> 0 | J151: =F152 -> 0
A152: 1210000 | B152: 1.ÐÆØÜ²Î²Ü ØÆæàòÜºð | C152: x | D152: =SUM(D153:D155) -> 0 | F152: =SUM(F153:F162) -> 0 | G152: =SUM(G153:G162) -> 0 | H152: =SUM(H153:H162) -> 0 | I152: =SUM(I153:I162) -> 0 | J152: =F152 -> 0
A153: 1211000 | B153: -Þ»Ýù»ñÇ ¨ ßÇÝáõÃÛáõÝÝ»ñÇ Ó»éù µ»ñáõÙ | C153: 511100 | J153: =F153 -> 0
A154: 1212000 | B154: -Þ»Ýù»ñÇ ¨ ßÇÝáõÃÛáõÝÝ»ñÇ Ï³éáõóáõÙ | C154: 511200 | D154: 0 | E154: 0 | F154: =D154+E154 -> 0 | G154: 0 | H154: 0 | I154: 0 | J154: =F154 -> 0
A155: 1213000 | B155: -Þ»Ýù»ñÇ ¨ ßÇÝáõÃÛáõÝÝ»ñÇ Ï³åÇï³É í»ñ³Ýáñá·áõÙ | C155: 511300 | D155: 0 | F155: 0 | G155: 0 | H155: 0 | I155: 0 | J155: =F155 -> 0
A156: 1214000 | B156: -îñ³Ýëåáñï³ÛÇÝ ë³ñù³íáñáõÙÝ»ñ | C156: 512100 | J156: 0
A157: 1215000 | B157: -ì³ñã³Ï³Ý ë³ñù³íáñáõÙÝ»ñ | C157: 512200 | F157: 0 | I157: 0 | J157: =F157 -> 0
A158: 1216000 | B158: -²ÛÉ Ù»ù»Ý³Ý»ñ ¨ ë³ñù³íáñáõÙÝ»ñ | C158: 512900 | J158: 0
A159: 1217000 | B159: -²×»óíáÕ ³ÏïÇíÝ»ñ | C159: 513100 | J159: 0
A160: 1218100 | B160: -àã-ÝÛáõÃ³Ï³Ý ÑÇÙÝ³Ï³Ý ÙÇçáóÝ»ñ | C160: 513200 | J160: 0
A161: 1218200 | B161: -¶»á¹»½Ç³Ï³Ý ù³ñï»½³·ñ³Ï³Ý Í³Ëë»ñ | C161: 513300 | J161: 0
A162: 1218300 | B162: -Ü³Ë³·Í³Ñ»ï³½áï³Ï³Ý Í³Ëë»ñ | C162: 513400 | J162: 0
A163: 1220000 | B163: 2.ä²Þ²ðÜºð | C163: x | D163: 0 | F163: 0 | G163: 0 | H163: 0 | I163: 0 | J163: 0
A164: 1221000 | B164: -è³½Ù³í³ñ³Ï³Ý å³ß³ñÝ»ñ | C164: 521100 | J164: 0
A165: 1222000 | B165: -ÜÛáõÃ»ñ ¨ å³ñ³·³Ý»ñ | C165: 522100 | J165: 0
A166: 1223000 | B166: -ì»ñ³í³×³éùÇ Ñ³Ù³ñ Ý³Ë³ï»ëí³Í ³åñ³ÝùÝ»ñ | C166: 523100 | J166: 0
A167: 1224000 | B167: -êå³éÙ³Ý Ýå³ï³Ïáí å³ÑíáÕ å³ß³ñÝ»ñ | C167: 524100 | J167: 0
A168: 1230000 | B168: 3.´²ðÒð²ðÄºø ²ÎîÆìÜºð | C168: x | D168: 0 | F168: 0 | G168: 0 | H168: 0 | I168: 0 | J168: 0
A169: 1231000 | B169: -´³ñÓñ³ñÅ»ù ³ÏïÇíÝ»ñ | C169: 531100 | J169: 0
A170: 1240000 | B170: 4.â²ðî²¸ðì²Ì ԱԿՏԻՎՆԵՐ | C170: x | D170: 0 | F170: 0 | G170: 0 | H170: 0 | I170: 0 | J170: 0
A171: 1241000 | B171: -ÐáÕ | C171: 541100 | J171: 0
A172: 1242000 | B172: -ÀÝ¹»ñù³ÛÇÝ ³ÏïÇíÝ»ñ | C172: 542100
A173: 1243000 | B173: -²ÛÉ µÝ³Ï³Ý Í³·áõÙ áõÝ»óáÕ ³ÏïÇíÝ»ñ | C173: 543100
A174: 1244000 | B174: -àã ÝÛáõÃ³Ï³Ý ã³ñï³¹ñí³Í ³ÏïÇíÝ»ñ | C174: 544100
A175: 1000000 | B175: ԸՆԴԱՄԵՆԸ ԾԱԽՍԵՐ` | C175: x | D175: =D32+D151 -> 1000 | E175: 0 | F175: 1000 | G175: 200 | H175: 300 | I175: 400 | J175: 1000
A177: §17¦ § դեÏï»Ùµ»ñ ¦ 2020 Ã.
A179: ÐÆØÜ²ðÎÆ ÔºÎ²ì²ðª _______________ Է. Արշակյան _________________
A180: (ëïáñ³·ñáõÃÛáõÝ) (².Ð.².)
A181: Î.î.
A183: üÆÜ²Üê²Î²Ü Ì²è²ÚàôÂÚ²Ü äºîª ________________ Ն.Մուրադյան ___________________
A184: (¶ÈÊ²ìàð Ð²Þì²ä²Ð) (ëïáñ³·ñáõÃÛáõÝ) (².Ð.².)
A202: 5.5 áñ¨¿ ³Ùëí³ Ýáñ Ý³Ë³Ñ³ßíÇª 3-ñ¹ ëÛáõÝ³ÏáõÙ Ý»ñÏ³Û³óíáõÙ »Ý ïíÛ³É µÛáõç»ï³ÛÇÝ ï³ñí³ Ñ³Ù³å³ï³ëË³Ý ³Ùëí³ óáõó³ÝÇßÝ»ñÁ, ÇëÏ 4-Çó 7-ñ¹ ëÛáõÝ³ÏÝ»ñÁ ã»Ý Éñ³óíáõÙ:
A203: ** Ì²ÜàÂ²¶ðàôÂÚàôÜ II. N 1 ûñÇÝ³Ï»ÉÇ Ó¨Ç Ýßí³Í ïáÕÁ ÐÐ å»ï³Ï³Ý Ï³é³í³ñÙ³Ý ¨ ï»Õ³Ï³Ý ÇÝùÝ³Ï³é³í³ñÙ³Ý í»ñ³¹³ë Ù³ñÙÇÝÝ»ñÁ ã»Ý Éñ³óÝáõÙ:
A204: *** Ì²ÜàÂ²¶ðàôÂÚàôÜ III. N 1 ûñÇÝ³Ï»ÉÇ Ó¨Ç Ýßí³Í ïáÕÁ ÐÐ å»ï³Ï³Ý Ï³é³í³ñÙ³Ý ¨ ï»Õ³Ï³Ý ÇÝùÝ³Ï³é³í³ñÙ³Ý Ù³ñÙÇÝÝ»ñÁ Éñ³óÝáõÙ »Ý Çñ»Ýó Ñ³Ù³ñ µÛáõç»ï³ÛÇÝ Í³Ëë»ñÇ ·»ñ³ï»ëã³Ï³Ý ¹³ë³Ï³ñ·Ù³Ùµ ë³ÑÙ³Ý³Í Ïá¹Á:
A205: **** Ì²ÜàÂ²¶ðàôÂÚàôÜ IV. N 1 ûñÇÝ³Ï»ÉÇ Ó¨Ç Ýßí³Í ïáÕÁª ³ÝÏ³Ë Ýñ³ÝÇó, Ã» Ýáñ Ý³Ë³Ñ³ßÇíÁ áñ ¹»åùáõÙ ¿ Ñ³ëï³ïíáõÙ, Éñ³óíáõÙ ¿ N 1 ûñÇÝ³Ï»ÉÇ Ó¨Ç ³ÕÛáõë³ÏÇ §²¦ ëÛáõÝ³ÏáõÙ ³Ùñ³·ñí³Í N 1000000 (§ÀÝ¹³Ù»ÝÁ
A206: Í³Ëë»ñ¦) ïáÕÇ 3-ñ¹ ëÛáõÝ³ÏáõÙ µ»ñí³Í óáõó³ÝÇßÇ ·áõÙ³ñáí (Ãí»ñáí ¨ ï³é»ñáí):
A207: ***** Ì²ÜàÂ²¶ðàôÂÚàôÜ V. N 1 ûñÇÝ³Ï»ÉÇ Ó¨Ç Ýßí³Í ïáÕÁ Éñ³óíáõÙ ¿ Ññ³Ù³Ýáí Ñ³ëï³ïí³Í N 11 Ñ³í»Éí³ÍÇ` §´Ûáõç»ï³ÛÇÝ Í³Ëë»ñÇ ·áñÍ³é³Ï³Ý ¹³ë³Ï³ñ·áõÙ¦, ï³ññ»ñÇÝ Ñ³Ù³å³ï³ëË³Ý` µ³ÅÇÝ (2 ÝÇß), ËáõÙµ(1ÝÇß) ¨ ¹³ë (1ÝÇß):
A208: §__¦ §________________¦ 200_ Ã.
A210: ÐÆØÜ²ðÎÆ ÔºÎ²ì²ðª _______________ _________________
A211: (ëïáñ³·ñáõÃÛáõÝ) (².Ð.².)
A212: Î.î.
A214: üÆÜ²Üê²Î²Ü Ì²è²ÚàôÂÚ²Ü äºîª ________________ ___________________
A215: (¶ÈÊ²ìàð Ð²Þì²ä²Ð) (ëïáñ³·ñáõÃÛáõÝ) (².Ð.².)

Sheet arandzin aih (hidden)
F1: Ð³í»Éí³Í N 4
F3: úñÇÝ³Ï»ÉÇ Ó¨ N 3
F4: Ð³ëï³ïí»É ¿ ÐÐ ýÇÝ³ÝëÝ»ñÇ ¨ ¿ÏáÝáÙÇÏ³ÛÇ
B5: §Ð ² ê î ² î àô Ø ºØª¦ | G5: Ý³Ë³ñ³ñÇ 23 ÑáõÉÇëÇ 2007 Ãí³Ï³ÝÇ
F6: N 597-Ü Ññ³Ù³Ýáí
A7: Ý³Ë³Ñ³ßÇíÁª 2000.0 երկու միլիոն դրամ
A8: ( ÁÝ¹³Ù»ÝÁ ·áõÙ³ñÁ Ãí»ñáí ¨ ï³é»ñáí****)
A9: _______________________________________________________________________________________________________________ Ñ³½³ñ ¹ñ³Ù ·áõÙ³ñáí:
A10: _______________________________________________________________________________________ | G10: Î.î.
A11: (ÐÐ å»ï³Ï³Ý Ï³é³í³ñÙ³Ý Ï³Ù ï»Õ³Ï³Ý ÇÝùÝ³Ï³é³í³ñÙ³Ý Ù³ñÙÝÇ Õ»Ï³í³ñÇ ëïáñ³·ñáõÃÛáõÝÁ ¨ ².Ð.².)
A12: § ¦ դեկտեմբերի 2020թ
A13: Ü ² Ê ² Ð ² Þ Æ ì*
A14: ÐÇÙÝ³ñÏÝ»ñÇ ÏáÕÙÇó µÛáõç»ï³ÛÇÝ Ñ³ïÏ³óáõÙÝ»ñÇ Ñ³ßíÇÝ Çñ³Ï³Ý³óíáÕ Í³Ëë»ñÇ (»Éù»ñÇ) ³é³ÝÓÇÝ ï»ë³ÏÝ»ñÇ
A15: ¥Áëï ïÝï»ë³·Çï³Ï³Ý ¹³ë³Ï³ñ·Ù³Ý Ñá¹í³ÍÝ»ñÇ¤
B16: §01¦ §ÐáõÝí³ñÇ ¦ 2021 Ã. -- §30¦ §¹»Ïï»Ùµ»ñÇ ¦ 2021 Ã.
A18: 1. ÐÇÙÝ³ñÏÇ ³Ýí³ÝáõÙÁ î³ßÇñÇ ù³Õ³ù³å»ï³ñ³Ý | F18: 8.***** ´Ûáõç»ï³ÛÇÝ Í³Ëë»ñÇ ·áñÍ³é³Ï³Ý ¹³ë³Ï³ñ·Ù³Ý
A19: 2. öáëï³ÛÇÝ Ñ³ëó»Ý ù. î³ßÇñ | F19: Í³ÍÏ³·Çñ | G19: 2 | H19: 2 | I19: 1
A20: 3. ÐÇÙÝ³ñÏÇ ï»Õ³µ³ßËÙ³Ý Ù³ñ½Ç ¨ Ñ³Ù³ÛÝùÇ Ïá¹Á
A21: Áëï µÛáõç»ï³ÛÇÝ Í³Ëë»ñÇ ï³ñ³Íù³ÛÇÝ ¹³ë³Ï³ñ·Ù³Ý | F21: 9. Ìñ³·ñÇ ³Ýí³ÝáõÙÁ պաշտպանություն
A22: 4. ** ä»ï³Ï³Ý Ï³é³í³ñÙ³Ý (ï»Õ³Ï³Ý ÇÝùÝ³Ï³é³í³ñÙ³Ý) Ù³ñÙÝÇ ³Ýí³ÝáõÙÁ | F22: 10. Ìñ³·ñÇ Ïá¹Á
A23: _______________________________________________________________________________________ | F23: 11. *** ä»ï³Ï³Ý Ï³é³í³ñÙ³Ý (ï»Õ³Ï³Ý .ÇÝù ÇÝùÝ³Ï³é³í³ñÙ³Ý)Ù³ñÙÇÝÝ»ñÇ ·»ñ³ï»ëã³Ï³Ý Ïá¹Á
A24: 5. ÐÇÙÝ³ñÏÁ ëå³ë³ñÏáÕ ï»Õ³Ï³Ý ·³ÝÓ³å»ï³Ï³Ý µ³ÅÝÇ (î¶´) ³Ýí³ÝáõÙÁ _ Տաշիրի
A25: 6. ÐÇÙÝ³ñÏÇª ï»Õ³Ï³Ý ·³ÝÓ³å»ï³Ï³Ý µ³ÅÝáõÙ (î¶´) Ñ³ßí³éÙ³Ý Ñ³Ù³ñÁ
A26: 7. Ì³Ëë»ñÇ ýÇÝ³Ýë³íáñÙ³Ý ³ÕµÛáõñÇ Ïá¹Á` | G26: 12. â³÷Ç ÙÇ³íáñÁª Ñ³½³ñ ¹ñ³Ù
A27: (ÐÐ å»ï³Ï³Ý µÛáõç»ª 1, Ñ³Ù³ÛÝùÇ µÛáõç»ª 2)
A29: îáÕÇ NN | B29: ´Ûáõç»ï³ÛÇÝ Í³Ëë»ñÇ ïÝï»ë³·Çï³Ï³Ý ¹³ë³Ï³ñ·Ù³Ý ï³ññ»ñ | D29: ÜáõÛÝ Å³Ù³Ý³Ï³Ñ³ïí³ÍÇ Ñ³Ù³ñ Ý³ËÏÇÝáõÙ Ñ³ëï³ïí³Íª ·áñÍáÕ | F29: êáõÛÝ Ý³Ë³Ñ³ßíáí Ñ³ëï³ïíáÕ óáõó³ÝÇßÝ»ñÁ | G29: ³Û¹ ÃíáõÙª Áëï »é³ÙëÛ³ÏÝ»ñÇ (»é³ÙëÛ³ÏÇ ³ÙÇëÝ»ñÇ)³×áÕ³Ï³Ý
B30: ³Ýí³ÝáõÙÝ»ñÁ | C30: NN | D30: Ý³Ë³Ñ³ßíÇ óáõó³ÝÇßÝ»ñÁ | E30: Ý³Ë³Ñ³ßíáõÙ Ï³ï³ñí³Í ÷á÷áËáõÃÛáõÝ-Ý»ñÁ (³í»É³óáõÙÁª /+/, å³Ï³ë»óáõÙÁª/-/ | G30: I | H30: II | I30: III | J30: IV
A31: ² | B31: ´ | C31: ¶ | D31: 1 | E31: 2 | F31: 3 | G31: 4 | H31: 5 | I31: 6 | J31: 7
A32: 1100000 | B32: ². ÀÜÂ²òÆÎ Ì²Êêºðª ÀÜ¸²ØºÜÀ, ³Û¹ ÃíáõÙ` | C32: x | D32: =D113+D66+D69 -> 2000 | E32: =E125 -> 0 | F32: =F66+F114+F69 -> 2000 | G32: =G66+G69+G113 -> 500 | H32: =H66+H69+H113 -> 750 | I32: =I66+I69+I113 -> 1250 | J32: =F32 -> 2000
A33: 1110000 | B33: 1.äºî²Î²Ü, îºÔ²Î²Ü ÆÜøÜ²Î²è²ì²ðØ²Ü Ø²ðØÆÜÜºðÆ, ¸ð²Üò ºÜÂ²Î² ´Úàôæºî²ÚÆÜ ÐÆØÜ²ðÎÜºðÆ ²ÞÊ²îàÔÜºðÆ ²ÞÊ²î²ì²ðÒÀª ÀÜ¸²ØºÜÀ, ³Û¹ ÃíáõÙª | C33: x | D33: 0 | F33: 0 | G33: 0 | H33: 0 | I33: 0 | J33: 0
A34: 1110000 | B34: 1,1 ²ßË³ï³ÝùÇ í³ñÓ³ïñáõÃÛáõÝ | C34: x | D34: 0 | F34: 0 | G34: 0 | H34: 0 | I34: 0 | J34: 0
A35: 1111000 | B35: -²ßË³ïáÕÝ»ñÇ ³ßË³ï³í³ñÓ»ñ ¨ Ñ³í»É³í×³ñÝ»ñ | C35: 411100
A36: 1112000 | B36: - ä³ñ·¨³ïñáõÙÝ»ñ, ¹ñ³Ù³Ï³Ý Ëñ³ËáõëáõÙÝ»ñ ¨ Ñ³ïáõÏ í×³ñÝ»ñ | C36: 411200
A37: 1113000 | B37: -ø³Õ³ù³óÇ³Ï³Ý, ¹³ï³Ï³Ý ¨ å»ï³Ï³Ý Í³é³ÛáÕÝ»ñÇ å³ñ·¨³ïñáõÙ | C37: 411300
A38: 1114000 | B38: -ÐÐ ýÇÝ³ÝëÝ»ñÇ ¨ ¿ÏáÝáÙÇÏ³ÛÇ Ý³Ë³ñ³ñáõÃÛ³Ý, Ñ³ñÏ³ÛÇÝ ¨ Ù³ùë³ÛÇÝ Ù³ñÙÇÝÝ»ñÇ ³ßË³ïáÕÝ»ñÇ å³ñ·¨³ïñáõÙ | C38: 411400
A39: 1115000 | B39: -²ÛÉ í³ñÓ³ïñáõÃÛáõÝÝ»ñ | C39: 411500
A40: 1116000 | B40: -´Ý»Õ»Ý ³ßË³ï³í³ñÓ»ñ ¨ Ñ³í»É³í×³ñÝ»ñ | C40: 412100
A41: 1117000 | B41: -ì×³ñÝ»ñ êáóÇ³É³Ï³Ý ³å³Ñáí³·ñáõÃÛ³Ý å»ï³Ï³Ý ÑÇÙÝ³¹ñ³ÙÇÝ | C41: 413100
A42: 1120000 | B42: 2 Ì³é³ÛáõÃÛáõÝÝ»ñÇ ¨ ³åñ³ÝùÝ»ñÇ Ó»éù µ»ñáõÙ | C42: x | D42: 0 | F42: 0 | G42: 0 | H42: 0 | I42: 0 | J42: 0
A43: 1121000 | B43: 2.1 Þ³ñáõÝ³Ï³Ï³Ý Í³Ëë»ñ | D43: 0 | F43: 0 | G43: 0 | H43: 0 | I43: 0 | J43: 0
A44: 1121100 | B44: -·áñÍ³éÝ³Ï³Ý ¨ µ³ÝÏ³ÛÇÝ Í³é³ÛáõÃÛáõÝÝ»ñÇ Í³Ëë»ñ | C44: 421100
A45: 1121200 | B45: -¿Ý»ñ·»ïÇÏ Í³é³ÛáõÃÛáõÝÝ»ñ | C45: 421200
A46: 1121300 | B46: -ÎáÙáõÝ³É Í³é³ÛáõÃÛáõÝÝ»ñ | C46: 421300
A47: 1121400 | B47: -Î³åÇ Í³é³ÛáõÃÛáõÝÝ»ñ | C47: 421400
A48: 1121500 | B48: -²å³Ñáí³·ñ³Ï³Ý Í³Ëë»ñ | C48: 421500
A49: 1121600 | B49: -¶áõÛùÇ ¨ ë³ñù³íáñáõÙÝ»ñÇ í³ñÓ³Ï³ÉáõÃÛáõÝ | C49: 421600
A50: 1121700 | B50: -²ñï³·»ñ³ï»ëã³Ï³Ý Í³Ëë»ñ | C50: 421700
A51: 1122000 | B51: 2.2 ¶áñÍáõÕáõÙÝ»ñÇ ¨ ßñç³·³ÛáõÃÛ³Ý Í³Ëë»ñ | C51: x | D51: 0 | F51: 0 | G51: 0 | H51: 0 | I51: 0 | J51: 0
A52: 1122100 | B52: -Ü»ñùÇÝ ·áñÍáõÕáõÙÝ»ñ | C52: 422100
A53: 1122200 | B53: -²ñï³ë³ÑÙ³ÝÛ³Ý ·áñÍáõÕáõÙÝ»ñÇ ·Íáí Í³Ëë»ñ | C53: 422200
A54: 1122300 | B54: -²ÛÉ ïñ³Ýëåáñï³ÛÇÝ Í³Ëë»ñ | C54: 422900
A55: 1123000 | B55: 2.3 ä³ÛÙ³Ý³·ñ³ÛÇÝ Í³é³ÛáõÃÛáõÝÝ»ñÇ Ó»éù µ»ñáõÙ | C55: x | D55: 0 | F55: 0 | G55: 0 | H55: 0 | I55: 0 | J55: 0
A56: 1123100 | B56: -ì³ñã³Ï³Ý Í³é³ÛáõÃÛáõÝÝ»ñ | C56: 423100
A57: 1123200 | B57: -Ð³Ù³Ï³ñ·ã³ÛÇÝ Í³é³ÛáõÃÛáõÝÝ»ñ | C57: 423200
A58: 1123300 | B58: -²ßË³ï³Ï³½ÙÇ Ù³ëÝ³·Çï³Ï³Ý ½³ñ·³óÙ³Ý Í³é³ÛáõÃÛáõÝÝ»ñ | C58: 423300
A59: 1123400 | B59: -î»Õ³Ï³ïí³Ï³Ý Í³é³ÛáõÃÛáõÝÝ»ñ | C59: 423400
A60: 1123500 | B60: -Î³é³í³ñã³Ï³Ý Í³é³ÛáõÃÛáõÝÝ»ñ | C60: 423500
A61: 1123600 | B61: - Î»Ýó³Õ³ÛÇÝ ¨ Ñ³Ýñ³ÛÇÝ ëÝÝ¹Ç Í³é³ÛáõÃÛáõÝÝ»ñ | C61: 423600
A62: 1123700 | B62: -Ü»ñÏ³Û³óáõóã³Ï³Ý Í³Ëë»ñ | C62: 423700
A63: 1123800 | B63: -ÀÝ¹Ñ³Ýáõñ µÝáõÛÃÇ ³ÛÉ Í³é³ÛáõÃÛáõÝÝ»ñ | C63: 423900
A64: 1124000 | B64: 2.4 ²ÛÉ Ù³ëÝ³·Çï³Ï³Ý Í³é³ÛáõÃÛáõÝÝ»ñÇ Ó»éù µ»ñáõÙ | C64: x | D64: 0 | F64: 0 | G64: 0 | H64: 0 | I64: 0 | J64: 0
A65: 1124100 | B65: -Ø³ëÝ³·Çï³Ï³Ý Í³é³ÛáõÃÛáõÝÝ»ñ | C65: 424100
A66: 1125000 | B66: 2.5 ÀÝÃ³óÇÏ Ýáñá·áõÙ ¨ å³Ñå³ÝáõÙ (Í³é³ÛáõÃÛáõÝÝ»ñ ¨ ÝÛáõÃ»ñ) | C66: x | D66: =D67 -> 0 | F66: =F67 -> 0 | G66: =G67 -> 0 | H66: =H67 -> 0 | I66: =I67 -> 0 | J66: =J67 -> 0
A67: 1125100 | B67: -Þ»Ýù»ñÇ ¨ Ï³éáõÛóÝ»ñÇ ÁÝÃ³óÇÏ Ýáñá·áõÙ ¨ å³Ñå³ÝáõÙ | C67: 425100 | D67: 0 | F67: =D67 -> 0 | G67: 0 | H67: 0 | I67: 0 | J67: =F67 -> 0
A68: 1125200 | B68: -Ø»ù»Ý³Ý»ñÇ ¨ ë³ñù³íáñáõÙÝ»ñÇ ÁÝÃ³óÇÏ Ýáñá·áõÙ ¨ å³Ñå³ÝáõÙ | C68: 425200
A69: 1126000 | B69: 2.6 ÜÛáõÃ»ñ | C69: x | D69: =D77 -> 1000 | F69: =F77 -> 1000 | G69: =G77 -> 250 | H69: =H77 -> 500 | I69: =I77 -> 750 | J69: =J77 -> 1000
A70: 1126100 | B70: -¶ñ³ë»ÝÛ³Ï³ÛÇÝ ÝÛáõÃ»ñ ¨ Ñ³·áõëï | C70: 426100
A71: 1126200 | B71: -¶ÛáõÕ³ïÝï»ë³Ï³Ý ³åñ³ÝùÝ»ñ | C71: 426200
A72: 1126300 | B72: -ì»ñ³å³ïñ³ëïÙ³Ý ¨ áõëáõóÙ³Ý ÝÛáõÃ»ñ | C72: 426300
A73: 1126400 | B73: -îñ³Ýëåáñï³ÛÇÝ ÝÛáõÃ»ñ | C73: 426400
A74: 1126500 | B74: -Þñç³Ï³ ÙÇç³í³ÛñÇ å³ßïå³ÝáõÃÛ³Ý ¨ ·Çï³Ï³Ý ÝÛáõÃ»ñ | C74: 426500
A75: 1126600 | B75: -²éáÕç³å³Ñ³Ï³Ý ¨ É³µáñ³ïáñ ÝÛáõÃ»ñ | C75: 426600
A76: 1126700 | B76: -Î»Ýó³Õ³ÛÇÝ ¨ Ñ³Ýñ³ÛÇÝ ëÝÝ¹Ç ÝÛáõÃ»ñ | C76: 426700
A77: 1126800 | B77: -Ð³ïáõÏ Ýå³ï³Ï³ÛÇÝ ³ÛÉ ÝÛáõÃ»ñ | C77: 426900 | D77: 1000 | F77: =D77+E77 -> 1000 | G77: 250 | H77: 500 | I77: 750 | J77: =F77 -> 1000
A78: 1130000 | B78: 3 îáÏáë³í×³ñÝ»ñ | C78: x | D78: 0 | F78: 0 | G78: 0 | H78: 0 | I78: 0 | J78: 0
A79: 1130100 | B79: -Ü»ñùÇÝ ³ñÅ»ÃÕÃ»ñÇ ïáÏáë³í×³ñÝ»ñ | C79: 441100
A80: 1130200 | B80: -Ü»ñùÇÝ í³ñÏ»ñÇ ïáÏáë³í×³ñÝ»ñ | C80: 441200
A81: 1130300 | B81: -²ñï³ùÇÝ ³ñÅ»ÃÕÃ»ñÇ ·Íáí ïáÏáë³í×³ñÝ»ñ | C81: 442100
A82: 1130400 | B82: -²ñï³ùÇÝ í³ñÏ»ñÇ ·Íáí ïáÏáë³í×³ñÝ»ñ | C82: 442200
A83: 1131000 | B83: öáË³éáõÃÛáõÝÝ»ñÇ Ñ»ï Ï³åí³Í í×³ñÝ»ñ | C83: x
A84: 1131100 | B84: -öáË³Ý³ÏÙ³Ý Ïáõñë»ñÇ µ³ó³ë³Ï³Ý ï³ñµ»ñáõÃÛáõÝ | C84: 443100
A85: 1131200 | B85: -îáõÛÅ»ñ | C85: 443200
A86: 1131300 | B86: -öáË³éáõÃÛáõÝÝ»ñÇ ·Íáí ïáõñù»ñ | C86: 443300
A87: 1140000 | B87: 4. êáõµëÇ¹Ç³Ý»ñ | C87: x | D87: 0 | F87: 0 | G87: 0 | H87: 0 | I87: 0 | J87: 0
A88: 1141000 | B88: -êáõµëÇ¹Ç³Ý»ñ áã-ýÇÝ³Ýë³Ï³Ý å»ï³Ï³Ý Ï³½Ù³Ï»ñåáõÃÛáõÝÝ»ñÇÝ | C88: 451100
A89: 1142000 | B89: -êáõµëÇ¹Ç³Ý»ñ ýÇÝ³Ýë³Ï³Ý å»ï³Ï³Ý Ï³½Ù³Ï»ñåáõÃÛáõÝÝ»ñÇÝ | C89: 451200
A90: 1143000 | B90: -êáõµëÇ¹Ç³Ý»ñ áã å»ï³Ï³Ý áã ýÇÝ³Ýë³Ï³Ý Ï³½Ù³Ï»ñåáõÃÛáõÝÝ»ñÇÝ | C90: 452100
A91: 1144000 | B91: -êáõµëÇ¹Ç³Ý»ñ áã å»ï³Ï³Ý ýÇÝ³Ýë³Ï³Ý Ï³½Ù³Ï»ñåáõÃÛáõÝÝ»ñÇÝ | C91: 452200
A92: 1150000 | B92: 5.¸ñ³Ù³ßÝáñÑÝ»ñ | C92: x | D92: 0 | F92: 0 | G92: 0 | H92: 0 | I92: 0 | J92: 0
A93: 1151000 | B93: -ÀÝÃ³óÇÏ ¹ñ³Ù³ßÝáñÑÝ»ñ ûï³ñ»ñÏñÛ³ Ï³é³í³ñáõÃÛáõÝÝ»ñÇÝ | C93: 461100
A94: 1152000 | B94: -Î³åÇï³É ¹ñ³Ù³ßÝáñÑÝ»ñ ûï³ñ»ñÏñÛ³ Ï³é³í³ñáõÃÛáõÝÝ»ñÇÝ | C94: 461200
A95: 1153000 | B95: -ÀÝÃ³óÇÏ ¹ñ³Ù³ßÝáñÑÝ»ñ ÙÇç³½·³ÛÇÝ Ï³½Ù³Ï»ñåáõÃÛáõÝÝ»ñÇÝ | C95: 462100
A96: 1154000 | B96: -Î³åÇï³É ¹ñ³Ù³ßÝáñÑÝ»ñ ÙÇç³½·³ÛÇÝ Ï³½Ù³Ï»ñåáõÃÛáõÝÝ»ñÇÝ | C96: 462200
A97: 1155000 | B97: -ÀÝÃ³óÇÏ ¹ñ³Ù³ßÝáñÑÝ»ñ å»ï³Ï³Ý Ñ³ïí³ÍÇ ³ÛÉ Ù³Ï³ñ¹³ÏÝ»ñÇÝ | C97: 463100
A98: 1156000 | B98: -Î³åÇï³É ¹ñ³Ù³ßÝáñÑÝ»ñ å»ï³Ï³Ý Ñ³ïí³ÍÇ ³ÛÉ Ù³Ï³ñ¹³ÏÝ»ñÇÝ | C98: 463200
A99: 1160000 | B99: 6. êàòÆ²È²Î²Ü Üä²êîÜºð | C99: x | D99: 0 | F99: 0 | G99: 0 | H99: 0 | I99: 0 | J99: 0
A100: 1161000 | B100: 6.1 êàòÆ²È²Î²Ü ²ä²ÐàìàôÂÚ²Ü Üä²êîÜºð (ä²ðî²¸Æð êàòÆ²È²Î²Ü ²ä²Ðàì²¶ðàôÂÚ²Ü Î²¼Ø²ÎºðäàôÂÚàôÜÜºð) | C100: x | D100: 0 | F100: 0 | G100: 0 | H100: 0 | I100: 0 | J100: 0
A101: 1161100 | B101: -îÝ³ÛÇÝ ïÝï»ëáõÃÛáõÝÝ»ñÇÝ ¹ñ³Ùáí í×³ñíáÕ ëáóÇ³É³Ï³Ý ³å³Ñáí³·ñáõÃÛ³Ý í×³ñÝ»ñ | C101: 471100
A102: 1161200 | B102: -êáóÇ³É³Ï³Ý ³å³ÑáíáõÃÛ³Ý µÝ»Õ»Ý Ýå³ëïÝ»ñ Í³é³ÛáõÃÛáõÝÝ»ñ Ù³ïáõóáÕÝ»ñÇÝ | C102: 471200
A103: 1162000 | B103: 6.2 êàòÆ²È²Î²Ü ú¶ÜàôÂÚ²Ü ¸ð²Ø²Î²Ü ²ðî²Ð²ÚîàôÂÚ²Ø´ Üä²êîÜºð (´ÚàôæºÆò) | C103: x | D103: 0 | F103: 0 | G103: 0 | H103: 0 | I103: 0 | J103: 0
A104: 1162100 | B104: -ÐÇí³Ý¹áõÃÛ³Ý ¨ Ñ³ßÙ³Ý¹³ÙáõÃÛ³Ý Ýå³ëïÝ»ñ µÛáõç»Çó | C104: 472100
A105: 1162200 | B105: -Ø³ÛñáõÃÛ³Ý Ýå³ëïÝ»ñ µÛáõç»Çó | C105: 472200
A106: 1162300 | B106: -ºñ»Ë³Ý»ñÇ Ï³Ù ÁÝï³Ý»Ï³Ý Ýå³ëïÝ»ñ µÛáõç»Çó | C106: 472300
A107: 1162400 | B107: -¶áñÍ³½ñÏáõÃÛ³Ý Ýå³ëïÝ»ñ µÛáõç»Çó | C107: 472400
A108: 1162500 | B108: -Î»Ýë³Ãáß³ÏÇ ³ÝóÝ»Éáõ Ñ»ï Ï³åí³Í ¨ ï³ñÇù³ÛÇÝ Ýå³ëïÝ»ñ µÛáõç»Çó | C108: 472500
A109: 1162600 | B109: -ÐáõÕ³ñÏ³íáñáõÃÛ³Ý Ýå³ëïÝ»ñ µÛáõç»Çó | C109: 472600
A110: 1162700 | B110: -ÎñÃ³Ï³Ý, Ùß³ÏáõÃ³ÛÇÝ ¨ ëåáñï³ÛÇÝ Ýå³ëïÝ»ñ µÛáõç»Çó | C110: 472700
A111: 1162800 | B111: -´Ý³Ï³ñ³Ý³ÛÇÝ Ýå³ëïÝ»ñ µÛáõç»Çó | C111: 472800
A112: 1162900 | B112: -²ÛÉ Ýå³ëïÝ»ñ µÛáõç»Çó | C112: 472900
A113: 1170000 | B113: 7. ²ÚÈ Ì²Êêºð | C113: x | D113: =D114 -> 1000 | F113: =F114 -> 1000 | G113: =G114 -> 250 | H113: =H114 -> 250 | I113: =I114 -> 500 | J113: =J114 -> 1000
A114: 1171000 | B114: 7.1 ÜìÆð²îìàôÂÚàôÜÜºð àâ-Î²è²ì²ðâ²Î²Ü (Ð²ê²ð²Î²Î²Ü) Î²¼Ø²ÎºðäàôÂÚàôÜÜºðÆÜ | C114: x | D114: =D116+D125 -> 1000 | F114: =F116 -> 1000 | G114: =G116 -> 250 | H114: =H116 -> 250 | I114: =I116 -> 500 | J114: 1000
A115: 1171100 | B115: -îÝ³ÛÇÝ ïÝï»ëáõÃÛáõÝÝ»ñÇÝ Í³é³ÛáõÃÛáõÝÝ»ñ Ù³ïáõóáÕ` ß³ÑáõÛÃ ãÑ»ï³åÝ¹áÕ Ï³½Ù³Ï»ñåáõÃÛáõÝÝ»ñÇÝ ÝíÇñ³ïíáõÃÛáõÝÝ»ñ | C115: 481100
A116: 1171200 | B116: -ÜíÇñ³ïíáõÃÛáõÝÝ»ñ ³ÛÉ ß³ÑáõÛÃ ãÑ»ï³åÝ¹áÕ Ï³½Ù³Ï»ñåáõÃÛáõÝÝ»ñÇÝ | C116: 481900 | D116: 1000 | F116: =D116+E116 -> 1000 | G116: 250 | H116: 250 | I116: 500 | J116: =F116 -> 1000
A117: 1172000 | B117: 7.2 Ð²ðÎºð, ä²ðî²¸Æð ìÖ²ðÜºð ºì îàôÚÄºð, àðàÜø Î²è²ì²ðØ²Ü î²ð´ºð Ø²Î²ð¸²ÎÜºðÆ ÎàÔØÆò ÎÆð²èìàôØ ºÜ ØÆØÚ²Üò ÜÎ²îØ²Ø´ | C117: x | D117: 0 | F117: 0 | G117: 0 | H117: 0 | I117: 0 | J117: 0
A118: 1172100 | B118: -²ßË³ï³í³ñÓÇ ýáÝ¹ | C118: 482100
A119: 1172200 | B119: -²ÛÉ Ñ³ñÏ»ñ | C119: 482200
A120: 1172300 | B120: -ä³ñï³¹Çñ í×³ñÝ»ñ | C120: 482300
A121: 1172400 | B121: -ä»ï³Ï³Ý Ñ³ïí³ÍÇ ï³ñµ»ñ Ù³Ï³ñ¹³ÏÝ»ñÇ ÏáÕÙÇó ÙÇÙÛ³Ýó ÝÏ³ïÙ³Ùµ ÏÇñ³éíáÕ ïáõÛÅ»ñ | C121: 482400
A122: 1173000 | B122: 7.3 ¸²î²ð²ÜÜºðÆ ÎàÔØÆò ÜÞ²Ü²Îì²Ì îàôÚÄºð ºì îàô¶²ÜøÜºð | C122: x | D122: 0 | F122: 0 | G122: 0 | H122: 0 | I122: 0 | J122: 0
A123: 1173100 | B123: -¸³ï³ñ³ÝÝ»ñÇ ÏáÕÙÇó Ýß³Ý³Ïí³Í ïáõÛÅ»ñ ¨ ïáõ·³ÝùÝ»ñ | C123: 483100
A124: 1174000 | B124: 7.4 ´Ü²Î²Ü ²ÔºîÜºðÆò Î²Ø ²ÚÈ ´Ü²Î²Ü ä²îÖ²èÜºðàì ²è²æ²ò²Ì ìÜ²êÜºðÆ Î²Ø ìÜ²êì²ÌøÜºðÆ ìºð²Î²Ü¶ÜàôØ | C124: x | D124: 0 | F124: 0 | G124: 0 | H124: 0 | I124: 0 | J124: 0
A125: 1174100 | B125: -´Ý³Ï³Ý ³Õ»ïÝ»ñÇó ³é³ç³ó³Í íÝ³ëí³ÍùÝ»ñÇ Ï³Ù íÝ³ëÝ»ñÇ í»ñ³Ï³Ý·ÝáõÙ | C125: 484100 | D125: 0 | E125: 0 | F125: =D125+E125 -> 0 | G125: 0 | H125: 0 | I125: 0 | J125: =F125 -> 0
A126: 1174200 | B126: -²ÛÉ µÝ³Ï³Ý å³ï×³éÝ»ñáí ëï³ó³Í íÝ³ëí³ÍùÝ»ñÇ í»ñ³Ï³Ý·ÝáõÙ | C126: 484200
A127: 1175000 | B127: 7.5 Î²è²ì²ðØ²Ü Ø²ðØÆÜÜºðÆ ¶àðÌàôÜºàôÂÚ²Ü Ðºîºì²Üøàì ²è²æ²ò²Ì ìÜ²êÜºðÆ Î²Ø ìÜ²êì²ÌøÜºðÆ ìºð²Î²Ü¶ÜàôØ | C127: x | D127: 0 | F127: 0 | G127: 0 | H127: 0 | I127: 0 | J127: 0
A128: 1175100 | B128: -Î³é³í³ñÙ³Ý Ù³ñÙÇÝÝ»ñÇ ·áñÍáõÝ»áõÃÛ³Ý Ñ»ï¨³Ýùáí ³é³ç³ó³Í íÝ³ëí³ÍùÝ»ñÇ Ï³Ù íÝ³ëÝ»ñÇ í»ñ³Ï³Ý·ÝáõÙ | C128: 485100
A129: 1176000 | B129: 7.6 ²ÚÈ Ì²Êêºð | C129: x | D129: 0 | F129: 0 | G129: 0 | H129: 0 | I129: 0 | J129: 0
A130: 1176100 | B130: -²ÛÉ Í³Ëë»ñ | C130: 486100
A131: 1177000 | B131: 7.7 ä²Ðàôêî²ÚÆÜ ØÆæàòÜºð | C131: x | D131: 0 | F131: 0 | G131: 0 | H131: 0 | I131: 0 | J131: 0
A132: 1177100 | B132: -ä³Ñáõëï³ÛÇÝ ÙÇçáóÝ»ñ | C132: 489100
A133: ---- | B133: -------
A134: 1200000 | B134: Բ, àâ-üÆÜ²Üê²Î²Ü ²ÎîÆìÜºðÆ ¶Ìàì Ì²Êêºð | C134: x | D134: 0 | F134: 0 | G134: 0 | H134: 0 | I134: 0 | J134: 0
B135: ³Û¹ ÃíáõÙ`
A136: ---- | B136: -------
A137: 1210000 | B137: 1.ÐÆØÜ²Î²Ü ØÆæàòÜºð | C137: x | D137: 0 | F137: 0 | G137: 0 | H137: 0 | I137: 0 | J137: 0
A138: 1211000 | B138: -Þ»Ýù»ñÇ ¨ ßÇÝáõÃÛáõÝÝ»ñÇ Ó»éù µ»ñáõÙ | C138: 511100
A139: 1212000 | B139: -Þ»Ýù»ñÇ ¨ ßÇÝáõÃÛáõÝÝ»ñÇ Ï³éáõóáõÙ | C139: 511200
A140: 1213000 | B140: -Þ»Ýù»ñÇ ¨ ßÇÝáõÃÛáõÝÝ»ñÇ Ï³åÇï³É í»ñ³Ýáñá·áõÙ | C140: 511300
A141: 1214000 | B141: -îñ³Ýëåáñï³ÛÇÝ ë³ñù³íáñáõÙÝ»ñ | C141: 512100
A142: 1215000 | B142: -ì³ñã³Ï³Ý ë³ñù³íáñáõÙÝ»ñ | C142: 512200
A143: 1216000 | B143: -²ÛÉ Ù»ù»Ý³Ý»ñ ¨ ë³ñù³íáñáõÙÝ»ñ | C143: 512900
A144: 1217000 | B144: -²×»óíáÕ ³ÏïÇíÝ»ñ | C144: 513100
A145: 1218000 | B145: -àã-ÝÛáõÃ³Ï³Ý ÑÇÙÝ³Ï³Ý ÙÇçáóÝ»ñ | C145: 513200
A146: 1220000 | B146: 2.ä²Þ²ðÜºð | C146: x | D146: 0 | F146: 0 | G146: 0 | H146: 0 | I146: 0 | J146: 0
A147: 1221000 | B147: -è³½Ù³í³ñ³Ï³Ý å³ß³ñÝ»ñ | C147: 521100
A148: 1222000 | B148: -ÜÛáõÃ»ñ ¨ å³ñ³·³Ý»ñ | C148: 522100
A149: 1223000 | B149: -ì»ñ³í³×³éùÇ Ñ³Ù³ñ Ý³Ë³ï»ëí³Í ³åñ³ÝùÝ»ñ | C149: 523100
A150: 1224000 | B150: -êå³éÙ³Ý Ýå³ï³Ïáí å³ÑíáÕ å³ß³ñÝ»ñ | C150: 524100
A151: 1230000 | B151: 3.´²ðÒð²ðÄºø ²ÎîÆìÜºð | C151: x | D151: 0 | F151: 0 | G151: 0 | H151: 0 | I151: 0 | J151: 0
A152: 1231000 | B152: -´³ñÓñ³ñÅ»ù ³ÏïÇíÝ»ñ | C152: 531100
A153: 1240000 | B153: 4.àâ ²ðî²¸ð²Î²Ü ԱԿՏԻՎՆԵՐ | C153: x | D153: 0 | F153: 0 | G153: 0 | H153: 0 | I153: 0 | J153: 0
A154: 1241000 | B154: -ÐáÕ | C154: 541100
A155: 1242000 | B155: -ÀÝ¹»ñù³ÛÇÝ ³ÏïÇíÝ»ñ | C155: 542100
A156: 1243000 | B156: -²ÛÉ µÝ³Ï³Ý Í³·áõÙ áõÝ»óáÕ ³ÏïÇíÝ»ñ | C156: 543100
A157: 1244000 | B157: -àã ÝÛáõÃ³Ï³Ý áã ³ñï³¹ñ³Ï³Ý ³ÏïÇíÝ»ñ | C157: 544100
A158: 1000000 | B158: ԸՆԴԱՄԵՆԸ ºÈøºð` (ïáÕ 1100000+ïáÕ1200000) | C158: x | D158: =D32 -> 2000 | E158: 0 | F158: 2000 | G158: 500 | H158: 750 | I158: 1250 | J158: 2000
A161: §17¦ § դեÏï»Ùµ»ñ ¦ 2020 Ã.
A163: ÐÆØÜ²ðÎÆ ÔºÎ²ì²ðª _______________ _________________ | G163: Է. Արշակյան
E164: (ëïáñ³·ñáõÃÛáõÝ) | G164: (².Ð.².)
A165: Î.î.
A166: üÆÜ²Üê²Î²Ü Ì²è²ÚàôÂÚ²Ü äºîª _______________ _________________ | G166: ն. Մուրադյան
B167: (¶ÈÊ²ìàð Ð²Þì²ä²Ð) | E167: (ëïáñ³·ñáõÃÛáõÝ) | G167: (².Ð.².)

Sheet anasnabyz (hidden)
I1: Ð³í»Éí³Í N 2
H3: úñÇÝ³Ï»ÉÇ Ó¨ N1
G4: h³ëï³ïí»É ¿ ÐÐ ýÇÝ³ÝëÝ»ñÇ ¨ ¿ÏáÝáÙÇÏ³ÛÇ
H5: Ý³Ë³ñ³ñÇ 23 ÑáõÉÇëÇ 2007 Ãí³Ï³ÝÇ
B6: §Ð ² ê î ² î àô Ø ºØª¦ | G6: N 597-Ü Ññ³Ù³Ýáí
A8: Ý³Ë³Ñ³ßÇíÁª 0. 0 զրո դրամ
A9: ( ÁÝ¹³Ù»ÝÁ ·áõÙ³ñÁ Ãí»ñáí ¨ ï³é»ñáí****)
A10: _______________________________________________________________________________________________________________ Ñ³½³ñ ¹ñ³Ù ·áõÙ³ñáí:
A12: __________________________________________________________________________________________ | B12: Է. Արշակյան | H12: Î.î.
A13: (ÐÐ å»ï³Ï³Ý Ï³é³í³ñÙ³Ý Ù³ñÙÝÇ Õ»Ï³í³ñÇ /Ñ³Ù³ÛÝùÇ Õ»Ï³í³ñÇ/ ëïáñ³·ñáõÃÛáõÝÁ ¨ ².Ð.².)
A14: §26 ¦ | B14: § ÑáõÉÇë ¦ 2012 Ã
B15: Ü²Ê²Ð²ÞÆì*
B16: ´ Ú àô æ º î ² Ú Æ Ü Ð Æ Ø Ü ² ð Î Æ ä ² Ð ä ² Ü Ø ² Ü Ì ² Ê ê º ð Æ
A17: §_01_¦ §ÐáõÝí³ñÇ ¦ 2013 Ã. -- §30¦ §¹»Ïï»Ùµ»ñÇ ¦ 2013 Ã. Å³Ù³Ý³Ï³Ñ³ïí³ÍÇ Ñ³Ù³ñ
A19: 1. ÐÇÙÝ³ñÏÇ ³Ýí³ÝáõÙÁ Անասնաբուժեր | G19: 8. ***** ´Ûáõç»ï³ÛÇÝ Í³Ëë»ñÇ ·áñÍ³é³Ï³Ý ¹³ë³Ï³ñ·.
G20: Í³ÍÏ³·Çñ | H20: 4 | I20: 2 | J20: 1
A21: 3. ÐÇÙÝ³ñÏÇ ï»Õ³µ³ßËÙ³Ý Ù³ñ½Ç ¨ Ñ³Ù³ÛÝùÇ Ïá¹Ý Áëï | G21: 9. Ìñ³·ñÇ ³Ýí³ÝáõÙÁ___Ï³é³í³ñÙ³Ý ³å³ñ³ï
A22: µÛáõç»ï³ÛÇÝ Í³Ëë»ñÇ ï³ñ³Íù³ÛÇÝ ¹³ë³Ï³ñ·Ù³Ý | G22: ________________________________
A23: 4. ** ÐÐ å»ï³Ï³Ý Ï³é³í³ñÙ³Ý (ï»Õ³Ï³Ý ÇÝùÝ³Ï³é³í³ñÙ³Ý) Ù³ñÙÝÇ | G23: 10. Ìñ³·ñÇ Ïá¹Á
A24: ³Ýí³ÝáõÙÁ Լոռու մարզպետարան | G24: 11.*** ÐÐ å»ï³Ï³Ý Ï³é³í³ñÙ³Ý (îÆ)
A25: 5. ÐÇÙÝ³ñÏÁ ëå³ë³ñÏáÕ ï»Õ³Ï³Ý ·³ÝÓ³å»ï³Ï³Ý µ³ÅÝÇ (î¶´) ³Ýí³ÝáõÙÁ Տաշիրի | G25: Ù³ñÙÝÇ Ïá¹Ý Áëï µÛáõç»ï³ÛÇÝ Í³Ëë»ñÇ ·»ñ³ï»ëã³Ï.
A26: 6. ÐÇÙÝ³ñÏÇª ï»Õ³Ï³Ý ·³ÝÓ³å»ï³Ï³Ý µ³ÅÝáõÙ (î¶´) Ñ³ßí³éÙ³Ý Ñ³Ù³ñÁ | G26: ¹³ë³Ï³ñ·Ù³Ý
A27: 7. üÇÝ³Ýë³íáñÙ³Ý ³ÕµÛáõñÇ Ïá¹Á (ÐÐ å»ï³Ï³Ý µÛáõç»ª 1, Ñ³Ù³ÛÝùÇ µÛáõç»ª 2) | E27: 2 | G27: 12. â³÷Ç ÙÇ³íáñÁª Ñ³½³ñ ¹ñ³Ù
A29: îáÕÇ NN | B29: ´Ûáõç»ï³ÛÇÝ Í³Ëë»ñÇ ïÝï»ë³·Çï³Ï³Ý ¹³ë³Ï³ñ·Ù³Ý ï³ññ»ñ | D29: ÜáõÛÝ Å³Ù³Ý³Ï³Ñ³ïí³ÍÇ Ñ³Ù³ñ Ý³ËÏÇÝáõÙ Ñ³ëï³ïí³Íª ·áñÍáÕ | F29: êáõÛÝ Ý³Ë³Ñ³ßíáí Ñ³ëï³ïíáÕ óáõó³ÝÇßÝ»ñÁ | G29: ³Û¹ ÃíáõÙª Áëï »é³ÙëÛ³ÏÝ»ñÇ (»é³ÙëÛ³ÏÇ ³ÙÇëÝ»ñÇ)³×áÕ³Ï³Ý
B30: ³Ýí³ÝáõÙÝ»ñÁ | C30: NN | D30: Ý³Ë³Ñ³ßíÇ óáõó³ÝÇßÝ»ñÁ | E30: Ý³Ë³Ñ³ßíáõÙ Ï³ï³ñí³Í ÷á÷áËáõÃÛáõÝ-Ý»ñÁ (³í»É³óáõÙÁª /+/, å³Ï³ë»óáõÙÁª/-/ | G30: I | H30: II | I30: III | J30: IV
A31: ² | B31: ´ | C31: ¶ | D31: 1 | E31: 2 | F31: 3 | G31: 4 | H31: 5 | I31: 6 | J31: 7
A32: 1100000 | B32: ². ÀÜÂ²òÆÎ Ì²Êêºðª ÀÜ¸²ØºÜÀ, | C32: x | D32: =D33+D42+D138 -> 0 | F32: =F33+F42+F138 -> 0 | G32: =G33+G42+G131 -> 0 | H32: =H33+H42+H131 -> 0 | I32: =I33+I42+I131 -> 0 | J32: =J33+J42+J131 -> 0
A33: 1110000 | B33: 1.äºî²Î²Ü, îºÔ²Î²Ü ÆÜøÜ²Î²è²ì²ðØ²Ü Ø²ðØÆÜÜºðÆ, ¸ð²Üò ºÜÂ²Î² ´Úàôæºî²ÚÆÜ ÐÆØÜ²ðÎÜºðÆ ²ÞÊ²îàÔÜºðÆ ²ÞÊ²î²ì²ðÒÀª ÀÜ¸²ØºÜÀ, ³Û¹ ÃíáõÙª | C33: x | D33: =D34 -> 0 | F33: =F34 -> 0 | G33: =G34 -> 0 | H33: =H34 -> 0 | I33: =I34 -> 0 | J33: =J34 -> 0
A34: 1110000 | B34: 1,1 ²ßË³ï³ÝùÇ í³ñÓ³ïñáõÃÛáõÝ | C34: x | D34: =SUM(D35:D41) -> 0 | F34: =SUM(F35:F41) -> 0 | G34: =SUM(G35:G41) -> 0 | H34: =SUM(H35:H41) -> 0 | I34: =SUM(I35:I41) -> 0 | J34: =SUM(J35:J41) -> 0
A35: 1111000 | B35: -²ßË³ïáÕÝ»ñÇ ³ßË³ï³í³ñÓ»ñ ¨ Ñ³í»É³í×³ñÝ»ñ | C35: 411100 | D35: 0 | E35: 0 | F35: =D35+E35 -> 0 | G35: 0 | H35: 0 | I35: 0 | J35: =F35 -> 0
A36: 1112000 | B36: - ä³ñ·¨³ïñáõÙÝ»ñ, ¹ñ³Ù³Ï³Ý Ëñ³ËáõëáõÙÝ»ñ ¨ Ñ³ïáõÏ í×³ñÝ»ñ | C36: 411200 | D36: 0 | F36: 0 | G36: 0 | H36: 0 | I36: 0 | J36: =F36 -> 0
A37: 1113000 | B37: -ø³Õ³ù³óÇ³Ï³Ý, ¹³ï³Ï³Ý ¨ å»ï³Ï³Ý Í³é³ÛáÕÝ»ñÇ å³ñ·¨³ïñáõÙ | C37: 411300 | J37: 0
A38: 1114000 | B38: -ÐÐ ýÇÝ³ÝëÝ»ñÇ ¨ ¿ÏáÝáÙÇÏ³ÛÇ Ý³Ë³ñ³ñáõÃÛ³Ý, Ñ³ñÏ³ÛÇÝ ¨ Ù³ùë³ÛÇÝ Ù³ñÙÇÝÝ»ñÇ ³ßË³ïáÕÝ»ñÇ å³ñ·¨³ïñáõÙ | C38: 411400 | J38: 0
A39: 1115000 | B39: -²ÛÉ í³ñÓ³ïñáõÃÛáõÝÝ»ñ | C39: 411500 | J39: 0
A40: 1116000 | B40: -´Ý»Õ»Ý ³ßË³ï³í³ñÓ»ñ ¨ Ñ³í»É³í×³ñÝ»ñ | C40: 412100 | J40: 0
A41: 1117000 | B41: - êáóÇ³É³Ï³Ý ³å³ÑáíáõÃÛ³Ý í×³ñÝ»ñ | C41: 413100 | D41: 0 | E41: 0 | F41: =D41+E41 -> 0 | G41: 0 | H41: 0 | I41: 0 | J41: =F41 -> 0
A42: 1120000 | B42: 2 Ì³é³ÛáõÃÛáõÝÝ»ñÇ ¨ ³åñ³ÝùÝ»ñÇ Ó»éù µ»ñáõÙ | C42: x | D42: =D43+D55+D66+D69+D51+D64 -> 0 | F42: =F43+F55+F66+F69+F51+F64 -> 0 | G42: =G43+G51+G55+G64+G66+G69 -> 0 | H42: =H43+H51+H55+H64+H66+H69 -> 0 | I42: =I43+I51+I55+I64+I66+I69 -> 0 | J42: =F42 -> 0
A43: 1121000 | B43: 2.1 Þ³ñáõÝ³Ï³Ï³Ý Í³Ëë»ñ | D43: =SUM(D44:D49) -> 0 | F43: =SUM(F44:F49) -> 0 | G43: =SUM(G44:G49) -> 0 | H43: =SUM(H44:H49) -> 0 | I43: =SUM(I44:I49) -> 0 | J43: =SUM(J44:J49) -> 0
A44: 1121100 | B44: -·áñÍ³éÝ³Ï³Ý ¨ µ³ÝÏ³ÛÇÝ Í³é³ÛáõÃÛáõÝÝ»ñÇ Í³Ëë»ñ | C44: 421100 | J44: 0
A45: 1121200 | B45: -¿Ý»ñ·»ïÇÏ Í³é³ÛáõÃÛáõÝÝ»ñ | C45: 421200 | D45: 0 | F45: 0 | G45: 0 | H45: 0 | I45: 0 | J45: =F45 -> 0
A46: 1121300 | B46: -ÎáÙáõÝ³É Í³é³ÛáõÃÛáõÝÝ»ñ | C46: 421300 | D46: 0 | F46: 0 | G46: 0 | H46: 0 | I46: 0 | J46: =F46 -> 0
A47: 1121400 | B47: -Î³åÇ Í³é³ÛáõÃÛáõÝÝ»ñ | C47: 421400 | D47: 0 | F47: 0 | G47: 0 | H47: 0 | I47: 0 | J47: =F47 -> 0
A48: 1121500 | B48: -²å³Ñáí³·ñ³Ï³Ý Í³Ëë»ñ | C48: 421500 | J48: 0
A49: 1121600 | B49: -¶áõÛùÇ ¨ ë³ñù³íáñáõÙÝ»ñÇ í³ñÓ³Ï³ÉáõÃÛáõÝ | C49: 421600 | J49: 0
A50: 1121700 | B50: -²ñï³·»ñ³ï»ëã³Ï³Ý Í³Ëë»ñ | C50: 421700 | J50: 0
A51: 1122000 | B51: 2.2 ¶áñÍáõÕáõÙÝ»ñÇ ¨ ßñç³·³ÛáõÃÛ³Ý Í³Ëë»ñ | C51: x | D51: =D52 -> 0 | F51: =F52 -> 0 | G51: =G52 -> 0 | H51: =H52 -> 0 | I51: =I52 -> 0 | J51: =J52 -> 0
A52: 1122100 | B52: -Ü»ñùÇÝ ·áñÍáõÕáõÙÝ»ñ | C52: 422100 | D52: 0 | F52: 0 | G52: 0 | H52: 0 | I52: 0 | J52: =F52 -> 0
A53: 1122200 | B53: -²ñï³ë³ÑÙ³ÝÛ³Ý ·áñÍáõÕáõÙÝ»ñÇ ·Íáí Í³Ëë»ñ | C53: 422200 | J53: 0
A54: 1122300 | B54: -²ÛÉ ïñ³Ýëåáñï³ÛÇÝ Í³Ëë»ñ | C54: 422900 | J54: 0
A55: 1123000 | B55: 2.3 ä³ÛÙ³Ý³·ñ³ÛÇÝ ³ÛÉ Í³é³ÛáõÃÛáõÝÝ»ñÇ Ó»éù µ»ñáõÙ | C55: x | D55: =SUM(D56:D63) -> 0 | F55: =SUM(F56:F63) -> 0 | G55: =SUM(G56:G63) -> 0 | H55: =SUM(H56:H63) -> 0 | I55: =SUM(I56:I63) -> 0 | J55: =F55 -> 0
A56: 1123100 | B56: -ì³ñã³Ï³Ý Í³é³ÛáõÃÛáõÝÝ»ñ | C56: 423100 | J56: =F56 -> 0
A57: 1123200 | B57: -Ð³Ù³Ï³ñ·ã³ÛÇÝ Í³é³ÛáõÃÛáõÝÝ»ñ | C57: 423200 | D57: 0 | F57: 0 | G57: 0 | H57: 0 | I57: 0 | J57: =F57 -> 0
A58: 1123300 | B58: -²ßË³ï³Ï³½ÙÇ Ù³ëÝ³·Çï³Ï³Ý ½³ñ·³óÙ³Ý Í³é³ÛáõÃÛáõÝÝ»ñ | C58: 423300
A59: 1123400 | B59: -î»Õ³Ï³ïí³Ï³Ý Í³é³ÛáõÃÛáõÝÝ»ñ | C59: 423400 | D59: 0 | F59: 0 | G59: 0 | H59: 0 | I59: 0 | J59: =F59 -> 0
A60: 1123500 | B60: -Î³é³í³ñã³Ï³Ý Í³é³ÛáõÃÛáõÝÝ»ñ | C60: 423500 | J60: 0
A61: 1123600 | B61: - Î»Ýó³Õ³ÛÇÝ ¨ Ñ³Ýñ³ÛÇÝ ëÝÝ¹Ç Í³é³ÛáõÃÛáõÝÝ»ñ | C61: 423600 | J61: 0
A62: 1123700 | B62: -Ü»ñÏ³Û³óáõóã³Ï³Ý Í³Ëë»ñ | C62: 423700 | D62: 0 | F62: 0 | G62: 0 | H62: 0 | I62: 0 | J62: 0
A63: 1123800 | B63: -ÀÝ¹Ñ³Ýáõñ µÝáõÛÃÇ ³ÛÉ Í³é³ÛáõÃÛáõÝÝ»ñ | C63: 423900 | D63: 0 | F63: 0 | G63: 0 | H63: 0 | I63: 0 | J63: 0
A64: 1124000 | B64: 2.4 ²ÛÉ Ù³ëÝ³·Çï³Ï³Ý Í³é³ÛáõÃÛáõÝÝ»ñÇ Ó»éù µ»ñáõÙ | C64: x | D64: =D65 -> 0 | F64: =F65 -> 0 | G64: =G65 -> 0 | H64: =H65 -> 0 | I64: =I65 -> 0 | J64: 0
A65: 1124100 | B65: -Ø³ëÝ³·Çï³Ï³Ý Í³é³ÛáõÃÛáõÝÝ»ñ | C65: 424100 | D65: 0 | F65: 0 | G65: 0 | H65: 0 | I65: 0 | J65: 0
A66: 1125000 | B66: 2.5 ÀÝÃ³óÇÏ Ýáñá·áõÙ ¨ å³Ñå³ÝáõÙ (Í³é³ÛáõÃÛáõÝÝ»ñ ¨ ÝÛáõÃ»ñ) | C66: x | D66: =D67+D68 -> 0 | F66: =F67+F68 -> 0 | G66: =G67+G68 -> 0 | H66: =H67+H68 -> 0 | I66: =I67+I68 -> 0 | J66: =J67+J68 -> 0
A67: 1125100 | B67: -Þ»Ýù»ñÇ ¨ Ï³éáõÛóÝ»ñÇ ÁÝÃ³óÇÏ Ýáñá·áõÙ ¨ å³Ñå³ÝáõÙ | C67: 425100 | J67: =F67 -> 0
A68: 1125200 | B68: -Ø»ù»Ý³Ý»ñÇ ¨ ë³ñù³íáñáõÙÝ»ñÇ ÁÝÃ³óÇÏ Ýáñá·áõÙ ¨ å³Ñå³ÝáõÙ | C68: 425200 | D68: 0 | F68: 0 | G68: 0 | H68: 0 | I68: 0 | J68: 0
A69: 1126000 | B69: 2.6 ÜÛáõÃ»ñ | C69: x | D69: =SUM(D70:D77) -> 0 | F69: =SUM(F70:F77) -> 0 | G69: =SUM(G70:G77) -> 0 | H69: =SUM(H70:H77) -> 0 | I69: =SUM(I70:I77) -> 0 | J69: 0
A70: 1126100 | B70: -¶ñ³ë»ÝÛ³Ï³ÛÇÝ ÝÛáõÃ»ñ ¨ Ñ³·áõëï | C70: 426100 | D70: 0 | F70: 0 | G70: 0 | H70: 0 | I70: 0 | J70: 0
A71: 1126200 | B71: -¶ÛáõÕ³ïÝï»ë³Ï³Ý ³åñ³ÝùÝ»ñ | C71: 426200 | J71: 0
A72: 1126300 | B72: -ì»ñ³å³ïñ³ëïÙ³Ý ¨ áõëáõóÙ³Ý ÝÛáõÃ»ñ | C72: 426300 | J72: 0
A73: 1126400 | B73: -îñ³Ýëåáñï³ÛÇÝ ÝÛáõÃ»ñ | C73: 426400 | D73: 0 | F73: 0 | G73: 0 | H73: 0 | I73: 0 | J73: 0
A74: 1126500 | B74: -Þñç³Ï³ ÙÇç³í³ÛñÇ å³ßïå³ÝáõÃÛ³Ý ¨ ·Çï³Ï³Ý ÝÛáõÃ»ñ | C74: 426500 | J74: 0
A75: 1126600 | B75: -²éáÕç³å³Ñ³Ï³Ý ¨ É³µáñ³ïáñ ÝÛáõÃ»ñ | C75: 426600 | J75: =F75 -> 0
A76: 1126700 | B76: -Î»Ýó³Õ³ÛÇÝ ¨ Ñ³Ýñ³ÛÇÝ ëÝÝ¹Ç ÝÛáõÃ»ñ | C76: 426700 | D76: 0 | F76: 0 | G76: 0 | H76: 0 | I76: 0 | J76: =F76 -> 0
A77: 1126800 | B77: -Ð³ïáõÏ Ýå³ï³Ï³ÛÇÝ ³ÛÉ ÝÛáõÃ»ñ | C77: 426900 | D77: 0 | F77: 0 | G77: 0 | H77: 0 | I77: 0 | J77: =F77 -> 0
A78: 1130000 | B78: 3 îáÏáë³í×³ñÝ»ñ | C78: x | D78: 0 | F78: 0 | G78: 0 | H78: 0 | I78: 0 | J78: 0
A79: 1130100 | B79: -Ü»ñùÇÝ ³ñÅ»ÃÕÃ»ñÇ ïáÏáë³í×³ñÝ»ñ | C79: 441100 | J79: 0
A80: 1130200 | B80: -Ü»ñùÇÝ í³ñÏ»ñÇ ïáÏáë³í×³ñÝ»ñ | C80: 441200 | J80: 0
A81: 1130300 | B81: -²ñï³ùÇÝ ³ñÅ»ÃÕÃ»ñÇ ·Íáí ïáÏáë³í×³ñÝ»ñ | C81: 442100 | J81: 0
A82: 1130400 | B82: -²ñï³ùÇÝ í³ñÏ»ñÇ ·Íáí ïáÏáë³í×³ñÝ»ñ | C82: 442200 | J82: 0
A83: 1131000 | B83: öáË³éáõÃÛáõÝÝ»ñÇ Ñ»ï Ï³åí³Í í×³ñÝ»ñ | C83: x | J83: 0
A84: 1131100 | B84: -öáË³Ý³ÏÙ³Ý Ïáõñë»ñÇ µ³ó³ë³Ï³Ý ï³ñµ»ñáõÃÛáõÝ | C84: 443100 | J84: 0
A85: 1131200 | B85: -îáõÛÅ»ñ | C85: 443200 | J85: 0
A86: 1131300 | B86: -öáË³éáõÃÛáõÝÝ»ñÇ ·Íáí ïáõñù»ñ | C86: 443300 | J86: 0
A87: 1140000 | B87: 4. êáõµëÇ¹Ç³Ý»ñ | C87: x | D87: 0 | F87: 0 | G87: 0 | H87: 0 | I87: 0 | J87: 0
A88: 1141000 | B88: -êáõµëÇ¹Ç³Ý»ñ áã-ýÇÝ³Ýë³Ï³Ý å»ï³Ï³Ý Ï³½Ù³Ï»ñåáõÃÛáõÝÝ»ñÇÝ | C88: 451100 | J88: 0
A89: 1142000 | B89: -êáõµëÇ¹Ç³Ý»ñ ýÇÝ³Ýë³Ï³Ý å»ï³Ï³Ý Ï³½Ù³Ï»ñåáõÃÛáõÝÝ»ñÇÝ | C89: 451200 | J89: 0
A90: 1143000 | B90: -êáõµëÇ¹Ç³Ý»ñ áã å»ï³Ï³Ý áã ýÇÝ³Ýë³Ï³Ý Ï³½Ù³Ï»ñåáõÃÛáõÝÝ»ñÇÝ | C90: 452100 | J90: 0
A91: 1144000 | B91: -êáõµëÇ¹Ç³Ý»ñ áã å»ï³Ï³Ý ýÇÝ³Ýë³Ï³Ý Ï³½Ù³Ï»ñåáõÃÛáõÝÝ»ñÇÝ | C91: 452200 | J91: 0
A92: 1150000 | B92: 5.¸ñ³Ù³ßÝáñÑÝ»ñ | C92: x | D92: 0 | F92: 0 | G92: 0 | H92: 0 | I92: 0 | J92: 0
A93: 1151000 | B93: ¸ñ³Ù³ßÝáñÑÝ»ñ ûï³ñ»ñÏñÛ³ Ï³é³í³ñáõÃÛáõÝÝ»ñÇÝ | C93: x | D93: 0 | F93: 0 | G93: 0 | H93: 0 | I93: 0 | J93: 0
A94: 1151100 | B94: ÀÝÃ³óÇÏ ¹ñ³Ù³ßÝáñÑÝ»ñ ûï³ñ»ñÏñÛ³ Ï³é³í³ñáõÃÛáõÝÝ»ñÇÝ | C94: 461100 | J94: 0
A95: 1151200 | B95: Î³åÇï³É ¹ñ³Ù³ßÝáñÑÝ»ñ ûï³ñ»ñÏñÛ³ Ï³é³í³ñáõÃÛáõÝÝ»ñÇÝ | C95: 461200 | J95: 0
A96: 1152000 | B96: ¸ñ³Ù³ßÝáñÑÝ»ñ ÙÇç³½·³ÛÇÝ Ï³½Ù³Ï»ñåáõÃÛáõÝÝ»ñÇÝ | C96: x | D96: 0 | F96: 0 | G96: 0 | H96: 0 | I96: 0 | J96: 0
A97: 1152100 | B97: ÀÝÃ³óÇÏ ¹ñ³Ù³ßÝáñÑÝ»ñ ÙÇç³½·³ÛÇÝ Ï³½Ù³Ï»ñåáõÃÛáõÝÝ»ñÇÝ | C97: 462100 | J97: 0
A98: 1152200 | B98: Î³åÇï³É ¹ñ³Ù³ßÝáñÑ»ñ ÙÇç³½·³ÛÇÝ Ï³½Ù³Ï»ñåáõÃÛáõÝÝ»ñÇÝ | C98: 462200 | J98: 0
A99: 1153000 | B99: ÀÝÃ³óÇÏ ¹ñ³Ù³ßÝáñÑÝ»ñ å»ï³Ï³Ý Ñ³ïí³ÍÇ ³ÛÉ Ù³Ï³ñ¹³ÏÝ»ñÇÝ | C99: x | D99: 0 | F99: 0 | G99: 0 | H99: 0 | I99: 0 | J99: 0
A100: 1153100 | B100: ÀÝÃ³óÇÏ ¹ñ³Ù³ßÝáñÑÝ»ñ å»ï³Ï³Ý Ï³é³í³ñÙ³Ý Ñ³ïí³ÍÇÝ | C100: 463100 | J100: 0
A101: 1153200 | B101: ÀÝÃ³óÇÏ ëáõµí»ÝóÇ³Ý»ñ Ñ³Ù³ÛÝùÝ»ñÇÝ | C101: 463200 | J101: 0
A102: 1153300 | B102: ä»ï³Ï³Ý µÛáõç»Çó Ñ³Ù³ÛÝùÝ»ñÇ µÛáõç»Ý»ñÇÝ ýÇÝ³Ýë³Ï³Ý Ñ³Ù³Ñ³ñÃ»óÙ³Ý ëÏ½µáõÝùáí ïñíáÕ ¹áï³óÇ³Ý»ñ | C102: 463300 | J102: 0
A103: 1153400 | B103: úñ»ÝùÝ»ñÇ ÏÇñ³ñÏÙ³Ý ³ñ¹ÛáõÝùáõÙ Ñ³Ù³ÛÝùÝ»ñÇ µÛáõç»Ý»ñÇ ÏáñáõëïÝ»ñÇ ÷áËÑ³ïáõóáõÙ | C103: 463400 | J103: 0
A104: 1153500 | B104: ²ÛÉ ÁÝÃ³óÇÏ ¹ñ³Ù³ßÝáñÑÝ»ñ Ñ³Ù³ÛÝùÝ»ñÇÝ | C104: 463500 | J104: 0
A105: 1153700 | B105: ÀÝÃ³óÇÏ ¹ñ³Ù³ßÝáñÑÝ»ñ å»ï³Ï³Ý ¨ Ñ³Ù³ÛÝùÝ»ñÇ áã ³é¨ïñ³ÛÇÝ Ï³½Ù³Ï»ñåáõÃÛáõÝÝ»ñÇÝ | C105: 463700 | J105: 0
A106: 1153800 | B106: ÀÝÃ³óÇÏ ¹ñ³Ù³ßÝáñÑÝ»ñ å»ï³Ï³Ý ¨ Ñ³Ù³ÛÝùÝ»ñÇ ³é¨ïñ³ÛÇÝ Ï³½Ù³Ï»ñåáõÃÛáõÝÝ»ñÇÝ | C106: 463800 | J106: 0
A107: 1153900 | B107: ²ÛÉ ÁÝÃ³óÇÏ ¹ñ³Ù³ßÝáñÑÝ»ñ | C107: 463900 | J107: 0
A108: 1154000 | B108: Î³åÇï³É ¹ñ³Ù³ßÝáñÑÝ»ñ å»ï³Ï³Ý Ñ³ïí³ÍÇ ³ÛÉ Ù³Ï³ñ¹³ÏÝ»ñÇÝ | C108: x | D108: 0 | F108: 0 | G108: 0 | H108: 0 | I108: 0 | J108: 0
A109: 1154100 | B109: Î³åÇï³É ¹ñ³Ù³ßÝáñÑÝ»ñ å»ï³Ï³Ý Ï³é³í³ñÙ³Ý Ñ³ïí³ÍÇÝ | C109: 465100 | J109: 0
A110: 1154200 | B110: Î³åÇï³É ëáõµí»ÝóÇ³Ý»ñ Ñ³Ù³ÛÝùÝ»ñÇÝ | C110: 465200 | J110: 0
A111: 1154300 | B111: ²ÛÉ Ï³åÇï³É ¹ñ³Ù³ßÝáñÑÝ»ñ Ñ³Ù³ÛÝùÝ»ñÇÝ | C111: 465300 | J111: 0
A112: 1154500 | B112: Î³åÇï³É ¹ñ³Ù³ßÝáñÑÝ»ñ å»ï³Ï³Ý ¨ Ñ³Ù³ÛÝùÝ»ñÇ áã ³é¨ïñ³ÛÇÝ Ï³½Ù³Ï»ñåáõÃÛáõÝÝ»ñÇÝ | C112: 465500 | J112: 0
A113: 1154600 | B113: Î³åÇï³É ¹ñ³Ù³ßÝáñÑÝ»ñ å»ï³Ï³Ý ¨ Ñ³Ù³ÛÝù³ÛÇÝ ³é¨ïñ³ÛÇÝ Ï³½Ù³Ï»ñåáõÃÛáõÝÝ»ñÇÝ | C113: 465600 | J113: 0
A114: 1154700 | B114: ²ÛÉ Ï³åÇï³É ¹ñ³Ù³ßÝáñÑÝ»ñ | C114: 465700 | J114: 0
A115: 1160000 | B115: 6. êàòÆ²È²Î²Ü Üä²êîÜºð ºì ÎºÜê²ÂàÞ²ÎÜºð | C115: x | D115: 0 | F115: 0 | G115: 0 | H115: 0 | I115: 0 | J115: 0
A116: 1161000 | B116: 6.1 êàòÆ²È²Î²Ü ²ä²ÐàìàôÂÚ²Ü Üä²êîÜºð | C116: x | D116: 0 | F116: 0 | G116: 0 | H116: 0 | I116: 0 | J116: 0
A117: 1161100 | B117: -îÝ³ÛÇÝ ïÝï»ëáõÃÛáõÝÝ»ñÇÝ ¹ñ³Ùáí í×³ñíáÕ ëáóÇ³É³Ï³Ý ³å³ÑáíáõÃÛ³Ý í×³ñÝ»ñ | C117: 471100 | J117: 0
A118: 1161200 | B118: -êáóÇ³É³Ï³Ý ³å³ÑáíáõÃÛ³Ý µÝ»Õ»Ý Ýå³ëïÝ»ñ Í³é³ÛáõÃÛáõÝÝ»ñ Ù³ïáõóáÕÝ»ñÇÝ | C118: 471200 | J118: 0
A119: 1162000 | B119: 6.2 êàòÆ²È²Î²Ü ú¶ÜàôÂÚ²Ü ¸ð²Ø²Î²Ü ²ðî²Ð²ÚîàôÂÚ²Ø´ Üä²êîÜºð (´ÚàôæºÆò) | C119: x | D119: 0 | F119: 0 | G119: 0 | H119: 0 | I119: 0 | J119: 0
A120: 1162100 | B120: -ÐÇí³Ý¹áõÃÛ³Ý ¨ Ñ³ßÙ³Ý¹³ÙáõÃÛ³Ý Ýå³ëïÝ»ñ µÛáõç»Çó | C120: 472100 | J120: 0
A121: 1162200 | B121: -Ø³ÛñáõÃÛ³Ý Ýå³ëïÝ»ñ µÛáõç»Çó | C121: 472200 | J121: 0
A122: 1162300 | B122: -ºñ»Ë³Ý»ñÇ Ï³Ù ÁÝï³Ý»Ï³Ý Ýå³ëïÝ»ñ µÛáõç»Çó | C122: 472300 | J122: 0
A123: 1162400 | B123: -¶áñÍ³½ñÏáõÃÛ³Ý Ýå³ëïÝ»ñ µÛáõç»Çó | C123: 472400 | J123: 0
A124: 1162500 | B124: -Î»Ýë³Ãáß³ÏÇ ³ÝóÝ»Éáõ Ñ»ï Ï³åí³Í ¨ ï³ñÇù³ÛÇÝ Ýå³ëïÝ»ñ µÛáõç»Çó | C124: 472500 | J124: 0
A125: 1162600 | B125: -ÐáõÕ³ñÏ³íáñáõÃÛ³Ý Ýå³ëïÝ»ñ µÛáõç»Çó | C125: 472600 | J125: 0
A126: 1162700 | B126: -ÎñÃ³Ï³Ý, Ùß³ÏáõÃ³ÛÇÝ ¨ ëåáñï³ÛÇÝ Ýå³ëïÝ»ñ µÛáõç»Çó | C126: 472700 | J126: 0
A127: 1162800 | B127: -´Ý³Ï³ñ³Ý³ÛÇÝ Ýå³ëïÝ»ñ µÛáõç»Çó | C127: 472800 | J127: 0
A128: 1162900 | B128: -²ÛÉ Ýå³ëïÝ»ñ µÛáõç»Çó | C128: 472900 | J128: 0
A129: 1163000 | B129: 6.3 ÎºÜê²ÂàÞ²ÎÜºð | C129: x | D129: 0 | F129: 0 | G129: 0 | H129: 0 | I129: 0 | J129: 0
A130: 1163100 | B130: -Ï»Ýë³Ãáß³ÏÝ»ñ | C130: 474100 | J130: 0
A131: 1170000 | B131: 7. ²ÚÈ Ì²Êêºð | C131: x | D131: =D135 -> 0 | F131: =F135 -> 0 | G131: =G135 -> 0 | H131: =H135 -> 0 | I131: =I135 -> 0 | J131: =J135 -> 0
A132: 1171000 | B132: 7.1 ÜìÆð²îìàôÂÚàôÜÜºð àâ-Î²è²ì²ðâ²Î²Ü (Ð²ê²ð²Î²Î²Ü) Î²¼Ø²ÎºðäàôÂÚàôÜÜºðÆÜ | C132: x | D132: 0 | F132: 0 | G132: 0 | H132: 0 | I132: 0 | J132: 0
A133: 1171100 | B133: -îÝ³ÛÇÝ ïÝï»ëáõÃÛáõÝÝ»ñÇÝ Í³é³ÛáõÃÛáõÝÝ»ñ Ù³ïáõóáÕ` ß³ÑáõÛÃ ãÑ»ï³åÝ¹áÕ Ï³½Ù³Ï»ñåáõÃÛáõÝÝ»ñÇÝ ÝíÇñ³ïíáõÃÛáõÝÝ»ñ | C133: 481100 | J133: 0
A134: 1171200 | B134: -ÜíÇñ³ïíáõÃÛáõÝÝ»ñ ³ÛÉ ß³ÑáõÛÃ ãÑ»ï³åÝ¹áÕ Ï³½Ù³Ï»ñåáõÃÛáõÝÝ»ñÇÝ | C134: 481900 | J134: 0
A135: 1172000 | B135: 7.2 Ð²ðÎºð, ä²ðî²¸Æð ìÖ²ðÜºð ºì îàôÚÄºð, àðàÜø Î²è²ì²ðØ²Ü î²ð´ºð Ø²Î²ð¸²ÎÜºðÆ ÎàÔØÆò ÎÆð²èìàôØ ºÜ ØÆØÚ²Üò ÜÎ²îØ²Ø´ | C135: x | D135: =D137+D138 -> 0 | F135: =F137+F138 -> 0 | G135: =G137+G138 -> 0 | H135: =H137+H138 -> 0 | I135: =I137+I138 -> 0 | J135: =F135 -> 0
A136: 1172100 | B136: -²ßË³ï³í³ñÓÇ ýáÝ¹ | C136: 482100 | J136: 0
A137: 1172200 | B137: -²ÛÉ Ñ³ñÏ»ñ | C137: 482200 | D137: 0 | F137: 0 | G137: 0 | H137: 0 | I137: 0 | J137: =F137 -> 0
A138: 1172300 | B138: -ä³ñï³¹Çñ í×³ñÝ»ñ | C138: 482300 | D138: 0 | F138: 0 | G138: 0 | H138: 0 | I138: 0 | J138: =F138 -> 0
A139: 1172400 | B139: -ä»ï³Ï³Ý Ñ³ïí³ÍÇ ï³ñµ»ñ Ù³Ï³ñ¹³ÏÝ»ñÇ ÏáÕÙÇó ÙÇÙÛ³Ýó ÝÏ³ïÙ³Ùµ ÏÇñ³éíáÕ ïáõÛÅ»ñ | C139: 482400 | J139: 0
A140: 1173000 | B140: 7.3 ¸²î²ð²ÜÜºðÆ ÎàÔØÆò ÜÞ²Ü²Îì²Ì îàôÚÄºð ºì îàô¶²ÜøÜºð | C140: x | D140: 0 | F140: 0 | G140: 0 | H140: 0 | I140: 0 | J140: 0
A141: 1173100 | B141: -¸³ï³ñ³ÝÝ»ñÇ ÏáÕÙÇó Ýß³Ý³Ïí³Í ïáõÛÅ»ñ ¨ ïáõ·³ÝùÝ»ñ | C141: 483100 | J141: 0
A142: 1174000 | B142: 7.4 ´Ü²Î²Ü ²ÔºîÜºðÆò Î²Ø ²ÚÈ ´Ü²Î²Ü ä²îÖ²èÜºðàì ²è²æ²ò²Ì ìÜ²êÜºðÆ Î²Ø ìÜ²êì²ÌøÜºðÆ ìºð²Î²Ü¶ÜàôØ | C142: x | D142: 0 | F142: 0 | G142: 0 | H142: 0 | I142: 0 | J142: 0
A143: 1174100 | B143: -´Ý³Ï³Ý ³Õ»ïÝ»ñÇó ³é³ç³ó³Í íÝ³ëí³ÍùÝ»ñÇ Ï³Ù íÝ³ëÝ»ñÇ í»ñ³Ï³Ý·ÝáõÙ | C143: 484100 | J143: 0
A144: 1174200 | B144: -²ÛÉ µÝ³Ï³Ý å³ï×³éÝ»ñáí ëï³ó³Í íÝ³ëí³ÍùÝ»ñÇ í»ñ³Ï³Ý·ÝáõÙ | C144: 484200 | J144: 0
A145: 1175000 | B145: 7.5 Î²è²ì²ðØ²Ü Ø²ðØÆÜÜºðÆ ¶àðÌàôÜºàôÂÚ²Ü Ðºîºì²Üøàì ²è²æ²ò²Ì ìÜ²êÜºðÆ Î²Ø ìÜ²êì²ÌøÜºðÆ ìºð²Î²Ü¶ÜàôØ | C145: x | D145: 0 | F145: 0 | G145: 0 | H145: 0 | I145: 0 | J145: 0
A146: 1175100 | B146: -Î³é³í³ñÙ³Ý Ù³ñÙÇÝÝ»ñÇ ·áñÍáõÝ»áõÃÛ³Ý Ñ»ï¨³Ýùáí ³é³ç³ó³Í íÝ³ëí³ÍùÝ»ñÇ Ï³Ù íÝ³ëÝ»ñÇ í»ñ³Ï³Ý·ÝáõÙ | C146: 485100 | J146: 0
A147: 1176000 | B147: 7.6 ²ÚÈ Ì²Êêºð | C147: x | D147: 0 | F147: 0 | G147: 0 | H147: 0 | I147: 0 | J147: 0
A148: 1176100 | B148: -²ÛÉ Í³Ëë»ñ | C148: 486100 | J148: 0
A149: 1177000 | B149: 7.7 ä²Ðàôêî²ÚÆÜ ØÆæàòÜºð | C149: x | D149: 0 | F149: 0 | G149: 0 | H149: 0 | I149: 0 | J149: 0
A150: 1177100 | B150: -ä³Ñáõëï³ÛÇÝ ÙÇçáóÝ»ñ | C150: 489100 | J150: 0
A151: 1200000 | B151: Բ, àâ-üÆÜ²Üê²Î²Ü ²ÎîÆìÜºðÆ ¶Ìàì Ì²Êêºð | C151: x | G151: =G152 -> 0 | H151: =H152 -> 0 | I151: =I152 -> 0 | J151: =F152 -> 0
A152: 1210000 | B152: 1.ÐÆØÜ²Î²Ü ØÆæàòÜºð | C152: x | D152: =SUM(D153:D162) -> 0 | F152: =SUM(F153:F162) -> 0 | G152: =SUM(G153:G162) -> 0 | H152: =SUM(H153:H162) -> 0 | I152: =SUM(I153:I162) -> 0 | J152: =F152 -> 0
A153: 1211000 | B153: -Þ»Ýù»ñÇ ¨ ßÇÝáõÃÛáõÝÝ»ñÇ Ó»éù µ»ñáõÙ | C153: 511100 | J153: =F153 -> 0
A154: 1212000 | B154: -Þ»Ýù»ñÇ ¨ ßÇÝáõÃÛáõÝÝ»ñÇ Ï³éáõóáõÙ | C154: 511200 | J154: =F154 -> 0
A155: 1213000 | B155: -Þ»Ýù»ñÇ ¨ ßÇÝáõÃÛáõÝÝ»ñÇ Ï³åÇï³É í»ñ³Ýáñá·áõÙ | C155: 511300 | D155: 0 | F155: 0 | G155: 0 | H155: 0 | I155: 0 | J155: =F155 -> 0
A156: 1214000 | B156: -îñ³Ýëåáñï³ÛÇÝ ë³ñù³íáñáõÙÝ»ñ | C156: 512100 | J156: 0
A157: 1215000 | B157: -ì³ñã³Ï³Ý ë³ñù³íáñáõÙÝ»ñ | C157: 512200 | D157: 0 | F157: 0 | I157: 0 | J157: =F157 -> 0
A158: 1216000 | B158: -²ÛÉ Ù»ù»Ý³Ý»ñ ¨ ë³ñù³íáñáõÙÝ»ñ | C158: 512900 | J158: 0
A159: 1217000 | B159: -²×»óíáÕ ³ÏïÇíÝ»ñ | C159: 513100 | J159: 0
A160: 1218100 | B160: -àã-ÝÛáõÃ³Ï³Ý ÑÇÙÝ³Ï³Ý ÙÇçáóÝ»ñ | C160: 513200 | J160: 0
A161: 1218200 | B161: -¶»á¹»½Ç³Ï³Ý ù³ñï»½³·ñ³Ï³Ý Í³Ëë»ñ | C161: 513300 | J161: 0
A162: 1218300 | B162: -Ü³Ë³·Í³Ñ»ï³½áï³Ï³Ý Í³Ëë»ñ | C162: 513400 | J162: 0
A163: 1220000 | B163: 2.ä²Þ²ðÜºð | C163: x | D163: 0 | F163: 0 | G163: 0 | H163: 0 | I163: 0 | J163: 0
A164: 1221000 | B164: -è³½Ù³í³ñ³Ï³Ý å³ß³ñÝ»ñ | C164: 521100 | J164: 0
A165: 1222000 | B165: -ÜÛáõÃ»ñ ¨ å³ñ³·³Ý»ñ | C165: 522100 | J165: 0
A166: 1223000 | B166: -ì»ñ³í³×³éùÇ Ñ³Ù³ñ Ý³Ë³ï»ëí³Í ³åñ³ÝùÝ»ñ | C166: 523100 | J166: 0
A167: 1224000 | B167: -êå³éÙ³Ý Ýå³ï³Ïáí å³ÑíáÕ å³ß³ñÝ»ñ | C167: 524100 | J167: 0
A168: 1230000 | B168: 3.´²ðÒð²ðÄºø ²ÎîÆìÜºð | C168: x | D168: 0 | F168: 0 | G168: 0 | H168: 0 | I168: 0 | J168: 0
A169: 1231000 | B169: -´³ñÓñ³ñÅ»ù ³ÏïÇíÝ»ñ | C169: 531100 | J169: 0
A170: 1240000 | B170: 4.â²ðî²¸ðì²Ì ԱԿՏԻՎՆԵՐ | C170: x | D170: 0 | F170: 0 | G170: 0 | H170: 0 | I170: 0 | J170: 0
A171: 1241000 | B171: -ÐáÕ | C171: 541100 | J171: 0
A172: 1242000 | B172: -ÀÝ¹»ñù³ÛÇÝ ³ÏïÇíÝ»ñ | C172: 542100
A173: 1243000 | B173: -²ÛÉ µÝ³Ï³Ý Í³·áõÙ áõÝ»óáÕ ³ÏïÇíÝ»ñ | C173: 543100
A174: 1244000 | B174: -àã ÝÛáõÃ³Ï³Ý ã³ñï³¹ñí³Í ³ÏïÇíÝ»ñ | C174: 544100
A175: 1000000 | B175: ԸՆԴԱՄԵՆԸ ԾԱԽՍԵՐ` | C175: x | D175: =D32+D151 -> 0 | F175: =F32+F151 -> 0 | G175: =G32+G151 -> 0 | H175: =H32+H151 -> 0 | I175: =I32+I151 -> 0 | J175: =J32+J151 -> 0
A177: §22¦ § դեÏï»Ùµ»ñ ¦ 2017 Ã.
A179: ÐÆØÜ²ðÎÆ ÔºÎ²ì²ðª _______________ Է. Արշակյան _________________
A180: (ëïáñ³·ñáõÃÛáõÝ) (².Ð.².)
A181: Î.î.
A183: üÆÜ²Üê²Î²Ü Ì²è²ÚàôÂÚ²Ü äºîª ________________ Ն.Մուրադյան ___________________
A184: (¶ÈÊ²ìàð Ð²Þì²ä²Ð) (ëïáñ³·ñáõÃÛáõÝ) (².Ð.².)
A202: 5.5 áñ¨¿ ³Ùëí³ Ýáñ Ý³Ë³Ñ³ßíÇª 3-ñ¹ ëÛáõÝ³ÏáõÙ Ý»ñÏ³Û³óíáõÙ »Ý ïíÛ³É µÛáõç»ï³ÛÇÝ ï³ñí³ Ñ³Ù³å³ï³ëË³Ý ³Ùëí³ óáõó³ÝÇßÝ»ñÁ, ÇëÏ 4-Çó 7-ñ¹ ëÛáõÝ³ÏÝ»ñÁ ã»Ý Éñ³óíáõÙ:
A203: ** Ì²ÜàÂ²¶ðàôÂÚàôÜ II. N 1 ûñÇÝ³Ï»ÉÇ Ó¨Ç Ýßí³Í ïáÕÁ ÐÐ å»ï³Ï³Ý Ï³é³í³ñÙ³Ý ¨ ï»Õ³Ï³Ý ÇÝùÝ³Ï³é³í³ñÙ³Ý í»ñ³¹³ë Ù³ñÙÇÝÝ»ñÁ ã»Ý Éñ³óÝáõÙ:
A204: *** Ì²ÜàÂ²¶ðàôÂÚàôÜ III. N 1 ûñÇÝ³Ï»ÉÇ Ó¨Ç Ýßí³Í ïáÕÁ ÐÐ å»ï³Ï³Ý Ï³é³í³ñÙ³Ý ¨ ï»Õ³Ï³Ý ÇÝùÝ³Ï³é³í³ñÙ³Ý Ù³ñÙÇÝÝ»ñÁ Éñ³óÝáõÙ »Ý Çñ»Ýó Ñ³Ù³ñ µÛáõç»ï³ÛÇÝ Í³Ëë»ñÇ ·»ñ³ï»ëã³Ï³Ý ¹³ë³Ï³ñ·Ù³Ùµ ë³ÑÙ³Ý³Í Ïá¹Á:
A205: **** Ì²ÜàÂ²¶ðàôÂÚàôÜ IV. N 1 ûñÇÝ³Ï»ÉÇ Ó¨Ç Ýßí³Í ïáÕÁª ³ÝÏ³Ë Ýñ³ÝÇó, Ã» Ýáñ Ý³Ë³Ñ³ßÇíÁ áñ ¹»åùáõÙ ¿ Ñ³ëï³ïíáõÙ, Éñ³óíáõÙ ¿ N 1 ûñÇÝ³Ï»ÉÇ Ó¨Ç ³ÕÛáõë³ÏÇ §²¦ ëÛáõÝ³ÏáõÙ ³Ùñ³·ñí³Í N 1000000 (§ÀÝ¹³Ù»ÝÁ
A206: Í³Ëë»ñ¦) ïáÕÇ 3-ñ¹ ëÛáõÝ³ÏáõÙ µ»ñí³Í óáõó³ÝÇßÇ ·áõÙ³ñáí (Ãí»ñáí ¨ ï³é»ñáí):
A207: ***** Ì²ÜàÂ²¶ðàôÂÚàôÜ V. N 1 ûñÇÝ³Ï»ÉÇ Ó¨Ç Ýßí³Í ïáÕÁ Éñ³óíáõÙ ¿ Ññ³Ù³Ýáí Ñ³ëï³ïí³Í N 11 Ñ³í»Éí³ÍÇ` §´Ûáõç»ï³ÛÇÝ Í³Ëë»ñÇ ·áñÍ³é³Ï³Ý ¹³ë³Ï³ñ·áõÙ¦, ï³ññ»ñÇÝ Ñ³Ù³å³ï³ëË³Ý` µ³ÅÇÝ (2 ÝÇß), ËáõÙµ(1ÝÇß) ¨ ¹³ë (1ÝÇß):
A208: §__¦ §________________¦ 200_ Ã.
A210: ÐÆØÜ²ðÎÆ ÔºÎ²ì²ðª _______________ _________________
A211: (ëïáñ³·ñáõÃÛáõÝ) (².Ð.².)
A212: Î.î.
A214: üÆÜ²Üê²Î²Ü Ì²è²ÚàôÂÚ²Ü äºîª ________________ ___________________
A215: (¶ÈÊ²ìàð Ð²Þì²ä²Ð) (ëïáñ³·ñáõÃÛáõÝ) (².Ð.².)

Sheet subv gux (hidden)
F1: Ð³í»Éí³Í N 4
F3: úñÇÝ³Ï»ÉÇ Ó¨ N 3
F4: Ð³ëï³ïí»É ¿ ÐÐ ýÇÝ³ÝëÝ»ñÇ ¨ ¿ÏáÝáÙÇÏ³ÛÇ
B5: §Ð ² ê î ² î àô Ø ºØª¦ | G5: Ý³Ë³ñ³ñÇ 23 ÑáõÉÇëÇ 2007 Ãí³Ï³ÝÇ
F6: N 597-Ü Ññ³Ù³Ýáí
A7: Ý³Ë³Ñ³ßÇíÁ 15000,0 տասնհինգ միլիոն դրամ
A8: ( ÁÝ¹³Ù»ÝÁ ·áõÙ³ñÁ Ãí»ñáí ¨ ï³é»ñáí****)
A9: ___________________________________________________________________ Ñ³½³ñ ¹ñ³Ù ·áõÙ³ñáí:
A11: ______________________________________Է.Արշակյան___________________________________ | G11: Î.î.
A12: (ÐÐ å»ï³Ï³Ý Ï³é³í³ñÙ³Ý Ï³Ù ï»Õ³Ï³Ý ÇÝùÝ³Ï³é³í³ñÙ³Ý Ù³ñÙÝÇ Õ»Ï³í³ñÇ ëïáñ³·ñáõÃÛáõÝÁ ¨ ².Ð.².)
A13: § ¦ դեկտեմբերի 2020թ
A14: Ü ² Ê ² Ð ² Þ Æ ì*
A15: ÐÇÙÝ³ñÏÝ»ñÇ ÏáÕÙÇó µÛáõç»ï³ÛÇÝ Ñ³ïÏ³óáõÙÝ»ñÇ Ñ³ßíÇÝ Çñ³Ï³Ý³óíáÕ Í³Ëë»ñÇ (»Éù»ñÇ) ³é³ÝÓÇÝ ï»ë³ÏÝ»ñÇ
A16: ¥Áëï ïÝï»ë³·Çï³Ï³Ý ¹³ë³Ï³ñ·Ù³Ý Ñá¹í³ÍÝ»ñÇ¤
A17: §01¦ §ÐáõÝí³ñÇ ¦ 2021 Ã. -- §30¦ §¹»Ïï»Ùµ»ñÇ ¦ 2021 Ã.
A19: 1. ÐÇÙÝ³ñÏÇ ³Ýí³ÝáõÙÁ î³ßÇñÇ ù³Õ³ù³å»ï³ñ³Ý | F19: 8.***** ´Ûáõç»ï³ÛÇÝ Í³Ëë»ñÇ ·áñÍ³é³Ï³Ý ¹³ë³Ï³ñ·Ù³Ý
A20: 2. öáëï³ÛÇÝ Ñ³ëó»Ý ù. î³ßÇñ | F20: Í³ÍÏ³·Çñ | G20: 04 | H20: 2 | I20: 1
A21: 3. ÐÇÙÝ³ñÏÇ ï»Õ³µ³ßËÙ³Ý Ù³ñ½Ç ¨ Ñ³Ù³ÛÝùÇ Ïá¹Á
A22: Áëï µÛáõç»ï³ÛÇÝ Í³Ëë»ñÇ ï³ñ³Íù³ÛÇÝ ¹³ë³Ï³ñ·Ù³Ý | F22: 9. Ìñ³·ñÇ ³Ýí³ÝáõÙÁ _ճանապարային տրանսպորտ սուբվեն
A23: 4. ** ä»ï³Ï³Ý Ï³é³í³ñÙ³Ý (ï»Õ³Ï³Ý ÇÝùÝ³Ï³é³í³ñÙ³Ý) Ù³ñÙÝÇ ³Ýí³ÝáõÙÁ | F23: 10. Ìñ³·ñÇ Ïá¹Á 51
A24: _______________________________________________________________________________________ | F24: 11. *** ä»ï³Ï³Ý Ï³é³í³ñÙ³Ý (ï»Õ³Ï³Ý .ÇÝù ÇÝùÝ³Ï³é³í³ñÙ³Ý)Ù³ñÙÇÝÝ»ñÇ ·»ñ³ï»ëã³Ï³Ý Ïá¹Á
A25: 5. ÐÇÙÝ³ñÏÁ ëå³ë³ñÏáÕ ï»Õ³Ï³Ý ·³ÝÓ³å»ï³Ï³Ý µ³ÅÝÇ (î¶´) ³Ýí³ÝáõÙÁ _Տաշիրի
A26: 6. ÐÇÙÝ³ñÏÇª ï»Õ³Ï³Ý ·³ÝÓ³å»ï³Ï³Ý µ³ÅÝáõÙ (î¶´) Ñ³ßí³éÙ³Ý Ñ³Ù³ñÁ
A27: 7. Ì³Ëë»ñÇ ýÇÝ³Ýë³íáñÙ³Ý ³ÕµÛáõñÇ Ïá¹Á` | G27: 12. â³÷Ç ÙÇ³íáñÁª Ñ³½³ñ ¹ñ³Ù
A28: (ÐÐ å»ï³Ï³Ý µÛáõç»ª 1, Ñ³Ù³ÛÝùÇ µÛáõç»ª 2)
A30: îáÕÇ NN | B30: ´Ûáõç»ï³ÛÇÝ Í³Ëë»ñÇ ïÝï»ë³·Çï³Ï³Ý ¹³ë³Ï³ñ·Ù³Ý ï³ññ»ñ | D30: ÜáõÛÝ Å³Ù³Ý³Ï³Ñ³ïí³ÍÇ Ñ³Ù³ñ Ý³ËÏÇÝáõÙ Ñ³ëï³ïí³Íª ·áñÍáÕ | F30: êáõÛÝ Ý³Ë³Ñ³ßíáí Ñ³ëï³ïíáÕ óáõó³ÝÇßÝ»ñÁ | G30: ³Û¹ ÃíáõÙª Áëï »é³ÙëÛ³ÏÝ»ñÇ (»é³ÙëÛ³ÏÇ ³ÙÇëÝ»ñÇ)³×áÕ³Ï³Ý
B31: ³Ýí³ÝáõÙÝ»ñÁ | C31: NN | D31: Ý³Ë³Ñ³ßíÇ óáõó³ÝÇßÝ»ñÁ | E31: Ý³Ë³Ñ³ßíáõÙ Ï³ï³ñí³Í ÷á÷áËáõÃÛáõÝ-Ý»ñÁ (³í»É³óáõÙÁª /+/, å³Ï³ë»óáõÙÁª/-/ | G31: I | H31: II | I31: III | J31: IV
A32: ² | B32: ´ | C32: ¶ | D32: 1 | E32: 2 | F32: 3 | G32: 4 | H32: 5 | I32: 6 | J32: 7
A33: 1100000 | B33: ². ÀÜÂ²òÆÎ Ì²Êêºðª ÀÜ¸²ØºÜÀ, ³Û¹ ÃíáõÙ` | C33: x | D33: =D68 -> 0 | E33: 0 | F33: 0 | G33: 0 | H33: 0 | I33: 0 | J33: 0
A34: 1110000 | B34: 1.äºî²Î²Ü, îºÔ²Î²Ü ÆÜøÜ²Î²è²ì²ðØ²Ü Ø²ðØÆÜÜºðÆ, ¸ð²Üò ºÜÂ²Î² ´Úàôæºî²ÚÆÜ ÐÆØÜ²ðÎÜºðÆ ²ÞÊ²îàÔÜºðÆ ²ÞÊ²î²ì²ðÒÀª ÀÜ¸²ØºÜÀ, ³Û¹ ÃíáõÙª | C34: x | D34: 0 | F34: 0 | G34: 0 | H34: 0 | I34: 0 | J34: 0
A35: 1110000 | B35: 1,1 ²ßË³ï³ÝùÇ í³ñÓ³ïñáõÃÛáõÝ | C35: x | D35: 0 | F35: 0 | G35: 0 | H35: 0 | I35: 0 | J35: 0
A36: 1111000 | B36: -²ßË³ïáÕÝ»ñÇ ³ßË³ï³í³ñÓ»ñ ¨ Ñ³í»É³í×³ñÝ»ñ | C36: 411100
A37: 1112000 | B37: - ä³ñ·¨³ïñáõÙÝ»ñ, ¹ñ³Ù³Ï³Ý Ëñ³ËáõëáõÙÝ»ñ ¨ Ñ³ïáõÏ í×³ñÝ»ñ | C37: 411200
A38: 1113000 | B38: -ø³Õ³ù³óÇ³Ï³Ý, ¹³ï³Ï³Ý ¨ å»ï³Ï³Ý Í³é³ÛáÕÝ»ñÇ å³ñ·¨³ïñáõÙ | C38: 411300
A39: 1114000 | B39: -ÐÐ ýÇÝ³ÝëÝ»ñÇ ¨ ¿ÏáÝáÙÇÏ³ÛÇ Ý³Ë³ñ³ñáõÃÛ³Ý, Ñ³ñÏ³ÛÇÝ ¨ Ù³ùë³ÛÇÝ Ù³ñÙÇÝÝ»ñÇ ³ßË³ïáÕÝ»ñÇ å³ñ·¨³ïñáõÙ | C39: 411400
A40: 1115000 | B40: -²ÛÉ í³ñÓ³ïñáõÃÛáõÝÝ»ñ | C40: 411500
A41: 1116000 | B41: -´Ý»Õ»Ý ³ßË³ï³í³ñÓ»ñ ¨ Ñ³í»É³í×³ñÝ»ñ | C41: 412100
A42: 1117000 | B42: -ì×³ñÝ»ñ êáóÇ³É³Ï³Ý ³å³Ñáí³·ñáõÃÛ³Ý å»ï³Ï³Ý ÑÇÙÝ³¹ñ³ÙÇÝ | C42: 413100
A43: 1120000 | B43: 2 Ì³é³ÛáõÃÛáõÝÝ»ñÇ ¨ ³åñ³ÝùÝ»ñÇ Ó»éù µ»ñáõÙ | C43: x | D43: 0 | F43: 0 | G43: 0 | H43: 0 | I43: 0 | J43: 0
A44: 1121000 | B44: 2.1 Þ³ñáõÝ³Ï³Ï³Ý Í³Ëë»ñ | D44: 0 | F44: 0 | G44: 0 | H44: 0 | I44: 0 | J44: 0
A45: 1121100 | B45: -·áñÍ³éÝ³Ï³Ý ¨ µ³ÝÏ³ÛÇÝ Í³é³ÛáõÃÛáõÝÝ»ñÇ Í³Ëë»ñ | C45: 421100 | D45: 0
A46: 1121200 | B46: -¿Ý»ñ·»ïÇÏ Í³é³ÛáõÃÛáõÝÝ»ñ | C46: 421200 | D46: 0
A47: 1121300 | B47: -ÎáÙáõÝ³É Í³é³ÛáõÃÛáõÝÝ»ñ | C47: 421300 | D47: 0
A48: 1121400 | B48: -Î³åÇ Í³é³ÛáõÃÛáõÝÝ»ñ | C48: 421400 | D48: 0
A49: 1121500 | B49: -²å³Ñáí³·ñ³Ï³Ý Í³Ëë»ñ | C49: 421500 | D49: 0
A50: 1121600 | B50: -¶áõÛùÇ ¨ ë³ñù³íáñáõÙÝ»ñÇ í³ñÓ³Ï³ÉáõÃÛáõÝ | C50: 421600 | D50: 0
A51: 1121700 | B51: -²ñï³·»ñ³ï»ëã³Ï³Ý Í³Ëë»ñ | C51: 421700 | D51: 0
A52: 1122000 | B52: 2.2 ¶áñÍáõÕáõÙÝ»ñÇ ¨ ßñç³·³ÛáõÃÛ³Ý Í³Ëë»ñ | C52: x | D52: 0 | F52: 0 | G52: 0 | H52: 0 | I52: 0 | J52: 0
A53: 1122100 | B53: -Ü»ñùÇÝ ·áñÍáõÕáõÙÝ»ñ | C53: 422100
A54: 1122200 | B54: -²ñï³ë³ÑÙ³ÝÛ³Ý ·áñÍáõÕáõÙÝ»ñÇ ·Íáí Í³Ëë»ñ | C54: 422200
A55: 1122300 | B55: -²ÛÉ ïñ³Ýëåáñï³ÛÇÝ Í³Ëë»ñ | C55: 422900
A56: 1123000 | B56: 2.3 ä³ÛÙ³Ý³·ñ³ÛÇÝ Í³é³ÛáõÃÛáõÝÝ»ñÇ Ó»éù µ»ñáõÙ | C56: x | D56: 0 | F56: 0 | G56: 0 | H56: 0 | I56: 0 | J56: 0
A57: 1123100 | B57: -ì³ñã³Ï³Ý Í³é³ÛáõÃÛáõÝÝ»ñ | C57: 423100 | D57: 0
A58: 1123200 | B58: -Ð³Ù³Ï³ñ·ã³ÛÇÝ Í³é³ÛáõÃÛáõÝÝ»ñ | C58: 423200 | D58: 0
A59: 1123300 | B59: -²ßË³ï³Ï³½ÙÇ Ù³ëÝ³·Çï³Ï³Ý ½³ñ·³óÙ³Ý Í³é³ÛáõÃÛáõÝÝ»ñ | C59: 423300 | D59: 0
A60: 1123400 | B60: -î»Õ³Ï³ïí³Ï³Ý Í³é³ÛáõÃÛáõÝÝ»ñ | C60: 423400 | D60: 0
A61: 1123500 | B61: -Î³é³í³ñã³Ï³Ý Í³é³ÛáõÃÛáõÝÝ»ñ | C61: 423500 | D61: 0
A62: 1123600 | B62: - Î»Ýó³Õ³ÛÇÝ ¨ Ñ³Ýñ³ÛÇÝ ëÝÝ¹Ç Í³é³ÛáõÃÛáõÝÝ»ñ | C62: 423600 | D62: 0
A63: 1123700 | B63: -Ü»ñÏ³Û³óáõóã³Ï³Ý Í³Ëë»ñ | C63: 423700 | D63: 0
A64: 1123800 | B64: -ÀÝ¹Ñ³Ýáõñ µÝáõÛÃÇ ³ÛÉ Í³é³ÛáõÃÛáõÝÝ»ñ | C64: 423900 | D64: 0
A65: 1124000 | B65: 2.4 ²ÛÉ Ù³ëÝ³·Çï³Ï³Ý Í³é³ÛáõÃÛáõÝÝ»ñÇ Ó»éù µ»ñáõÙ | C65: x | D65: 0 | F65: 0 | G65: 0 | H65: 0 | I65: 0 | J65: 0
A66: 1124100 | B66: -Ø³ëÝ³·Çï³Ï³Ý Í³é³ÛáõÃÛáõÝÝ»ñ | C66: 424100 | D66: 0
A67: 1125000 | B67: 2.5 ÀÝÃ³óÇÏ Ýáñá·áõÙ ¨ å³Ñå³ÝáõÙ (Í³é³ÛáõÃÛáõÝÝ»ñ ¨ ÝÛáõÃ»ñ) | C67: x | D67: 0 | F67: 0 | G67: 0 | H67: 0 | I67: 0 | J67: 0
A68: 1125100 | B68: -Þ»Ýù»ñÇ ¨ Ï³éáõÛóÝ»ñÇ ÁÝÃ³óÇÏ Ýáñá·áõÙ ¨ å³Ñå³ÝáõÙ | C68: 425100 | D68: 0 | E68: 0 | F68: =D68+E68 -> 0 | G68: 0 | H68: 0 | I68: 0 | J68: =F68 -> 0
A69: 1125200 | B69: -Ø»ù»Ý³Ý»ñÇ ¨ ë³ñù³íáñáõÙÝ»ñÇ ÁÝÃ³óÇÏ Ýáñá·áõÙ ¨ å³Ñå³ÝáõÙ | C69: 425200 | D69: 0
A70: 1126000 | B70: 2.6 ÜÛáõÃ»ñ | C70: x | D70: 0 | F70: 0 | G70: 0 | H70: 0 | I70: 0 | J70: 0
A71: 1126100 | B71: -¶ñ³ë»ÝÛ³Ï³ÛÇÝ ÝÛáõÃ»ñ ¨ Ñ³·áõëï | C71: 426100 | D71: 0
A72: 1126200 | B72: -¶ÛáõÕ³ïÝï»ë³Ï³Ý ³åñ³ÝùÝ»ñ | C72: 426200 | D72: 0
A73: 1126300 | B73: -ì»ñ³å³ïñ³ëïÙ³Ý ¨ áõëáõóÙ³Ý ÝÛáõÃ»ñ | C73: 426300 | D73: 0
A74: 1126400 | B74: -îñ³Ýëåáñï³ÛÇÝ ÝÛáõÃ»ñ | C74: 426400 | D74: 0
A75: 1126500 | B75: -Þñç³Ï³ ÙÇç³í³ÛñÇ å³ßïå³ÝáõÃÛ³Ý ¨ ·Çï³Ï³Ý ÝÛáõÃ»ñ | C75: 426500 | D75: 0
A76: 1126600 | B76: -²éáÕç³å³Ñ³Ï³Ý ¨ É³µáñ³ïáñ ÝÛáõÃ»ñ | C76: 426600 | D76: 0
A77: 1126700 | B77: -Î»Ýó³Õ³ÛÇÝ ¨ Ñ³Ýñ³ÛÇÝ ëÝÝ¹Ç ÝÛáõÃ»ñ | C77: 426700 | D77: 0
A78: 1126800 | B78: -Ð³ïáõÏ Ýå³ï³Ï³ÛÇÝ ³ÛÉ ÝÛáõÃ»ñ | C78: 426900 | D78: 0
A79: 1130000 | B79: 3 îáÏáë³í×³ñÝ»ñ | C79: x | D79: 0 | F79: 0 | G79: 0 | H79: 0 | I79: 0 | J79: 0
A80: 1130100 | B80: -Ü»ñùÇÝ ³ñÅ»ÃÕÃ»ñÇ ïáÏáë³í×³ñÝ»ñ | C80: 441100
A81: 1130200 | B81: -Ü»ñùÇÝ í³ñÏ»ñÇ ïáÏáë³í×³ñÝ»ñ | C81: 441200
A82: 1130300 | B82: -²ñï³ùÇÝ ³ñÅ»ÃÕÃ»ñÇ ·Íáí ïáÏáë³í×³ñÝ»ñ | C82: 442100
A83: 1130400 | B83: -²ñï³ùÇÝ í³ñÏ»ñÇ ·Íáí ïáÏáë³í×³ñÝ»ñ | C83: 442200
A84: 1131000 | B84: öáË³éáõÃÛáõÝÝ»ñÇ Ñ»ï Ï³åí³Í í×³ñÝ»ñ | C84: x
A85: 1131100 | B85: -öáË³Ý³ÏÙ³Ý Ïáõñë»ñÇ µ³ó³ë³Ï³Ý ï³ñµ»ñáõÃÛáõÝ | C85: 443100
A86: 1131200 | B86: -îáõÛÅ»ñ | C86: 443200
A87: 1131300 | B87: -öáË³éáõÃÛáõÝÝ»ñÇ ·Íáí ïáõñù»ñ | C87: 443300
A88: 1140000 | B88: 4. êáõµëÇ¹Ç³Ý»ñ | C88: x | D88: 0 | F88: 0 | G88: 0 | H88: 0 | I88: 0 | J88: 0
A89: 1141000 | B89: -êáõµëÇ¹Ç³Ý»ñ áã-ýÇÝ³Ýë³Ï³Ý å»ï³Ï³Ý Ï³½Ù³Ï»ñåáõÃÛáõÝÝ»ñÇÝ | C89: 451100
A90: 1142000 | B90: -êáõµëÇ¹Ç³Ý»ñ ýÇÝ³Ýë³Ï³Ý å»ï³Ï³Ý Ï³½Ù³Ï»ñåáõÃÛáõÝÝ»ñÇÝ | C90: 451200
A91: 1143000 | B91: -êáõµëÇ¹Ç³Ý»ñ áã å»ï³Ï³Ý áã ýÇÝ³Ýë³Ï³Ý Ï³½Ù³Ï»ñåáõÃÛáõÝÝ»ñÇÝ | C91: 452100
A92: 1144000 | B92: -êáõµëÇ¹Ç³Ý»ñ áã å»ï³Ï³Ý ýÇÝ³Ýë³Ï³Ý Ï³½Ù³Ï»ñåáõÃÛáõÝÝ»ñÇÝ | C92: 452200
A93: 1150000 | B93: 5.¸ñ³Ù³ßÝáñÑÝ»ñ | C93: x | D93: 0 | F93: 0 | G93: 0 | H93: 0 | I93: 0 | J93: 0
A94: 1151000 | B94: -ÀÝÃ³óÇÏ ¹ñ³Ù³ßÝáñÑÝ»ñ ûï³ñ»ñÏñÛ³ Ï³é³í³ñáõÃÛáõÝÝ»ñÇÝ | C94: 461100
A95: 1152000 | B95: -Î³åÇï³É ¹ñ³Ù³ßÝáñÑÝ»ñ ûï³ñ»ñÏñÛ³ Ï³é³í³ñáõÃÛáõÝÝ»ñÇÝ | C95: 461200
A96: 1153000 | B96: -ÀÝÃ³óÇÏ ¹ñ³Ù³ßÝáñÑÝ»ñ ÙÇç³½·³ÛÇÝ Ï³½Ù³Ï»ñåáõÃÛáõÝÝ»ñÇÝ | C96: 462100
A97: 1154000 | B97: -Î³åÇï³É ¹ñ³Ù³ßÝáñÑÝ»ñ ÙÇç³½·³ÛÇÝ Ï³½Ù³Ï»ñåáõÃÛáõÝÝ»ñÇÝ | C97: 462200
A98: 1155000 | B98: -ÀÝÃ³óÇÏ ¹ñ³Ù³ßÝáñÑÝ»ñ å»ï³Ï³Ý Ñ³ïí³ÍÇ ³ÛÉ Ù³Ï³ñ¹³ÏÝ»ñÇÝ | C98: 463100
A99: 1156000 | B99: -Î³åÇï³É ¹ñ³Ù³ßÝáñÑÝ»ñ å»ï³Ï³Ý Ñ³ïí³ÍÇ ³ÛÉ Ù³Ï³ñ¹³ÏÝ»ñÇÝ | C99: 463200
A100: 1160000 | B100: 6. êàòÆ²È²Î²Ü Üä²êîÜºð | C100: x | D100: 0 | F100: 0 | G100: 0 | H100: 0 | I100: 0 | J100: 0
A101: 1161000 | B101: 6.1 êàòÆ²È²Î²Ü ²ä²ÐàìàôÂÚ²Ü Üä²êîÜºð (ä²ðî²¸Æð êàòÆ²È²Î²Ü ²ä²Ðàì²¶ðàôÂÚ²Ü Î²¼Ø²ÎºðäàôÂÚàôÜÜºð) | C101: x | D101: 0 | F101: 0 | G101: 0 | H101: 0 | I101: 0 | J101: 0
A102: 1161100 | B102: -îÝ³ÛÇÝ ïÝï»ëáõÃÛáõÝÝ»ñÇÝ ¹ñ³Ùáí í×³ñíáÕ ëáóÇ³É³Ï³Ý ³å³Ñáí³·ñáõÃÛ³Ý í×³ñÝ»ñ | C102: 471100
A103: 1161200 | B103: -êáóÇ³É³Ï³Ý ³å³ÑáíáõÃÛ³Ý µÝ»Õ»Ý Ýå³ëïÝ»ñ Í³é³ÛáõÃÛáõÝÝ»ñ Ù³ïáõóáÕÝ»ñÇÝ | C103: 471200
A104: 1162000 | B104: 6.2 êàòÆ²È²Î²Ü ú¶ÜàôÂÚ²Ü ¸ð²Ø²Î²Ü ²ðî²Ð²ÚîàôÂÚ²Ø´ Üä²êîÜºð (´ÚàôæºÆò) | C104: x | D104: 0 | F104: 0 | G104: 0 | H104: 0 | I104: 0 | J104: 0
A105: 1162100 | B105: -ÐÇí³Ý¹áõÃÛ³Ý ¨ Ñ³ßÙ³Ý¹³ÙáõÃÛ³Ý Ýå³ëïÝ»ñ µÛáõç»Çó | C105: 472100
A106: 1162200 | B106: -Ø³ÛñáõÃÛ³Ý Ýå³ëïÝ»ñ µÛáõç»Çó | C106: 472200
A107: 1162300 | B107: -ºñ»Ë³Ý»ñÇ Ï³Ù ÁÝï³Ý»Ï³Ý Ýå³ëïÝ»ñ µÛáõç»Çó | C107: 472300
A108: 1162400 | B108: -¶áñÍ³½ñÏáõÃÛ³Ý Ýå³ëïÝ»ñ µÛáõç»Çó | C108: 472400
A109: 1162500 | B109: -Î»Ýë³Ãáß³ÏÇ ³ÝóÝ»Éáõ Ñ»ï Ï³åí³Í ¨ ï³ñÇù³ÛÇÝ Ýå³ëïÝ»ñ µÛáõç»Çó | C109: 472500
A110: 1162600 | B110: -ÐáõÕ³ñÏ³íáñáõÃÛ³Ý Ýå³ëïÝ»ñ µÛáõç»Çó | C110: 472600
A111: 1162700 | B111: -ÎñÃ³Ï³Ý, Ùß³ÏáõÃ³ÛÇÝ ¨ ëåáñï³ÛÇÝ Ýå³ëïÝ»ñ µÛáõç»Çó | C111: 472700
A112: 1162800 | B112: -´Ý³Ï³ñ³Ý³ÛÇÝ Ýå³ëïÝ»ñ µÛáõç»Çó | C112: 472800
A113: 1162900 | B113: -²ÛÉ Ýå³ëïÝ»ñ µÛáõç»Çó | C113: 472900
A114: 1170000 | B114: 7. ²ÚÈ Ì²Êêºð | C114: x | D114: 0 | F114: 0 | G114: 0 | H114: 0 | I114: 0 | J114: 0
A115: 1171000 | B115: 7.1 ÜìÆð²îìàôÂÚàôÜÜºð àâ-Î²è²ì²ðâ²Î²Ü (Ð²ê²ð²Î²Î²Ü) Î²¼Ø²ÎºðäàôÂÚàôÜÜºðÆÜ | C115: x | D115: 0 | F115: 0 | G115: 0 | H115: 0 | I115: 0 | J115: 0
A116: 1171100 | B116: -îÝ³ÛÇÝ ïÝï»ëáõÃÛáõÝÝ»ñÇÝ Í³é³ÛáõÃÛáõÝÝ»ñ Ù³ïáõóáÕ` ß³ÑáõÛÃ ãÑ»ï³åÝ¹áÕ Ï³½Ù³Ï»ñåáõÃÛáõÝÝ»ñÇÝ ÝíÇñ³ïíáõÃÛáõÝÝ»ñ | C116: 481100 | D116: 0
A117: 1171200 | B117: -ÜíÇñ³ïíáõÃÛáõÝÝ»ñ ³ÛÉ ß³ÑáõÛÃ ãÑ»ï³åÝ¹áÕ Ï³½Ù³Ï»ñåáõÃÛáõÝÝ»ñÇÝ | C117: 481900 | D117: 0
A118: 1172000 | B118: 7.2 Ð²ðÎºð, ä²ðî²¸Æð ìÖ²ðÜºð ºì îàôÚÄºð, àðàÜø Î²è²ì²ðØ²Ü î²ð´ºð Ø²Î²ð¸²ÎÜºðÆ ÎàÔØÆò ÎÆð²èìàôØ ºÜ ØÆØÚ²Üò ÜÎ²îØ²Ø´ | C118: x | D118: 0 | F118: 0 | G118: 0 | H118: 0 | I118: 0 | J118: 0
A119: 1172100 | B119: -²ßË³ï³í³ñÓÇ ýáÝ¹ | C119: 482100 | D119: 0
A120: 1172200 | B120: -²ÛÉ Ñ³ñÏ»ñ | C120: 482200 | D120: 0
A121: 1172300 | B121: -ä³ñï³¹Çñ í×³ñÝ»ñ | C121: 482300 | D121: 0
A122: 1172400 | B122: -ä»ï³Ï³Ý Ñ³ïí³ÍÇ ï³ñµ»ñ Ù³Ï³ñ¹³ÏÝ»ñÇ ÏáÕÙÇó ÙÇÙÛ³Ýó ÝÏ³ïÙ³Ùµ ÏÇñ³éíáÕ ïáõÛÅ»ñ | C122: 482400 | D122: 0
A123: 1173000 | B123: 7.3 ¸²î²ð²ÜÜºðÆ ÎàÔØÆò ÜÞ²Ü²Îì²Ì îàôÚÄºð ºì îàô¶²ÜøÜºð | C123: x | D123: 0 | F123: 0 | G123: 0 | H123: 0 | I123: 0 | J123: 0
A124: 1173100 | B124: -¸³ï³ñ³ÝÝ»ñÇ ÏáÕÙÇó Ýß³Ý³Ïí³Í ïáõÛÅ»ñ ¨ ïáõ·³ÝùÝ»ñ | C124: 483100 | D124: 0
A125: 1174000 | B125: 7.4 ´Ü²Î²Ü ²ÔºîÜºðÆò Î²Ø ²ÚÈ ´Ü²Î²Ü ä²îÖ²èÜºðàì ²è²æ²ò²Ì ìÜ²êÜºðÆ Î²Ø ìÜ²êì²ÌøÜºðÆ ìºð²Î²Ü¶ÜàôØ | C125: x | D125: 0 | F125: 0 | G125: 0 | H125: 0 | I125: 0 | J125: 0
A126: 1174100 | B126: -´Ý³Ï³Ý ³Õ»ïÝ»ñÇó ³é³ç³ó³Í íÝ³ëí³ÍùÝ»ñÇ Ï³Ù íÝ³ëÝ»ñÇ í»ñ³Ï³Ý·ÝáõÙ | C126: 484100 | D126: 0
A127: 1174200 | B127: -²ÛÉ µÝ³Ï³Ý å³ï×³éÝ»ñáí ëï³ó³Í íÝ³ëí³ÍùÝ»ñÇ í»ñ³Ï³Ý·ÝáõÙ | C127: 484200 | D127: 0
A128: 1175000 | B128: 7.5 Î²è²ì²ðØ²Ü Ø²ðØÆÜÜºðÆ ¶àðÌàôÜºàôÂÚ²Ü Ðºîºì²Üøàì ²è²æ²ò²Ì ìÜ²êÜºðÆ Î²Ø ìÜ²êì²ÌøÜºðÆ ìºð²Î²Ü¶ÜàôØ | C128: x | D128: 0 | F128: 0 | G128: 0 | H128: 0 | I128: 0 | J128: 0
A129: 1175100 | B129: -Î³é³í³ñÙ³Ý Ù³ñÙÇÝÝ»ñÇ ·áñÍáõÝ»áõÃÛ³Ý Ñ»ï¨³Ýùáí ³é³ç³ó³Í íÝ³ëí³ÍùÝ»ñÇ Ï³Ù íÝ³ëÝ»ñÇ í»ñ³Ï³Ý·ÝáõÙ | C129: 485100 | D129: 0
A130: 1176000 | B130: 7.6 ²ÚÈ Ì²Êêºð | C130: x | D130: 0 | F130: 0 | G130: 0 | H130: 0 | I130: 0 | J130: 0
A131: 1176100 | B131: -²ÛÉ Í³Ëë»ñ | C131: 486100 | D131: 0
A132: 1177000 | B132: 7.7 ä²Ðàôêî²ÚÆÜ ØÆæàòÜºð | C132: x | D132: 0 | F132: 0 | G132: 0 | H132: 0 | I132: 0 | J132: 0
A133: 1177100 | B133: -ä³Ñáõëï³ÛÇÝ ÙÇçáóÝ»ñ | C133: 489100 | D133: 0
A134: ---- | B134: -------
A135: 1200000 | B135: Բ, àâ-üÆÜ²Üê²Î²Ü ²ÎîÆìÜºðÆ ¶Ìàì Ì²Êêºð | C135: x | D135: =D138 -> 15000 | E135: =E141 -> 0 | F135: =F138 -> 15000 | G135: =G138 -> 15000 | H135: =H138 -> 15000 | I135: =I138 -> 15000 | J135: =J138 -> 15000
B136: ³Û¹ ÃíáõÙ`
A137: ---- | B137: -------
A138: 1210000 | B138: 1.ÐÆØÜ²Î²Ü ØÆæàòÜºð | C138: x | D138: =D140+D141+D142 -> 15000 | F138: =F140+F141+F142 -> 15000 | G138: =G140+G141+G142 -> 15000 | H138: =H140+H141+H142 -> 15000 | I138: =I140+I141+I142 -> 15000 | J138: =F138 -> 15000
A139: 1211000 | B139: -Þ»Ýù»ñÇ ¨ ßÇÝáõÃÛáõÝÝ»ñÇ Ó»éù µ»ñáõÙ | C139: 511100 | D139: 0
A140: 1212000 | B140: -Þ»Ýù»ñÇ ¨ ßÇÝáõÃÛáõÝÝ»ñÇ Ï³éáõóáõÙ | C140: 511200 | D140: 0 | E140: 0 | F140: =D140+E140 -> 0 | G140: 0 | H140: 0 | I140: 0 | J140: =F140 -> 0
A141: 1213000 | B141: -Þ»Ýù»ñÇ ¨ ßÇÝáõÃÛáõÝÝ»ñÇ Ï³åÇï³É í»ñ³Ýáñá·áõÙ | C141: 511300 | D141: 0 | E141: 0 | F141: =D141+E141 -> 0 | G141: 0 | H141: 0 | I141: 0 | J141: =F141 -> 0
A142: 1214000 | B142: -îñ³Ýëåáñï³ÛÇÝ ë³ñù³íáñáõÙÝ»ñ | C142: 512100 | D142: 15000 | F142: =D142+E142 -> 15000 | G142: 15000 | H142: 15000 | I142: 15000 | J142: =F142 -> 15000 | K142: 15000 գյուղտեխնիկա
A143: 1215000 | B143: -ì³ñã³Ï³Ý ë³ñù³íáñáõÙÝ»ñ | C143: 512200 | D143: 0
A144: 1216000 | B144: -²ÛÉ Ù»ù»Ý³Ý»ñ ¨ ë³ñù³íáñáõÙÝ»ñ | C144: 512900 | D144: 0
A145: 1217000 | B145: -²×»óíáÕ ³ÏïÇíÝ»ñ | C145: 513100 | D145: 0
A146: 1218000 | B146: -àã-ÝÛáõÃ³Ï³Ý ÑÇÙÝ³Ï³Ý ÙÇçáóÝ»ñ | C146: 513200 | D146: 0
A147: 1220000 | B147: 2.ä²Þ²ðÜºð | C147: x | D147: 0 | F147: 0 | H147: 0 | I147: 0 | J147: 0
A148: 1221000 | B148: -è³½Ù³í³ñ³Ï³Ý å³ß³ñÝ»ñ | C148: 521100 | D148: 0
A149: 1222000 | B149: -ÜÛáõÃ»ñ ¨ å³ñ³·³Ý»ñ | C149: 522100 | D149: 0
A150: 1223000 | B150: -ì»ñ³í³×³éùÇ Ñ³Ù³ñ Ý³Ë³ï»ëí³Í ³åñ³ÝùÝ»ñ | C150: 523100 | D150: 0
A151: 1224000 | B151: -êå³éÙ³Ý Ýå³ï³Ïáí å³ÑíáÕ å³ß³ñÝ»ñ | C151: 524100 | D151: 0
A152: 1230000 | B152: 3.´²ðÒð²ðÄºø ²ÎîÆìÜºð | C152: x | D152: 0 | F152: 0 | G152: 0 | H152: 0 | I152: 0 | J152: 0
A153: 1231000 | B153: -´³ñÓñ³ñÅ»ù ³ÏïÇíÝ»ñ | C153: 531100 | D153: 0
A154: 1240000 | B154: 4.àâ ²ðî²¸ð²Î²Ü ԱԿՏԻՎՆԵՐ | C154: x | D154: 0 | F154: 0 | G154: 0 | H154: 0 | I154: 0 | J154: 0
A155: 1241000 | B155: -ÐáÕ | C155: 541100 | D155: 0
A156: 1242000 | B156: -ÀÝ¹»ñù³ÛÇÝ ³ÏïÇíÝ»ñ | C156: 542100 | D156: 0
A157: 1243000 | B157: -²ÛÉ µÝ³Ï³Ý Í³·áõÙ áõÝ»óáÕ ³ÏïÇíÝ»ñ | C157: 543100 | D157: 0
A158: 1244000 | B158: -àã ÝÛáõÃ³Ï³Ý áã ³ñï³¹ñ³Ï³Ý ³ÏïÇíÝ»ñ | C158: 544100 | D158: 0
A159: 1000000 | B159: ԸՆԴԱՄԵՆԸ ºÈøºð` (ïáÕ 1100000+ïáÕ1200000) | C159: x | D159: =D33+D135 -> 15000 | E159: 0 | F159: 15000 | G159: 15000 | H159: 15000 | I159: 15000 | J159: =F159 -> 15000
A162: §17¦ § դեÏï»Ùµ»ñ ¦ 2020 Ã.
A164: ÐÆØÜ²ðÎÆ ÔºÎ²ì²ðª _______________ _________________ | G164: Է.Արշակյան
E165: (ëïáñ³·ñáõÃÛáõÝ) | G165: (².Ð.².)
A166: Î.î.
A167: üÆÜ²Üê²Î²Ü Ì²è²ÚàôÂÚ²Ü äºîª _______________ _________________ | G167: Ն. Մուրադյան
B168: (¶ÈÊ²ìàð Ð²Þì²ä²Ð) | E168: (ëïáñ³·ñáõÃÛáõÝ) | G168: (².Ð.².)

Sheet subv chanap (hidden)
F1: Ð³í»Éí³Í N 4
F3: úñÇÝ³Ï»ÉÇ Ó¨ N 3
F4: Ð³ëï³ïí»É ¿ ÐÐ ýÇÝ³ÝëÝ»ñÇ ¨ ¿ÏáÝáÙÇÏ³ÛÇ
B5: §Ð ² ê î ² î àô Ø ºØª¦ | G5: Ý³Ë³ñ³ñÇ 23 ÑáõÉÇëÇ 2007 Ãí³Ï³ÝÇ
F6: N 597-Ü Ññ³Ù³Ýáí
A7: Ý³Ë³Ñ³ßÇíÁ 21627,6 քսանմեկ միլիոն վեց հարյուր քսանյոթ հազար վեց հարյուր դրամ.
A8: ( ÁÝ¹³Ù»ÝÁ ·áõÙ³ñÁ Ãí»ñáí ¨ ï³é»ñáí****)
A9: ___________________________________________________________________ Ñ³½³ñ ¹ñ³Ù ·áõÙ³ñáí:
A11: ______________________________________Է.Արշակյան___________________________________ | G11: Î.î.
A12: (ÐÐ å»ï³Ï³Ý Ï³é³í³ñÙ³Ý Ï³Ù ï»Õ³Ï³Ý ÇÝùÝ³Ï³é³í³ñÙ³Ý Ù³ñÙÝÇ Õ»Ï³í³ñÇ ëïáñ³·ñáõÃÛáõÝÁ ¨ ².Ð.².)
A13: § ¦ դեկտեմբերի 2020թ
A14: Ü ² Ê ² Ð ² Þ Æ ì*
A15: ÐÇÙÝ³ñÏÝ»ñÇ ÏáÕÙÇó µÛáõç»ï³ÛÇÝ Ñ³ïÏ³óáõÙÝ»ñÇ Ñ³ßíÇÝ Çñ³Ï³Ý³óíáÕ Í³Ëë»ñÇ (»Éù»ñÇ) ³é³ÝÓÇÝ ï»ë³ÏÝ»ñÇ
A16: ¥Áëï ïÝï»ë³·Çï³Ï³Ý ¹³ë³Ï³ñ·Ù³Ý Ñá¹í³ÍÝ»ñÇ¤
A17: §01¦ §ÐáõÝí³ñÇ ¦ 2021 Ã. -- §30¦ §¹»Ïï»Ùµ»ñÇ ¦ 2021 Ã.
A19: 1. ÐÇÙÝ³ñÏÇ ³Ýí³ÝáõÙÁ î³ßÇñÇ ù³Õ³ù³å»ï³ñ³Ý | F19: 8.***** ´Ûáõç»ï³ÛÇÝ Í³Ëë»ñÇ ·áñÍ³é³Ï³Ý ¹³ë³Ï³ñ·Ù³Ý
A20: 2. öáëï³ÛÇÝ Ñ³ëó»Ý ù. î³ßÇñ | F20: Í³ÍÏ³·Çñ | G20: 04 | H20: 5 | I20: 1
A21: 3. ÐÇÙÝ³ñÏÇ ï»Õ³µ³ßËÙ³Ý Ù³ñ½Ç ¨ Ñ³Ù³ÛÝùÇ Ïá¹Á
A22: Áëï µÛáõç»ï³ÛÇÝ Í³Ëë»ñÇ ï³ñ³Íù³ÛÇÝ ¹³ë³Ï³ñ·Ù³Ý | F22: 9. Ìñ³·ñÇ ³Ýí³ÝáõÙÁ _ճանապարային տրանսպորտ սուբվեն
A23: 4. ** ä»ï³Ï³Ý Ï³é³í³ñÙ³Ý (ï»Õ³Ï³Ý ÇÝùÝ³Ï³é³í³ñÙ³Ý) Ù³ñÙÝÇ ³Ýí³ÝáõÙÁ | F23: 10. Ìñ³·ñÇ Ïá¹Á 51
A24: _______________________________________________________________________________________ | F24: 11. *** ä»ï³Ï³Ý Ï³é³í³ñÙ³Ý (ï»Õ³Ï³Ý .ÇÝù ÇÝùÝ³Ï³é³í³ñÙ³Ý)Ù³ñÙÇÝÝ»ñÇ ·»ñ³ï»ëã³Ï³Ý Ïá¹Á
A25: 5. ÐÇÙÝ³ñÏÁ ëå³ë³ñÏáÕ ï»Õ³Ï³Ý ·³ÝÓ³å»ï³Ï³Ý µ³ÅÝÇ (î¶´) ³Ýí³ÝáõÙÁ _Տաշիրի
A26: 6. ÐÇÙÝ³ñÏÇª ï»Õ³Ï³Ý ·³ÝÓ³å»ï³Ï³Ý µ³ÅÝáõÙ (î¶´) Ñ³ßí³éÙ³Ý Ñ³Ù³ñÁ
A27: 7. Ì³Ëë»ñÇ ýÇÝ³Ýë³íáñÙ³Ý ³ÕµÛáõñÇ Ïá¹Á` | G27: 12. â³÷Ç ÙÇ³íáñÁª Ñ³½³ñ ¹ñ³Ù
A28: (ÐÐ å»ï³Ï³Ý µÛáõç»ª 1, Ñ³Ù³ÛÝùÇ µÛáõç»ª 2)
A30: îáÕÇ NN | B30: ´Ûáõç»ï³ÛÇÝ Í³Ëë»ñÇ ïÝï»ë³·Çï³Ï³Ý ¹³ë³Ï³ñ·Ù³Ý ï³ññ»ñ | D30: ÜáõÛÝ Å³Ù³Ý³Ï³Ñ³ïí³ÍÇ Ñ³Ù³ñ Ý³ËÏÇÝáõÙ Ñ³ëï³ïí³Íª ·áñÍáÕ | F30: êáõÛÝ Ý³Ë³Ñ³ßíáí Ñ³ëï³ïíáÕ óáõó³ÝÇßÝ»ñÁ | G30: ³Û¹ ÃíáõÙª Áëï »é³ÙëÛ³ÏÝ»ñÇ (»é³ÙëÛ³ÏÇ ³ÙÇëÝ»ñÇ)³×áÕ³Ï³Ý
B31: ³Ýí³ÝáõÙÝ»ñÁ | C31: NN | D31: Ý³Ë³Ñ³ßíÇ óáõó³ÝÇßÝ»ñÁ | E31: Ý³Ë³Ñ³ßíáõÙ Ï³ï³ñí³Í ÷á÷áËáõÃÛáõÝ-Ý»ñÁ (³í»É³óáõÙÁª /+/, å³Ï³ë»óáõÙÁª/-/ | G31: I | H31: II | I31: III | J31: IV
A32: ² | B32: ´ | C32: ¶ | D32: 1 | E32: 2 | F32: 3 | G32: 4 | H32: 5 | I32: 6 | J32: 7
A33: 1100000 | B33: ². ÀÜÂ²òÆÎ Ì²Êêºðª ÀÜ¸²ØºÜÀ, ³Û¹ ÃíáõÙ` | C33: x | D33: =D68 -> 0 | E33: 0 | F33: 0 | G33: 0 | H33: 0 | I33: 0 | J33: 0
A34: 1110000 | B34: 1.äºî²Î²Ü, îºÔ²Î²Ü ÆÜøÜ²Î²è²ì²ðØ²Ü Ø²ðØÆÜÜºðÆ, ¸ð²Üò ºÜÂ²Î² ´Úàôæºî²ÚÆÜ ÐÆØÜ²ðÎÜºðÆ ²ÞÊ²îàÔÜºðÆ ²ÞÊ²î²ì²ðÒÀª ÀÜ¸²ØºÜÀ, ³Û¹ ÃíáõÙª | C34: x | D34: 0 | F34: 0 | G34: 0 | H34: 0 | I34: 0 | J34: 0
A35: 1110000 | B35: 1,1 ²ßË³ï³ÝùÇ í³ñÓ³ïñáõÃÛáõÝ | C35: x | D35: 0 | F35: 0 | G35: 0 | H35: 0 | I35: 0 | J35: 0
A36: 1111000 | B36: -²ßË³ïáÕÝ»ñÇ ³ßË³ï³í³ñÓ»ñ ¨ Ñ³í»É³í×³ñÝ»ñ | C36: 411100
A37: 1112000 | B37: - ä³ñ·¨³ïñáõÙÝ»ñ, ¹ñ³Ù³Ï³Ý Ëñ³ËáõëáõÙÝ»ñ ¨ Ñ³ïáõÏ í×³ñÝ»ñ | C37: 411200
A38: 1113000 | B38: -ø³Õ³ù³óÇ³Ï³Ý, ¹³ï³Ï³Ý ¨ å»ï³Ï³Ý Í³é³ÛáÕÝ»ñÇ å³ñ·¨³ïñáõÙ | C38: 411300
A39: 1114000 | B39: -ÐÐ ýÇÝ³ÝëÝ»ñÇ ¨ ¿ÏáÝáÙÇÏ³ÛÇ Ý³Ë³ñ³ñáõÃÛ³Ý, Ñ³ñÏ³ÛÇÝ ¨ Ù³ùë³ÛÇÝ Ù³ñÙÇÝÝ»ñÇ ³ßË³ïáÕÝ»ñÇ å³ñ·¨³ïñáõÙ | C39: 411400
A40: 1115000 | B40: -²ÛÉ í³ñÓ³ïñáõÃÛáõÝÝ»ñ | C40: 411500
A41: 1116000 | B41: -´Ý»Õ»Ý ³ßË³ï³í³ñÓ»ñ ¨ Ñ³í»É³í×³ñÝ»ñ | C41: 412100
A42: 1117000 | B42: -ì×³ñÝ»ñ êáóÇ³É³Ï³Ý ³å³Ñáí³·ñáõÃÛ³Ý å»ï³Ï³Ý ÑÇÙÝ³¹ñ³ÙÇÝ | C42: 413100
A43: 1120000 | B43: 2 Ì³é³ÛáõÃÛáõÝÝ»ñÇ ¨ ³åñ³ÝùÝ»ñÇ Ó»éù µ»ñáõÙ | C43: x | D43: 1500 | F43: 1500 | G43: 0 | H43: 0 | I43: 1500 | J43: 1500
A44: 1121000 | B44: 2.1 Þ³ñáõÝ³Ï³Ï³Ý Í³Ëë»ñ | D44: 0 | F44: 0 | G44: 0 | H44: 0 | I44: 0 | J44: 0
A45: 1121100 | B45: -·áñÍ³éÝ³Ï³Ý ¨ µ³ÝÏ³ÛÇÝ Í³é³ÛáõÃÛáõÝÝ»ñÇ Í³Ëë»ñ | C45: 421100 | D45: 0
A46: 1121200 | B46: -¿Ý»ñ·»ïÇÏ Í³é³ÛáõÃÛáõÝÝ»ñ | C46: 421200 | D46: 0
A47: 1121300 | B47: -ÎáÙáõÝ³É Í³é³ÛáõÃÛáõÝÝ»ñ | C47: 421300 | D47: 0
A48: 1121400 | B48: -Î³åÇ Í³é³ÛáõÃÛáõÝÝ»ñ | C48: 421400 | D48: 0
A49: 1121500 | B49: -²å³Ñáí³·ñ³Ï³Ý Í³Ëë»ñ | C49: 421500 | D49: 0
A50: 1121600 | B50: -¶áõÛùÇ ¨ ë³ñù³íáñáõÙÝ»ñÇ í³ñÓ³Ï³ÉáõÃÛáõÝ | C50: 421600 | D50: 0
A51: 1121700 | B51: -²ñï³·»ñ³ï»ëã³Ï³Ý Í³Ëë»ñ | C51: 421700 | D51: 0
A52: 1122000 | B52: 2.2 ¶áñÍáõÕáõÙÝ»ñÇ ¨ ßñç³·³ÛáõÃÛ³Ý Í³Ëë»ñ | C52: x | D52: 0 | F52: 0 | G52: 0 | H52: 0 | I52: 0 | J52: 0
A53: 1122100 | B53: -Ü»ñùÇÝ ·áñÍáõÕáõÙÝ»ñ | C53: 422100
A54: 1122200 | B54: -²ñï³ë³ÑÙ³ÝÛ³Ý ·áñÍáõÕáõÙÝ»ñÇ ·Íáí Í³Ëë»ñ | C54: 422200
A55: 1122300 | B55: -²ÛÉ ïñ³Ýëåáñï³ÛÇÝ Í³Ëë»ñ | C55: 422900
A56: 1123000 | B56: 2.3 ä³ÛÙ³Ý³·ñ³ÛÇÝ Í³é³ÛáõÃÛáõÝÝ»ñÇ Ó»éù µ»ñáõÙ | C56: x | D56: 0 | F56: 0 | G56: 0 | H56: 0 | I56: 0 | J56: 0
A57: 1123100 | B57: -ì³ñã³Ï³Ý Í³é³ÛáõÃÛáõÝÝ»ñ | C57: 423100 | D57: 0
A58: 1123200 | B58: -Ð³Ù³Ï³ñ·ã³ÛÇÝ Í³é³ÛáõÃÛáõÝÝ»ñ | C58: 423200 | D58: 0
A59: 1123300 | B59: -²ßË³ï³Ï³½ÙÇ Ù³ëÝ³·Çï³Ï³Ý ½³ñ·³óÙ³Ý Í³é³ÛáõÃÛáõÝÝ»ñ | C59: 423300 | D59: 0
A60: 1123400 | B60: -î»Õ³Ï³ïí³Ï³Ý Í³é³ÛáõÃÛáõÝÝ»ñ | C60: 423400 | D60: 0
A61: 1123500 | B61: -Î³é³í³ñã³Ï³Ý Í³é³ÛáõÃÛáõÝÝ»ñ | C61: 423500 | D61: 0
A62: 1123600 | B62: - Î»Ýó³Õ³ÛÇÝ ¨ Ñ³Ýñ³ÛÇÝ ëÝÝ¹Ç Í³é³ÛáõÃÛáõÝÝ»ñ | C62: 423600 | D62: 0
A63: 1123700 | B63: -Ü»ñÏ³Û³óáõóã³Ï³Ý Í³Ëë»ñ | C63: 423700 | D63: 0
A64: 1123800 | B64: -ÀÝ¹Ñ³Ýáõñ µÝáõÛÃÇ ³ÛÉ Í³é³ÛáõÃÛáõÝÝ»ñ | C64: 423900 | D64: 0
A65: 1124000 | B65: 2.4 ²ÛÉ Ù³ëÝ³·Çï³Ï³Ý Í³é³ÛáõÃÛáõÝÝ»ñÇ Ó»éù µ»ñáõÙ | C65: x | D65: 0 | F65: 0 | G65: 0 | H65: 0 | I65: 0 | J65: 0
A66: 1124100 | B66: -Ø³ëÝ³·Çï³Ï³Ý Í³é³ÛáõÃÛáõÝÝ»ñ | C66: 424100 | D66: 0
A67: 1125000 | B67: 2.5 ÀÝÃ³óÇÏ Ýáñá·áõÙ ¨ å³Ñå³ÝáõÙ (Í³é³ÛáõÃÛáõÝÝ»ñ ¨ ÝÛáõÃ»ñ) | C67: x | D67: 0 | F67: 0 | G67: 0 | H67: 0 | I67: 0 | J67: 0
A68: 1125100 | B68: -Þ»Ýù»ñÇ ¨ Ï³éáõÛóÝ»ñÇ ÁÝÃ³óÇÏ Ýáñá·áõÙ ¨ å³Ñå³ÝáõÙ | C68: 425100 | D68: 0 | E68: 0 | F68: =D68+E68 -> 0 | G68: 0 | H68: 0 | I68: 0 | J68: =F68 -> 0
A69: 1125200 | B69: -Ø»ù»Ý³Ý»ñÇ ¨ ë³ñù³íáñáõÙÝ»ñÇ ÁÝÃ³óÇÏ Ýáñá·áõÙ ¨ å³Ñå³ÝáõÙ | C69: 425200 | D69: 0
A70: 1126000 | B70: 2.6 ÜÛáõÃ»ñ | C70: x | D70: 0 | F70: 0 | G70: 0 | H70: 0 | I70: 0 | J70: 0
A71: 1126100 | B71: -¶ñ³ë»ÝÛ³Ï³ÛÇÝ ÝÛáõÃ»ñ ¨ Ñ³·áõëï | C71: 426100 | D71: 0
A72: 1126200 | B72: -¶ÛáõÕ³ïÝï»ë³Ï³Ý ³åñ³ÝùÝ»ñ | C72: 426200 | D72: 0
A73: 1126300 | B73: -ì»ñ³å³ïñ³ëïÙ³Ý ¨ áõëáõóÙ³Ý ÝÛáõÃ»ñ | C73: 426300 | D73: 0
A74: 1126400 | B74: -îñ³Ýëåáñï³ÛÇÝ ÝÛáõÃ»ñ | C74: 426400 | D74: 0
A75: 1126500 | B75: -Þñç³Ï³ ÙÇç³í³ÛñÇ å³ßïå³ÝáõÃÛ³Ý ¨ ·Çï³Ï³Ý ÝÛáõÃ»ñ | C75: 426500 | D75: 0
A76: 1126600 | B76: -²éáÕç³å³Ñ³Ï³Ý ¨ É³µáñ³ïáñ ÝÛáõÃ»ñ | C76: 426600 | D76: 0
A77: 1126700 | B77: -Î»Ýó³Õ³ÛÇÝ ¨ Ñ³Ýñ³ÛÇÝ ëÝÝ¹Ç ÝÛáõÃ»ñ | C77: 426700 | D77: 0
A78: 1126800 | B78: -Ð³ïáõÏ Ýå³ï³Ï³ÛÇÝ ³ÛÉ ÝÛáõÃ»ñ | C78: 426900 | D78: 0
A79: 1130000 | B79: 3 îáÏáë³í×³ñÝ»ñ | C79: x | D79: 0 | F79: 0 | G79: 0 | H79: 0 | I79: 0 | J79: 0
A80: 1130100 | B80: -Ü»ñùÇÝ ³ñÅ»ÃÕÃ»ñÇ ïáÏáë³í×³ñÝ»ñ | C80: 441100
A81: 1130200 | B81: -Ü»ñùÇÝ í³ñÏ»ñÇ ïáÏáë³í×³ñÝ»ñ | C81: 441200
A82: 1130300 | B82: -²ñï³ùÇÝ ³ñÅ»ÃÕÃ»ñÇ ·Íáí ïáÏáë³í×³ñÝ»ñ | C82: 442100
A83: 1130400 | B83: -²ñï³ùÇÝ í³ñÏ»ñÇ ·Íáí ïáÏáë³í×³ñÝ»ñ | C83: 442200
A84: 1131000 | B84: öáË³éáõÃÛáõÝÝ»ñÇ Ñ»ï Ï³åí³Í í×³ñÝ»ñ | C84: x
A85: 1131100 | B85: -öáË³Ý³ÏÙ³Ý Ïáõñë»ñÇ µ³ó³ë³Ï³Ý ï³ñµ»ñáõÃÛáõÝ | C85: 443100
A86: 1131200 | B86: -îáõÛÅ»ñ | C86: 443200
A87: 1131300 | B87: -öáË³éáõÃÛáõÝÝ»ñÇ ·Íáí ïáõñù»ñ | C87: 443300
A88: 1140000 | B88: 4. êáõµëÇ¹Ç³Ý»ñ | C88: x | D88: 0 | F88: 0 | G88: 0 | H88: 0 | I88: 0 | J88: 0
A89: 1141000 | B89: -êáõµëÇ¹Ç³Ý»ñ áã-ýÇÝ³Ýë³Ï³Ý å»ï³Ï³Ý Ï³½Ù³Ï»ñåáõÃÛáõÝÝ»ñÇÝ | C89: 451100
A90: 1142000 | B90: -êáõµëÇ¹Ç³Ý»ñ ýÇÝ³Ýë³Ï³Ý å»ï³Ï³Ý Ï³½Ù³Ï»ñåáõÃÛáõÝÝ»ñÇÝ | C90: 451200
A91: 1143000 | B91: -êáõµëÇ¹Ç³Ý»ñ áã å»ï³Ï³Ý áã ýÇÝ³Ýë³Ï³Ý Ï³½Ù³Ï»ñåáõÃÛáõÝÝ»ñÇÝ | C91: 452100
A92: 1144000 | B92: -êáõµëÇ¹Ç³Ý»ñ áã å»ï³Ï³Ý ýÇÝ³Ýë³Ï³Ý Ï³½Ù³Ï»ñåáõÃÛáõÝÝ»ñÇÝ | C92: 452200
A93: 1150000 | B93: 5.¸ñ³Ù³ßÝáñÑÝ»ñ | C93: x | D93: 0 | F93: 0 | G93: 0 | H93: 0 | I93: 0 | J93: 0
A94: 1151000 | B94: -ÀÝÃ³óÇÏ ¹ñ³Ù³ßÝáñÑÝ»ñ ûï³ñ»ñÏñÛ³ Ï³é³í³ñáõÃÛáõÝÝ»ñÇÝ | C94: 461100
A95: 1152000 | B95: -Î³åÇï³É ¹ñ³Ù³ßÝáñÑÝ»ñ ûï³ñ»ñÏñÛ³ Ï³é³í³ñáõÃÛáõÝÝ»ñÇÝ | C95: 461200
A96: 1153000 | B96: -ÀÝÃ³óÇÏ ¹ñ³Ù³ßÝáñÑÝ»ñ ÙÇç³½·³ÛÇÝ Ï³½Ù³Ï»ñåáõÃÛáõÝÝ»ñÇÝ | C96: 462100
A97: 1154000 | B97: -Î³åÇï³É ¹ñ³Ù³ßÝáñÑÝ»ñ ÙÇç³½·³ÛÇÝ Ï³½Ù³Ï»ñåáõÃÛáõÝÝ»ñÇÝ | C97: 462200
A98: 1155000 | B98: -ÀÝÃ³óÇÏ ¹ñ³Ù³ßÝáñÑÝ»ñ å»ï³Ï³Ý Ñ³ïí³ÍÇ ³ÛÉ Ù³Ï³ñ¹³ÏÝ»ñÇÝ | C98: 463100
A99: 1156000 | B99: -Î³åÇï³É ¹ñ³Ù³ßÝáñÑÝ»ñ å»ï³Ï³Ý Ñ³ïí³ÍÇ ³ÛÉ Ù³Ï³ñ¹³ÏÝ»ñÇÝ | C99: 463200
A100: 1160000 | B100: 6. êàòÆ²È²Î²Ü Üä²êîÜºð | C100: x | D100: 0 | F100: 0 | G100: 0 | H100: 0 | I100: 0 | J100: 0
A101: 1161000 | B101: 6.1 êàòÆ²È²Î²Ü ²ä²ÐàìàôÂÚ²Ü Üä²êîÜºð (ä²ðî²¸Æð êàòÆ²È²Î²Ü ²ä²Ðàì²¶ðàôÂÚ²Ü Î²¼Ø²ÎºðäàôÂÚàôÜÜºð) | C101: x | D101: 0 | F101: 0 | G101: 0 | H101: 0 | I101: 0 | J101: 0
A102: 1161100 | B102: -îÝ³ÛÇÝ ïÝï»ëáõÃÛáõÝÝ»ñÇÝ ¹ñ³Ùáí í×³ñíáÕ ëáóÇ³É³Ï³Ý ³å³Ñáí³·ñáõÃÛ³Ý í×³ñÝ»ñ | C102: 471100
A103: 1161200 | B103: -êáóÇ³É³Ï³Ý ³å³ÑáíáõÃÛ³Ý µÝ»Õ»Ý Ýå³ëïÝ»ñ Í³é³ÛáõÃÛáõÝÝ»ñ Ù³ïáõóáÕÝ»ñÇÝ | C103: 471200
A104: 1162000 | B104: 6.2 êàòÆ²È²Î²Ü ú¶ÜàôÂÚ²Ü ¸ð²Ø²Î²Ü ²ðî²Ð²ÚîàôÂÚ²Ø´ Üä²êîÜºð (´ÚàôæºÆò) | C104: x | D104: 0 | F104: 0 | G104: 0 | H104: 0 | I104: 0 | J104: 0
A105: 1162100 | B105: -ÐÇí³Ý¹áõÃÛ³Ý ¨ Ñ³ßÙ³Ý¹³ÙáõÃÛ³Ý Ýå³ëïÝ»ñ µÛáõç»Çó | C105: 472100
A106: 1162200 | B106: -Ø³ÛñáõÃÛ³Ý Ýå³ëïÝ»ñ µÛáõç»Çó | C106: 472200
A107: 1162300 | B107: -ºñ»Ë³Ý»ñÇ Ï³Ù ÁÝï³Ý»Ï³Ý Ýå³ëïÝ»ñ µÛáõç»Çó | C107: 472300
A108: 1162400 | B108: -¶áñÍ³½ñÏáõÃÛ³Ý Ýå³ëïÝ»ñ µÛáõç»Çó | C108: 472400
A109: 1162500 | B109: -Î»Ýë³Ãáß³ÏÇ ³ÝóÝ»Éáõ Ñ»ï Ï³åí³Í ¨ ï³ñÇù³ÛÇÝ Ýå³ëïÝ»ñ µÛáõç»Çó | C109: 472500
A110: 1162600 | B110: -ÐáõÕ³ñÏ³íáñáõÃÛ³Ý Ýå³ëïÝ»ñ µÛáõç»Çó | C110: 472600
A111: 1162700 | B111: -ÎñÃ³Ï³Ý, Ùß³ÏáõÃ³ÛÇÝ ¨ ëåáñï³ÛÇÝ Ýå³ëïÝ»ñ µÛáõç»Çó | C111: 472700
A112: 1162800 | B112: -´Ý³Ï³ñ³Ý³ÛÇÝ Ýå³ëïÝ»ñ µÛáõç»Çó | C112: 472800
A113: 1162900 | B113: -²ÛÉ Ýå³ëïÝ»ñ µÛáõç»Çó | C113: 472900
A114: 1170000 | B114: 7. ²ÚÈ Ì²Êêºð | C114: x | D114: 0 | F114: 0 | G114: 0 | H114: 0 | I114: 0 | J114: 0
A115: 1171000 | B115: 7.1 ÜìÆð²îìàôÂÚàôÜÜºð àâ-Î²è²ì²ðâ²Î²Ü (Ð²ê²ð²Î²Î²Ü) Î²¼Ø²ÎºðäàôÂÚàôÜÜºðÆÜ | C115: x | D115: 0 | F115: 0 | G115: 0 | H115: 0 | I115: 0 | J115: 0
A116: 1171100 | B116: -îÝ³ÛÇÝ ïÝï»ëáõÃÛáõÝÝ»ñÇÝ Í³é³ÛáõÃÛáõÝÝ»ñ Ù³ïáõóáÕ` ß³ÑáõÛÃ ãÑ»ï³åÝ¹áÕ Ï³½Ù³Ï»ñåáõÃÛáõÝÝ»ñÇÝ ÝíÇñ³ïíáõÃÛáõÝÝ»ñ | C116: 481100 | D116: 0
A117: 1171200 | B117: -ÜíÇñ³ïíáõÃÛáõÝÝ»ñ ³ÛÉ ß³ÑáõÛÃ ãÑ»ï³åÝ¹áÕ Ï³½Ù³Ï»ñåáõÃÛáõÝÝ»ñÇÝ | C117: 481900 | D117: 0
A118: 1172000 | B118: 7.2 Ð²ðÎºð, ä²ðî²¸Æð ìÖ²ðÜºð ºì îàôÚÄºð, àðàÜø Î²è²ì²ðØ²Ü î²ð´ºð Ø²Î²ð¸²ÎÜºðÆ ÎàÔØÆò ÎÆð²èìàôØ ºÜ ØÆØÚ²Üò ÜÎ²îØ²Ø´ | C118: x | D118: 0 | F118: 0 | G118: 0 | H118: 0 | I118: 0 | J118: 0
A119: 1172100 | B119: -²ßË³ï³í³ñÓÇ ýáÝ¹ | C119: 482100 | D119: 0
A120: 1172200 | B120: -²ÛÉ Ñ³ñÏ»ñ | C120: 482200 | D120: 0
A121: 1172300 | B121: -ä³ñï³¹Çñ í×³ñÝ»ñ | C121: 482300 | D121: 0
A122: 1172400 | B122: -ä»ï³Ï³Ý Ñ³ïí³ÍÇ ï³ñµ»ñ Ù³Ï³ñ¹³ÏÝ»ñÇ ÏáÕÙÇó ÙÇÙÛ³Ýó ÝÏ³ïÙ³Ùµ ÏÇñ³éíáÕ ïáõÛÅ»ñ | C122: 482400 | D122: 0
A123: 1173000 | B123: 7.3 ¸²î²ð²ÜÜºðÆ ÎàÔØÆò ÜÞ²Ü²Îì²Ì îàôÚÄºð ºì îàô¶²ÜøÜºð | C123: x | D123: 0 | F123: 0 | G123: 0 | H123: 0 | I123: 0 | J123: 0
A124: 1173100 | B124: -¸³ï³ñ³ÝÝ»ñÇ ÏáÕÙÇó Ýß³Ý³Ïí³Í ïáõÛÅ»ñ ¨ ïáõ·³ÝùÝ»ñ | C124: 483100 | D124: 0
A125: 1174000 | B125: 7.4 ´Ü²Î²Ü ²ÔºîÜºðÆò Î²Ø ²ÚÈ ´Ü²Î²Ü ä²îÖ²èÜºðàì ²è²æ²ò²Ì ìÜ²êÜºðÆ Î²Ø ìÜ²êì²ÌøÜºðÆ ìºð²Î²Ü¶ÜàôØ | C125: x | D125: 0 | F125: 0 | G125: 0 | H125: 0 | I125: 0 | J125: 0
A126: 1174100 | B126: -´Ý³Ï³Ý ³Õ»ïÝ»ñÇó ³é³ç³ó³Í íÝ³ëí³ÍùÝ»ñÇ Ï³Ù íÝ³ëÝ»ñÇ í»ñ³Ï³Ý·ÝáõÙ | C126: 484100 | D126: 0
A127: 1174200 | B127: -²ÛÉ µÝ³Ï³Ý å³ï×³éÝ»ñáí ëï³ó³Í íÝ³ëí³ÍùÝ»ñÇ í»ñ³Ï³Ý·ÝáõÙ | C127: 484200 | D127: 0
A128: 1175000 | B128: 7.5 Î²è²ì²ðØ²Ü Ø²ðØÆÜÜºðÆ ¶àðÌàôÜºàôÂÚ²Ü Ðºîºì²Üøàì ²è²æ²ò²Ì ìÜ²êÜºðÆ Î²Ø ìÜ²êì²ÌøÜºðÆ ìºð²Î²Ü¶ÜàôØ | C128: x | D128: 0 | F128: 0 | G128: 0 | H128: 0 | I128: 0 | J128: 0
A129: 1175100 | B129: -Î³é³í³ñÙ³Ý Ù³ñÙÇÝÝ»ñÇ ·áñÍáõÝ»áõÃÛ³Ý Ñ»ï¨³Ýùáí ³é³ç³ó³Í íÝ³ëí³ÍùÝ»ñÇ Ï³Ù íÝ³ëÝ»ñÇ í»ñ³Ï³Ý·ÝáõÙ | C129: 485100 | D129: 0
A130: 1176000 | B130: 7.6 ²ÚÈ Ì²Êêºð | C130: x | D130: 0 | F130: 0 | G130: 0 | H130: 0 | I130: 0 | J130: 0
A131: 1176100 | B131: -²ÛÉ Í³Ëë»ñ | C131: 486100 | D131: 0
A132: 1177000 | B132: 7.7 ä²Ðàôêî²ÚÆÜ ØÆæàòÜºð | C132: x | D132: 0 | F132: 0 | G132: 0 | H132: 0 | I132: 0 | J132: 0
A133: 1177100 | B133: -ä³Ñáõëï³ÛÇÝ ÙÇçáóÝ»ñ | C133: 489100 | D133: 0
A134: ---- | B134: -------
A135: 1200000 | B135: Բ, àâ-üÆÜ²Üê²Î²Ü ²ÎîÆìÜºðÆ ¶Ìàì Ì²Êêºð | C135: x | D135: =D138 -> 21627.6 | E135: =E141 -> 0 | F135: =F138 -> 21627.6 | G135: =G138 -> 21627.6 | H135: =H138 -> 21627.6 | I135: =I138 -> 21627.6 | J135: =J138 -> 21627.6
B136: ³Û¹ ÃíáõÙ`
A137: ---- | B137: -------
A138: 1210000 | B138: 1.ÐÆØÜ²Î²Ü ØÆæàòÜºð | C138: x | D138: =D140+D141+D142 -> 21627.6 | F138: =F140+F141+F142 -> 21627.6 | G138: =G140+G141+G142 -> 21627.6 | H138: =H140+H141+H142 -> 21627.6 | I138: =I140+I141+I142 -> 21627.6 | J138: =F138 -> 21627.6
A139: 1211000 | B139: -Þ»Ýù»ñÇ ¨ ßÇÝáõÃÛáõÝÝ»ñÇ Ó»éù µ»ñáõÙ | C139: 511100 | D139: 0
A140: 1212000 | B140: -Þ»Ýù»ñÇ ¨ ßÇÝáõÃÛáõÝÝ»ñÇ Ï³éáõóáõÙ | C140: 511200 | D140: 0 | E140: 0 | F140: =D140+E140 -> 0 | G140: 0 | H140: 0 | I140: 0 | J140: =F140 -> 0
A141: 1213000 | B141: -Þ»Ýù»ñÇ ¨ ßÇÝáõÃÛáõÝÝ»ñÇ Ï³åÇï³É í»ñ³Ýáñá·áõÙ | C141: 511300 | D141: 21627.6 | E141: 0 | F141: =D141+E141 -> 21627.6 | G141: 21627.6 | H141: 21627.6 | I141: 21627.6 | J141: =F141 -> 21627.6 | K141: 21627.6
A142: 1214000 | B142: -îñ³Ýëåáñï³ÛÇÝ ë³ñù³íáñáõÙÝ»ñ | C142: 512100 | D142: 0 | F142: =D142+E142 -> 0 | G142: 0 | H142: 0 | I142: 0 | J142: =F142 -> 0
A143: 1215000 | B143: -ì³ñã³Ï³Ý ë³ñù³íáñáõÙÝ»ñ | C143: 512200 | D143: 0
A144: 1216000 | B144: -²ÛÉ Ù»ù»Ý³Ý»ñ ¨ ë³ñù³íáñáõÙÝ»ñ | C144: 512900 | D144: 0
A145: 1217000 | B145: -²×»óíáÕ ³ÏïÇíÝ»ñ | C145: 513100 | D145: 0
A146: 1218000 | B146: -àã-ÝÛáõÃ³Ï³Ý ÑÇÙÝ³Ï³Ý ÙÇçáóÝ»ñ | C146: 513200 | D146: 0
A147: 1220000 | B147: 2.ä²Þ²ðÜºð | C147: x | D147: 0 | F147: 0 | H147: 0 | I147: 0 | J147: 0
A148: 1221000 | B148: -è³½Ù³í³ñ³Ï³Ý å³ß³ñÝ»ñ | C148: 521100 | D148: 0
A149: 1222000 | B149: -ÜÛáõÃ»ñ ¨ å³ñ³·³Ý»ñ | C149: 522100 | D149: 0
A150: 1223000 | B150: -ì»ñ³í³×³éùÇ Ñ³Ù³ñ Ý³Ë³ï»ëí³Í ³åñ³ÝùÝ»ñ | C150: 523100 | D150: 0
A151: 1224000 | B151: -êå³éÙ³Ý Ýå³ï³Ïáí å³ÑíáÕ å³ß³ñÝ»ñ | C151: 524100 | D151: 0
A152: 1230000 | B152: 3.´²ðÒð²ðÄºø ²ÎîÆìÜºð | C152: x | D152: 0 | F152: 0 | G152: 0 | H152: 0 | I152: 0 | J152: 0
A153: 1231000 | B153: -´³ñÓñ³ñÅ»ù ³ÏïÇíÝ»ñ | C153: 531100 | D153: 0
A154: 1240000 | B154: 4.àâ ²ðî²¸ð²Î²Ü ԱԿՏԻՎՆԵՐ | C154: x | D154: 0 | F154: 0 | G154: 0 | H154: 0 | I154: 0 | J154: 0
A155: 1241000 | B155: -ÐáÕ | C155: 541100 | D155: 0
A156: 1242000 | B156: -ÀÝ¹»ñù³ÛÇÝ ³ÏïÇíÝ»ñ | C156: 542100 | D156: 0
A157: 1243000 | B157: -²ÛÉ µÝ³Ï³Ý Í³·áõÙ áõÝ»óáÕ ³ÏïÇíÝ»ñ | C157: 543100 | D157: 0
A158: 1244000 | B158: -àã ÝÛáõÃ³Ï³Ý áã ³ñï³¹ñ³Ï³Ý ³ÏïÇíÝ»ñ | C158: 544100 | D158: 0
A159: 1000000 | B159: ԸՆԴԱՄԵՆԸ ºÈøºð` (ïáÕ 1100000+ïáÕ1200000) | C159: x | D159: =D33+D135 -> 21627.6 | E159: 0 | F159: 21627.6 | G159: 21627.6 | H159: 21627.6 | I159: 21627.6 | J159: =F159 -> 21627.6
A162: §17¦ § դեÏï»Ùµ»ñ ¦ 2020 Ã.
A164: ÐÆØÜ²ðÎÆ ÔºÎ²ì²ðª _______________ _________________ | G164: Է.Արշակյան
E165: (ëïáñ³·ñáõÃÛáõÝ) | G165: (².Ð.².)
A166: Î.î.
A167: üÆÜ²Üê²Î²Ü Ì²è²ÚàôÂÚ²Ü äºîª _______________ _________________ | G167: Ն. Մուրադյան
B168: (¶ÈÊ²ìàð Ð²Þì²ä²Ð) | E168: (ëïáñ³·ñáõÃÛáõÝ) | G168: (².Ð.².)

Sheet arandzin chanaparh (hidden)
F1: Ð³í»Éí³Í N 4
F3: úñÇÝ³Ï»ÉÇ Ó¨ N 3
F4: Ð³ëï³ïí»É ¿ ÐÐ ýÇÝ³ÝëÝ»ñÇ ¨ ¿ÏáÝáÙÇÏ³ÛÇ
B5: §Ð ² ê î ² î àô Ø ºØª¦ | G5: Ý³Ë³ñ³ñÇ 23 ÑáõÉÇëÇ 2007 Ãí³Ï³ÝÇ
F6: N 597-Ü Ññ³Ù³Ýáí
A7: Ý³Ë³Ñ³ßÇíÁ 3000,0 երեք միլիոն դրամ.
A8: ( ÁÝ¹³Ù»ÝÁ ·áõÙ³ñÁ Ãí»ñáí ¨ ï³é»ñáí****)
A9: ___________________________________________________________________ Ñ³½³ñ ¹ñ³Ù ·áõÙ³ñáí:
A11: ______________________________________Է.Արշակյան___________________________________ | G11: Î.î.
A12: (ÐÐ å»ï³Ï³Ý Ï³é³í³ñÙ³Ý Ï³Ù ï»Õ³Ï³Ý ÇÝùÝ³Ï³é³í³ñÙ³Ý Ù³ñÙÝÇ Õ»Ï³í³ñÇ ëïáñ³·ñáõÃÛáõÝÁ ¨ ².Ð.².)
A13: § ¦ դեկտեմբերի 2020թ
A14: Ü ² Ê ² Ð ² Þ Æ ì*
A15: ÐÇÙÝ³ñÏÝ»ñÇ ÏáÕÙÇó µÛáõç»ï³ÛÇÝ Ñ³ïÏ³óáõÙÝ»ñÇ Ñ³ßíÇÝ Çñ³Ï³Ý³óíáÕ Í³Ëë»ñÇ (»Éù»ñÇ) ³é³ÝÓÇÝ ï»ë³ÏÝ»ñÇ
A16: ¥Áëï ïÝï»ë³·Çï³Ï³Ý ¹³ë³Ï³ñ·Ù³Ý Ñá¹í³ÍÝ»ñÇ¤
A17: §01¦ §ÐáõÝí³ñÇ ¦ 2021 Ã. -- §30¦ §¹»Ïï»Ùµ»ñÇ ¦ 2021 Ã..
A19: 1. ÐÇÙÝ³ñÏÇ ³Ýí³ÝáõÙÁ î³ßÇñÇ ù³Õ³ù³å»ï³ñ³Ý | F19: 8.***** ´Ûáõç»ï³ÛÇÝ Í³Ëë»ñÇ ·áñÍ³é³Ï³Ý ¹³ë³Ï³ñ·Ù³Ý
A20: 2. öáëï³ÛÇÝ Ñ³ëó»Ý ù. î³ßÇñ | F20: Í³ÍÏ³·Çñ | G20: 04 | H20: 5 | I20: 1
A21: 3. ÐÇÙÝ³ñÏÇ ï»Õ³µ³ßËÙ³Ý Ù³ñ½Ç ¨ Ñ³Ù³ÛÝùÇ Ïá¹Á
A22: Áëï µÛáõç»ï³ÛÇÝ Í³Ëë»ñÇ ï³ñ³Íù³ÛÇÝ ¹³ë³Ï³ñ·Ù³Ý | F22: 9. Ìñ³·ñÇ ³Ýí³ÝáõÙÁ _ճանապարային տրանսպորտ
A23: 4. ** ä»ï³Ï³Ý Ï³é³í³ñÙ³Ý (ï»Õ³Ï³Ý ÇÝùÝ³Ï³é³í³ñÙ³Ý) Ù³ñÙÝÇ ³Ýí³ÝáõÙÁ | F23: 10. Ìñ³·ñÇ Ïá¹Á 51
A24: _______________________________________________________________________________________ | F24: 11. *** ä»ï³Ï³Ý Ï³é³í³ñÙ³Ý (ï»Õ³Ï³Ý .ÇÝù ÇÝùÝ³Ï³é³í³ñÙ³Ý)Ù³ñÙÇÝÝ»ñÇ ·»ñ³ï»ëã³Ï³Ý Ïá¹Á
A25: 5. ÐÇÙÝ³ñÏÁ ëå³ë³ñÏáÕ ï»Õ³Ï³Ý ·³ÝÓ³å»ï³Ï³Ý µ³ÅÝÇ (î¶´) ³Ýí³ÝáõÙÁ _Տաշիրի
A26: 6. ÐÇÙÝ³ñÏÇª ï»Õ³Ï³Ý ·³ÝÓ³å»ï³Ï³Ý µ³ÅÝáõÙ (î¶´) Ñ³ßí³éÙ³Ý Ñ³Ù³ñÁ
A27: 7. Ì³Ëë»ñÇ ýÇÝ³Ýë³íáñÙ³Ý ³ÕµÛáõñÇ Ïá¹Á` | G27: 12. â³÷Ç ÙÇ³íáñÁª Ñ³½³ñ ¹ñ³Ù
A28: (ÐÐ å»ï³Ï³Ý µÛáõç»ª 1, Ñ³Ù³ÛÝùÇ µÛáõç»ª 2)
A30: îáÕÇ NN | B30: ´Ûáõç»ï³ÛÇÝ Í³Ëë»ñÇ ïÝï»ë³·Çï³Ï³Ý ¹³ë³Ï³ñ·Ù³Ý ï³ññ»ñ | D30: ÜáõÛÝ Å³Ù³Ý³Ï³Ñ³ïí³ÍÇ Ñ³Ù³ñ Ý³ËÏÇÝáõÙ Ñ³ëï³ïí³Íª ·áñÍáÕ | F30: êáõÛÝ Ý³Ë³Ñ³ßíáí Ñ³ëï³ïíáÕ óáõó³ÝÇßÝ»ñÁ | G30: ³Û¹ ÃíáõÙª Áëï »é³ÙëÛ³ÏÝ»ñÇ (»é³ÙëÛ³ÏÇ ³ÙÇëÝ»ñÇ)³×áÕ³Ï³Ý
B31: ³Ýí³ÝáõÙÝ»ñÁ | C31: NN | D31: Ý³Ë³Ñ³ßíÇ óáõó³ÝÇßÝ»ñÁ | E31: Ý³Ë³Ñ³ßíáõÙ Ï³ï³ñí³Í ÷á÷áËáõÃÛáõÝ-Ý»ñÁ (³í»É³óáõÙÁª /+/, å³Ï³ë»óáõÙÁª/-/ | G31: I | H31: II | I31: III | J31: IV
A32: ² | B32: ´ | C32: ¶ | D32: 1 | E32: 2 | F32: 3 | G32: 4 | H32: 5 | I32: 6 | J32: 7
A33: 1100000 | B33: ². ÀÜÂ²òÆÎ Ì²Êêºðª ÀÜ¸²ØºÜÀ, ³Û¹ ÃíáõÙ` | C33: x | D33: =D68 -> 3000 | E33: 0 | F33: 3000 | G33: 1000 | H33: 2500 | I33: 3000 | J33: 3000
A34: 1110000 | B34: 1.äºî²Î²Ü, îºÔ²Î²Ü ÆÜøÜ²Î²è²ì²ðØ²Ü Ø²ðØÆÜÜºðÆ, ¸ð²Üò ºÜÂ²Î² ´Úàôæºî²ÚÆÜ ÐÆØÜ²ðÎÜºðÆ ²ÞÊ²îàÔÜºðÆ ²ÞÊ²î²ì²ðÒÀª ÀÜ¸²ØºÜÀ, ³Û¹ ÃíáõÙª | C34: x | D34: 0 | F34: 0 | G34: 0 | H34: 0 | I34: 0 | J34: 0
A35: 1110000 | B35: 1,1 ²ßË³ï³ÝùÇ í³ñÓ³ïñáõÃÛáõÝ | C35: x | D35: 0 | F35: 0 | G35: 0 | H35: 0 | I35: 0 | J35: 0
A36: 1111000 | B36: -²ßË³ïáÕÝ»ñÇ ³ßË³ï³í³ñÓ»ñ ¨ Ñ³í»É³í×³ñÝ»ñ | C36: 411100
A37: 1112000 | B37: - ä³ñ·¨³ïñáõÙÝ»ñ, ¹ñ³Ù³Ï³Ý Ëñ³ËáõëáõÙÝ»ñ ¨ Ñ³ïáõÏ í×³ñÝ»ñ | C37: 411200
A38: 1113000 | B38: -ø³Õ³ù³óÇ³Ï³Ý, ¹³ï³Ï³Ý ¨ å»ï³Ï³Ý Í³é³ÛáÕÝ»ñÇ å³ñ·¨³ïñáõÙ | C38: 411300
A39: 1114000 | B39: -ÐÐ ýÇÝ³ÝëÝ»ñÇ ¨ ¿ÏáÝáÙÇÏ³ÛÇ Ý³Ë³ñ³ñáõÃÛ³Ý, Ñ³ñÏ³ÛÇÝ ¨ Ù³ùë³ÛÇÝ Ù³ñÙÇÝÝ»ñÇ ³ßË³ïáÕÝ»ñÇ å³ñ·¨³ïñáõÙ | C39: 411400
A40: 1115000 | B40: -²ÛÉ í³ñÓ³ïñáõÃÛáõÝÝ»ñ | C40: 411500
A41: 1116000 | B41: -´Ý»Õ»Ý ³ßË³ï³í³ñÓ»ñ ¨ Ñ³í»É³í×³ñÝ»ñ | C41: 412100
A42: 1117000 | B42: -ì×³ñÝ»ñ êáóÇ³É³Ï³Ý ³å³Ñáí³·ñáõÃÛ³Ý å»ï³Ï³Ý ÑÇÙÝ³¹ñ³ÙÇÝ | C42: 413100
A43: 1120000 | B43: 2 Ì³é³ÛáõÃÛáõÝÝ»ñÇ ¨ ³åñ³ÝùÝ»ñÇ Ó»éù µ»ñáõÙ | C43: x | D43: 1500 | F43: 1500 | G43: 0 | H43: 0 | I43: 1500 | J43: 1500
A44: 1121000 | B44: 2.1 Þ³ñáõÝ³Ï³Ï³Ý Í³Ëë»ñ | D44: 0 | F44: 0 | G44: 0 | H44: 0 | I44: 0 | J44: 0
A45: 1121100 | B45: -·áñÍ³éÝ³Ï³Ý ¨ µ³ÝÏ³ÛÇÝ Í³é³ÛáõÃÛáõÝÝ»ñÇ Í³Ëë»ñ | C45: 421100 | D45: 0
A46: 1121200 | B46: -¿Ý»ñ·»ïÇÏ Í³é³ÛáõÃÛáõÝÝ»ñ | C46: 421200 | D46: 0
A47: 1121300 | B47: -ÎáÙáõÝ³É Í³é³ÛáõÃÛáõÝÝ»ñ | C47: 421300 | D47: 0
A48: 1121400 | B48: -Î³åÇ Í³é³ÛáõÃÛáõÝÝ»ñ | C48: 421400 | D48: 0
A49: 1121500 | B49: -²å³Ñáí³·ñ³Ï³Ý Í³Ëë»ñ | C49: 421500 | D49: 0
A50: 1121600 | B50: -¶áõÛùÇ ¨ ë³ñù³íáñáõÙÝ»ñÇ í³ñÓ³Ï³ÉáõÃÛáõÝ | C50: 421600 | D50: 0
A51: 1121700 | B51: -²ñï³·»ñ³ï»ëã³Ï³Ý Í³Ëë»ñ | C51: 421700 | D51: 0
A52: 1122000 | B52: 2.2 ¶áñÍáõÕáõÙÝ»ñÇ ¨ ßñç³·³ÛáõÃÛ³Ý Í³Ëë»ñ | C52: x | D52: 0 | F52: 0 | G52: 0 | H52: 0 | I52: 0 | J52: 0
A53: 1122100 | B53: -Ü»ñùÇÝ ·áñÍáõÕáõÙÝ»ñ | C53: 422100
A54: 1122200 | B54: -²ñï³ë³ÑÙ³ÝÛ³Ý ·áñÍáõÕáõÙÝ»ñÇ ·Íáí Í³Ëë»ñ | C54: 422200
A55: 1122300 | B55: -²ÛÉ ïñ³Ýëåáñï³ÛÇÝ Í³Ëë»ñ | C55: 422900
A56: 1123000 | B56: 2.3 ä³ÛÙ³Ý³·ñ³ÛÇÝ Í³é³ÛáõÃÛáõÝÝ»ñÇ Ó»éù µ»ñáõÙ | C56: x | D56: 0 | F56: 0 | G56: 0 | H56: 0 | I56: 0 | J56: 0
A57: 1123100 | B57: -ì³ñã³Ï³Ý Í³é³ÛáõÃÛáõÝÝ»ñ | C57: 423100 | D57: 0
A58: 1123200 | B58: -Ð³Ù³Ï³ñ·ã³ÛÇÝ Í³é³ÛáõÃÛáõÝÝ»ñ | C58: 423200 | D58: 0
A59: 1123300 | B59: -²ßË³ï³Ï³½ÙÇ Ù³ëÝ³·Çï³Ï³Ý ½³ñ·³óÙ³Ý Í³é³ÛáõÃÛáõÝÝ»ñ | C59: 423300 | D59: 0
A60: 1123400 | B60: -î»Õ³Ï³ïí³Ï³Ý Í³é³ÛáõÃÛáõÝÝ»ñ | C60: 423400 | D60: 0
A61: 1123500 | B61: -Î³é³í³ñã³Ï³Ý Í³é³ÛáõÃÛáõÝÝ»ñ | C61: 423500 | D61: 0
A62: 1123600 | B62: - Î»Ýó³Õ³ÛÇÝ ¨ Ñ³Ýñ³ÛÇÝ ëÝÝ¹Ç Í³é³ÛáõÃÛáõÝÝ»ñ | C62: 423600 | D62: 0
A63: 1123700 | B63: -Ü»ñÏ³Û³óáõóã³Ï³Ý Í³Ëë»ñ | C63: 423700 | D63: 0
A64: 1123800 | B64: -ÀÝ¹Ñ³Ýáõñ µÝáõÛÃÇ ³ÛÉ Í³é³ÛáõÃÛáõÝÝ»ñ | C64: 423900 | D64: 0
A65: 1124000 | B65: 2.4 ²ÛÉ Ù³ëÝ³·Çï³Ï³Ý Í³é³ÛáõÃÛáõÝÝ»ñÇ Ó»éù µ»ñáõÙ | C65: x | D65: 0 | F65: 0 | G65: 0 | H65: 0 | I65: 0 | J65: 0
A66: 1124100 | B66: -Ø³ëÝ³·Çï³Ï³Ý Í³é³ÛáõÃÛáõÝÝ»ñ | C66: 424100 | D66: 0
A67: 1125000 | B67: 2.5 ÀÝÃ³óÇÏ Ýáñá·áõÙ ¨ å³Ñå³ÝáõÙ (Í³é³ÛáõÃÛáõÝÝ»ñ ¨ ÝÛáõÃ»ñ) | C67: x | D67: 1500 | F67: 1500 | G67: 0 | H67: 0 | I67: 1500 | J67: 1500
A68: 1125100 | B68: -Þ»Ýù»ñÇ ¨ Ï³éáõÛóÝ»ñÇ ÁÝÃ³óÇÏ Ýáñá·áõÙ ¨ å³Ñå³ÝáõÙ | C68: 425100 | D68: 3000 | E68: 0 | F68: =D68+E68 -> 3000 | G68: 1000 | H68: 2500 | I68: 3000 | J68: =F68 -> 3000
A69: 1125200 | B69: -Ø»ù»Ý³Ý»ñÇ ¨ ë³ñù³íáñáõÙÝ»ñÇ ÁÝÃ³óÇÏ Ýáñá·áõÙ ¨ å³Ñå³ÝáõÙ | C69: 425200 | D69: 0
A70: 1126000 | B70: 2.6 ÜÛáõÃ»ñ | C70: x | D70: 0 | F70: 0 | G70: 0 | H70: 0 | I70: 0 | J70: 0
A71: 1126100 | B71: -¶ñ³ë»ÝÛ³Ï³ÛÇÝ ÝÛáõÃ»ñ ¨ Ñ³·áõëï | C71: 426100 | D71: 0
A72: 1126200 | B72: -¶ÛáõÕ³ïÝï»ë³Ï³Ý ³åñ³ÝùÝ»ñ | C72: 426200 | D72: 0
A73: 1126300 | B73: -ì»ñ³å³ïñ³ëïÙ³Ý ¨ áõëáõóÙ³Ý ÝÛáõÃ»ñ | C73: 426300 | D73: 0
A74: 1126400 | B74: -îñ³Ýëåáñï³ÛÇÝ ÝÛáõÃ»ñ | C74: 426400 | D74: 0
A75: 1126500 | B75: -Þñç³Ï³ ÙÇç³í³ÛñÇ å³ßïå³ÝáõÃÛ³Ý ¨ ·Çï³Ï³Ý ÝÛáõÃ»ñ | C75: 426500 | D75: 0
A76: 1126600 | B76: -²éáÕç³å³Ñ³Ï³Ý ¨ É³µáñ³ïáñ ÝÛáõÃ»ñ | C76: 426600 | D76: 0
A77: 1126700 | B77: -Î»Ýó³Õ³ÛÇÝ ¨ Ñ³Ýñ³ÛÇÝ ëÝÝ¹Ç ÝÛáõÃ»ñ | C77: 426700 | D77: 0
A78: 1126800 | B78: -Ð³ïáõÏ Ýå³ï³Ï³ÛÇÝ ³ÛÉ ÝÛáõÃ»ñ | C78: 426900 | D78: 0
A79: 1130000 | B79: 3 îáÏáë³í×³ñÝ»ñ | C79: x | D79: 0 | F79: 0 | G79: 0 | H79: 0 | I79: 0 | J79: 0
A80: 1130100 | B80: -Ü»ñùÇÝ ³ñÅ»ÃÕÃ»ñÇ ïáÏáë³í×³ñÝ»ñ | C80: 441100
A81: 1130200 | B81: -Ü»ñùÇÝ í³ñÏ»ñÇ ïáÏáë³í×³ñÝ»ñ | C81: 441200
A82: 1130300 | B82: -²ñï³ùÇÝ ³ñÅ»ÃÕÃ»ñÇ ·Íáí ïáÏáë³í×³ñÝ»ñ | C82: 442100
A83: 1130400 | B83: -²ñï³ùÇÝ í³ñÏ»ñÇ ·Íáí ïáÏáë³í×³ñÝ»ñ | C83: 442200
A84: 1131000 | B84: öáË³éáõÃÛáõÝÝ»ñÇ Ñ»ï Ï³åí³Í í×³ñÝ»ñ | C84: x
A85: 1131100 | B85: -öáË³Ý³ÏÙ³Ý Ïáõñë»ñÇ µ³ó³ë³Ï³Ý ï³ñµ»ñáõÃÛáõÝ | C85: 443100
A86: 1131200 | B86: -îáõÛÅ»ñ | C86: 443200
A87: 1131300 | B87: -öáË³éáõÃÛáõÝÝ»ñÇ ·Íáí ïáõñù»ñ | C87: 443300
A88: 1140000 | B88: 4. êáõµëÇ¹Ç³Ý»ñ | C88: x | D88: 0 | F88: 0 | G88: 0 | H88: 0 | I88: 0 | J88: 0
A89: 1141000 | B89: -êáõµëÇ¹Ç³Ý»ñ áã-ýÇÝ³Ýë³Ï³Ý å»ï³Ï³Ý Ï³½Ù³Ï»ñåáõÃÛáõÝÝ»ñÇÝ | C89: 451100
A90: 1142000 | B90: -êáõµëÇ¹Ç³Ý»ñ ýÇÝ³Ýë³Ï³Ý å»ï³Ï³Ý Ï³½Ù³Ï»ñåáõÃÛáõÝÝ»ñÇÝ | C90: 451200
A91: 1143000 | B91: -êáõµëÇ¹Ç³Ý»ñ áã å»ï³Ï³Ý áã ýÇÝ³Ýë³Ï³Ý Ï³½Ù³Ï»ñåáõÃÛáõÝÝ»ñÇÝ | C91: 452100
A92: 1144000 | B92: -êáõµëÇ¹Ç³Ý»ñ áã å»ï³Ï³Ý ýÇÝ³Ýë³Ï³Ý Ï³½Ù³Ï»ñåáõÃÛáõÝÝ»ñÇÝ | C92: 452200
A93: 1150000 | B93: 5.¸ñ³Ù³ßÝáñÑÝ»ñ | C93: x | D93: 0 | F93: 0 | G93: 0 | H93: 0 | I93: 0 | J93: 0
A94: 1151000 | B94: -ÀÝÃ³óÇÏ ¹ñ³Ù³ßÝáñÑÝ»ñ ûï³ñ»ñÏñÛ³ Ï³é³í³ñáõÃÛáõÝÝ»ñÇÝ | C94: 461100
A95: 1152000 | B95: -Î³åÇï³É ¹ñ³Ù³ßÝáñÑÝ»ñ ûï³ñ»ñÏñÛ³ Ï³é³í³ñáõÃÛáõÝÝ»ñÇÝ | C95: 461200
A96: 1153000 | B96: -ÀÝÃ³óÇÏ ¹ñ³Ù³ßÝáñÑÝ»ñ ÙÇç³½·³ÛÇÝ Ï³½Ù³Ï»ñåáõÃÛáõÝÝ»ñÇÝ | C96: 462100
A97: 1154000 | B97: -Î³åÇï³É ¹ñ³Ù³ßÝáñÑÝ»ñ ÙÇç³½·³ÛÇÝ Ï³½Ù³Ï»ñåáõÃÛáõÝÝ»ñÇÝ | C97: 462200
A98: 1155000 | B98: -ÀÝÃ³óÇÏ ¹ñ³Ù³ßÝáñÑÝ»ñ å»ï³Ï³Ý Ñ³ïí³ÍÇ ³ÛÉ Ù³Ï³ñ¹³ÏÝ»ñÇÝ | C98: 463100
A99: 1156000 | B99: -Î³åÇï³É ¹ñ³Ù³ßÝáñÑÝ»ñ å»ï³Ï³Ý Ñ³ïí³ÍÇ ³ÛÉ Ù³Ï³ñ¹³ÏÝ»ñÇÝ | C99: 463200
A100: 1160000 | B100: 6. êàòÆ²È²Î²Ü Üä²êîÜºð | C100: x | D100: 0 | F100: 0 | G100: 0 | H100: 0 | I100: 0 | J100: 0
A101: 1161000 | B101: 6.1 êàòÆ²È²Î²Ü ²ä²ÐàìàôÂÚ²Ü Üä²êîÜºð (ä²ðî²¸Æð êàòÆ²È²Î²Ü ²ä²Ðàì²¶ðàôÂÚ²Ü Î²¼Ø²ÎºðäàôÂÚàôÜÜºð) | C101: x | D101: 0 | F101: 0 | G101: 0 | H101: 0 | I101: 0 | J101: 0
A102: 1161100 | B102: -îÝ³ÛÇÝ ïÝï»ëáõÃÛáõÝÝ»ñÇÝ ¹ñ³Ùáí í×³ñíáÕ ëáóÇ³É³Ï³Ý ³å³Ñáí³·ñáõÃÛ³Ý í×³ñÝ»ñ | C102: 471100
A103: 1161200 | B103: -êáóÇ³É³Ï³Ý ³å³ÑáíáõÃÛ³Ý µÝ»Õ»Ý Ýå³ëïÝ»ñ Í³é³ÛáõÃÛáõÝÝ»ñ Ù³ïáõóáÕÝ»ñÇÝ | C103: 471200
A104: 1162000 | B104: 6.2 êàòÆ²È²Î²Ü ú¶ÜàôÂÚ²Ü ¸ð²Ø²Î²Ü ²ðî²Ð²ÚîàôÂÚ²Ø´ Üä²êîÜºð (´ÚàôæºÆò) | C104: x | D104: 0 | F104: 0 | G104: 0 | H104: 0 | I104: 0 | J104: 0
A105: 1162100 | B105: -ÐÇí³Ý¹áõÃÛ³Ý ¨ Ñ³ßÙ³Ý¹³ÙáõÃÛ³Ý Ýå³ëïÝ»ñ µÛáõç»Çó | C105: 472100
A106: 1162200 | B106: -Ø³ÛñáõÃÛ³Ý Ýå³ëïÝ»ñ µÛáõç»Çó | C106: 472200
A107: 1162300 | B107: -ºñ»Ë³Ý»ñÇ Ï³Ù ÁÝï³Ý»Ï³Ý Ýå³ëïÝ»ñ µÛáõç»Çó | C107: 472300
A108: 1162400 | B108: -¶áñÍ³½ñÏáõÃÛ³Ý Ýå³ëïÝ»ñ µÛáõç»Çó | C108: 472400
A109: 1162500 | B109: -Î»Ýë³Ãáß³ÏÇ ³ÝóÝ»Éáõ Ñ»ï Ï³åí³Í ¨ ï³ñÇù³ÛÇÝ Ýå³ëïÝ»ñ µÛáõç»Çó | C109: 472500
A110: 1162600 | B110: -ÐáõÕ³ñÏ³íáñáõÃÛ³Ý Ýå³ëïÝ»ñ µÛáõç»Çó | C110: 472600
A111: 1162700 | B111: -ÎñÃ³Ï³Ý, Ùß³ÏáõÃ³ÛÇÝ ¨ ëåáñï³ÛÇÝ Ýå³ëïÝ»ñ µÛáõç»Çó | C111: 472700
A112: 1162800 | B112: -´Ý³Ï³ñ³Ý³ÛÇÝ Ýå³ëïÝ»ñ µÛáõç»Çó | C112: 472800
A113: 1162900 | B113: -²ÛÉ Ýå³ëïÝ»ñ µÛáõç»Çó | C113: 472900
A114: 1170000 | B114: 7. ²ÚÈ Ì²Êêºð | C114: x | D114: 0 | F114: 0 | G114: 0 | H114: 0 | I114: 0 | J114: 0
A115: 1171000 | B115: 7.1 ÜìÆð²îìàôÂÚàôÜÜºð àâ-Î²è²ì²ðâ²Î²Ü (Ð²ê²ð²Î²Î²Ü) Î²¼Ø²ÎºðäàôÂÚàôÜÜºðÆÜ | C115: x | D115: 0 | F115: 0 | G115: 0 | H115: 0 | I115: 0 | J115: 0
A116: 1171100 | B116: -îÝ³ÛÇÝ ïÝï»ëáõÃÛáõÝÝ»ñÇÝ Í³é³ÛáõÃÛáõÝÝ»ñ Ù³ïáõóáÕ` ß³ÑáõÛÃ ãÑ»ï³åÝ¹áÕ Ï³½Ù³Ï»ñåáõÃÛáõÝÝ»ñÇÝ ÝíÇñ³ïíáõÃÛáõÝÝ»ñ | C116: 481100 | D116: 0
A117: 1171200 | B117: -ÜíÇñ³ïíáõÃÛáõÝÝ»ñ ³ÛÉ ß³ÑáõÛÃ ãÑ»ï³åÝ¹áÕ Ï³½Ù³Ï»ñåáõÃÛáõÝÝ»ñÇÝ | C117: 481900 | D117: 0
A118: 1172000 | B118: 7.2 Ð²ðÎºð, ä²ðî²¸Æð ìÖ²ðÜºð ºì îàôÚÄºð, àðàÜø Î²è²ì²ðØ²Ü î²ð´ºð Ø²Î²ð¸²ÎÜºðÆ ÎàÔØÆò ÎÆð²èìàôØ ºÜ ØÆØÚ²Üò ÜÎ²îØ²Ø´ | C118: x | D118: 0 | F118: 0 | G118: 0 | H118: 0 | I118: 0 | J118: 0
A119: 1172100 | B119: -²ßË³ï³í³ñÓÇ ýáÝ¹ | C119: 482100 | D119: 0
A120: 1172200 | B120: -²ÛÉ Ñ³ñÏ»ñ | C120: 482200 | D120: 0
A121: 1172300 | B121: -ä³ñï³¹Çñ í×³ñÝ»ñ | C121: 482300 | D121: 0
A122: 1172400 | B122: -ä»ï³Ï³Ý Ñ³ïí³ÍÇ ï³ñµ»ñ Ù³Ï³ñ¹³ÏÝ»ñÇ ÏáÕÙÇó ÙÇÙÛ³Ýó ÝÏ³ïÙ³Ùµ ÏÇñ³éíáÕ ïáõÛÅ»ñ | C122: 482400 | D122: 0
A123: 1173000 | B123: 7.3 ¸²î²ð²ÜÜºðÆ ÎàÔØÆò ÜÞ²Ü²Îì²Ì îàôÚÄºð ºì îàô¶²ÜøÜºð | C123: x | D123: 0 | F123: 0 | G123: 0 | H123: 0 | I123: 0 | J123: 0
A124: 1173100 | B124: -¸³ï³ñ³ÝÝ»ñÇ ÏáÕÙÇó Ýß³Ý³Ïí³Í ïáõÛÅ»ñ ¨ ïáõ·³ÝùÝ»ñ | C124: 483100 | D124: 0
A125: 1174000 | B125: 7.4 ´Ü²Î²Ü ²ÔºîÜºðÆò Î²Ø ²ÚÈ ´Ü²Î²Ü ä²îÖ²èÜºðàì ²è²æ²ò²Ì ìÜ²êÜºðÆ Î²Ø ìÜ²êì²ÌøÜºðÆ ìºð²Î²Ü¶ÜàôØ | C125: x | D125: 0 | F125: 0 | G125: 0 | H125: 0 | I125: 0 | J125: 0
A126: 1174100 | B126: -´Ý³Ï³Ý ³Õ»ïÝ»ñÇó ³é³ç³ó³Í íÝ³ëí³ÍùÝ»ñÇ Ï³Ù íÝ³ëÝ»ñÇ í»ñ³Ï³Ý·ÝáõÙ | C126: 484100 | D126: 0
A127: 1174200 | B127: -²ÛÉ µÝ³Ï³Ý å³ï×³éÝ»ñáí ëï³ó³Í íÝ³ëí³ÍùÝ»ñÇ í»ñ³Ï³Ý·ÝáõÙ | C127: 484200 | D127: 0
A128: 1175000 | B128: 7.5 Î²è²ì²ðØ²Ü Ø²ðØÆÜÜºðÆ ¶àðÌàôÜºàôÂÚ²Ü Ðºîºì²Üøàì ²è²æ²ò²Ì ìÜ²êÜºðÆ Î²Ø ìÜ²êì²ÌøÜºðÆ ìºð²Î²Ü¶ÜàôØ | C128: x | D128: 0 | F128: 0 | G128: 0 | H128: 0 | I128: 0 | J128: 0
A129: 1175100 | B129: -Î³é³í³ñÙ³Ý Ù³ñÙÇÝÝ»ñÇ ·áñÍáõÝ»áõÃÛ³Ý Ñ»ï¨³Ýùáí ³é³ç³ó³Í íÝ³ëí³ÍùÝ»ñÇ Ï³Ù íÝ³ëÝ»ñÇ í»ñ³Ï³Ý·ÝáõÙ | C129: 485100 | D129: 0
A130: 1176000 | B130: 7.6 ²ÚÈ Ì²Êêºð | C130: x | D130: 0 | F130: 0 | G130: 0 | H130: 0 | I130: 0 | J130: 0
A131: 1176100 | B131: -²ÛÉ Í³Ëë»ñ | C131: 486100 | D131: 0
A132: 1177000 | B132: 7.7 ä²Ðàôêî²ÚÆÜ ØÆæàòÜºð | C132: x | D132: 0 | F132: 0 | G132: 0 | H132: 0 | I132: 0 | J132: 0
A133: 1177100 | B133: -ä³Ñáõëï³ÛÇÝ ÙÇçáóÝ»ñ | C133: 489100 | D133: 0
A134: ---- | B134: -------
A135: 1200000 | B135: Բ, àâ-üÆÜ²Üê²Î²Ü ²ÎîÆìÜºðÆ ¶Ìàì Ì²Êêºð | C135: x | D135: =D138 -> 0 | E135: =E141 -> 0 | F135: =F138 -> 0 | G135: =G138 -> 0 | H135: =H138 -> 0 | I135: =I138 -> 0 | J135: =J138 -> 0
B136: ³Û¹ ÃíáõÙ`
A137: ---- | B137: -------
A138: 1210000 | B138: 1.ÐÆØÜ²Î²Ü ØÆæàòÜºð | C138: x | D138: =D140+D141+D142 -> 0 | F138: =F140+F141+F142 -> 0 | G138: =G140+G141+G142 -> 0 | H138: =H140+H141+H142 -> 0 | I138: =I140+I141+I142 -> 0 | J138: =F138 -> 0
A139: 1211000 | B139: -Þ»Ýù»ñÇ ¨ ßÇÝáõÃÛáõÝÝ»ñÇ Ó»éù µ»ñáõÙ | C139: 511100 | D139: 0
A140: 1212000 | B140: -Þ»Ýù»ñÇ ¨ ßÇÝáõÃÛáõÝÝ»ñÇ Ï³éáõóáõÙ | C140: 511200 | D140: 0 | E140: 0 | F140: =D140+E140 -> 0 | G140: 0 | H140: 0 | I140: 0 | J140: =F140 -> 0
A141: 1213000 | B141: -Þ»Ýù»ñÇ ¨ ßÇÝáõÃÛáõÝÝ»ñÇ Ï³åÇï³É í»ñ³Ýáñá·áõÙ | C141: 511300 | D141: 0 | E141: 0 | F141: =D141+E141 -> 0 | G141: 0 | H141: 0 | I141: 0 | J141: =F141 -> 0
A142: 1214000 | B142: -îñ³Ýëåáñï³ÛÇÝ ë³ñù³íáñáõÙÝ»ñ | C142: 512100 | D142: 0 | F142: =D142+E142 -> 0 | G142: 0 | H142: 0 | I142: 0 | J142: =F142 -> 0
A143: 1215000 | B143: -ì³ñã³Ï³Ý ë³ñù³íáñáõÙÝ»ñ | C143: 512200 | D143: 0
A144: 1216000 | B144: -²ÛÉ Ù»ù»Ý³Ý»ñ ¨ ë³ñù³íáñáõÙÝ»ñ | C144: 512900 | D144: 0
A145: 1217000 | B145: -²×»óíáÕ ³ÏïÇíÝ»ñ | C145: 513100 | D145: 0
A146: 1218000 | B146: -àã-ÝÛáõÃ³Ï³Ý ÑÇÙÝ³Ï³Ý ÙÇçáóÝ»ñ | C146: 513200 | D146: 0
A147: 1220000 | B147: 2.ä²Þ²ðÜºð | C147: x | D147: 0 | F147: 0 | H147: 0 | I147: 0 | J147: 0
A148: 1221000 | B148: -è³½Ù³í³ñ³Ï³Ý å³ß³ñÝ»ñ | C148: 521100 | D148: 0
A149: 1222000 | B149: -ÜÛáõÃ»ñ ¨ å³ñ³·³Ý»ñ | C149: 522100 | D149: 0
A150: 1223000 | B150: -ì»ñ³í³×³éùÇ Ñ³Ù³ñ Ý³Ë³ï»ëí³Í ³åñ³ÝùÝ»ñ | C150: 523100 | D150: 0
A151: 1224000 | B151: -êå³éÙ³Ý Ýå³ï³Ïáí å³ÑíáÕ å³ß³ñÝ»ñ | C151: 524100 | D151: 0
A152: 1230000 | B152: 3.´²ðÒð²ðÄºø ²ÎîÆìÜºð | C152: x | D152: 0 | F152: 0 | G152: 0 | H152: 0 | I152: 0 | J152: 0
A153: 1231000 | B153: -´³ñÓñ³ñÅ»ù ³ÏïÇíÝ»ñ | C153: 531100 | D153: 0
A154: 1240000 | B154: 4.àâ ²ðî²¸ð²Î²Ü ԱԿՏԻՎՆԵՐ | C154: x | D154: 0 | F154: 0 | G154: 0 | H154: 0 | I154: 0 | J154: 0
A155: 1241000 | B155: -ÐáÕ | C155: 541100 | D155: 0
A156: 1242000 | B156: -ÀÝ¹»ñù³ÛÇÝ ³ÏïÇíÝ»ñ | C156: 542100 | D156: 0
A157: 1243000 | B157: -²ÛÉ µÝ³Ï³Ý Í³·áõÙ áõÝ»óáÕ ³ÏïÇíÝ»ñ | C157: 543100 | D157: 0
A158: 1244000 | B158: -àã ÝÛáõÃ³Ï³Ý áã ³ñï³¹ñ³Ï³Ý ³ÏïÇíÝ»ñ | C158: 544100 | D158: 0
A159: 1000000 | B159: ԸՆԴԱՄԵՆԸ ºÈøºð` (ïáÕ 1100000+ïáÕ1200000) | C159: x | D159: =D33+D135 -> 3000 | E159: 0 | F159: 3000 | G159: 1000 | H159: 2500 | I159: 3000 | J159: =F159 -> 3000
A162: §17¦ § դեÏï»Ùµ»ñ ¦ 2020 Ã.
A164: ÐÆØÜ²ðÎÆ ÔºÎ²ì²ðª _______________ _________________ | G164: Է.Արշակյան
E165: (ëïáñ³·ñáõÃÛáõÝ) | G165: (².Ð.².)
A166: Î.î.
A167: üÆÜ²Üê²Î²Ü Ì²è²ÚàôÂÚ²Ü äºîª _______________ _________________ | G167: Ն. Մուրադյան
B168: (¶ÈÊ²ìàð Ð²Þì²ä²Ð) | E168: (ëïáñ³·ñáõÃÛáõÝ) | G168: (².Ð.².)

Sheet tnt.harab. (hidden)
F1: Ð³í»Éí³Í N 4
F3: úñÇÝ³Ï»ÉÇ Ó¨ N 3
F4: Ð³ëï³ïí»É ¿ ÐÐ ýÇÝ³ÝëÝ»ñÇ ¨ ¿ÏáÝáÙÇÏ³ÛÇ
B5: §Ð ² ê î ² î àô Ø ºØª¦ | G5: Ý³Ë³ñ³ñÇ 23 ÑáõÉÇëÇ 2007 Ãí³Ï³ÝÇ
A6: Ý³Ë³Ñ³ßÇíÁ - 10000.0 տաս միլիոն դրամ | F6: N 597-Ü Ññ³Ù³Ýáí
B7: (ÁÝ¹Ñ³Ýáõñ ·áõÙ³ñÁ Ãí»ñáí ¨ ï³é»ñáí**** )
A8: ___________________________________________________________________ Ñ³½³ñ ¹ñ³Ù ·áõÙ³ñáí:
A10: ________________________________________________Է.Արշակյան____________________________ | G10: Î.î.
A11: (ÐÐ å»ï³Ï³Ý Ï³é³í³ñÙ³Ý Ï³Ù ï»Õ³Ï³Ý ÇÝùÝ³Ï³é³í³ñÙ³Ý Ù³ñÙÝÇ Õ»Ï³í³ñÇ ëïáñ³·ñáõÃÛáõÝÁ ¨ ².Ð.².)
A12: § ¦ դեկտեմբերի 2020թ
A13: Ü ² Ê ² Ð ² Þ Æ ì*
A14: ÐÇÙÝ³ñÏÝ»ñÇ ÏáÕÙÇó µÛáõç»ï³ÛÇÝ Ñ³ïÏ³óáõÙÝ»ñÇ Ñ³ßíÇÝ Çñ³Ï³Ý³óíáÕ Í³Ëë»ñÇ (»Éù»ñÇ) ³é³ÝÓÇÝ ï»ë³ÏÝ»ñÇ
A15: ¥Áëï ïÝï»ë³·Çï³Ï³Ý ¹³ë³Ï³ñ·Ù³Ý Ñá¹í³ÍÝ»ñÇ¤
A16: §01¦ §ÐáõÝí³ñÇ ¦ 2021 Ã. -- §30¦ §¹»Ïï»Ùµ»ñÇ ¦ 2021 Ã.
A18: 1. ÐÇÙÝ³ñÏÇ ³Ýí³ÝáõÙÁ Քաղաքապետարան | F18: 8.***** ´Ûáõç»ï³ÛÇÝ Í³Ëë»ñÇ ·áñÍ³é³Ï³Ý ¹³ë³Ï³ñ·Ù³Ý
A19: 2. öáëï³ÛÇÝ Ñ³ëó»Ý _________________________ | F19: Í³ÍÏ³·Çñ | G19: 04 | H19: 9 | I19: 1
A20: 3. ÐÇÙÝ³ñÏÇ ï»Õ³µ³ßËÙ³Ý Ù³ñ½Ç ¨ Ñ³Ù³ÛÝùÇ Ïá¹Á
A21: Áëï µÛáõç»ï³ÛÇÝ Í³Ëë»ñÇ ï³ñ³Íù³ÛÇÝ ¹³ë³Ï³ñ·Ù³Ý | F21: 9. Ìñ³·ñÇ ³Ýí³ÝáõÙÁ _ïÝï»ë³Ï³Ý Ñ³ñ³µ»ñáõÃÛáõÝÝ»ñ
A22: 4. ** ä»ï³Ï³Ý Ï³é³í³ñÙ³Ý (ï»Õ³Ï³Ý ÇÝùÝ³Ï³é³í³ñÙ³Ý) Ù³ñÙÝÇ ³Ýí³ÝáõÙÁ | F22: 10. Ìñ³·ñÇ Ïá¹Á
A23: _______________________________________________________________________________________ | F23: 11. *** ä»ï³Ï³Ý Ï³é³í³ñÙ³Ý (ï»Õ³Ï³Ý .ÇÝù ÇÝùÝ³Ï³é³í³ñÙ³Ý)Ù³ñÙÇÝÝ»ñÇ ·»ñ³ï»ëã³Ï³Ý Ïá¹Á
A24: 5. ÐÇÙÝ³ñÏÁ ëå³ë³ñÏáÕ ï»Õ³Ï³Ý ·³ÝÓ³å»ï³Ï³Ý µ³ÅÝÇ (î¶´) ³Ýí³ÝáõÙÁ Տաշիրի
A25: 6. ÐÇÙÝ³ñÏÇª ï»Õ³Ï³Ý ·³ÝÓ³å»ï³Ï³Ý µ³ÅÝáõÙ (î¶´) Ñ³ßí³éÙ³Ý Ñ³Ù³ñÁ
A26: 7. Ì³Ëë»ñÇ ýÇÝ³Ýë³íáñÙ³Ý ³ÕµÛáõñÇ Ïá¹Á` | G26: 12. â³÷Ç ÙÇ³íáñÁª Ñ³½³ñ ¹ñ³Ù
A27: (ÐÐ å»ï³Ï³Ý µÛáõç»ª 1, Ñ³Ù³ÛÝùÇ µÛáõç»ª 2)
A29: îáÕÇ NN | B29: ´Ûáõç»ï³ÛÇÝ Í³Ëë»ñÇ ïÝï»ë³·Çï³Ï³Ý ¹³ë³Ï³ñ·Ù³Ý ï³ññ»ñ | D29: ÜáõÛÝ Å³Ù³Ý³Ï³Ñ³ïí³ÍÇ Ñ³Ù³ñ Ý³ËÏÇÝáõÙ Ñ³ëï³ïí³Íª ·áñÍáÕ | F29: êáõÛÝ Ý³Ë³Ñ³ßíáí Ñ³ëï³ïíáÕ óáõó³ÝÇßÝ»ñÁ | G29: ³Û¹ ÃíáõÙª Áëï »é³ÙëÛ³ÏÝ»ñÇ (»é³ÙëÛ³ÏÇ ³ÙÇëÝ»ñÇ)³×áÕ³Ï³Ý
B30: ³Ýí³ÝáõÙÝ»ñÁ | C30: NN | D30: Ý³Ë³Ñ³ßíÇ óáõó³ÝÇßÝ»ñÁ | E30: Ý³Ë³Ñ³ßíáõÙ Ï³ï³ñí³Í ÷á÷áËáõÃÛáõÝ-Ý»ñÁ (³í»É³óáõÙÁª /+/, å³Ï³ë»óáõÙÁª/-/ | G30: I | H30: II | I30: III | J30: IV
A31: ² | B31: ´ | C31: ¶ | D31: 1 | E31: 2 | F31: 3 | G31: 4 | H31: 5 | I31: 6 | J31: 7
A32: 6000 | B32: ¶. àâ üÆÜ²Üê²Î²Ü ²ÎîÆìÜºðÆ Æð²òàôØÆò Øàôîøºð (ïáÕ6100+ïáÕ6200+ïáÕ6300+ïáÕ6400) | C32: x | D32: =D34+D52 -> -10000 | F32: =F38+F52 -> -10000 | G32: =G34+G50 -> -10000 | H32: =H34+H50 -> -10000 | I32: =I38+I50 -> -10000 | J32: =F32 -> -10000
B33: ³Û¹ ÃíáõÙ`
A34: 6100 | B34: ÐÆØÜ²Î²Ü ØÆæàòÜºðÆ Æð²òàôØÆò Øàôîøºð (ïáÕ6110+ïáÕ6120+ïáÕ6130) | C34: x | D34: =D38 -> -2000 | F34: =F38 -> -2000 | G34: =G38 -> -2000 | H34: =H38 -> -2000 | I34: =I38 -> -2000 | J34: =F34 -> -2000
B35: ³Û¹ ÃíáõÙ`
A36: 6110 | B36: ²ÜÞ²ðÄ ¶àôÚøÆ Æð²òàôØÆò Øàôîøºð | C36: 8111
A37: 6120 | B37: Þ²ðÄ²Î²Ü ¶àôÚøÆ Æð²òàôØÆò Øàôîøºð | C37: 8121
A38: 6130 | B38: ²ÚÈ ÐÆØÜ²Î²Ü ØÆæàòÜºðÆ Æð²òàôØÆò Øàôîøºð | C38: 8131 | D38: -2000 | F38: =D38+E38 -> -2000 | G38: -2000 | H38: -2000 | I38: -2000 | J38: =F38 -> -2000
A39: 6200 | B39: ä²Þ²ðÜºðÆ Æð²òàôØÆò Øàôîøºð (ïáÕ6210+ïáÕ6220) | C39: x | D39: 0 | F39: 0 | G39: 0 | H39: 0 | I39: 0 | J39: 0
B40: ³Û¹ ÃíáõÙ`
A41: 6210 | B41: è²¼Ø²ì²ð²Î²Ü Ð²Ø²ÚÜø²ÚÆÜ ä²Þ²ðÜºðÆ Æð²òàôØÆò Øàôîøºð | C41: 8211
A42: 6220 | B42: ²ÚÈ ä²Þ²ðÜºðÆ Æð²òàôØÆò Øàôîøºð (ïáÕ6221+ïáÕ6222+ïáÕ6223) | C42: x | D42: 0 | F42: 0 | G42: 0 | H42: 0 | I42: 0 | J42: 0
B43: áñÇó`
A44: 6221 | B44: - ²ñï³¹ñ³Ï³Ý å³ß³ñÝ»ñÇ Çñ³óáõÙÇó Ùáõïù»ñ | C44: 8221
A45: 6222 | B45: - ì»ñ³í³×³éùÇ Ñ³Ù³ñ ³åñ³ÝùÝ»ñÇ Çñ³óáõÙÇó Ùáõïù»ñ | C45: 8222
A46: 6223 | B46: - êå³éÙ³Ý Ñ³Ù³ñ Ý³Ë³ï»ëí³Í å³ß³ñÝ»ñÇ Çñ³óáõÙÇó Ùáõïù»ñ | C46: 8223
A47: 6300 | B47: ´²ðÒð²ðÄºø ²ÎîÆìÜºðÆ Æð²òàôØÆò Øàôîøºð (ïáÕ 6310) | C47: x | D47: 0 | F47: 0 | G47: 0 | H47: 0 | I47: 0 | J47: 0
B48: ³Û¹ ÃíáõÙ`
A49: 6310 | B49: ´²ðÒð²ðÄºø ²ÎîÆìÜºðÆ Æð²òàôØÆò Øàôîøºð | C49: 8311
A50: 6400 | B50: â²ðî²¸ðì²Ì ²ÎîÆìÜºðÆ Æð²òàôØÆò Øàôîøºð` (ïáÕ6410+ïáÕ6420+ïáÕ6430+ïáÕ6440) | C50: x | D50: =D52 -> -8000 | F50: =D50+E50 -> -8000 | G50: =G52 -> -8000 | H50: =H52 -> -8000 | I50: =I52 -> -8000 | J50: =F50 -> -8000
B51: ³Û¹ ÃíáõÙ`
A52: 6410 | B52: ÐàÔÆ Æð²òàôØÆò Øàôîøºð | C52: 8411 | D52: -8000 | F52: =D52+E52 -> -8000 | G52: -8000 | H52: -8000 | I52: -8000 | J52: =F52 -> -8000
A53: 6420 | B53: ú¶î²Î²ð Ð²Ü²ÌàÜºðÆ Æð²òàôØÆò Øàôîøºð | C53: 8412
A54: 6430 | B54: ²ÚÈ ´Ü²Î²Ü Ì²¶àôØ àôÜºòàÔ ÐÆØÜ²Î²Ü ØÆæàòÜºðÆ ÆðòàôØÆò Øàôîøºð | C54: 8413
A55: 6440 | B55: àâ ÜÚàôÂ²Î²Ü â²ðî²¸ðì²Ì ²ÎîÆìÜºðÆ Æð²òàôØÆò Øàôîøºð | C55: 8414
A58: §17¦ § դեÏï»Ùµ»ñ ¦ 2020 Ã.
A59: ÐÆØÜ²ðÎÆ ÔºÎ²ì²ðª _______________ _________________ | G59: Է. Արշակյան
E60: (ëïáñ³·ñáõÃÛáõÝ) | G60: (².Ð.².)
A61: Î.î.
A62: üÆÜ²Üê²Î²Ü Ì²è²ÚàôÂÚ²Ü äºîª _______________ _________________ | G62: Ն. Մուրադյան
B63: (¶ÈÊ²ìàð Ð²Þì²ä²Ð) | E63: (ëïáñ³·ñáõÃÛáõÝ) | G63: (².Ð.².)

Sheet arandzin axbahan. (hidden)
F1: Ð³í»Éí³Í N 4
F3: úñÇÝ³Ï»ÉÇ Ó¨ N 3
F4: Ð³ëï³ïí»É ¿ ÐÐ ýÇÝ³ÝëÝ»ñÇ ¨ ¿ÏáÝáÙÇÏ³ÛÇ
B5: §Ð ² ê î ² î àô Ø ºØª¦ | G5: Ý³Ë³ñ³ñÇ 23 ÑáõÉÇëÇ 2007 Ãí³Ï³ÝÇ
A6: Ý³Ë³Ñ³ßÇíÁ 4700,0 քառասունյոթ միլիոն դրամ | F6: N 597-Ü Ññ³Ù³Ýáí
B7: (ÁÝ¹Ñ³Ýáõñ ·áõÙ³ñÁ Ãí»ñáí ¨ ï³é»ñáí**** )
A8: ___________________________________________________________________ Ñ³½³ñ ¹ñ³Ù ·áõÙ³ñáí:
A10: _______________________________________________________________________________________ | G10: Î.î.
A11: (ÐÐ å»ï³Ï³Ý Ï³é³í³ñÙ³Ý Ï³Ù ï»Õ³Ï³Ý ÇÝùÝ³Ï³é³í³ñÙ³Ý Ù³ñÙÝÇ Õ»Ï³í³ñÇ ëïáñ³·ñáõÃÛáõÝÁ ¨ ².Ð.².)
A12: § ¦ դեկտեմբերի 2020թ
A13: Ü ² Ê ² Ð ² Þ Æ ì*
A14: ÐÇÙÝ³ñÏÝ»ñÇ ÏáÕÙÇó µÛáõç»ï³ÛÇÝ Ñ³ïÏ³óáõÙÝ»ñÇ Ñ³ßíÇÝ Çñ³Ï³Ý³óíáÕ Í³Ëë»ñÇ (»Éù»ñÇ) ³é³ÝÓÇÝ ï»ë³ÏÝ»ñÇ
A15: ¥Áëï ïÝï»ë³·Çï³Ï³Ý ¹³ë³Ï³ñ·Ù³Ý Ñá¹í³ÍÝ»ñÇ¤
A16: §01¦ §ÐáõÝí³ñÇ ¦ 2021 Ã. -- §30¦ §¹»Ïï»Ùµ»ñÇ ¦ 2021 Ã.
A18: 1. ÐÇÙÝ³ñÏÇ ³Ýí³ÝáõÙÁ î³ßÇñÇ ù³Õ³ù³»ï³ñ³Ý | F18: 8.***** ´Ûáõç»ï³ÛÇÝ Í³Ëë»ñÇ ·áñÍ³é³Ï³Ý ¹³ë³Ï³ñ·Ù³Ý
A19: 2. öáëï³ÛÇÝ Ñ³ëó»Ý ù, î³ßÇñ | F19: Í³ÍÏ³·Çñ | G19: 05 | H19: 1 | I19: 1
A20: 3. ÐÇÙÝ³ñÏÇ ï»Õ³µ³ßËÙ³Ý Ù³ñ½Ç ¨ Ñ³Ù³ÛÝùÇ Ïá¹Á
A21: Áëï µÛáõç»ï³ÛÇÝ Í³Ëë»ñÇ ï³ñ³Íù³ÛÇÝ ¹³ë³Ï³ñ·Ù³Ý | F21: 9. Ìñ³·ñÇ ³Ýí³ÝáõÙÁ __²Õµ³Ñ³ÝáõÙ_
A22: 4. ** ä»ï³Ï³Ý Ï³é³í³ñÙ³Ý (ï»Õ³Ï³Ý ÇÝùÝ³Ï³é³í³ñÙ³Ý) Ù³ñÙÝÇ ³Ýí³ÝáõÙÁ | F22: 10. Ìñ³·ñÇ Ïá¹Á
A23: _______________________________________________________________________________________ | F23: 11. *** ä»ï³Ï³Ý Ï³é³í³ñÙ³Ý (ï»Õ³Ï³Ý .ÇÝù ÇÝùÝ³Ï³é³í³ñÙ³Ý)Ù³ñÙÇÝÝ»ñÇ ·»ñ³ï»ëã³Ï³Ý Ïá¹Á
A24: 5. ÐÇÙÝ³ñÏÁ ëå³ë³ñÏáÕ ï»Õ³Ï³Ý ·³ÝÓ³å»ï³Ï³Ý µ³ÅÝÇ (î¶´) ³Ýí³ÝáõÙÁ _Տաշիրի
A25: 6. ÐÇÙÝ³ñÏÇª ï»Õ³Ï³Ý ·³ÝÓ³å»ï³Ï³Ý µ³ÅÝáõÙ (î¶´) Ñ³ßí³éÙ³Ý Ñ³Ù³ñÁ
A26: 7. Ì³Ëë»ñÇ ýÇÝ³Ýë³íáñÙ³Ý ³ÕµÛáõñÇ Ïá¹Á` | G26: 12. â³÷Ç ÙÇ³íáñÁª Ñ³½³ñ ¹ñ³Ù
A27: (ÐÐ å»ï³Ï³Ý µÛáõç»ª 1, Ñ³Ù³ÛÝùÇ µÛáõç»ª 2)
A29: îáÕÇ NN | B29: ´Ûáõç»ï³ÛÇÝ Í³Ëë»ñÇ ïÝï»ë³·Çï³Ï³Ý ¹³ë³Ï³ñ·Ù³Ý ï³ññ»ñ | D29: ÜáõÛÝ Å³Ù³Ý³Ï³Ñ³ïí³ÍÇ Ñ³Ù³ñ Ý³ËÏÇÝáõÙ Ñ³ëï³ïí³Íª ·áñÍáÕ | F29: êáõÛÝ Ý³Ë³Ñ³ßíáí Ñ³ëï³ïíáÕ óáõó³ÝÇßÝ»ñÁ | G29: ³Û¹ ÃíáõÙª Áëï »é³ÙëÛ³ÏÝ»ñÇ (»é³ÙëÛ³ÏÇ ³ÙÇëÝ»ñÇ)³×áÕ³Ï³Ý
B30: ³Ýí³ÝáõÙÝ»ñÁ | C30: NN | D30: Ý³Ë³Ñ³ßíÇ óáõó³ÝÇßÝ»ñÁ | E30: Ý³Ë³Ñ³ßíáõÙ Ï³ï³ñí³Í ÷á÷áËáõÃÛáõÝ-Ý»ñÁ (³í»É³óáõÙÁª /+/, å³Ï³ë»óáõÙÁª/-/ | G30: I | H30: II | I30: III | J30: IV
A31: ² | B31: ´ | C31: ¶ | D31: 1 | E31: 2 | F31: 3 | G31: 4 | H31: 5 | I31: 6 | J31: 7
A32: 1100000 | B32: ². ÀÜÂ²òÆÎ Ì²Êêºðª ÀÜ¸²ØºÜÀ, ³Û¹ ÃíáõÙ` | C32: x | D32: =D43 -> 47000 | E32: 0 | F32: =F43 -> 47000 | G32: =G43 -> 12000 | H32: =H43 -> 25000 | I32: =I43 -> 37000 | J32: =F32 -> 47000
A33: 1110000 | B33: 1.äºî²Î²Ü, îºÔ²Î²Ü ÆÜøÜ²Î²è²ì²ðØ²Ü Ø²ðØÆÜÜºðÆ, ¸ð²Üò ºÜÂ²Î² ´Úàôæºî²ÚÆÜ ÐÆØÜ²ðÎÜºðÆ ²ÞÊ²îàÔÜºðÆ ²ÞÊ²î²ì²ðÒÀª ÀÜ¸²ØºÜÀ, ³Û¹ ÃíáõÙª | C33: x | D33: 0 | E33: 0 | F33: 0 | G33: 0 | H33: 0 | I33: 0 | J33: 0
A34: 1110000 | B34: 1,1 ²ßË³ï³ÝùÇ í³ñÓ³ïñáõÃÛáõÝ | C34: x | D34: 0 | E34: 0 | F34: 0 | G34: 0 | H34: 0 | I34: 0 | J34: 0
A35: 1111000 | B35: -²ßË³ïáÕÝ»ñÇ ³ßË³ï³í³ñÓ»ñ ¨ Ñ³í»É³í×³ñÝ»ñ | C35: 411100 | J35: 0
A36: 1112000 | B36: - ä³ñ·¨³ïñáõÙÝ»ñ, ¹ñ³Ù³Ï³Ý Ëñ³ËáõëáõÙÝ»ñ ¨ Ñ³ïáõÏ í×³ñÝ»ñ | C36: 411200 | J36: 0
A37: 1113000 | B37: -ø³Õ³ù³óÇ³Ï³Ý, ¹³ï³Ï³Ý ¨ å»ï³Ï³Ý Í³é³ÛáÕÝ»ñÇ å³ñ·¨³ïñáõÙ | C37: 411300 | J37: 0
A38: 1114000 | B38: -ÐÐ ýÇÝ³ÝëÝ»ñÇ ¨ ¿ÏáÝáÙÇÏ³ÛÇ Ý³Ë³ñ³ñáõÃÛ³Ý, Ñ³ñÏ³ÛÇÝ ¨ Ù³ùë³ÛÇÝ Ù³ñÙÇÝÝ»ñÇ ³ßË³ïáÕÝ»ñÇ å³ñ·¨³ïñáõÙ | C38: 411400 | J38: 0
A39: 1115000 | B39: -²ÛÉ í³ñÓ³ïñáõÃÛáõÝÝ»ñ | C39: 411500 | J39: 0
A40: 1116000 | B40: -´Ý»Õ»Ý ³ßË³ï³í³ñÓ»ñ ¨ Ñ³í»É³í×³ñÝ»ñ | C40: 412100 | J40: 0
A41: 1117000 | B41: -ì×³ñÝ»ñ êáóÇ³É³Ï³Ý ³å³Ñáí³·ñáõÃÛ³Ý å»ï³Ï³Ý ÑÇÙÝ³¹ñ³ÙÇÝ | C41: 413100 | J41: 0
A42: 1120000 | B42: 2 Ì³é³ÛáõÃÛáõÝÝ»ñÇ ¨ ³åñ³ÝùÝ»ñÇ Ó»éù µ»ñáõÙ | C42: x | D42: 0 | E42: 0 | F42: 6200 | G42: 1500 | H42: 3000 | I42: 4500 | J42: 6200
A43: 1121000 | B43: 2.1 Þ³ñáõÝ³Ï³Ï³Ý Í³Ëë»ñ | D43: =D46 -> 47000 | E43: 0 | F43: =F46 -> 47000 | G43: =G46 -> 12000 | H43: =H46 -> 25000 | I43: =I46 -> 37000 | J43: =F43 -> 47000
A44: 1121100 | B44: -·áñÍ³éÝ³Ï³Ý ¨ µ³ÝÏ³ÛÇÝ Í³é³ÛáõÃÛáõÝÝ»ñÇ Í³Ëë»ñ | C44: 421100 | F44: =D44+E44 -> 0 | J44: 0
A45: 1121200 | B45: -¿Ý»ñ·»ïÇÏ Í³é³ÛáõÃÛáõÝÝ»ñ | C45: 421200 | F45: =D45+E45 -> 0 | J45: 0
A46: 1121300 | B46: -ÎáÙáõÝ³É Í³é³ÛáõÃÛáõÝÝ»ñ | C46: 421300 | D46: 47000 | E46: 0 | F46: =D46+E46 -> 47000 | G46: 12000 | H46: 25000 | I46: 37000 | J46: =F46 -> 47000
A47: 1121400 | B47: -Î³åÇ Í³é³ÛáõÃÛáõÝÝ»ñ | C47: 421400 | J47: 0
A48: 1121500 | B48: -²å³Ñáí³·ñ³Ï³Ý Í³Ëë»ñ | C48: 421500 | J48: 0
A49: 1121600 | B49: -¶áõÛùÇ ¨ ë³ñù³íáñáõÙÝ»ñÇ í³ñÓ³Ï³ÉáõÃÛáõÝ | C49: 421600 | E49: 0 | J49: 0
A50: 1121700 | B50: -²ñï³·»ñ³ï»ëã³Ï³Ý Í³Ëë»ñ | C50: 421700 | J50: 0
A51: 1122000 | B51: 2.2 ¶áñÍáõÕáõÙÝ»ñÇ ¨ ßñç³·³ÛáõÃÛ³Ý Í³Ëë»ñ | C51: x | D51: 0 | E51: 0 | F51: 0 | G51: 0 | H51: 0 | I51: 0 | J51: 0
A52: 1122100 | B52: -Ü»ñùÇÝ ·áñÍáõÕáõÙÝ»ñ | C52: 422100 | J52: 0
A53: 1122200 | B53: -²ñï³ë³ÑÙ³ÝÛ³Ý ·áñÍáõÕáõÙÝ»ñÇ ·Íáí Í³Ëë»ñ | C53: 422200 | J53: 0
A54: 1122300 | B54: -²ÛÉ ïñ³Ýëåáñï³ÛÇÝ Í³Ëë»ñ | C54: 422900 | J54: 0
A55: 1123000 | B55: 2.3 ä³ÛÙ³Ý³·ñ³ÛÇÝ Í³é³ÛáõÃÛáõÝÝ»ñÇ Ó»éù µ»ñáõÙ | C55: x | D55: 0 | E55: 0 | F55: 0 | G55: 0 | H55: 0 | I55: 0 | J55: 0
A56: 1123100 | B56: -ì³ñã³Ï³Ý Í³é³ÛáõÃÛáõÝÝ»ñ | C56: 423100 | J56: 0
A57: 1123200 | B57: -Ð³Ù³Ï³ñ·ã³ÛÇÝ Í³é³ÛáõÃÛáõÝÝ»ñ | C57: 423200 | J57: 0
A58: 1123300 | B58: -²ßË³ï³Ï³½ÙÇ Ù³ëÝ³·Çï³Ï³Ý ½³ñ·³óÙ³Ý Í³é³ÛáõÃÛáõÝÝ»ñ | C58: 423300 | J58: 0
A59: 1123400 | B59: -î»Õ³Ï³ïí³Ï³Ý Í³é³ÛáõÃÛáõÝÝ»ñ | C59: 423400 | J59: 0
A60: 1123500 | B60: -Î³é³í³ñã³Ï³Ý Í³é³ÛáõÃÛáõÝÝ»ñ | C60: 423500 | J60: 0
A61: 1123600 | B61: - Î»Ýó³Õ³ÛÇÝ ¨ Ñ³Ýñ³ÛÇÝ ëÝÝ¹Ç Í³é³ÛáõÃÛáõÝÝ»ñ | C61: 423600 | J61: 0
A62: 1123700 | B62: -Ü»ñÏ³Û³óáõóã³Ï³Ý Í³Ëë»ñ | C62: 423700 | J62: 0
A63: 1123800 | B63: -ÀÝ¹Ñ³Ýáõñ µÝáõÛÃÇ ³ÛÉ Í³é³ÛáõÃÛáõÝÝ»ñ | C63: 423900 | J63: 0
A64: 1124000 | B64: 2.4 ²ÛÉ Ù³ëÝ³·Çï³Ï³Ý Í³é³ÛáõÃÛáõÝÝ»ñÇ Ó»éù µ»ñáõÙ | C64: x | D64: 0 | E64: 0 | F64: 0 | G64: 0 | H64: 0 | I64: 0 | J64: 0
A65: 1124100 | B65: -Ø³ëÝ³·Çï³Ï³Ý Í³é³ÛáõÃÛáõÝÝ»ñ | C65: 424100 | J65: 0
A66: 1125000 | B66: 2.5 ÀÝÃ³óÇÏ Ýáñá·áõÙ ¨ å³Ñå³ÝáõÙ (Í³é³ÛáõÃÛáõÝÝ»ñ ¨ ÝÛáõÃ»ñ) | C66: x | D66: 0 | E66: 0 | F66: 0 | G66: 0 | H66: 0 | I66: 0 | J66: 0
A67: 1125100 | B67: -Þ»Ýù»ñÇ ¨ Ï³éáõÛóÝ»ñÇ ÁÝÃ³óÇÏ Ýáñá·áõÙ ¨ å³Ñå³ÝáõÙ | C67: 425100 | J67: 0
A68: 1125200 | B68: -Ø»ù»Ý³Ý»ñÇ ¨ ë³ñù³íáñáõÙÝ»ñÇ ÁÝÃ³óÇÏ Ýáñá·áõÙ ¨ å³Ñå³ÝáõÙ | C68: 425200 | J68: 0
A69: 1126000 | B69: 2.6 ÜÛáõÃ»ñ | C69: x | D69: 0 | E69: 0 | F69: 0 | G69: 0 | H69: 0 | I69: 0 | J69: 0
A70: 1126100 | B70: -¶ñ³ë»ÝÛ³Ï³ÛÇÝ ÝÛáõÃ»ñ ¨ Ñ³·áõëï | C70: 426100 | J70: 0
A71: 1126200 | B71: -¶ÛáõÕ³ïÝï»ë³Ï³Ý ³åñ³ÝùÝ»ñ | C71: 426200 | J71: 0
A72: 1126300 | B72: -ì»ñ³å³ïñ³ëïÙ³Ý ¨ áõëáõóÙ³Ý ÝÛáõÃ»ñ | C72: 426300 | J72: 0
A73: 1126400 | B73: -îñ³Ýëåáñï³ÛÇÝ ÝÛáõÃ»ñ | C73: 426400 | J73: 0
A74: 1126500 | B74: -Þñç³Ï³ ÙÇç³í³ÛñÇ å³ßïå³ÝáõÃÛ³Ý ¨ ·Çï³Ï³Ý ÝÛáõÃ»ñ | C74: 426500 | J74: 0
A75: 1126600 | B75: -²éáÕç³å³Ñ³Ï³Ý ¨ É³µáñ³ïáñ ÝÛáõÃ»ñ | C75: 426600 | J75: 0
A76: 1126700 | B76: -Î»Ýó³Õ³ÛÇÝ ¨ Ñ³Ýñ³ÛÇÝ ëÝÝ¹Ç ÝÛáõÃ»ñ | C76: 426700 | J76: 0
A77: 1126800 | B77: -Ð³ïáõÏ Ýå³ï³Ï³ÛÇÝ ³ÛÉ ÝÛáõÃ»ñ | C77: 426900 | J77: 0
A78: 1130000 | B78: 3 îáÏáë³í×³ñÝ»ñ | C78: x | D78: 0 | E78: 0 | F78: 0 | G78: 0 | H78: 0 | I78: 0 | J78: 0
A79: 1130100 | B79: -Ü»ñùÇÝ ³ñÅ»ÃÕÃ»ñÇ ïáÏáë³í×³ñÝ»ñ | C79: 441100 | J79: 0
A80: 1130200 | B80: -Ü»ñùÇÝ í³ñÏ»ñÇ ïáÏáë³í×³ñÝ»ñ | C80: 441200 | J80: 0
A81: 1130300 | B81: -²ñï³ùÇÝ ³ñÅ»ÃÕÃ»ñÇ ·Íáí ïáÏáë³í×³ñÝ»ñ | C81: 442100 | J81: 0
A82: 1130400 | B82: -²ñï³ùÇÝ í³ñÏ»ñÇ ·Íáí ïáÏáë³í×³ñÝ»ñ | C82: 442200 | J82: 0
A83: 1131000 | B83: öáË³éáõÃÛáõÝÝ»ñÇ Ñ»ï Ï³åí³Í í×³ñÝ»ñ | C83: x | J83: 0
A84: 1131100 | B84: -öáË³Ý³ÏÙ³Ý Ïáõñë»ñÇ µ³ó³ë³Ï³Ý ï³ñµ»ñáõÃÛáõÝ | C84: 443100 | J84: 0
A85: 1131200 | B85: -îáõÛÅ»ñ | C85: 443200 | J85: 0
A86: 1131300 | B86: -öáË³éáõÃÛáõÝÝ»ñÇ ·Íáí ïáõñù»ñ | C86: 443300 | J86: 0
A87: 1140000 | B87: 4. êáõµëÇ¹Ç³Ý»ñ | C87: x | D87: 0 | E87: 0 | F87: 0 | G87: 0 | H87: 0 | I87: 0 | J87: 0
A88: 1141000 | B88: -êáõµëÇ¹Ç³Ý»ñ áã-ýÇÝ³Ýë³Ï³Ý å»ï³Ï³Ý Ï³½Ù³Ï»ñåáõÃÛáõÝÝ»ñÇÝ | C88: 451100 | J88: 0
A89: 1142000 | B89: -êáõµëÇ¹Ç³Ý»ñ ýÇÝ³Ýë³Ï³Ý å»ï³Ï³Ý Ï³½Ù³Ï»ñåáõÃÛáõÝÝ»ñÇÝ | C89: 451200 | J89: 0
A90: 1143000 | B90: -êáõµëÇ¹Ç³Ý»ñ áã å»ï³Ï³Ý áã ýÇÝ³Ýë³Ï³Ý Ï³½Ù³Ï»ñåáõÃÛáõÝÝ»ñÇÝ | C90: 452100 | J90: 0
A91: 1144000 | B91: -êáõµëÇ¹Ç³Ý»ñ áã å»ï³Ï³Ý ýÇÝ³Ýë³Ï³Ý Ï³½Ù³Ï»ñåáõÃÛáõÝÝ»ñÇÝ | C91: 452200 | J91: 0
A92: 1150000 | B92: 5.¸ñ³Ù³ßÝáñÑÝ»ñ | C92: x | D92: 0 | E92: 0 | F92: 0 | G92: 0 | H92: 0 | I92: 0 | J92: 0
A93: 1151000 | B93: -ÀÝÃ³óÇÏ ¹ñ³Ù³ßÝáñÑÝ»ñ ûï³ñ»ñÏñÛ³ Ï³é³í³ñáõÃÛáõÝÝ»ñÇÝ | C93: 461100 | J93: 0
A94: 1152000 | B94: -Î³åÇï³É ¹ñ³Ù³ßÝáñÑÝ»ñ ûï³ñ»ñÏñÛ³ Ï³é³í³ñáõÃÛáõÝÝ»ñÇÝ | C94: 461200 | J94: 0
A95: 1153000 | B95: -ÀÝÃ³óÇÏ ¹ñ³Ù³ßÝáñÑÝ»ñ ÙÇç³½·³ÛÇÝ Ï³½Ù³Ï»ñåáõÃÛáõÝÝ»ñÇÝ | C95: 462100 | J95: 0
A96: 1154000 | B96: -Î³åÇï³É ¹ñ³Ù³ßÝáñÑÝ»ñ ÙÇç³½·³ÛÇÝ Ï³½Ù³Ï»ñåáõÃÛáõÝÝ»ñÇÝ | C96: 462200 | J96: 0
A97: 1155000 | B97: -ÀÝÃ³óÇÏ ¹ñ³Ù³ßÝáñÑÝ»ñ å»ï³Ï³Ý Ñ³ïí³ÍÇ ³ÛÉ Ù³Ï³ñ¹³ÏÝ»ñÇÝ | C97: 463100 | J97: 0
A98: 1156000 | B98: -Î³åÇï³É ¹ñ³Ù³ßÝáñÑÝ»ñ å»ï³Ï³Ý Ñ³ïí³ÍÇ ³ÛÉ Ù³Ï³ñ¹³ÏÝ»ñÇÝ | C98: 463200 | J98: 0
A99: 1160000 | B99: 6. êàòÆ²È²Î²Ü Üä²êîÜºð | C99: x | D99: 0 | E99: 0 | F99: 0 | G99: 0 | H99: 0 | I99: 0 | J99: 0
A100: 1161000 | B100: 6.1 êàòÆ²È²Î²Ü ²ä²ÐàìàôÂÚ²Ü Üä²êîÜºð (ä²ðî²¸Æð êàòÆ²È²Î²Ü ²ä²Ðàì²¶ðàôÂÚ²Ü Î²¼Ø²ÎºðäàôÂÚàôÜÜºð) | C100: x | D100: 0 | E100: 0 | F100: 0 | G100: 0 | H100: 0 | I100: 0 | J100: 0
A101: 1161100 | B101: -îÝ³ÛÇÝ ïÝï»ëáõÃÛáõÝÝ»ñÇÝ ¹ñ³Ùáí í×³ñíáÕ ëáóÇ³É³Ï³Ý ³å³Ñáí³·ñáõÃÛ³Ý í×³ñÝ»ñ | C101: 471100 | J101: 0
A102: 1161200 | B102: -êáóÇ³É³Ï³Ý ³å³ÑáíáõÃÛ³Ý µÝ»Õ»Ý Ýå³ëïÝ»ñ Í³é³ÛáõÃÛáõÝÝ»ñ Ù³ïáõóáÕÝ»ñÇÝ | C102: 471200 | J102: 0
A103: 1162000 | B103: 6.2 êàòÆ²È²Î²Ü ú¶ÜàôÂÚ²Ü ¸ð²Ø²Î²Ü ²ðî²Ð²ÚîàôÂÚ²Ø´ Üä²êîÜºð (´ÚàôæºÆò) | C103: x | D103: 0 | E103: 0 | F103: 0 | G103: 0 | H103: 0 | I103: 0 | J103: 0
A104: 1162100 | B104: -ÐÇí³Ý¹áõÃÛ³Ý ¨ Ñ³ßÙ³Ý¹³ÙáõÃÛ³Ý Ýå³ëïÝ»ñ µÛáõç»Çó | C104: 472100 | J104: 0
A105: 1162200 | B105: -Ø³ÛñáõÃÛ³Ý Ýå³ëïÝ»ñ µÛáõç»Çó | C105: 472200 | J105: 0
A106: 1162300 | B106: -ºñ»Ë³Ý»ñÇ Ï³Ù ÁÝï³Ý»Ï³Ý Ýå³ëïÝ»ñ µÛáõç»Çó | C106: 472300 | J106: 0
A107: 1162400 | B107: -¶áñÍ³½ñÏáõÃÛ³Ý Ýå³ëïÝ»ñ µÛáõç»Çó | C107: 472400 | J107: 0
A108: 1162500 | B108: -Î»Ýë³Ãáß³ÏÇ ³ÝóÝ»Éáõ Ñ»ï Ï³åí³Í ¨ ï³ñÇù³ÛÇÝ Ýå³ëïÝ»ñ µÛáõç»Çó | C108: 472500 | J108: 0
A109: 1162600 | B109: -ÐáõÕ³ñÏ³íáñáõÃÛ³Ý Ýå³ëïÝ»ñ µÛáõç»Çó | C109: 472600 | J109: 0
A110: 1162700 | B110: -ÎñÃ³Ï³Ý, Ùß³ÏáõÃ³ÛÇÝ ¨ ëåáñï³ÛÇÝ Ýå³ëïÝ»ñ µÛáõç»Çó | C110: 472700 | J110: 0
A111: 1162800 | B111: -´Ý³Ï³ñ³Ý³ÛÇÝ Ýå³ëïÝ»ñ µÛáõç»Çó | C111: 472800 | J111: 0
A112: 1162900 | B112: -²ÛÉ Ýå³ëïÝ»ñ µÛáõç»Çó | C112: 472900 | J112: 0
A113: 1170000 | B113: 7. ²ÚÈ Ì²Êêºð | C113: x | D113: 0 | E113: 0 | F113: 0 | G113: 0 | H113: 0 | I113: 0 | J113: 0
A114: 1171000 | B114: 7.1 ÜìÆð²îìàôÂÚàôÜÜºð àâ-Î²è²ì²ðâ²Î²Ü (Ð²ê²ð²Î²Î²Ü) Î²¼Ø²ÎºðäàôÂÚàôÜÜºðÆÜ | C114: x | D114: 0 | E114: 0 | F114: 0 | G114: 0 | H114: 0 | I114: 0 | J114: 0
A115: 1171100 | B115: -îÝ³ÛÇÝ ïÝï»ëáõÃÛáõÝÝ»ñÇÝ Í³é³ÛáõÃÛáõÝÝ»ñ Ù³ïáõóáÕ` ß³ÑáõÛÃ ãÑ»ï³åÝ¹áÕ Ï³½Ù³Ï»ñåáõÃÛáõÝÝ»ñÇÝ ÝíÇñ³ïíáõÃÛáõÝÝ»ñ | C115: 481100 | J115: 0
A116: 1171200 | B116: -ÜíÇñ³ïíáõÃÛáõÝÝ»ñ ³ÛÉ ß³ÑáõÛÃ ãÑ»ï³åÝ¹áÕ Ï³½Ù³Ï»ñåáõÃÛáõÝÝ»ñÇÝ | C116: 481900 | J116: 0
A117: 1172000 | B117: 7.2 Ð²ðÎºð, ä²ðî²¸Æð ìÖ²ðÜºð ºì îàôÚÄºð, àðàÜø Î²è²ì²ðØ²Ü î²ð´ºð Ø²Î²ð¸²ÎÜºðÆ ÎàÔØÆò ÎÆð²èìàôØ ºÜ ØÆØÚ²Üò ÜÎ²îØ²Ø´ | C117: x | D117: 0 | E117: 0 | F117: 0 | G117: 0 | H117: 0 | I117: 0 | J117: 0
A118: 1172100 | B118: -²ßË³ï³í³ñÓÇ ýáÝ¹ | C118: 482100 | J118: 0
A119: 1172200 | B119: -²ÛÉ Ñ³ñÏ»ñ | C119: 482200 | J119: 0
A120: 1172300 | B120: -ä³ñï³¹Çñ í×³ñÝ»ñ | C120: 482300 | E120: 0 | J120: 0
A121: 1172400 | B121: -ä»ï³Ï³Ý Ñ³ïí³ÍÇ ï³ñµ»ñ Ù³Ï³ñ¹³ÏÝ»ñÇ ÏáÕÙÇó ÙÇÙÛ³Ýó ÝÏ³ïÙ³Ùµ ÏÇñ³éíáÕ ïáõÛÅ»ñ | C121: 482400 | J121: 0
A122: 1173000 | B122: 7.3 ¸²î²ð²ÜÜºðÆ ÎàÔØÆò ÜÞ²Ü²Îì²Ì îàôÚÄºð ºì îàô¶²ÜøÜºð | C122: x | D122: 0 | E122: 0 | F122: 0 | G122: 0 | H122: 0 | I122: 0 | J122: 0
A123: 1173100 | B123: -¸³ï³ñ³ÝÝ»ñÇ ÏáÕÙÇó Ýß³Ý³Ïí³Í ïáõÛÅ»ñ ¨ ïáõ·³ÝùÝ»ñ | C123: 483100 | J123: 0
A124: 1174000 | B124: 7.4 ´Ü²Î²Ü ²ÔºîÜºðÆò Î²Ø ²ÚÈ ´Ü²Î²Ü ä²îÖ²èÜºðàì ²è²æ²ò²Ì ìÜ²êÜºðÆ Î²Ø ìÜ²êì²ÌøÜºðÆ ìºð²Î²Ü¶ÜàôØ | C124: x | D124: 0 | E124: 0 | F124: 0 | G124: 0 | H124: 0 | I124: 0 | J124: 0
A125: 1174100 | B125: -´Ý³Ï³Ý ³Õ»ïÝ»ñÇó ³é³ç³ó³Í íÝ³ëí³ÍùÝ»ñÇ Ï³Ù íÝ³ëÝ»ñÇ í»ñ³Ï³Ý·ÝáõÙ | C125: 484100 | J125: 0
A126: 1174200 | B126: -²ÛÉ µÝ³Ï³Ý å³ï×³éÝ»ñáí ëï³ó³Í íÝ³ëí³ÍùÝ»ñÇ í»ñ³Ï³Ý·ÝáõÙ | C126: 484200 | J126: 0
A127: 1175000 | B127: 7.5 Î²è²ì²ðØ²Ü Ø²ðØÆÜÜºðÆ ¶àðÌàôÜºàôÂÚ²Ü Ðºîºì²Üøàì ²è²æ²ò²Ì ìÜ²êÜºðÆ Î²Ø ìÜ²êì²ÌøÜºðÆ ìºð²Î²Ü¶ÜàôØ | C127: x | D127: 0 | E127: 0 | F127: 0 | G127: 0 | H127: 0 | I127: 0 | J127: 0
A128: 1175100 | B128: -Î³é³í³ñÙ³Ý Ù³ñÙÇÝÝ»ñÇ ·áñÍáõÝ»áõÃÛ³Ý Ñ»ï¨³Ýùáí ³é³ç³ó³Í íÝ³ëí³ÍùÝ»ñÇ Ï³Ù íÝ³ëÝ»ñÇ í»ñ³Ï³Ý·ÝáõÙ | C128: 485100 | J128: 0
A129: 1176000 | B129: 7.6 ²ÚÈ Ì²Êêºð | C129: x | D129: 0 | E129: 0 | F129: 0 | G129: 0 | H129: 0 | I129: 0 | J129: 0
A130: 1176100 | B130: -²ÛÉ Í³Ëë»ñ | C130: 486100 | J130: 0
A131: 1177000 | B131: 7.7 ä²Ðàôêî²ÚÆÜ ØÆæàòÜºð | C131: x | D131: 0 | E131: 0 | F131: 0 | G131: 0 | H131: 0 | I131: 0 | J131: 0
A132: 1177100 | B132: -ä³Ñáõëï³ÛÇÝ ÙÇçáóÝ»ñ | C132: 489100 | J132: 0
A133: ---- | B133: ------- | J133: 0
A134: 1200000 | B134: Բ, àâ-üÆÜ²Üê²Î²Ü ²ÎîÆìÜºðÆ ¶Ìàì Ì²Êêºð | C134: x | D134: 0 | E134: 0 | F134: 0 | G134: 0 | H134: 0 | I134: 0 | J134: 0
B135: ³Û¹ ÃíáõÙ` | J135: 0
A136: ---- | B136: ------- | J136: 0
A137: 1210000 | B137: 1.ÐÆØÜ²Î²Ü ØÆæàòÜºð | C137: x | D137: 0 | E137: 0 | F137: 0 | G137: 0 | H137: 0 | I137: 0 | J137: 0
A138: 1211000 | B138: -Þ»Ýù»ñÇ ¨ ßÇÝáõÃÛáõÝÝ»ñÇ Ó»éù µ»ñáõÙ | C138: 511100 | J138: 0
A139: 1212000 | B139: -Þ»Ýù»ñÇ ¨ ßÇÝáõÃÛáõÝÝ»ñÇ Ï³éáõóáõÙ | C139: 511200 | J139: 0
A140: 1213000 | B140: -Þ»Ýù»ñÇ ¨ ßÇÝáõÃÛáõÝÝ»ñÇ Ï³åÇï³É í»ñ³Ýáñá·áõÙ | C140: 511300 | J140: 0
A141: 1214000 | B141: -îñ³Ýëåáñï³ÛÇÝ ë³ñù³íáñáõÙÝ»ñ | C141: 512100 | J141: 0
A142: 1215000 | B142: -ì³ñã³Ï³Ý ë³ñù³íáñáõÙÝ»ñ | C142: 512200 | J142: 0
A143: 1216000 | B143: -²ÛÉ Ù»ù»Ý³Ý»ñ ¨ ë³ñù³íáñáõÙÝ»ñ | C143: 512900 | J143: 0
A144: 1217000 | B144: -²×»óíáÕ ³ÏïÇíÝ»ñ | C144: 513100 | J144: 0
A145: 1218000 | B145: -àã-ÝÛáõÃ³Ï³Ý ÑÇÙÝ³Ï³Ý ÙÇçáóÝ»ñ | C145: 513200 | J145: 0
A146: 1220000 | B146: 2.ä²Þ²ðÜºð | C146: x | D146: 0 | E146: 0 | F146: 0 | G146: 0 | H146: 0 | I146: 0 | J146: 0
A147: 1221000 | B147: -è³½Ù³í³ñ³Ï³Ý å³ß³ñÝ»ñ | C147: 521100 | J147: 0
A148: 1222000 | B148: -ÜÛáõÃ»ñ ¨ å³ñ³·³Ý»ñ | C148: 522100 | J148: 0
A149: 1223000 | B149: -ì»ñ³í³×³éùÇ Ñ³Ù³ñ Ý³Ë³ï»ëí³Í ³åñ³ÝùÝ»ñ | C149: 523100 | J149: 0
A150: 1224000 | B150: -êå³éÙ³Ý Ýå³ï³Ïáí å³ÑíáÕ å³ß³ñÝ»ñ | C150: 524100 | J150: 0
A151: 1230000 | B151: 3.´²ðÒð²ðÄºø ²ÎîÆìÜºð | C151: x | D151: 0 | E151: 0 | F151: 0 | G151: 0 | H151: 0 | I151: 0 | J151: 0
A152: 1231000 | B152: -´³ñÓñ³ñÅ»ù ³ÏïÇíÝ»ñ | C152: 531100 | J152: 0
A153: 1240000 | B153: 4.àâ ²ðî²¸ð²Î²Ü ԱԿՏԻՎՆԵՐ | C153: x | D153: 0 | E153: 0 | F153: 0 | G153: 0 | H153: 0 | I153: 0 | J153: 0
A154: 1241000 | B154: -ÐáÕ | C154: 541100 | J154: 0
A155: 1242000 | B155: -ÀÝ¹»ñù³ÛÇÝ ³ÏïÇíÝ»ñ | C155: 542100 | J155: 0
A156: 1243000 | B156: -²ÛÉ µÝ³Ï³Ý Í³·áõÙ áõÝ»óáÕ ³ÏïÇíÝ»ñ | C156: 543100 | J156: 0
A157: 1244000 | B157: -àã ÝÛáõÃ³Ï³Ý áã ³ñï³¹ñ³Ï³Ý ³ÏïÇíÝ»ñ | C157: 544100 | J157: 0
A158: 1000000 | B158: ԸՆԴԱՄԵՆԸ ºÈøºð` (ïáÕ 1100000+ïáÕ1200000) | C158: x | D158: =D32 -> 47000 | E158: 0 | F158: =F32 -> 47000 | G158: =G32 -> 12000 | H158: =H32 -> 25000 | I158: =I32 -> 37000 | J158: =F158 -> 47000
A161: §17¦ § դեÏï»Ùµ»ñ ¦ 2020 Ã.
A163: ÐÆØÜ²ðÎÆ ÔºÎ²ì²ðª _______________ _________________ | G163: Է.Արշակյան
E164: (ëïáñ³·ñáõÃÛáõÝ) | G164: (².Ð.².)
A165: Î.î.
A166: üÆÜ²Üê²Î²Ü Ì²è²ÚàôÂÚ²Ü äºîª _______________ _________________ | G166: Ն. Մուրադյան
B167: (¶ÈÊ²ìàð Ð²Þì²ä²Ð) | E167: (ëïáñ³·ñáõÃÛáõÝ) | G167: (².Ð.².)

Sheet kext.grer (hidden)
I1: Ð³í»Éí³Í N 2
H3: úñÇÝ³Ï»ÉÇ Ó¨ N1
G4: h³ëï³ïí»É ¿ ÐÐ ýÇÝ³ÝëÝ»ñÇ ¨ ¿ÏáÝáÙÇÏ³ÛÇ
H5: Ý³Ë³ñ³ñÇ 23 ÑáõÉÇëÇ 2007 Ãí³Ï³ÝÇ
B6: §Ð ² ê î ² î àô Ø ºØª¦ | G6: N 597-Ü Ññ³Ù³Ýáí
A8: Ý³Ë³Ñ³ßÇíÁª 1000.0 մեկ միլիոն դրամ
A9: ( ÁÝ¹³Ù»ÝÁ ·áõÙ³ñÁ Ãí»ñáí ¨ ï³é»ñáí****)
A10: _______________________________________________________________________________________________________________ Ñ³½³ñ ¹ñ³Ù ·áõÙ³ñáí:
A12: __________________________________________________________________________________________ | B12: Է Արշակյան | H12: Î.î.
A13: (ÐÐ å»ï³Ï³Ý Ï³é³í³ñÙ³Ý Ù³ñÙÝÇ Õ»Ï³í³ñÇ /Ñ³Ù³ÛÝùÇ Õ»Ï³í³ñÇ/ ëïáñ³·ñáõÃÛáõÝÁ ¨ ².Ð.².)
A14: § ¦ դեկտեմբերի 2020թ
B15: Ü²Ê²Ð²ÞÆì*
B16: ´ Ú àô æ º î ² Ú Æ Ü Ð Æ Ø Ü ² ð Î Æ ä ² Ð ä ² Ü Ø ² Ü Ì ² Ê ê º ð Æ
A17: §01¦ §ÐáõÝí³ñÇ ¦ 2021 Ã. -- §30¦ §¹»Ïï»Ùµ»ñÇ ¦ 2021 Ã.
A19: 1. ÐÇÙÝ³ñÏÇ ³Ýí³ÝáõÙÁ Քաղաքապետարան | G19: 8. ** ´Ûáõç»ï³ÛÇÝ Í³Ëë»ñÇ ·áñÍ ¹³ë³Ï³ñ·.
G20: Í³ÍÏ³·Çñ | H20: 5 | I20: 2 | J20: 1
A21: 3. ÐÇÙÝ³ñÏÇ ï»Õ³µ³ßËÙ³Ý Ù³ñ½Ç ¨ Ñ³Ù³ÛÝùÇ Ïá¹Ý Áëï | G21: 9. Ìñ³·ñÇ ³Ýí³ÝáõÙÁ___Ï³é³í³ñÙ³Ý ³å³ñ³ï
A22: µÛáõç»ï³ÛÇÝ Í³Ëë»ñÇ ï³ñ³Íù³ÛÇÝ ¹³ë³Ï³ñ·Ù³Ý | G22: ________________________________
A23: 4. ** ÐÐ å»ï³Ï³Ý Ï³é³í³ñÙ³Ý (ï»Õ³Ï³Ý ÇÝùÝ³Ï³é³í³ñÙ³Ý) Ù³ñÙÝÇ | G23: 10. Ìñ³·ñÇ Ïá¹Á
A24: ³Ýí³ÝáõÙÁ Լոռու մարզպետարան | G24: 11.*** ÐÐ å»ï³Ï³Ý Ï³é³í³ñÙ³Ý (îÆ)
A25: 5. ÐÇÙÝ³ñÏÁ ëå³ë³ñÏáÕ ï»Õ³Ï³Ý ·³ÝÓ³å»ï³Ï³Ý µ³ÅÝÇ (î¶´) ³Ýí³ÝáõÙÁ Տաշիրի | G25: Ù³ñÙÝÇ Ïá¹Ý Áëï µÛáõç Í³Ëë»ñÇ ·»ñ³ï»ëã³Ï.
A26: 6. ÐÇÙÝ³ñÏÇª ï»Õ³Ï³Ý ·³ÝÓ³å»ï³Ï³Ý µ³ÅÝáõÙ (î¶´) Ñ³ßí³éÙ³Ý Ñ³Ù³ñÁ | G26: ¹³ë³Ï³ñ·Ù³Ý
A27: 7. üÇÝ³Ýë³íáñÙ³Ý ³ÕµÛáõñÇ Ïá¹Á (ÐÐ å»ï³Ï³Ý µÛáõç»ª 1, Ñ³Ù³ÛÝùÇ µÛáõç»ª 2) | E27: 2 | G27: 12. â³÷Ç ÙÇ³íáñÁª Ñ³½³ñ ¹ñ³Ù
A29: îáÕÇ NN | B29: ´Ûáõç»ï³ÛÇÝ Í³Ëë»ñÇ ïÝï»ë³·Çï³Ï³Ý ¹³ë³Ï³ñ·Ù³Ý ï³ññ»ñ | D29: ÜáõÛÝ Å³Ù³Ý³Ï³Ñ³ïí³ÍÇ Ñ³Ù³ñ Ý³ËÏÇÝáõÙ Ñ³ëï³ïí³Íª ·áñÍáÕ | F29: êáõÛÝ Ý³Ë³Ñ³ßíáí Ñ³ëï³ïíáÕ óáõó³ÝÇßÝ»ñÁ | G29: ³Û¹ ÃíáõÙª Áëï »é³ÙëÛ³ÏÝ»ñÇ (»é³ÙëÛ³ÏÇ ³ÙÇëÝ»ñÇ)³×áÕ³Ï³Ý
B30: ³Ýí³ÝáõÙÝ»ñÁ | C30: NN | D30: Ý³Ë³Ñ³ßíÇ óáõó³ÝÇßÝ»ñÁ | E30: Ý³Ë³Ñ³ßíáõÙ Ï³ï³ñí³Í ÷á÷áËáõÃÛáõÝ-Ý»ñÁ (³í»É³óáõÙÁª /+/, å³Ï³ë»óáõÙÁª/-/ | G30: I | H30: II | I30: III | J30: IV
A31: ² | B31: ´ | C31: ¶ | D31: 1 | E31: 2 | F31: 3 | G31: 4 | H31: 5 | I31: 6 | J31: 7
A32: 1100000 | B32: ². ÀÜÂ²òÆÎ Ì²Êêºðª ÀÜ¸²ØºÜÀ, | C32: x | D32: =D33+D42+D138 -> 1000 | E32: 0 | F32: =F33+F42+F138 -> 1000 | G32: =G33+G42+G131 -> 200 | H32: =H33+H42+H131 -> 400 | I32: =I33+I42+I131 -> 1000 | J32: =J33+J42+J131 -> 1000
A33: 1110000 | B33: 1.äºî²Î²Ü, îºÔ²Î²Ü ÆÜøÜ²Î²è²ì²ðØ²Ü Ø²ðØÆÜÜºðÆ, ¸ð²Üò ºÜÂ²Î² ´Úàôæºî²ÚÆÜ ÐÆØÜ²ðÎÜºðÆ ²ÞÊ²îàÔÜºðÆ ²ÞÊ²î²ì²ðÒÀª ÀÜ¸²ØºÜÀ, ³Û¹ ÃíáõÙª | C33: x | D33: =D34 -> 0 | F33: =F34 -> 0 | G33: =G34 -> 0 | H33: =H34 -> 0 | I33: =I34 -> 0 | J33: =J34 -> 0
A34: 1110000 | B34: 1,1 ²ßË³ï³ÝùÇ í³ñÓ³ïñáõÃÛáõÝ | C34: x | D34: =SUM(D35:D41) -> 0 | F34: =SUM(F35:F41) -> 0 | G34: =SUM(G35:G41) -> 0 | H34: =SUM(H35:H41) -> 0 | I34: =SUM(I35:I41) -> 0 | J34: =SUM(J35:J41) -> 0
A35: 1111000 | B35: -²ßË³ïáÕÝ»ñÇ ³ßË³ï³í³ñÓ»ñ ¨ Ñ³í»É³í×³ñÝ»ñ | C35: 411100 | D35: 0 | F35: =D35+E35 -> 0 | G35: 0 | H35: 0 | I35: 0 | J35: =F35 -> 0
A36: 1112000 | B36: - ä³ñ·¨³ïñáõÙÝ»ñ, ¹ñ³Ù³Ï³Ý Ëñ³ËáõëáõÙÝ»ñ ¨ Ñ³ïáõÏ í×³ñÝ»ñ | C36: 411200 | D36: 0 | F36: =D36+E36 -> 0 | H36: 0 | I36: 0 | J36: =F36 -> 0
A37: 1113000 | B37: -ø³Õ³ù³óÇ³Ï³Ý, ¹³ï³Ï³Ý ¨ å»ï³Ï³Ý Í³é³ÛáÕÝ»ñÇ å³ñ·¨³ïñáõÙ | C37: 411300 | F37: 0 | J37: 0
A38: 1114000 | B38: -ÐÐ ýÇÝ³ÝëÝ»ñÇ ¨ ¿ÏáÝáÙÇÏ³ÛÇ Ý³Ë³ñ³ñáõÃÛ³Ý, Ñ³ñÏ³ÛÇÝ ¨ Ù³ùë³ÛÇÝ Ù³ñÙÇÝÝ»ñÇ ³ßË³ïáÕÝ»ñÇ å³ñ·¨³ïñáõÙ | C38: 411400 | F38: 0 | J38: 0
A39: 1115000 | B39: -²ÛÉ í³ñÓ³ïñáõÃÛáõÝÝ»ñ | C39: 411500 | F39: 0 | J39: 0
A40: 1116000 | B40: -´Ý»Õ»Ý ³ßË³ï³í³ñÓ»ñ ¨ Ñ³í»É³í×³ñÝ»ñ | C40: 412100 | F40: 0 | J40: 0
A41: 1117000 | B41: - êáóÇ³É³Ï³Ý ³å³ÑáíáõÃÛ³Ý í×³ñÝ»ñ | C41: 413100 | D41: 0 | F41: 0 | G41: 0 | H41: 0 | I41: 0 | J41: =F41 -> 0
A42: 1120000 | B42: 2 Ì³é³ÛáõÃÛáõÝÝ»ñÇ ¨ ³åñ³ÝùÝ»ñÇ Ó»éù µ»ñáõÙ | C42: x | D42: =D43+D55+D66+D69+D51+D64 -> 1000 | F42: =F43+F55+F66+F69+F51+F64 -> 1000 | G42: =G43+G51+G55+G64+G66+G69 -> 200 | H42: =H43+H51+H55+H64+H66+H69 -> 400 | I42: =I43+I51+I55+I64+I66+I69 -> 1000 | J42: =F42 -> 1000
A43: 1121000 | B43: 2.1 Þ³ñáõÝ³Ï³Ï³Ý Í³Ëë»ñ | D43: =SUM(D44:D49) -> 0 | F43: =SUM(F44:F49) -> 0 | G43: =SUM(G44:G49) -> 0 | H43: =SUM(H44:H49) -> 0 | I43: =SUM(I44:I49) -> 0 | J43: =SUM(J44:J49) -> 0
A44: 1121100 | B44: -·áñÍ³éÝ³Ï³Ý ¨ µ³ÝÏ³ÛÇÝ Í³é³ÛáõÃÛáõÝÝ»ñÇ Í³Ëë»ñ | C44: 421100 | F44: =D44+E44 -> 0 | J44: 0
A45: 1121200 | B45: -¿Ý»ñ·»ïÇÏ Í³é³ÛáõÃÛáõÝÝ»ñ | C45: 421200 | D45: 0 | F45: 0 | G45: 0 | H45: 0 | I45: 0 | J45: =F45 -> 0
A46: 1121300 | B46: -ÎáÙáõÝ³É Í³é³ÛáõÃÛáõÝÝ»ñ | C46: 421300 | D46: 0 | F46: 0 | G46: 0 | H46: 0 | I46: 0 | J46: =F46 -> 0
A47: 1121400 | B47: -Î³åÇ Í³é³ÛáõÃÛáõÝÝ»ñ | C47: 421400 | D47: 0 | F47: 0 | G47: 0 | H47: 0 | I47: 0 | J47: =F47 -> 0
A48: 1121500 | B48: -²å³Ñáí³·ñ³Ï³Ý Í³Ëë»ñ | C48: 421500 | F48: 0 | J48: 0
A49: 1121600 | B49: -¶áõÛùÇ ¨ ë³ñù³íáñáõÙÝ»ñÇ í³ñÓ³Ï³ÉáõÃÛáõÝ | C49: 421600 | F49: 0 | J49: 0
A50: 1121700 | B50: -²ñï³·»ñ³ï»ëã³Ï³Ý Í³Ëë»ñ | C50: 421700 | J50: 0
A51: 1122000 | B51: 2.2 ¶áñÍáõÕáõÙÝ»ñÇ ¨ ßñç³·³ÛáõÃÛ³Ý Í³Ëë»ñ | C51: x | D51: =D52 -> 0 | F51: =F52 -> 0 | G51: =G52 -> 0 | H51: =H52 -> 0 | I51: =I52 -> 0 | J51: =J52 -> 0
A52: 1122100 | B52: -Ü»ñùÇÝ ·áñÍáõÕáõÙÝ»ñ | C52: 422100 | D52: 0 | F52: =D52+E52 -> 0 | G52: 0 | H52: 0 | I52: 0 | J52: =F52 -> 0
A53: 1122200 | B53: -²ñï³ë³ÑÙ³ÝÛ³Ý ·áñÍáõÕáõÙÝ»ñÇ ·Íáí Í³Ëë»ñ | C53: 422200 | F53: =D53+E53 -> 0 | J53: 0
A54: 1122300 | B54: -²ÛÉ ïñ³Ýëåáñï³ÛÇÝ Í³Ëë»ñ | C54: 422900 | F54: =D54+E54 -> 0 | J54: 0
A55: 1123000 | B55: 2.3 ä³ÛÙ³Ý³·ñ³ÛÇÝ ³ÛÉ Í³é³ÛáõÃÛáõÝÝ»ñÇ Ó»éù µ»ñáõÙ | C55: x | D55: =SUM(D56:D63) -> 0 | F55: =SUM(F56:F63) -> 0 | G55: =SUM(G56:G63) -> 0 | H55: =SUM(H56:H63) -> 0 | I55: =SUM(I56:I63) -> 0 | J55: =F55 -> 0
A56: 1123100 | B56: -ì³ñã³Ï³Ý Í³é³ÛáõÃÛáõÝÝ»ñ | C56: 423100 | F56: =D56+E56 -> 0 | J56: =F56 -> 0
A57: 1123200 | B57: -Ð³Ù³Ï³ñ·ã³ÛÇÝ Í³é³ÛáõÃÛáõÝÝ»ñ | C57: 423200 | D57: 0 | F57: =D57+E57 -> 0 | G57: 0 | H57: 0 | I57: 0 | J57: =F57 -> 0
A58: 1123300 | B58: -²ßË³ï³Ï³½ÙÇ Ù³ëÝ³·Çï³Ï³Ý ½³ñ·³óÙ³Ý Í³é³ÛáõÃÛáõÝÝ»ñ | C58: 423300 | F58: 0
A59: 1123400 | B59: -î»Õ³Ï³ïí³Ï³Ý Í³é³ÛáõÃÛáõÝÝ»ñ | C59: 423400 | D59: 0 | F59: 0 | G59: 0 | H59: 0 | I59: 0 | J59: =F59 -> 0
A60: 1123500 | B60: -Î³é³í³ñã³Ï³Ý Í³é³ÛáõÃÛáõÝÝ»ñ | C60: 423500 | F60: 0 | J60: 0
A61: 1123600 | B61: - Î»Ýó³Õ³ÛÇÝ ¨ Ñ³Ýñ³ÛÇÝ ëÝÝ¹Ç Í³é³ÛáõÃÛáõÝÝ»ñ | C61: 423600 | F61: 0 | J61: 0
A62: 1123700 | B62: -Ü»ñÏ³Û³óáõóã³Ï³Ý Í³Ëë»ñ | C62: 423700 | D62: 0 | F62: 0 | G62: 0 | H62: 0 | I62: 0 | J62: 0
A63: 1123800 | B63: -ÀÝ¹Ñ³Ýáõñ µÝáõÛÃÇ ³ÛÉ Í³é³ÛáõÃÛáõÝÝ»ñ | C63: 423900 | D63: 0 | F63: 0 | G63: 0 | H63: 0 | I63: 0 | J63: 0
A64: 1124000 | B64: 2.4 ²ÛÉ Ù³ëÝ³·Çï³Ï³Ý Í³é³ÛáõÃÛáõÝÝ»ñÇ Ó»éù µ»ñáõÙ | C64: x | D64: =D65 -> 0 | F64: =F65 -> 0 | G64: =G65 -> 0 | H64: =H65 -> 0 | I64: =I65 -> 0 | J64: 0
A65: 1124100 | B65: -Ø³ëÝ³·Çï³Ï³Ý Í³é³ÛáõÃÛáõÝÝ»ñ | C65: 424100 | J65: 0
A66: 1125000 | B66: 2.5 ÀÝÃ³óÇÏ Ýáñá·áõÙ ¨ å³Ñå³ÝáõÙ (Í³é³ÛáõÃÛáõÝÝ»ñ ¨ ÝÛáõÃ»ñ) | C66: x | D66: =D67+D68 -> 1000 | E66: 0 | F66: =F67+F68 -> 1000 | G66: =G67+G68 -> 200 | H66: =H67+H68 -> 400 | I66: =I67+I68 -> 1000 | J66: =J67+J68 -> 1000
A67: 1125100 | B67: -Þ»Ýù»ñÇ ¨ Ï³éáõÛóÝ»ñÇ ÁÝÃ³óÇÏ Ýáñá·áõÙ ¨ å³Ñå³ÝáõÙ | C67: 425100 | D67: 1000 | E67: 0 | F67: =D67+E67 -> 1000 | G67: 200 | H67: 400 | I67: 1000 | J67: =F67 -> 1000
A68: 1125200 | B68: -Ø»ù»Ý³Ý»ñÇ ¨ ë³ñù³íáñáõÙÝ»ñÇ ÁÝÃ³óÇÏ Ýáñá·áõÙ ¨ å³Ñå³ÝáõÙ | C68: 425200 | D68: 0 | F68: =D68+E68 -> 0 | G68: 0 | H68: 0 | I68: 0 | J68: 0
A69: 1126000 | B69: 2.6 ÜÛáõÃ»ñ | C69: x | D69: =SUM(D70:D77) -> 0 | F69: =SUM(F70:F77) -> 0 | G69: =SUM(G70:G77) -> 0 | H69: =SUM(H70:H77) -> 0 | I69: =SUM(I70:I77) -> 0 | J69: 0
A70: 1126100 | B70: -¶ñ³ë»ÝÛ³Ï³ÛÇÝ ÝÛáõÃ»ñ ¨ Ñ³·áõëï | C70: 426100 | D70: 0 | F70: =D70+E70 -> 0 | G70: 0 | H70: 0 | I70: 0 | J70: 0
A71: 1126200 | B71: -¶ÛáõÕ³ïÝï»ë³Ï³Ý ³åñ³ÝùÝ»ñ | C71: 426200 | F71: =D71+E71 -> 0 | J71: 0
A72: 1126300 | B72: -ì»ñ³å³ïñ³ëïÙ³Ý ¨ áõëáõóÙ³Ý ÝÛáõÃ»ñ | C72: 426300 | F72: 0 | J72: 0
A73: 1126400 | B73: -îñ³Ýëåáñï³ÛÇÝ ÝÛáõÃ»ñ | C73: 426400 | D73: 0 | F73: 0 | G73: 0 | H73: 0 | I73: 0 | J73: 0
A74: 1126500 | B74: -Þñç³Ï³ ÙÇç³í³ÛñÇ å³ßïå³ÝáõÃÛ³Ý ¨ ·Çï³Ï³Ý ÝÛáõÃ»ñ | C74: 426500 | F74: 0 | J74: 0
A75: 1126600 | B75: -²éáÕç³å³Ñ³Ï³Ý ¨ É³µáñ³ïáñ ÝÛáõÃ»ñ | C75: 426600 | F75: 0 | J75: =F75 -> 0
A76: 1126700 | B76: -Î»Ýó³Õ³ÛÇÝ ¨ Ñ³Ýñ³ÛÇÝ ëÝÝ¹Ç ÝÛáõÃ»ñ | C76: 426700 | D76: 0 | F76: 0 | G76: 0 | H76: 0 | I76: 0 | J76: =F76 -> 0
A77: 1126800 | B77: -Ð³ïáõÏ Ýå³ï³Ï³ÛÇÝ ³ÛÉ ÝÛáõÃ»ñ | C77: 426900 | D77: 0 | F77: 0 | G77: 0 | H77: 0 | I77: 0 | J77: =F77 -> 0
A78: 1130000 | B78: 3 îáÏáë³í×³ñÝ»ñ | C78: x | D78: 0 | F78: 0 | G78: 0 | H78: 0 | I78: 0 | J78: 0
A79: 1130100 | B79: -Ü»ñùÇÝ ³ñÅ»ÃÕÃ»ñÇ ïáÏáë³í×³ñÝ»ñ | C79: 441100 | J79: 0
A80: 1130200 | B80: -Ü»ñùÇÝ í³ñÏ»ñÇ ïáÏáë³í×³ñÝ»ñ | C80: 441200 | J80: 0
A81: 1130300 | B81: -²ñï³ùÇÝ ³ñÅ»ÃÕÃ»ñÇ ·Íáí ïáÏáë³í×³ñÝ»ñ | C81: 442100 | J81: 0
A82: 1130400 | B82: -²ñï³ùÇÝ í³ñÏ»ñÇ ·Íáí ïáÏáë³í×³ñÝ»ñ | C82: 442200 | J82: 0
A83: 1131000 | B83: öáË³éáõÃÛáõÝÝ»ñÇ Ñ»ï Ï³åí³Í í×³ñÝ»ñ | C83: x | J83: 0
A84: 1131100 | B84: -öáË³Ý³ÏÙ³Ý Ïáõñë»ñÇ µ³ó³ë³Ï³Ý ï³ñµ»ñáõÃÛáõÝ | C84: 443100 | J84: 0
A85: 1131200 | B85: -îáõÛÅ»ñ | C85: 443200 | J85: 0
A86: 1131300 | B86: -öáË³éáõÃÛáõÝÝ»ñÇ ·Íáí ïáõñù»ñ | C86: 443300 | J86: 0
A87: 1140000 | B87: 4. êáõµëÇ¹Ç³Ý»ñ | C87: x | D87: 0 | F87: 0 | G87: 0 | H87: 0 | I87: 0 | J87: 0
A88: 1141000 | B88: -êáõµëÇ¹Ç³Ý»ñ áã-ýÇÝ³Ýë³Ï³Ý å»ï³Ï³Ý Ï³½Ù³Ï»ñåáõÃÛáõÝÝ»ñÇÝ | C88: 451100 | J88: 0
A89: 1142000 | B89: -êáõµëÇ¹Ç³Ý»ñ ýÇÝ³Ýë³Ï³Ý å»ï³Ï³Ý Ï³½Ù³Ï»ñåáõÃÛáõÝÝ»ñÇÝ | C89: 451200 | J89: 0
A90: 1143000 | B90: -êáõµëÇ¹Ç³Ý»ñ áã å»ï³Ï³Ý áã ýÇÝ³Ýë³Ï³Ý Ï³½Ù³Ï»ñåáõÃÛáõÝÝ»ñÇÝ | C90: 452100 | J90: 0
A91: 1144000 | B91: -êáõµëÇ¹Ç³Ý»ñ áã å»ï³Ï³Ý ýÇÝ³Ýë³Ï³Ý Ï³½Ù³Ï»ñåáõÃÛáõÝÝ»ñÇÝ | C91: 452200 | J91: 0
A92: 1150000 | B92: 5.¸ñ³Ù³ßÝáñÑÝ»ñ | C92: x | D92: 0 | F92: 0 | G92: 0 | H92: 0 | I92: 0 | J92: 0
A93: 1151000 | B93: ¸ñ³Ù³ßÝáñÑÝ»ñ ûï³ñ»ñÏñÛ³ Ï³é³í³ñáõÃÛáõÝÝ»ñÇÝ | C93: x | D93: 0 | F93: 0 | G93: 0 | H93: 0 | I93: 0 | J93: 0
A94: 1151100 | B94: ÀÝÃ³óÇÏ ¹ñ³Ù³ßÝáñÑÝ»ñ ûï³ñ»ñÏñÛ³ Ï³é³í³ñáõÃÛáõÝÝ»ñÇÝ | C94: 461100 | J94: 0
A95: 1151200 | B95: Î³åÇï³É ¹ñ³Ù³ßÝáñÑÝ»ñ ûï³ñ»ñÏñÛ³ Ï³é³í³ñáõÃÛáõÝÝ»ñÇÝ | C95: 461200 | J95: 0
A96: 1152000 | B96: ¸ñ³Ù³ßÝáñÑÝ»ñ ÙÇç³½·³ÛÇÝ Ï³½Ù³Ï»ñåáõÃÛáõÝÝ»ñÇÝ | C96: x | D96: 0 | F96: 0 | G96: 0 | H96: 0 | I96: 0 | J96: 0
A97: 1152100 | B97: ÀÝÃ³óÇÏ ¹ñ³Ù³ßÝáñÑÝ»ñ ÙÇç³½·³ÛÇÝ Ï³½Ù³Ï»ñåáõÃÛáõÝÝ»ñÇÝ | C97: 462100 | J97: 0
A98: 1152200 | B98: Î³åÇï³É ¹ñ³Ù³ßÝáñÑ»ñ ÙÇç³½·³ÛÇÝ Ï³½Ù³Ï»ñåáõÃÛáõÝÝ»ñÇÝ | C98: 462200 | J98: 0
A99: 1153000 | B99: ÀÝÃ³óÇÏ ¹ñ³Ù³ßÝáñÑÝ»ñ å»ï³Ï³Ý Ñ³ïí³ÍÇ ³ÛÉ Ù³Ï³ñ¹³ÏÝ»ñÇÝ | C99: x | D99: =D114 -> 0 | F99: =F114 -> 0 | G99: =G114 -> 0 | H99: =H114 -> 0 | I99: =I114 -> 0 | J99: =F99 -> 0
A100: 1153100 | B100: ÀÝÃ³óÇÏ ¹ñ³Ù³ßÝáñÑÝ»ñ å»ï³Ï³Ý Ï³é³í³ñÙ³Ý Ñ³ïí³ÍÇÝ | C100: 463100 | J100: 0
A101: 1153200 | B101: ÀÝÃ³óÇÏ ëáõµí»ÝóÇ³Ý»ñ Ñ³Ù³ÛÝùÝ»ñÇÝ | C101: 463200 | J101: 0
A102: 1153300 | B102: ä»ï³Ï³Ý µÛáõç»Çó Ñ³Ù³ÛÝùÝ»ñÇ µÛáõç»Ý»ñÇÝ ýÇÝ³Ýë³Ï³Ý Ñ³Ù³Ñ³ñÃ»óÙ³Ý ëÏ½µáõÝùáí ïñíáÕ ¹áï³óÇ³Ý»ñ | C102: 463300 | J102: 0
A103: 1153400 | B103: úñ»ÝùÝ»ñÇ ÏÇñ³ñÏÙ³Ý ³ñ¹ÛáõÝùáõÙ Ñ³Ù³ÛÝùÝ»ñÇ µÛáõç»Ý»ñÇ ÏáñáõëïÝ»ñÇ ÷áËÑ³ïáõóáõÙ | C103: 463400 | J103: 0
A104: 1153500 | B104: ²ÛÉ ÁÝÃ³óÇÏ ¹ñ³Ù³ßÝáñÑÝ»ñ Ñ³Ù³ÛÝùÝ»ñÇÝ | C104: 463500 | J104: 0
A105: 1153700 | B105: ÀÝÃ³óÇÏ ¹ñ³Ù³ßÝáñÑÝ»ñ å»ï³Ï³Ý ¨ Ñ³Ù³ÛÝùÝ»ñÇ áã ³é¨ïñ³ÛÇÝ Ï³½Ù³Ï»ñåáõÃÛáõÝÝ»ñÇÝ | C105: 463700 | J105: 0
A106: 1153800 | B106: ÀÝÃ³óÇÏ ¹ñ³Ù³ßÝáñÑÝ»ñ å»ï³Ï³Ý ¨ Ñ³Ù³ÛÝùÝ»ñÇ ³é¨ïñ³ÛÇÝ Ï³½Ù³Ï»ñåáõÃÛáõÝÝ»ñÇÝ | C106: 463800 | J106: 0
A107: 1153900 | B107: ²ÛÉ ÁÝÃ³óÇÏ ¹ñ³Ù³ßÝáñÑÝ»ñ | C107: 463900 | J107: 0
A108: 1154000 | B108: Î³åÇï³É ¹ñ³Ù³ßÝáñÑÝ»ñ å»ï³Ï³Ý Ñ³ïí³ÍÇ ³ÛÉ Ù³Ï³ñ¹³ÏÝ»ñÇÝ | C108: x | D108: 0 | F108: 0 | G108: 0 | H108: 0 | I108: 0 | J108: 0
A109: 1154100 | B109: Î³åÇï³É ¹ñ³Ù³ßÝáñÑÝ»ñ å»ï³Ï³Ý Ï³é³í³ñÙ³Ý Ñ³ïí³ÍÇÝ | C109: 465100 | J109: 0
A110: 1154200 | B110: Î³åÇï³É ëáõµí»ÝóÇ³Ý»ñ Ñ³Ù³ÛÝùÝ»ñÇÝ | C110: 465200 | J110: 0
A111: 1154300 | B111: ²ÛÉ Ï³åÇï³É ¹ñ³Ù³ßÝáñÑÝ»ñ Ñ³Ù³ÛÝùÝ»ñÇÝ | C111: 465300 | J111: 0
A112: 1154500 | B112: Î³åÇï³É ¹ñ³Ù³ßÝáñÑÝ»ñ å»ï³Ï³Ý ¨ Ñ³Ù³ÛÝùÝ»ñÇ áã ³é¨ïñ³ÛÇÝ Ï³½Ù³Ï»ñåáõÃÛáõÝÝ»ñÇÝ | C112: 465500 | J112: 0
A113: 1154600 | B113: Î³åÇï³É ¹ñ³Ù³ßÝáñÑÝ»ñ å»ï³Ï³Ý ¨ Ñ³Ù³ÛÝù³ÛÇÝ ³é¨ïñ³ÛÇÝ Ï³½Ù³Ï»ñåáõÃÛáõÝÝ»ñÇÝ | C113: 465600 | J113: 0
A114: 1154700 | B114: ²ÛÉ Ï³åÇï³É ¹ñ³Ù³ßÝáñÑÝ»ñ | C114: 465700 | D114: 0 | F114: 0 | G114: 0 | H114: 0 | I114: 0 | J114: =F114 -> 0
A115: 1160000 | B115: 6. êàòÆ²È²Î²Ü Üä²êîÜºð ºì ÎºÜê²ÂàÞ²ÎÜºð | C115: x | D115: 0 | F115: 0 | G115: 0 | H115: 0 | I115: 0 | J115: 0
A116: 1161000 | B116: 6.1 êàòÆ²È²Î²Ü ²ä²ÐàìàôÂÚ²Ü Üä²êîÜºð | C116: x | D116: 0 | F116: 0 | G116: 0 | H116: 0 | I116: 0 | J116: 0
A117: 1161100 | B117: -îÝ³ÛÇÝ ïÝï»ëáõÃÛáõÝÝ»ñÇÝ ¹ñ³Ùáí í×³ñíáÕ ëáóÇ³É³Ï³Ý ³å³ÑáíáõÃÛ³Ý í×³ñÝ»ñ | C117: 471100 | J117: 0
A118: 1161200 | B118: -êáóÇ³É³Ï³Ý ³å³ÑáíáõÃÛ³Ý µÝ»Õ»Ý Ýå³ëïÝ»ñ Í³é³ÛáõÃÛáõÝÝ»ñ Ù³ïáõóáÕÝ»ñÇÝ | C118: 471200 | J118: 0
A119: 1162000 | B119: 6.2 êàòÆ²È²Î²Ü ú¶ÜàôÂÚ²Ü ¸ð²Ø²Î²Ü ²ðî²Ð²ÚîàôÂÚ²Ø´ Üä²êîÜºð (´ÚàôæºÆò) | C119: x | D119: 0 | F119: 0 | G119: 0 | H119: 0 | I119: 0 | J119: 0
A120: 1162100 | B120: -ÐÇí³Ý¹áõÃÛ³Ý ¨ Ñ³ßÙ³Ý¹³ÙáõÃÛ³Ý Ýå³ëïÝ»ñ µÛáõç»Çó | C120: 472100 | J120: 0
A121: 1162200 | B121: -Ø³ÛñáõÃÛ³Ý Ýå³ëïÝ»ñ µÛáõç»Çó | C121: 472200 | J121: 0
A122: 1162300 | B122: -ºñ»Ë³Ý»ñÇ Ï³Ù ÁÝï³Ý»Ï³Ý Ýå³ëïÝ»ñ µÛáõç»Çó | C122: 472300 | J122: 0
A123: 1162400 | B123: -¶áñÍ³½ñÏáõÃÛ³Ý Ýå³ëïÝ»ñ µÛáõç»Çó | C123: 472400 | J123: 0
A124: 1162500 | B124: -Î»Ýë³Ãáß³ÏÇ ³ÝóÝ»Éáõ Ñ»ï Ï³åí³Í ¨ ï³ñÇù³ÛÇÝ Ýå³ëïÝ»ñ µÛáõç»Çó | C124: 472500 | J124: 0
A125: 1162600 | B125: -ÐáõÕ³ñÏ³íáñáõÃÛ³Ý Ýå³ëïÝ»ñ µÛáõç»Çó | C125: 472600 | J125: 0
A126: 1162700 | B126: -ÎñÃ³Ï³Ý, Ùß³ÏáõÃ³ÛÇÝ ¨ ëåáñï³ÛÇÝ Ýå³ëïÝ»ñ µÛáõç»Çó | C126: 472700 | J126: 0
A127: 1162800 | B127: -´Ý³Ï³ñ³Ý³ÛÇÝ Ýå³ëïÝ»ñ µÛáõç»Çó | C127: 472800 | J127: 0
A128: 1162900 | B128: -²ÛÉ Ýå³ëïÝ»ñ µÛáõç»Çó | C128: 472900 | J128: 0
A129: 1163000 | B129: 6.3 ÎºÜê²ÂàÞ²ÎÜºð | C129: x | D129: 0 | F129: 0 | G129: 0 | H129: 0 | I129: 0 | J129: 0
A130: 1163100 | B130: -Ï»Ýë³Ãáß³ÏÝ»ñ | C130: 474100 | J130: 0
A131: 1170000 | B131: 7. ²ÚÈ Ì²Êêºð | C131: x | D131: =D135 -> 0 | F131: =F135 -> 0 | G131: =G135 -> 0 | H131: =H135 -> 0 | I131: =I135 -> 0 | J131: =J135 -> 0
A132: 1171000 | B132: 7.1 ÜìÆð²îìàôÂÚàôÜÜºð àâ-Î²è²ì²ðâ²Î²Ü (Ð²ê²ð²Î²Î²Ü) Î²¼Ø²ÎºðäàôÂÚàôÜÜºðÆÜ | C132: x | D132: 0 | F132: 0 | G132: 0 | H132: 0 | I132: 0 | J132: 0
A133: 1171100 | B133: -îÝ³ÛÇÝ ïÝï»ëáõÃÛáõÝÝ»ñÇÝ Í³é³ÛáõÃÛáõÝÝ»ñ Ù³ïáõóáÕ` ß³ÑáõÛÃ ãÑ»ï³åÝ¹áÕ Ï³½Ù³Ï»ñåáõÃÛáõÝÝ»ñÇÝ ÝíÇñ³ïíáõÃÛáõÝÝ»ñ | C133: 481100 | J133: 0
A134: 1171200 | B134: -ÜíÇñ³ïíáõÃÛáõÝÝ»ñ ³ÛÉ ß³ÑáõÛÃ ãÑ»ï³åÝ¹áÕ Ï³½Ù³Ï»ñåáõÃÛáõÝÝ»ñÇÝ | C134: 481900 | J134: 0
A135: 1172000 | B135: 7.2 Ð²ðÎºð, ä²ðî²¸Æð ìÖ²ðÜºð ºì îàôÚÄºð, àðàÜø Î²è²ì²ðØ²Ü î²ð´ºð Ø²Î²ð¸²ÎÜºðÆ ÎàÔØÆò ÎÆð²èìàôØ ºÜ ØÆØÚ²Üò ÜÎ²îØ²Ø´ | C135: x | D135: =D137+D138 -> 0 | F135: =F137+F138 -> 0 | G135: =G137+G138 -> 0 | H135: =H137+H138 -> 0 | I135: =I137+I138 -> 0 | J135: =F135 -> 0
A136: 1172100 | B136: -²ßË³ï³í³ñÓÇ ýáÝ¹ | C136: 482100 | J136: 0
A137: 1172200 | B137: -²ÛÉ Ñ³ñÏ»ñ | C137: 482200 | D137: 0 | F137: 0 | G137: 0 | H137: 0 | I137: 0 | J137: =F137 -> 0
A138: 1172300 | B138: -ä³ñï³¹Çñ í×³ñÝ»ñ | C138: 482300 | D138: 0 | F138: 0 | G138: 0 | H138: 0 | I138: 0 | J138: =F138 -> 0
A139: 1172400 | B139: -ä»ï³Ï³Ý Ñ³ïí³ÍÇ ï³ñµ»ñ Ù³Ï³ñ¹³ÏÝ»ñÇ ÏáÕÙÇó ÙÇÙÛ³Ýó ÝÏ³ïÙ³Ùµ ÏÇñ³éíáÕ ïáõÛÅ»ñ | C139: 482400 | J139: 0
A140: 1173000 | B140: 7.3 ¸²î²ð²ÜÜºðÆ ÎàÔØÆò ÜÞ²Ü²Îì²Ì îàôÚÄºð ºì îàô¶²ÜøÜºð | C140: x | D140: 0 | F140: 0 | G140: 0 | H140: 0 | I140: 0 | J140: 0
A141: 1173100 | B141: -¸³ï³ñ³ÝÝ»ñÇ ÏáÕÙÇó Ýß³Ý³Ïí³Í ïáõÛÅ»ñ ¨ ïáõ·³ÝùÝ»ñ | C141: 483100 | J141: 0
A142: 1174000 | B142: 7.4 ´Ü²Î²Ü ²ÔºîÜºðÆò Î²Ø ²ÚÈ ´Ü²Î²Ü ä²îÖ²èÜºðàì ²è²æ²ò²Ì ìÜ²êÜºðÆ Î²Ø ìÜ²êì²ÌøÜºðÆ ìºð²Î²Ü¶ÜàôØ | C142: x | D142: 0 | F142: 0 | G142: 0 | H142: 0 | I142: 0 | J142: 0
A143: 1174100 | B143: -´Ý³Ï³Ý ³Õ»ïÝ»ñÇó ³é³ç³ó³Í íÝ³ëí³ÍùÝ»ñÇ Ï³Ù íÝ³ëÝ»ñÇ í»ñ³Ï³Ý·ÝáõÙ | C143: 484100 | J143: 0
A144: 1174200 | B144: -²ÛÉ µÝ³Ï³Ý å³ï×³éÝ»ñáí ëï³ó³Í íÝ³ëí³ÍùÝ»ñÇ í»ñ³Ï³Ý·ÝáõÙ | C144: 484200 | J144: 0
A145: 1175000 | B145: 7.5 Î²è²ì²ðØ²Ü Ø²ðØÆÜÜºðÆ ¶àðÌàôÜºàôÂÚ²Ü Ðºîºì²Üøàì ²è²æ²ò²Ì ìÜ²êÜºðÆ Î²Ø ìÜ²êì²ÌøÜºðÆ ìºð²Î²Ü¶ÜàôØ | C145: x | D145: 0 | F145: 0 | G145: 0 | H145: 0 | I145: 0 | J145: 0
A146: 1175100 | B146: -Î³é³í³ñÙ³Ý Ù³ñÙÇÝÝ»ñÇ ·áñÍáõÝ»áõÃÛ³Ý Ñ»ï¨³Ýùáí ³é³ç³ó³Í íÝ³ëí³ÍùÝ»ñÇ Ï³Ù íÝ³ëÝ»ñÇ í»ñ³Ï³Ý·ÝáõÙ | C146: 485100 | J146: 0
A147: 1176000 | B147: 7.6 ²ÚÈ Ì²Êêºð | C147: x | D147: 0 | F147: 0 | G147: 0 | H147: 0 | I147: 0 | J147: 0
A148: 1176100 | B148: -²ÛÉ Í³Ëë»ñ | C148: 486100 | J148: 0
A149: 1177000 | B149: 7.7 ä²Ðàôêî²ÚÆÜ ØÆæàòÜºð | C149: x | D149: 0 | F149: 0 | G149: 0 | H149: 0 | I149: 0 | J149: 0
A150: 1177100 | B150: -ä³Ñáõëï³ÛÇÝ ÙÇçáóÝ»ñ | C150: 489100 | J150: 0
A151: 1200000 | B151: Բ, àâ-üÆÜ²Üê²Î²Ü ²ÎîÆìÜºðÆ ¶Ìàì Ì²Êêºð | C151: x | D151: =D152 -> 0 | F151: =F152 -> 0 | G151: =G152 -> 0 | H151: =H152 -> 0 | I151: =I152 -> 0 | J151: =F152 -> 0
A152: 1210000 | B152: 1.ÐÆØÜ²Î²Ü ØÆæàòÜºð | C152: x | D152: =SUM(D153:D155) -> 0 | F152: =SUM(F153:F155) -> 0 | G152: =SUM(G153:G155) -> 0 | H152: =+SUM(H153:H155) -> 0 | I152: =SUM(I153:I155) -> 0 | J152: =F152 -> 0
A153: 1211000 | B153: -Þ»Ýù»ñÇ ¨ ßÇÝáõÃÛáõÝÝ»ñÇ Ó»éù µ»ñáõÙ | C153: 511100 | J153: =F153 -> 0
A154: 1212000 | B154: -Þ»Ýù»ñÇ ¨ ßÇÝáõÃÛáõÝÝ»ñÇ Ï³éáõóáõÙ | C154: 511200 | D154: 0 | F154: 0 | G154: 0 | H154: 0 | I154: 0 | J154: =F154 -> 0
A155: 1213000 | B155: -Þ»Ýù»ñÇ ¨ ßÇÝáõÃÛáõÝÝ»ñÇ Ï³åÇï³É í»ñ³Ýáñá·áõÙ | C155: 511300 | D155: 0 | F155: 0 | G155: 0 | H155: 0 | I155: 0 | J155: =F155 -> 0
A156: 1214000 | B156: -îñ³Ýëåáñï³ÛÇÝ ë³ñù³íáñáõÙÝ»ñ | C156: 512100 | J156: 0
A157: 1215000 | B157: -ì³ñã³Ï³Ý ë³ñù³íáñáõÙÝ»ñ | C157: 512200 | J157: 0
A158: 1216000 | B158: -²ÛÉ Ù»ù»Ý³Ý»ñ ¨ ë³ñù³íáñáõÙÝ»ñ | C158: 512900 | J158: 0
A159: 1217000 | B159: -²×»óíáÕ ³ÏïÇíÝ»ñ | C159: 513100 | J159: 0
A160: 1218100 | B160: -àã-ÝÛáõÃ³Ï³Ý ÑÇÙÝ³Ï³Ý ÙÇçáóÝ»ñ | C160: 513200 | J160: 0
A161: 1218200 | B161: -¶»á¹»½Ç³Ï³Ý ù³ñï»½³·ñ³Ï³Ý Í³Ëë»ñ | C161: 513300 | J161: 0
A162: 1218300 | B162: -Ü³Ë³·Í³Ñ»ï³½áï³Ï³Ý Í³Ëë»ñ | C162: 513400 | J162: 0
A163: 1220000 | B163: 2.ä²Þ²ðÜºð | C163: x | D163: 0 | F163: 0 | G163: 0 | H163: 0 | I163: 0 | J163: 0
A164: 1221000 | B164: -è³½Ù³í³ñ³Ï³Ý å³ß³ñÝ»ñ | C164: 521100 | J164: 0
A165: 1222000 | B165: -ÜÛáõÃ»ñ ¨ å³ñ³·³Ý»ñ | C165: 522100 | J165: 0
A166: 1223000 | B166: -ì»ñ³í³×³éùÇ Ñ³Ù³ñ Ý³Ë³ï»ëí³Í ³åñ³ÝùÝ»ñ | C166: 523100 | J166: 0
A167: 1224000 | B167: -êå³éÙ³Ý Ýå³ï³Ïáí å³ÑíáÕ å³ß³ñÝ»ñ | C167: 524100 | J167: 0
A168: 1230000 | B168: 3.´²ðÒð²ðÄºø ²ÎîÆìÜºð | C168: x | D168: 0 | F168: 0 | G168: 0 | H168: 0 | I168: 0 | J168: 0
A169: 1231000 | B169: -´³ñÓñ³ñÅ»ù ³ÏïÇíÝ»ñ | C169: 531100 | J169: 0
A170: 1240000 | B170: 4.â²ðî²¸ðì²Ì ԱԿՏԻՎՆԵՐ | C170: x | D170: 0 | F170: 0 | G170: 0 | H170: 0 | I170: 0 | J170: 0
A171: 1241000 | B171: -ÐáÕ | C171: 541100 | J171: 0
A172: 1242000 | B172: -ÀÝ¹»ñù³ÛÇÝ ³ÏïÇíÝ»ñ | C172: 542100
A173: 1243000 | B173: -²ÛÉ µÝ³Ï³Ý Í³·áõÙ áõÝ»óáÕ ³ÏïÇíÝ»ñ | C173: 543100
A174: 1244000 | B174: -àã ÝÛáõÃ³Ï³Ý ã³ñï³¹ñí³Í ³ÏïÇíÝ»ñ | C174: 544100
A175: 1000000 | B175: ԸՆԴԱՄԵՆԸ ԾԱԽՍԵՐ` | C175: x | D175: =D32+D151 -> 1000 | E175: 0 | F175: =F32+F151 -> 1000 | G175: =G32+G151 -> 200 | H175: =H32+H115 -> 400 | I175: =I32+I151 -> 1000 | J175: =F175 -> 1000
A177: §17¦ § դեÏï»Ùµ»ñ ¦ 2020 Ã.
A179: ÐÆØÜ²ðÎÆ ÔºÎ²ì²ðª _______________ Է.Արշակյան_________________
A180: (ëïáñ³·ñáõÃÛáõÝ) (².Ð.².)
A181: Î.î.
A183: üÆÜ²Üê²Î²Ü Ì²è²ÚàôÂÚ²Ü äºîª ________________ Ն.Մուրադյան ___________________
A184: (¶ÈÊ²ìàð Ð²Þì²ä²Ð) (ëïáñ³·ñáõÃÛáõÝ) (².Ð.².)
A202: 5.5 áñ¨¿ ³Ùëí³ Ýáñ Ý³Ë³Ñ³ßíÇª 3-ñ¹ ëÛáõÝ³ÏáõÙ Ý»ñÏ³Û³óíáõÙ »Ý ïíÛ³É µÛáõç»ï³ÛÇÝ ï³ñí³ Ñ³Ù³å³ï³ëË³Ý ³Ùëí³ óáõó³ÝÇßÝ»ñÁ, ÇëÏ 4-Çó 7-ñ¹ ëÛáõÝ³ÏÝ»ñÁ ã»Ý Éñ³óíáõÙ:
A203: ** Ì²ÜàÂ²¶ðàôÂÚàôÜ II. N 1 ûñÇÝ³Ï»ÉÇ Ó¨Ç Ýßí³Í ïáÕÁ ÐÐ å»ï³Ï³Ý Ï³é³í³ñÙ³Ý ¨ ï»Õ³Ï³Ý ÇÝùÝ³Ï³é³í³ñÙ³Ý í»ñ³¹³ë Ù³ñÙÇÝÝ»ñÁ ã»Ý Éñ³óÝáõÙ:
A204: *** Ì²ÜàÂ²¶ðàôÂÚàôÜ III. N 1 ûñÇÝ³Ï»ÉÇ Ó¨Ç Ýßí³Í ïáÕÁ ÐÐ å»ï³Ï³Ý Ï³é³í³ñÙ³Ý ¨ ï»Õ³Ï³Ý ÇÝùÝ³Ï³é³í³ñÙ³Ý Ù³ñÙÇÝÝ»ñÁ Éñ³óÝáõÙ »Ý Çñ»Ýó Ñ³Ù³ñ µÛáõç»ï³ÛÇÝ Í³Ëë»ñÇ ·»ñ³ï»ëã³Ï³Ý ¹³ë³Ï³ñ·Ù³Ùµ ë³ÑÙ³Ý³Í Ïá¹Á:
A205: **** Ì²ÜàÂ²¶ðàôÂÚàôÜ IV. N 1 ûñÇÝ³Ï»ÉÇ Ó¨Ç Ýßí³Í ïáÕÁª ³ÝÏ³Ë Ýñ³ÝÇó, Ã» Ýáñ Ý³Ë³Ñ³ßÇíÁ áñ ¹»åùáõÙ ¿ Ñ³ëï³ïíáõÙ, Éñ³óíáõÙ ¿ N 1 ûñÇÝ³Ï»ÉÇ Ó¨Ç ³ÕÛáõë³ÏÇ §²¦ ëÛáõÝ³ÏáõÙ ³Ùñ³·ñí³Í N 1000000 (§ÀÝ¹³Ù»ÝÁ
A206: Í³Ëë»ñ¦) ïáÕÇ 3-ñ¹ ëÛáõÝ³ÏáõÙ µ»ñí³Í óáõó³ÝÇßÇ ·áõÙ³ñáí (Ãí»ñáí ¨ ï³é»ñáí):
A207: ***** Ì²ÜàÂ²¶ðàôÂÚàôÜ V. N 1 ûñÇÝ³Ï»ÉÇ Ó¨Ç Ýßí³Í ïáÕÁ Éñ³óíáõÙ ¿ Ññ³Ù³Ýáí Ñ³ëï³ïí³Í N 11 Ñ³í»Éí³ÍÇ` §´Ûáõç»ï³ÛÇÝ Í³Ëë»ñÇ ·áñÍ³é³Ï³Ý ¹³ë³Ï³ñ·áõÙ¦, ï³ññ»ñÇÝ Ñ³Ù³å³ï³ëË³Ý` µ³ÅÇÝ (2 ÝÇß), ËáõÙµ(1ÝÇß) ¨ ¹³ë (1ÝÇß):
A208: §__¦ §________________¦ 200_ Ã.
A210: ÐÆØÜ²ðÎÆ ÔºÎ²ì²ðª _______________ _________________
A211: (ëïáñ³·ñáõÃÛáõÝ) (².Ð.².)
A212: Î.î.
A214: üÆÜ²Üê²Î²Ü Ì²è²ÚàôÂÚ²Ü äºîª ________________ ___________________
A215: (¶ÈÊ²ìàð Ð²Þì²ä²Ð) (ëïáñ³·ñáõÃÛáõÝ) (².Ð.².)

Sheet Shner (hidden)
F1: Ð³í»Éí³Í N 4
F3: úñÇÝ³Ï»ÉÇ Ó¨ N 3
F4: Ð³ëï³ïí»É ¿ ÐÐ ýÇÝ³ÝëÝ»ñÇ ¨ ¿ÏáÝáÙÇÏ³ÛÇ
B5: §Ð ² ê î ² î àô Ø ºØª¦ | G5: Ý³Ë³ñ³ñÇ 23 ÑáõÉÇëÇ 2007 Ãí³Ï³ÝÇ
F6: N 597-Ü Ññ³Ù³Ýáí
A7: Ý³Ë³Ñ³ßÇíÁª 12000,0 տասներկու միլիոն դրամ.
A8: ( ÁÝ¹³Ù»ÝÁ ·áõÙ³ñÁ Ãí»ñáí ¨ ï³é»ñáí****)
B9: (ÁÝ¹Ñ³Ýáõñ ·áõÙ³ñÁ Ãí»ñáí ¨ ï³é»ñáí**** )
A10: ___________________________________________________________________ Ñ³½³ñ ¹ñ³Ù ·áõÙ³ñáí:
A12: ___________________________________Է.Արշակյան___________________________________ | G12: Î.î.
A13: (ÐÐ å»ï³Ï³Ý Ï³é³í³ñÙ³Ý Ï³Ù ï»Õ³Ï³Ý ÇÝùÝ³Ï³é³í³ñÙ³Ý Ù³ñÙÝÇ Õ»Ï³í³ñÇ ëïáñ³·ñáõÃÛáõÝÁ ¨ ².Ð.².)
A14: § ¦ դեկտեմբերի 2020թ
A15: Ü ² Ê ² Ð ² Þ Æ ì*
A16: ÐÇÙÝ³ñÏÝ»ñÇ ÏáÕÙÇó µÛáõç»ï³ÛÇÝ Ñ³ïÏ³óáõÙÝ»ñÇ Ñ³ßíÇÝ Çñ³Ï³Ý³óíáÕ Í³Ëë»ñÇ (»Éù»ñÇ) ³é³ÝÓÇÝ ï»ë³ÏÝ»ñÇ
A17: ¥Áëï ïÝï»ë³·Çï³Ï³Ý ¹³ë³Ï³ñ·Ù³Ý Ñá¹í³ÍÝ»ñÇ¤
A18: §01¦ §ÐáõÝí³ñÇ ¦ 2021 Ã. -- §30¦ §¹»Ïï»Ùµ»ñÇ ¦ 2021 Ã.
A20: 1. ÐÇÙÝ³ñÏÇ ³Ýí³ÝáõÙÁ î³ßÇñÇ ù³Õ³ù³»ï³ñ³Ý | F20: 8.***** ´Ûáõç»ï³ÛÇÝ Í³Ëë»ñÇ ·áñÍ³é³Ï³Ý ¹³ë³Ï³ñ·Ù³Ý
A21: 2. öáëï³ÛÇÝ Ñ³ëó»Ý ù, î³ßÇñ | F21: Í³ÍÏ³·Çñ | G21: 05 | H21: 6 | I21: 1
A22: 3. ÐÇÙÝ³ñÏÇ ï»Õ³µ³ßËÙ³Ý Ù³ñ½Ç ¨ Ñ³Ù³ÛÝùÇ Ïá¹Á
A23: Áëï µÛáõç»ï³ÛÇÝ Í³Ëë»ñÇ ï³ñ³Íù³ÛÇÝ ¹³ë³Ï³ñ·Ù³Ý | F23: 9. Ìñ³·ñÇ ³Ýí³ÝáõÙÁ շրջակա միջավայրի պաշտպանություն
A24: 4. ** ä»ï³Ï³Ý Ï³é³í³ñÙ³Ý (ï»Õ³Ï³Ý ÇÝùÝ³Ï³é³í³ñÙ³Ý) Ù³ñÙÝÇ ³Ýí³ÝáõÙÁ | F24: 10. Ìñ³·ñÇ Ïá¹Á
A25: _______________________________________________________________________________________ | F25: 11. *** ä»ï³Ï³Ý Ï³é³í³ñÙ³Ý (ï»Õ³Ï³Ý .ÇÝù ÇÝùÝ³Ï³é³í³ñÙ³Ý)Ù³ñÙÇÝÝ»ñÇ ·»ñ³ï»ëã³Ï³Ý Ïá¹Á
A26: 5. ÐÇÙÝ³ñÏÁ ëå³ë³ñÏáÕ ï»Õ³Ï³Ý ·³ÝÓ³å»ï³Ï³Ý µ³ÅÝÇ (î¶´) ³Ýí³ÝáõÙÁ _Տաշիրի
A27: 6. ÐÇÙÝ³ñÏÇª ï»Õ³Ï³Ý ·³ÝÓ³å»ï³Ï³Ý µ³ÅÝáõÙ (î¶´) Ñ³ßí³éÙ³Ý Ñ³Ù³ñÁ
A28: 7. Ì³Ëë»ñÇ ýÇÝ³Ýë³íáñÙ³Ý ³ÕµÛáõñÇ Ïá¹Á` | G28: 12. â³÷Ç ÙÇ³íáñÁª Ñ³½³ñ ¹ñ³Ù
A29: (ÐÐ å»ï³Ï³Ý µÛáõç»ª 1, Ñ³Ù³ÛÝùÇ µÛáõç»ª 2)
A31: îáÕÇ NN | B31: ´Ûáõç»ï³ÛÇÝ Í³Ëë»ñÇ ïÝï»ë³·Çï³Ï³Ý ¹³ë³Ï³ñ·Ù³Ý ï³ññ»ñ | D31: ÜáõÛÝ Å³Ù³Ý³Ï³Ñ³ïí³ÍÇ Ñ³Ù³ñ Ý³ËÏÇÝáõÙ Ñ³ëï³ïí³Íª ·áñÍáÕ | F31: êáõÛÝ Ý³Ë³Ñ³ßíáí Ñ³ëï³ïíáÕ óáõó³ÝÇßÝ»ñÁ | G31: ³Û¹ ÃíáõÙª Áëï »é³ÙëÛ³ÏÝ»ñÇ (»é³ÙëÛ³ÏÇ ³ÙÇëÝ»ñÇ)³×áÕ³Ï³Ý
B32: ³Ýí³ÝáõÙÝ»ñÁ | C32: NN | D32: Ý³Ë³Ñ³ßíÇ óáõó³ÝÇßÝ»ñÁ | E32: Ý³Ë³Ñ³ßíáõÙ Ï³ï³ñí³Í ÷á÷áËáõÃÛáõÝ-Ý»ñÁ (³í»É³óáõÙÁª /+/, å³Ï³ë»óáõÙÁª/-/ | G32: I | H32: II | I32: III | J32: IV
A33: ² | B33: ´ | C33: ¶ | D33: 1 | E33: 2 | F33: 3 | G33: 4 | H33: 5 | I33: 6 | J33: 7
A34: 1100000 | B34: ². ÀÜÂ²òÆÎ Ì²Êêºðª ÀÜ¸²ØºÜÀ, ³Û¹ ÃíáõÙ` | C34: x | D34: =D68+D65+D79 -> 7500 | E34: =E45+E69+E79+E65 -> 0 | F34: =D34+E34 -> 7500 | G34: =G65+G79+G68 -> 1400 | H34: =H65+H79+H68 -> 3300 | I34: =I65+I69+I79+I80 -> 4000 | J34: =F34 -> 7500
A35: 1110000 | B35: 1.äºî²Î²Ü, îºÔ²Î²Ü ÆÜøÜ²Î²è²ì²ðØ²Ü Ø²ðØÆÜÜºðÆ, ¸ð²Üò ºÜÂ²Î² ´Úàôæºî²ÚÆÜ ÐÆØÜ²ðÎÜºðÆ ²ÞÊ²îàÔÜºðÆ ²ÞÊ²î²ì²ðÒÀª ÀÜ¸²ØºÜÀ, ³Û¹ ÃíáõÙª | C35: x | D35: 0 | E35: 0 | F35: 0 | G35: 0 | H35: 0 | I35: 0 | J35: 0
A36: 1110000 | B36: 1,1 ²ßË³ï³ÝùÇ í³ñÓ³ïñáõÃÛáõÝ | C36: x | D36: 0 | E36: 0 | F36: 0 | G36: 0 | H36: 0 | I36: 0 | J36: 0
A37: 1111000 | B37: -²ßË³ïáÕÝ»ñÇ ³ßË³ï³í³ñÓ»ñ ¨ Ñ³í»É³í×³ñÝ»ñ | C37: 411100 | J37: 0
A38: 1112000 | B38: - ä³ñ·¨³ïñáõÙÝ»ñ, ¹ñ³Ù³Ï³Ý Ëñ³ËáõëáõÙÝ»ñ ¨ Ñ³ïáõÏ í×³ñÝ»ñ | C38: 411200 | J38: 0
A39: 1113000 | B39: -ø³Õ³ù³óÇ³Ï³Ý, ¹³ï³Ï³Ý ¨ å»ï³Ï³Ý Í³é³ÛáÕÝ»ñÇ å³ñ·¨³ïñáõÙ | C39: 411300 | J39: 0
A40: 1114000 | B40: -ÐÐ ýÇÝ³ÝëÝ»ñÇ ¨ ¿ÏáÝáÙÇÏ³ÛÇ Ý³Ë³ñ³ñáõÃÛ³Ý, Ñ³ñÏ³ÛÇÝ ¨ Ù³ùë³ÛÇÝ Ù³ñÙÇÝÝ»ñÇ ³ßË³ïáÕÝ»ñÇ å³ñ·¨³ïñáõÙ | C40: 411400 | J40: 0
A41: 1115000 | B41: -²ÛÉ í³ñÓ³ïñáõÃÛáõÝÝ»ñ | C41: 411500 | J41: 0
A42: 1116000 | B42: -´Ý»Õ»Ý ³ßË³ï³í³ñÓ»ñ ¨ Ñ³í»É³í×³ñÝ»ñ | C42: 412100 | J42: 0
A43: 1117000 | B43: -ì×³ñÝ»ñ êáóÇ³É³Ï³Ý ³å³Ñáí³·ñáõÃÛ³Ý å»ï³Ï³Ý ÑÇÙÝ³¹ñ³ÙÇÝ | C43: 413100 | J43: 0
A44: 1120000 | B44: 2 Ì³é³ÛáõÃÛáõÝÝ»ñÇ ¨ ³åñ³ÝùÝ»ñÇ Ó»éù µ»ñáõÙ | C44: x | D44: 0 | E44: 0 | F44: 6200 | G44: 1500 | H44: 3000 | I44: 4500 | J44: 6200
A45: 1121000 | B45: 2.1 Þ³ñáõÝ³Ï³Ï³Ý Í³Ëë»ñ | D45: =D65+D79+D69 -> 7500 | E45: 0 | F45: =F65+F68+F79+F80 -> 7500 | G45: =G65 -> 600 | H45: =H65+H79 -> 1700 | I45: =I65+I68+I79+I80 -> 4000 | J45: =F45 -> 7500
A46: 1121100 | B46: -·áñÍ³éÝ³Ï³Ý ¨ µ³ÝÏ³ÛÇÝ Í³é³ÛáõÃÛáõÝÝ»ñÇ Í³Ëë»ñ | C46: 421100 | F46: =D46+E46 -> 0 | J46: 0
A47: 1121200 | B47: -¿Ý»ñ·»ïÇÏ Í³é³ÛáõÃÛáõÝÝ»ñ | C47: 421200 | F47: =D47+E47 -> 0 | J47: 0
A48: 1121300 | B48: -ÎáÙáõÝ³É Í³é³ÛáõÃÛáõÝÝ»ñ | C48: 421300 | D48: 0 | F48: =D48+E48 -> 0 | G48: 0 | H48: 0 | I48: 0 | J48: =F48 -> 0
A49: 1121400 | B49: -Î³åÇ Í³é³ÛáõÃÛáõÝÝ»ñ | C49: 421400 | J49: 0
A50: 1121500 | B50: -²å³Ñáí³·ñ³Ï³Ý Í³Ëë»ñ | C50: 421500 | J50: 0
A51: 1121600 | B51: -¶áõÛùÇ ¨ ë³ñù³íáñáõÙÝ»ñÇ í³ñÓ³Ï³ÉáõÃÛáõÝ | C51: 421600 | E51: 0 | J51: 0
A52: 1121700 | B52: -²ñï³·»ñ³ï»ëã³Ï³Ý Í³Ëë»ñ | C52: 421700 | J52: 0
A53: 1122000 | B53: 2.2 ¶áñÍáõÕáõÙÝ»ñÇ ¨ ßñç³·³ÛáõÃÛ³Ý Í³Ëë»ñ | C53: x | D53: 0 | E53: 0 | F53: 0 | G53: 0 | H53: 0 | I53: 0 | J53: 0
A54: 1122100 | B54: -Ü»ñùÇÝ ·áñÍáõÕáõÙÝ»ñ | C54: 422100 | J54: 0
A55: 1122200 | B55: -²ñï³ë³ÑÙ³ÝÛ³Ý ·áñÍáõÕáõÙÝ»ñÇ ·Íáí Í³Ëë»ñ | C55: 422200 | J55: 0
A56: 1122300 | B56: -²ÛÉ ïñ³Ýëåáñï³ÛÇÝ Í³Ëë»ñ | C56: 422900 | J56: 0
A57: 1123000 | B57: 2.3 ä³ÛÙ³Ý³·ñ³ÛÇÝ Í³é³ÛáõÃÛáõÝÝ»ñÇ Ó»éù µ»ñáõÙ | C57: x | D57: 0 | E57: 0 | F57: 0 | G57: 0 | H57: 0 | I57: 0 | J57: 0
A58: 1123100 | B58: -ì³ñã³Ï³Ý Í³é³ÛáõÃÛáõÝÝ»ñ | C58: 423100 | J58: 0
A59: 1123200 | B59: -Ð³Ù³Ï³ñ·ã³ÛÇÝ Í³é³ÛáõÃÛáõÝÝ»ñ | C59: 423200 | J59: 0
A60: 1123300 | B60: -²ßË³ï³Ï³½ÙÇ Ù³ëÝ³·Çï³Ï³Ý ½³ñ·³óÙ³Ý Í³é³ÛáõÃÛáõÝÝ»ñ | C60: 423300 | J60: 0
A61: 1123400 | B61: -î»Õ³Ï³ïí³Ï³Ý Í³é³ÛáõÃÛáõÝÝ»ñ | C61: 423400 | J61: 0
A62: 1123500 | B62: -Î³é³í³ñã³Ï³Ý Í³é³ÛáõÃÛáõÝÝ»ñ | C62: 423500 | J62: 0
A63: 1123600 | B63: - Î»Ýó³Õ³ÛÇÝ ¨ Ñ³Ýñ³ÛÇÝ ëÝÝ¹Ç Í³é³ÛáõÃÛáõÝÝ»ñ | C63: 423600 | J63: 0
A64: 1123700 | B64: -Ü»ñÏ³Û³óáõóã³Ï³Ý Í³Ëë»ñ | C64: 423700 | J64: 0
A65: 1123800 | B65: -ÀÝ¹Ñ³Ýáõñ µÝáõÛÃÇ ³ÛÉ Í³é³ÛáõÃÛáõÝÝ»ñ | C65: 423900 | D65: 2000 | E65: 0 | F65: =D65+E65 -> 2000 | G65: 600 | H65: 1000 | I65: 1000 | J65: =F65 -> 2000
A66: 1124000 | B66: 2.4 ²ÛÉ Ù³ëÝ³·Çï³Ï³Ý Í³é³ÛáõÃÛáõÝÝ»ñÇ Ó»éù µ»ñáõÙ | C66: x | D66: 0 | E66: 0 | F66: 0 | G66: 0 | H66: 0 | I66: 0 | J66: 0
A67: 1124100 | B67: -Ø³ëÝ³·Çï³Ï³Ý Í³é³ÛáõÃÛáõÝÝ»ñ | C67: 424100 | J67: 0
A68: 1125000 | B68: 2.5 ÀÝÃ³óÇÏ Ýáñá·áõÙ ¨ å³Ñå³ÝáõÙ (Í³é³ÛáõÃÛáõÝÝ»ñ ¨ ÝÛáõÃ»ñ) | C68: x | D68: =D69 -> 4300 | E68: 0 | F68: =F69 -> 4300 | G68: =G69 -> 500 | H68: =H69 -> 1600 | I68: =I69 -> 2000 | J68: =J69 -> 4300
A69: 1125100 | B69: -Þ»Ýù»ñÇ ¨ Ï³éáõÛóÝ»ñÇ ÁÝÃ³óÇÏ Ýáñá·áõÙ ¨ å³Ñå³ÝáõÙ | C69: 425100 | D69: 4300 | E69: 0 | F69: =D69+E69 -> 4300 | G69: 500 | H69: 1600 | I69: 2000 | J69: =F69 -> 4300
A70: 1125200 | B70: -Ø»ù»Ý³Ý»ñÇ ¨ ë³ñù³íáñáõÙÝ»ñÇ ÁÝÃ³óÇÏ Ýáñá·áõÙ ¨ å³Ñå³ÝáõÙ | C70: 425200 | J70: 0
A71: 1126000 | B71: 2.6 ÜÛáõÃ»ñ | C71: x | D71: 0 | E71: 0 | F71: 0 | G71: 0 | H71: 0 | I71: 0 | J71: 0
A72: 1126100 | B72: -¶ñ³ë»ÝÛ³Ï³ÛÇÝ ÝÛáõÃ»ñ ¨ Ñ³·áõëï | C72: 426100 | J72: 0
A73: 1126200 | B73: -¶ÛáõÕ³ïÝï»ë³Ï³Ý ³åñ³ÝùÝ»ñ | C73: 426200 | J73: 0
A74: 1126300 | B74: -ì»ñ³å³ïñ³ëïÙ³Ý ¨ áõëáõóÙ³Ý ÝÛáõÃ»ñ | C74: 426300 | J74: 0
A75: 1126400 | B75: -îñ³Ýëåáñï³ÛÇÝ ÝÛáõÃ»ñ | C75: 426400 | J75: 0
A76: 1126500 | B76: -Þñç³Ï³ ÙÇç³í³ÛñÇ å³ßïå³ÝáõÃÛ³Ý ¨ ·Çï³Ï³Ý ÝÛáõÃ»ñ | C76: 426500 | J76: 0
A77: 1126600 | B77: -²éáÕç³å³Ñ³Ï³Ý ¨ É³µáñ³ïáñ ÝÛáõÃ»ñ | C77: 426600 | J77: 0
A78: 1126700 | B78: -Î»Ýó³Õ³ÛÇÝ ¨ Ñ³Ýñ³ÛÇÝ ëÝÝ¹Ç ÝÛáõÃ»ñ | C78: 426700 | J78: 0
A79: 1126800 | B79: -Ð³ïáõÏ Ýå³ï³Ï³ÛÇÝ ³ÛÉ ÝÛáõÃ»ñ | C79: 426900 | D79: 1200 | E79: 0 | F79: =D79+E79 -> 1200 | G79: 300 | H79: 700 | I79: 1000 | J79: =F79 -> 1200
A80: 1130000 | B80: 3 îáÏáë³í×³ñÝ»ñ | C80: x | D80: 0 | E80: 0 | F80: =F122 -> 0 | G80: 0 | H80: 0 | I80: =I122 -> 0 | J80: =J122 -> 0
A81: 1130100 | B81: -Ü»ñùÇÝ ³ñÅ»ÃÕÃ»ñÇ ïáÏáë³í×³ñÝ»ñ | C81: 441100 | J81: 0
A82: 1130200 | B82: -Ü»ñùÇÝ í³ñÏ»ñÇ ïáÏáë³í×³ñÝ»ñ | C82: 441200 | J82: 0
A83: 1130300 | B83: -²ñï³ùÇÝ ³ñÅ»ÃÕÃ»ñÇ ·Íáí ïáÏáë³í×³ñÝ»ñ | C83: 442100 | J83: 0
A84: 1130400 | B84: -²ñï³ùÇÝ í³ñÏ»ñÇ ·Íáí ïáÏáë³í×³ñÝ»ñ | C84: 442200 | J84: 0
A85: 1131000 | B85: öáË³éáõÃÛáõÝÝ»ñÇ Ñ»ï Ï³åí³Í í×³ñÝ»ñ | C85: x | J85: 0
A86: 1131100 | B86: -öáË³Ý³ÏÙ³Ý Ïáõñë»ñÇ µ³ó³ë³Ï³Ý ï³ñµ»ñáõÃÛáõÝ | C86: 443100 | J86: 0
A87: 1131200 | B87: -îáõÛÅ»ñ | C87: 443200 | J87: 0
A88: 1131300 | B88: -öáË³éáõÃÛáõÝÝ»ñÇ ·Íáí ïáõñù»ñ | C88: 443300 | J88: 0
A89: 1140000 | B89: 4. êáõµëÇ¹Ç³Ý»ñ | C89: x | D89: 0 | E89: 0 | F89: 0 | G89: 0 | H89: 0 | I89: 0 | J89: 0
A90: 1141000 | B90: -êáõµëÇ¹Ç³Ý»ñ áã-ýÇÝ³Ýë³Ï³Ý å»ï³Ï³Ý Ï³½Ù³Ï»ñåáõÃÛáõÝÝ»ñÇÝ | C90: 451100 | J90: 0
A91: 1142000 | B91: -êáõµëÇ¹Ç³Ý»ñ ýÇÝ³Ýë³Ï³Ý å»ï³Ï³Ý Ï³½Ù³Ï»ñåáõÃÛáõÝÝ»ñÇÝ | C91: 451200 | J91: 0
A92: 1143000 | B92: -êáõµëÇ¹Ç³Ý»ñ áã å»ï³Ï³Ý áã ýÇÝ³Ýë³Ï³Ý Ï³½Ù³Ï»ñåáõÃÛáõÝÝ»ñÇÝ | C92: 452100 | J92: 0
A93: 1144000 | B93: -êáõµëÇ¹Ç³Ý»ñ áã å»ï³Ï³Ý ýÇÝ³Ýë³Ï³Ý Ï³½Ù³Ï»ñåáõÃÛáõÝÝ»ñÇÝ | C93: 452200 | J93: 0
A94: 1150000 | B94: 5.¸ñ³Ù³ßÝáñÑÝ»ñ | C94: x | D94: 0 | E94: 0 | F94: 0 | G94: 0 | H94: 0 | I94: 0 | J94: 0
A95: 1151000 | B95: -ÀÝÃ³óÇÏ ¹ñ³Ù³ßÝáñÑÝ»ñ ûï³ñ»ñÏñÛ³ Ï³é³í³ñáõÃÛáõÝÝ»ñÇÝ | C95: 461100 | J95: 0
A96: 1152000 | B96: -Î³åÇï³É ¹ñ³Ù³ßÝáñÑÝ»ñ ûï³ñ»ñÏñÛ³ Ï³é³í³ñáõÃÛáõÝÝ»ñÇÝ | C96: 461200 | J96: 0
A97: 1153000 | B97: -ÀÝÃ³óÇÏ ¹ñ³Ù³ßÝáñÑÝ»ñ ÙÇç³½·³ÛÇÝ Ï³½Ù³Ï»ñåáõÃÛáõÝÝ»ñÇÝ | C97: 462100 | J97: 0
A98: 1154000 | B98: -Î³åÇï³É ¹ñ³Ù³ßÝáñÑÝ»ñ ÙÇç³½·³ÛÇÝ Ï³½Ù³Ï»ñåáõÃÛáõÝÝ»ñÇÝ | C98: 462200 | J98: 0
A99: 1155000 | B99: -ÀÝÃ³óÇÏ ¹ñ³Ù³ßÝáñÑÝ»ñ å»ï³Ï³Ý Ñ³ïí³ÍÇ ³ÛÉ Ù³Ï³ñ¹³ÏÝ»ñÇÝ | C99: 463100 | J99: 0
A100: 1156000 | B100: -Î³åÇï³É ¹ñ³Ù³ßÝáñÑÝ»ñ å»ï³Ï³Ý Ñ³ïí³ÍÇ ³ÛÉ Ù³Ï³ñ¹³ÏÝ»ñÇÝ | C100: 463200 | J100: 0
A101: 1160000 | B101: 6. êàòÆ²È²Î²Ü Üä²êîÜºð | C101: x | D101: 0 | E101: 0 | F101: 0 | G101: 0 | H101: 0 | I101: 0 | J101: 0
A102: 1161000 | B102: 6.1 êàòÆ²È²Î²Ü ²ä²ÐàìàôÂÚ²Ü Üä²êîÜºð (ä²ðî²¸Æð êàòÆ²È²Î²Ü ²ä²Ðàì²¶ðàôÂÚ²Ü Î²¼Ø²ÎºðäàôÂÚàôÜÜºð) | C102: x | D102: 0 | E102: 0 | F102: 0 | G102: 0 | H102: 0 | I102: 0 | J102: 0
A103: 1161100 | B103: -îÝ³ÛÇÝ ïÝï»ëáõÃÛáõÝÝ»ñÇÝ ¹ñ³Ùáí í×³ñíáÕ ëáóÇ³É³Ï³Ý ³å³Ñáí³·ñáõÃÛ³Ý í×³ñÝ»ñ | C103: 471100 | J103: 0
A104: 1161200 | B104: -êáóÇ³É³Ï³Ý ³å³ÑáíáõÃÛ³Ý µÝ»Õ»Ý Ýå³ëïÝ»ñ Í³é³ÛáõÃÛáõÝÝ»ñ Ù³ïáõóáÕÝ»ñÇÝ | C104: 471200 | J104: 0
A105: 1162000 | B105: 6.2 êàòÆ²È²Î²Ü ú¶ÜàôÂÚ²Ü ¸ð²Ø²Î²Ü ²ðî²Ð²ÚîàôÂÚ²Ø´ Üä²êîÜºð (´ÚàôæºÆò) | C105: x | D105: 0 | E105: 0 | F105: 0 | G105: 0 | H105: 0 | I105: 0 | J105: 0
A106: 1162100 | B106: -ÐÇí³Ý¹áõÃÛ³Ý ¨ Ñ³ßÙ³Ý¹³ÙáõÃÛ³Ý Ýå³ëïÝ»ñ µÛáõç»Çó | C106: 472100 | J106: 0
A107: 1162200 | B107: -Ø³ÛñáõÃÛ³Ý Ýå³ëïÝ»ñ µÛáõç»Çó | C107: 472200 | J107: 0
A108: 1162300 | B108: -ºñ»Ë³Ý»ñÇ Ï³Ù ÁÝï³Ý»Ï³Ý Ýå³ëïÝ»ñ µÛáõç»Çó | C108: 472300 | J108: 0
A109: 1162400 | B109: -¶áñÍ³½ñÏáõÃÛ³Ý Ýå³ëïÝ»ñ µÛáõç»Çó | C109: 472400 | J109: 0
A110: 1162500 | B110: -Î»Ýë³Ãáß³ÏÇ ³ÝóÝ»Éáõ Ñ»ï Ï³åí³Í ¨ ï³ñÇù³ÛÇÝ Ýå³ëïÝ»ñ µÛáõç»Çó | C110: 472500 | J110: 0
A111: 1162600 | B111: -ÐáõÕ³ñÏ³íáñáõÃÛ³Ý Ýå³ëïÝ»ñ µÛáõç»Çó | C111: 472600 | J111: 0
A112: 1162700 | B112: -ÎñÃ³Ï³Ý, Ùß³ÏáõÃ³ÛÇÝ ¨ ëåáñï³ÛÇÝ Ýå³ëïÝ»ñ µÛáõç»Çó | C112: 472700 | J112: 0
A113: 1162800 | B113: -´Ý³Ï³ñ³Ý³ÛÇÝ Ýå³ëïÝ»ñ µÛáõç»Çó | C113: 472800 | J113: 0
A114: 1162900 | B114: -²ÛÉ Ýå³ëïÝ»ñ µÛáõç»Çó | C114: 472900 | J114: 0
A115: 1170000 | B115: 7. ²ÚÈ Ì²Êêºð | C115: x | D115: 0 | E115: 0 | F115: 0 | G115: 0 | H115: 0 | I115: 0 | J115: 0
A116: 1171000 | B116: 7.1 ÜìÆð²îìàôÂÚàôÜÜºð àâ-Î²è²ì²ðâ²Î²Ü (Ð²ê²ð²Î²Î²Ü) Î²¼Ø²ÎºðäàôÂÚàôÜÜºðÆÜ | C116: x | D116: 0 | E116: 0 | F116: 0 | G116: 0 | H116: 0 | I116: 0 | J116: 0
A117: 1171100 | B117: -îÝ³ÛÇÝ ïÝï»ëáõÃÛáõÝÝ»ñÇÝ Í³é³ÛáõÃÛáõÝÝ»ñ Ù³ïáõóáÕ` ß³ÑáõÛÃ ãÑ»ï³åÝ¹áÕ Ï³½Ù³Ï»ñåáõÃÛáõÝÝ»ñÇÝ ÝíÇñ³ïíáõÃÛáõÝÝ»ñ | C117: 481100 | J117: 0
A118: 1171200 | B118: -ÜíÇñ³ïíáõÃÛáõÝÝ»ñ ³ÛÉ ß³ÑáõÛÃ ãÑ»ï³åÝ¹áÕ Ï³½Ù³Ï»ñåáõÃÛáõÝÝ»ñÇÝ | C118: 481900 | J118: 0
A119: 1172000 | B119: 7.2 Ð²ðÎºð, ä²ðî²¸Æð ìÖ²ðÜºð ºì îàôÚÄºð, àðàÜø Î²è²ì²ðØ²Ü î²ð´ºð Ø²Î²ð¸²ÎÜºðÆ ÎàÔØÆò ÎÆð²èìàôØ ºÜ ØÆØÚ²Üò ÜÎ²îØ²Ø´ | C119: x | D119: 0 | E119: 0 | F119: 0 | G119: 0 | H119: 0 | I119: 0 | J119: 0
A120: 1172100 | B120: -²ßË³ï³í³ñÓÇ ýáÝ¹ | C120: 482100 | J120: 0
A121: 1172200 | B121: -²ÛÉ Ñ³ñÏ»ñ | C121: 482200 | J121: 0
A122: 1172300 | B122: -ä³ñï³¹Çñ í×³ñÝ»ñ | C122: 482300 | E122: 0 | F122: 0 | I122: 0 | J122: =F122 -> 0
A123: 1172400 | B123: -ä»ï³Ï³Ý Ñ³ïí³ÍÇ ï³ñµ»ñ Ù³Ï³ñ¹³ÏÝ»ñÇ ÏáÕÙÇó ÙÇÙÛ³Ýó ÝÏ³ïÙ³Ùµ ÏÇñ³éíáÕ ïáõÛÅ»ñ | C123: 482400 | J123: 0
A124: 1173000 | B124: 7.3 ¸²î²ð²ÜÜºðÆ ÎàÔØÆò ÜÞ²Ü²Îì²Ì îàôÚÄºð ºì îàô¶²ÜøÜºð | C124: x | D124: 0 | E124: 0 | F124: 0 | G124: 0 | H124: 0 | I124: 0 | J124: 0
A125: 1173100 | B125: -¸³ï³ñ³ÝÝ»ñÇ ÏáÕÙÇó Ýß³Ý³Ïí³Í ïáõÛÅ»ñ ¨ ïáõ·³ÝùÝ»ñ | C125: 483100 | J125: 0
A126: 1174000 | B126: 7.4 ´Ü²Î²Ü ²ÔºîÜºðÆò Î²Ø ²ÚÈ ´Ü²Î²Ü ä²îÖ²èÜºðàì ²è²æ²ò²Ì ìÜ²êÜºðÆ Î²Ø ìÜ²êì²ÌøÜºðÆ ìºð²Î²Ü¶ÜàôØ | C126: x | D126: 0 | E126: 0 | F126: 0 | G126: 0 | H126: 0 | I126: 0 | J126: 0
A127: 1174100 | B127: -´Ý³Ï³Ý ³Õ»ïÝ»ñÇó ³é³ç³ó³Í íÝ³ëí³ÍùÝ»ñÇ Ï³Ù íÝ³ëÝ»ñÇ í»ñ³Ï³Ý·ÝáõÙ | C127: 484100 | J127: 0
A128: 1174200 | B128: -²ÛÉ µÝ³Ï³Ý å³ï×³éÝ»ñáí ëï³ó³Í íÝ³ëí³ÍùÝ»ñÇ í»ñ³Ï³Ý·ÝáõÙ | C128: 484200 | J128: 0
A129: 1175000 | B129: 7.5 Î²è²ì²ðØ²Ü Ø²ðØÆÜÜºðÆ ¶àðÌàôÜºàôÂÚ²Ü Ðºîºì²Üøàì ²è²æ²ò²Ì ìÜ²êÜºðÆ Î²Ø ìÜ²êì²ÌøÜºðÆ ìºð²Î²Ü¶ÜàôØ | C129: x | D129: 0 | E129: 0 | F129: 0 | G129: 0 | H129: 0 | I129: 0 | J129: 0
A130: 1175100 | B130: -Î³é³í³ñÙ³Ý Ù³ñÙÇÝÝ»ñÇ ·áñÍáõÝ»áõÃÛ³Ý Ñ»ï¨³Ýùáí ³é³ç³ó³Í íÝ³ëí³ÍùÝ»ñÇ Ï³Ù íÝ³ëÝ»ñÇ í»ñ³Ï³Ý·ÝáõÙ | C130: 485100 | J130: 0
A131: 1176000 | B131: 7.6 ²ÚÈ Ì²Êêºð | C131: x | D131: 0 | E131: 0 | F131: 0 | G131: 0 | H131: 0 | I131: 0 | J131: 0
A132: 1176100 | B132: -²ÛÉ Í³Ëë»ñ | C132: 486100 | J132: 0
A133: 1177000 | B133: 7.7 ä²Ðàôêî²ÚÆÜ ØÆæàòÜºð | C133: x | D133: 0 | E133: 0 | F133: 0 | G133: 0 | H133: 0 | I133: 0 | J133: 0
A134: 1177100 | B134: -ä³Ñáõëï³ÛÇÝ ÙÇçáóÝ»ñ | C134: 489100 | J134: 0
A135: ---- | B135: ------- | J135: 0
A136: 1200000 | B136: Բ, àâ-üÆÜ²Üê²Î²Ü ²ÎîÆìÜºðÆ ¶Ìàì Ì²Êêºð | C136: x | D136: =D142+D146+D141+D144+D145 -> 4500 | E136: =+E146 -> 0 | F136: =D136+E136 -> 4500 | G136: =G142+G146+G141+G144+G145 -> 4500 | H136: =H142+H146+H141+H144+H145 -> 4500 | I136: =I142+I146+I141+I144+I145 -> 4500 | J136: =F136 -> 4500
B137: ³Û¹ ÃíáõÙ` | J137: 0
A138: ---- | B138: ------- | J138: 0
A139: 1210000 | B139: 1.ÐÆØÜ²Î²Ü ØÆæàòÜºð | C139: x | D139: 0 | E139: 0 | F139: 0 | G139: 0 | H139: 0 | I139: 0 | J139: 0
A140: 1211000 | B140: -Þ»Ýù»ñÇ ¨ ßÇÝáõÃÛáõÝÝ»ñÇ Ó»éù µ»ñáõÙ | C140: 511100 | J140: 0
A141: 1212000 | B141: -Þ»Ýù»ñÇ ¨ ßÇÝáõÃÛáõÝÝ»ñÇ Ï³éáõóáõÙ | C141: 511200 | D141: 0 | E141: 0 | F141: =D141+E141 -> 0 | G141: 0 | H141: 0 | I141: 0 | J141: =F141 -> 0
A142: 1213000 | B142: -Þ»Ýù»ñÇ ¨ ßÇÝáõÃÛáõÝÝ»ñÇ Ï³åÇï³É í»ñ³Ýáñá·áõÙ | C142: 511300 | D142: 0 | F142: =D142+E142 -> 0 | G142: 0 | H142: 0 | I142: 0 | J142: =F142 -> 0
A143: 1214000 | B143: -îñ³Ýëåáñï³ÛÇÝ ë³ñù³íáñáõÙÝ»ñ | C143: 512100 | J143: 0
A144: 1215000 | B144: -ì³ñã³Ï³Ý ë³ñù³íáñáõÙÝ»ñ | C144: 512200 | D144: 0 | E144: 0 | F144: =D144+E144 -> 0 | G144: 0 | H144: 0 | I144: 0 | J144: =F144 -> 0
A145: 1216000 | B145: -²ÛÉ Ù»ù»Ý³Ý»ñ ¨ ë³ñù³íáñáõÙÝ»ñ | C145: 512900 | D145: 0 | E145: 0 | F145: =D145+E145 -> 0 | G145: 0 | H145: 0 | I145: 0 | J145: =F145 -> 0
A146: 1217000 | B146: -²×»óíáÕ ³ÏïÇíÝ»ñ | C146: 513100 | D146: 4500 | E146: 0 | F146: =D146+E146 -> 4500 | G146: 4500 | H146: 4500 | I146: 4500 | J146: =F146 -> 4500
A147: 1218000 | B147: -àã-ÝÛáõÃ³Ï³Ý ÑÇÙÝ³Ï³Ý ÙÇçáóÝ»ñ | C147: 513200 | J147: 0
A148: 1220000 | B148: 2.ä²Þ²ðÜºð | C148: x | D148: 0 | E148: 0 | F148: 0 | G148: 0 | H148: 0 | I148: 0 | J148: 0
A149: 1221000 | B149: -è³½Ù³í³ñ³Ï³Ý å³ß³ñÝ»ñ | C149: 521100 | J149: 0
A150: 1222000 | B150: -ÜÛáõÃ»ñ ¨ å³ñ³·³Ý»ñ | C150: 522100 | J150: 0
A151: 1223000 | B151: -ì»ñ³í³×³éùÇ Ñ³Ù³ñ Ý³Ë³ï»ëí³Í ³åñ³ÝùÝ»ñ | C151: 523100 | J151: 0
A152: 1224000 | B152: -êå³éÙ³Ý Ýå³ï³Ïáí å³ÑíáÕ å³ß³ñÝ»ñ | C152: 524100 | J152: 0
A153: 1230000 | B153: 3.´²ðÒð²ðÄºø ²ÎîÆìÜºð | C153: x | D153: 0 | E153: 0 | F153: 0 | G153: 0 | H153: 0 | I153: 0 | J153: 0
A154: 1231000 | B154: -´³ñÓñ³ñÅ»ù ³ÏïÇíÝ»ñ | C154: 531100 | J154: 0
A155: 1240000 | B155: 4.àâ ²ðî²¸ð²Î²Ü ԱԿՏԻՎՆԵՐ | C155: x | D155: 0 | E155: 0 | F155: 0 | G155: 0 | H155: 0 | I155: 0 | J155: 0
A156: 1241000 | B156: -ÐáÕ | C156: 541100 | J156: 0
A157: 1242000 | B157: -ÀÝ¹»ñù³ÛÇÝ ³ÏïÇíÝ»ñ | C157: 542100 | J157: 0
A158: 1243000 | B158: -²ÛÉ µÝ³Ï³Ý Í³·áõÙ áõÝ»óáÕ ³ÏïÇíÝ»ñ | C158: 543100 | J158: 0
A159: 1244000 | B159: -àã ÝÛáõÃ³Ï³Ý áã ³ñï³¹ñ³Ï³Ý ³ÏïÇíÝ»ñ | C159: 544100 | J159: 0
A160: 1000000 | B160: ԸՆԴԱՄԵՆԸ ºÈøºð` (ïáÕ 1100000+ïáÕ1200000) | C160: x | D160: =D34+D136 -> 12000 | E160: 0 | F160: 12000 | G160: 5900 | H160: 7800 | I160: =I34+I136 -> 8500 | J160: =F160 -> 12000
A163: §17¦ § դեÏï»Ùµ»ñ ¦ 2020 Ã.
A165: ÐÆØÜ²ðÎÆ ÔºÎ²ì²ðª _______________ _________________ | G165: Է.Արշակյան
E166: (ëïáñ³·ñáõÃÛáõÝ) | G166: (².Ð.².)
A167: Î.î.
A168: üÆÜ²Üê²Î²Ü Ì²è²ÚàôÂÚ²Ü äºîª _______________ _________________ | G168: Ն. Մուրադյան
B169: (¶ÈÊ²ìàð Ð²Þì²ä²Ð) | E169: (ëïáñ³·ñáõÃÛáõÝ) | G169: (².Ð.².)

Sheet subv rhamat (hidden)
F1: Ð³í»Éí³Í N 4
F3: úñÇÝ³Ï»ÉÇ Ó¨ N 3
F4: Ð³ëï³ïí»É ¿ ÐÐ ýÇÝ³ÝëÝ»ñÇ ¨ ¿ÏáÝáÙÇÏ³ÛÇ
B5: §Ð ² ê î ² î àô Ø ºØª¦ | G5: Ý³Ë³ñ³ñÇ 23 ÑáõÉÇëÇ 2007 Ãí³Ï³ÝÇ
F6: N 597-Ü Ññ³Ù³Ýáí
A7: Ý³Ë³Ñ³ßÇíÁ 22054,0 քսաներկու միլիոն հիսունչորս հազ դրամ
A8: ( ÁÝ¹³Ù»ÝÁ ·áõÙ³ñÁ Ãí»ñáí ¨ ï³é»ñáí****)
A10: ___________________________________________Է.Արշակյան____________________________________________ | G10: Î.î.
A11: (ÐÐ å»ï³Ï³Ý Ï³é³í³ñÙ³Ý Ï³Ù ï»Õ³Ï³Ý ÇÝùÝ³Ï³é³í³ñÙ³Ý Ù³ñÙÝÇ Õ»Ï³í³ñÇ ëïáñ³·ñáõÃÛáõÝÁ ¨ ².Ð.².)
A12: § ¦ դեկտեմբերի 2020թ
A13: Ü ² Ê ² Ð ² Þ Æ ì*
A14: ÐÇÙÝ³ñÏÝ»ñÇ ÏáÕÙÇó µÛáõç»ï³ÛÇÝ Ñ³ïÏ³óáõÙÝ»ñÇ Ñ³ßíÇÝ Çñ³Ï³Ý³óíáÕ Í³Ëë»ñÇ (»Éù»ñÇ) ³é³ÝÓÇÝ ï»ë³ÏÝ»ñÇ
A15: ¥Áëï ïÝï»ë³·Çï³Ï³Ý ¹³ë³Ï³ñ·Ù³Ý Ñá¹í³ÍÝ»ñÇ¤
A16: §01¦ §ÐáõÝí³ñÇ ¦ 2021 Ã. -- §30¦ §¹»Ïï»Ùµ»ñÇ ¦ 2021 Ã.
A18: 1. ÐÇÙÝ³ñÏÇ ³Ýí³ÝáõÙÁ î³ßÇñÇ ù³Õ³ù³»ï³ñ³Ý | F18: 8.***** ´Ûáõç»ï³ÛÇÝ Í³Ëë»ñÇ ·áñÍ³é³Ï³Ý ¹³ë³Ï³ñ·Ù³Ý
A19: 2. öáëï³ÛÇÝ Ñ³ëó»Ý ù, î³ßÇñ | F19: Í³ÍÏ³·Çñ | G19: 6 | H19: 3 | I19: 1
A20: 3. ÐÇÙÝ³ñÏÇ ï»Õ³µ³ßËÙ³Ý Ù³ñ½Ç ¨ Ñ³Ù³ÛÝùÇ Ïá¹Á
A21: Áëï µÛáõç»ï³ÛÇÝ Í³Ëë»ñÇ ï³ñ³Íù³ÛÇÝ ¹³ë³Ï³ñ·Ù³Ý | F21: 9. Ìñ³·ñÇ ³Ýí³ÝáõÙÁ _ջրամատակարարուÙ_սուբվեն
A22: 4. ** ä»ï³Ï³Ý Ï³é³í³ñÙ³Ý (ï»Õ³Ï³Ý ÇÝùÝ³Ï³é³í³ñÙ³Ý) Ù³ñÙÝÇ ³Ýí³ÝáõÙÁ | F22: 10. Ìñ³·ñÇ Ïá¹Á
A23: _______________________________________________________________________________________ | F23: 11. *** ä»ï³Ï³Ý Ï³é³í³ñÙ³Ý (ï»Õ³Ï³Ý .ÇÝù ÇÝùÝ³Ï³é³í³ñÙ³Ý)Ù³ñÙÇÝÝ»ñÇ ·»ñ³ï»ëã³Ï³Ý Ïá¹Á
A24: 5. ÐÇÙÝ³ñÏÁ ëå³ë³ñÏáÕ ï»Õ³Ï³Ý ·³ÝÓ³å»ï³Ï³Ý µ³ÅÝÇ (î¶´) ³Ýí³ÝáõÙÁ _Տաշիրի
A25: 6. ÐÇÙÝ³ñÏÇª ï»Õ³Ï³Ý ·³ÝÓ³å»ï³Ï³Ý µ³ÅÝáõÙ (î¶´) Ñ³ßí³éÙ³Ý Ñ³Ù³ñÁ
A26: 7. Ì³Ëë»ñÇ ýÇÝ³Ýë³íáñÙ³Ý ³ÕµÛáõñÇ Ïá¹Á` | G26: 12. â³÷Ç ÙÇ³íáñÁª Ñ³½³ñ ¹ñ³Ù
A27: (ÐÐ å»ï³Ï³Ý µÛáõç»ª 1, Ñ³Ù³ÛÝùÇ µÛáõç»ª 2)
A29: îáÕÇ NN | B29: ´Ûáõç»ï³ÛÇÝ Í³Ëë»ñÇ ïÝï»ë³·Çï³Ï³Ý ¹³ë³Ï³ñ·Ù³Ý ï³ññ»ñ | D29: ÜáõÛÝ Å³Ù³Ý³Ï³Ñ³ïí³ÍÇ Ñ³Ù³ñ Ý³ËÏÇÝáõÙ Ñ³ëï³ïí³Íª ·áñÍáÕ | F29: êáõÛÝ Ý³Ë³Ñ³ßíáí Ñ³ëï³ïíáÕ óáõó³ÝÇßÝ»ñÁ | G29: ³Û¹ ÃíáõÙª Áëï »é³ÙëÛ³ÏÝ»ñÇ (»é³ÙëÛ³ÏÇ ³ÙÇëÝ»ñÇ)³×áÕ³Ï³Ý
B30: ³Ýí³ÝáõÙÝ»ñÁ | C30: NN | D30: Ý³Ë³Ñ³ßíÇ óáõó³ÝÇßÝ»ñÁ | E30: Ý³Ë³Ñ³ßíáõÙ Ï³ï³ñí³Í ÷á÷áËáõÃÛáõÝ-Ý»ñÁ (³í»É³óáõÙÁª /+/, å³Ï³ë»óáõÙÁª/-/ | G30: I | H30: II | I30: III | J30: IV
A31: ² | B31: ´ | C31: ¶ | D31: 1 | E31: 2 | F31: 3 | G31: 4 | H31: 5 | I31: 6 | J31: 7
A32: 1100000 | B32: ². ÀÜÂ²òÆÎ Ì²Êêºðª ÀÜ¸²ØºÜÀ, ³Û¹ ÃíáõÙ` | C32: x | E32: =E102 -> 0 | G32: 0 | H32: 0 | I32: 0 | J32: =F32 -> 0
A33: 1110000 | B33: 1.äºî²Î²Ü, îºÔ²Î²Ü ÆÜøÜ²Î²è²ì²ðØ²Ü Ø²ðØÆÜÜºðÆ, ¸ð²Üò ºÜÂ²Î² ´Úàôæºî²ÚÆÜ ÐÆØÜ²ðÎÜºðÆ ²ÞÊ²îàÔÜºðÆ ²ÞÊ²î²ì²ðÒÀª ÀÜ¸²ØºÜÀ, ³Û¹ ÃíáõÙª | C33: x | D33: 0 | E33: 0 | F33: 0 | G33: 0 | H33: 0 | I33: 0 | J33: 0
A34: 1110000 | B34: 1,1 ²ßË³ï³ÝùÇ í³ñÓ³ïñáõÃÛáõÝ | C34: x | D34: 0 | E34: 0 | F34: 0 | G34: 0 | H34: 0 | I34: 0 | J34: 0
A35: 1111000 | B35: -²ßË³ïáÕÝ»ñÇ ³ßË³ï³í³ñÓ»ñ ¨ Ñ³í»É³í×³ñÝ»ñ | C35: 411100 | J35: 0
A36: 1112000 | B36: - ä³ñ·¨³ïñáõÙÝ»ñ, ¹ñ³Ù³Ï³Ý Ëñ³ËáõëáõÙÝ»ñ ¨ Ñ³ïáõÏ í×³ñÝ»ñ | C36: 411200 | J36: 0
A37: 1113000 | B37: -ø³Õ³ù³óÇ³Ï³Ý, ¹³ï³Ï³Ý ¨ å»ï³Ï³Ý Í³é³ÛáÕÝ»ñÇ å³ñ·¨³ïñáõÙ | C37: 411300 | J37: 0
A38: 1114000 | B38: -ÐÐ ýÇÝ³ÝëÝ»ñÇ ¨ ¿ÏáÝáÙÇÏ³ÛÇ Ý³Ë³ñ³ñáõÃÛ³Ý, Ñ³ñÏ³ÛÇÝ ¨ Ù³ùë³ÛÇÝ Ù³ñÙÇÝÝ»ñÇ ³ßË³ïáÕÝ»ñÇ å³ñ·¨³ïñáõÙ | C38: 411400 | J38: 0
A39: 1115000 | B39: -²ÛÉ í³ñÓ³ïñáõÃÛáõÝÝ»ñ | C39: 411500 | J39: 0
A40: 1116000 | B40: -´Ý»Õ»Ý ³ßË³ï³í³ñÓ»ñ ¨ Ñ³í»É³í×³ñÝ»ñ | C40: 412100 | J40: 0
A41: 1117000 | B41: -ì×³ñÝ»ñ êáóÇ³É³Ï³Ý ³å³Ñáí³·ñáõÃÛ³Ý å»ï³Ï³Ý ÑÇÙÝ³¹ñ³ÙÇÝ | C41: 413100 | J41: 0
A42: 1120000 | B42: 2 Ì³é³ÛáõÃÛáõÝÝ»ñÇ ¨ ³åñ³ÝùÝ»ñÇ Ó»éù µ»ñáõÙ | C42: x | D42: 0 | E42: 0 | F42: 6200 | G42: 1500 | H42: 3000 | I42: 4500 | J42: 6200
A43: 1121000 | B43: 2.1 Þ³ñáõÝ³Ï³Ï³Ý Í³Ëë»ñ | D43: 0 | E43: 0 | F43: 0 | G43: 0 | H43: 0 | I43: 0 | J43: 0
A44: 1121100 | B44: -·áñÍ³éÝ³Ï³Ý ¨ µ³ÝÏ³ÛÇÝ Í³é³ÛáõÃÛáõÝÝ»ñÇ Í³Ëë»ñ | C44: 421100 | J44: 0
A45: 1121200 | B45: -¿Ý»ñ·»ïÇÏ Í³é³ÛáõÃÛáõÝÝ»ñ | C45: 421200 | J45: 0
A46: 1121300 | B46: -ÎáÙáõÝ³É Í³é³ÛáõÃÛáõÝÝ»ñ | C46: 421300 | F46: 0 | G46: 0 | H46: 0 | I46: 0 | J46: 6200
A47: 1121400 | B47: -Î³åÇ Í³é³ÛáõÃÛáõÝÝ»ñ | C47: 421400 | J47: 0
A48: 1121500 | B48: -²å³Ñáí³·ñ³Ï³Ý Í³Ëë»ñ | C48: 421500 | J48: 0
A49: 1121600 | B49: -¶áõÛùÇ ¨ ë³ñù³íáñáõÙÝ»ñÇ í³ñÓ³Ï³ÉáõÃÛáõÝ | C49: 421600 | E49: 0 | J49: 0
A50: 1121700 | B50: -²ñï³·»ñ³ï»ëã³Ï³Ý Í³Ëë»ñ | C50: 421700 | J50: 0
A51: 1122000 | B51: 2.2 ¶áñÍáõÕáõÙÝ»ñÇ ¨ ßñç³·³ÛáõÃÛ³Ý Í³Ëë»ñ | C51: x | D51: 0 | E51: 0 | F51: 0 | G51: 0 | H51: 0 | I51: 0 | J51: 0
A52: 1122100 | B52: -Ü»ñùÇÝ ·áñÍáõÕáõÙÝ»ñ | C52: 422100 | J52: 0
A53: 1122200 | B53: -²ñï³ë³ÑÙ³ÝÛ³Ý ·áñÍáõÕáõÙÝ»ñÇ ·Íáí Í³Ëë»ñ | C53: 422200 | J53: 0
A54: 1122300 | B54: -²ÛÉ ïñ³Ýëåáñï³ÛÇÝ Í³Ëë»ñ | C54: 422900 | J54: 0
A55: 1123000 | B55: 2.3 ä³ÛÙ³Ý³·ñ³ÛÇÝ Í³é³ÛáõÃÛáõÝÝ»ñÇ Ó»éù µ»ñáõÙ | C55: x | D55: 0 | E55: 0 | F55: 0 | G55: 0 | H55: 0 | I55: 0 | J55: 0
A56: 1123100 | B56: -ì³ñã³Ï³Ý Í³é³ÛáõÃÛáõÝÝ»ñ | C56: 423100 | J56: 0
A57: 1123200 | B57: -Ð³Ù³Ï³ñ·ã³ÛÇÝ Í³é³ÛáõÃÛáõÝÝ»ñ | C57: 423200 | J57: 0
A58: 1123300 | B58: -²ßË³ï³Ï³½ÙÇ Ù³ëÝ³·Çï³Ï³Ý ½³ñ·³óÙ³Ý Í³é³ÛáõÃÛáõÝÝ»ñ | C58: 423300 | J58: 0
A59: 1123400 | B59: -î»Õ³Ï³ïí³Ï³Ý Í³é³ÛáõÃÛáõÝÝ»ñ | C59: 423400 | J59: 0
A60: 1123500 | B60: -Î³é³í³ñã³Ï³Ý Í³é³ÛáõÃÛáõÝÝ»ñ | C60: 423500 | J60: 0
A61: 1123600 | B61: - Î»Ýó³Õ³ÛÇÝ ¨ Ñ³Ýñ³ÛÇÝ ëÝÝ¹Ç Í³é³ÛáõÃÛáõÝÝ»ñ | C61: 423600 | J61: 0
A62: 1123700 | B62: -Ü»ñÏ³Û³óáõóã³Ï³Ý Í³Ëë»ñ | C62: 423700 | J62: 0
A63: 1123800 | B63: -ÀÝ¹Ñ³Ýáõñ µÝáõÛÃÇ ³ÛÉ Í³é³ÛáõÃÛáõÝÝ»ñ | C63: 423900 | E63: 0 | F63: 0 | I63: 0 | J63: =F63 -> 0
A64: 1124000 | B64: 2.4 ²ÛÉ Ù³ëÝ³·Çï³Ï³Ý Í³é³ÛáõÃÛáõÝÝ»ñÇ Ó»éù µ»ñáõÙ | C64: x | D64: 0 | E64: 0 | F64: 0 | G64: 0 | H64: 0 | I64: 0 | J64: 0
A65: 1124100 | B65: -Ø³ëÝ³·Çï³Ï³Ý Í³é³ÛáõÃÛáõÝÝ»ñ | C65: 424100 | J65: 0
A66: 1125000 | B66: 2.5 ÀÝÃ³óÇÏ Ýáñá·áõÙ ¨ å³Ñå³ÝáõÙ (Í³é³ÛáõÃÛáõÝÝ»ñ ¨ ÝÛáõÃ»ñ) | C66: x | D66: 0 | E66: 0 | F66: =F67 -> 0 | G66: =G67 -> 0 | H66: =H67 -> 0 | I66: =I67 -> 0 | J66: =J67 -> 0
A67: 1125100 | B67: -Þ»Ýù»ñÇ ¨ Ï³éáõÛóÝ»ñÇ ÁÝÃ³óÇÏ Ýáñá·áõÙ ¨ å³Ñå³ÝáõÙ | C67: 425100 | D67: 0 | E67: 0 | F67: =D67+E67 -> 0 | G67: 0 | H67: 0 | I67: 0 | J67: =F67 -> 0
A68: 1125200 | B68: -Ø»ù»Ý³Ý»ñÇ ¨ ë³ñù³íáñáõÙÝ»ñÇ ÁÝÃ³óÇÏ Ýáñá·áõÙ ¨ å³Ñå³ÝáõÙ | C68: 425200 | J68: 0
A69: 1126000 | B69: 2.6 ÜÛáõÃ»ñ | C69: x | D69: 0 | E69: 0 | F69: 0 | G69: 0 | H69: 0 | I69: 0 | J69: 0
A70: 1126100 | B70: -¶ñ³ë»ÝÛ³Ï³ÛÇÝ ÝÛáõÃ»ñ ¨ Ñ³·áõëï | C70: 426100 | J70: 0
A71: 1126200 | B71: -¶ÛáõÕ³ïÝï»ë³Ï³Ý ³åñ³ÝùÝ»ñ | C71: 426200 | J71: 0
A72: 1126300 | B72: -ì»ñ³å³ïñ³ëïÙ³Ý ¨ áõëáõóÙ³Ý ÝÛáõÃ»ñ | C72: 426300 | J72: 0
A73: 1126400 | B73: -îñ³Ýëåáñï³ÛÇÝ ÝÛáõÃ»ñ | C73: 426400 | J73: 0
A74: 1126500 | B74: -Þñç³Ï³ ÙÇç³í³ÛñÇ å³ßïå³ÝáõÃÛ³Ý ¨ ·Çï³Ï³Ý ÝÛáõÃ»ñ | C74: 426500 | J74: 0
A75: 1126600 | B75: -²éáÕç³å³Ñ³Ï³Ý ¨ É³µáñ³ïáñ ÝÛáõÃ»ñ | C75: 426600 | J75: 0
A76: 1126700 | B76: -Î»Ýó³Õ³ÛÇÝ ¨ Ñ³Ýñ³ÛÇÝ ëÝÝ¹Ç ÝÛáõÃ»ñ | C76: 426700 | J76: 0
A77: 1126800 | B77: -Ð³ïáõÏ Ýå³ï³Ï³ÛÇÝ ³ÛÉ ÝÛáõÃ»ñ | C77: 426900 | D77: 0 | E77: 0 | F77: =D77 -> 0 | G77: 0 | H77: 0 | I77: 0 | J77: =F77 -> 0
A78: 1130000 | B78: 3 îáÏáë³í×³ñÝ»ñ | C78: x | D78: 0 | E78: 0 | F78: 0 | G78: 0 | H78: 0 | I78: 0 | J78: 0
A79: 1130100 | B79: -Ü»ñùÇÝ ³ñÅ»ÃÕÃ»ñÇ ïáÏáë³í×³ñÝ»ñ | C79: 441100 | J79: 0
A80: 1130200 | B80: -Ü»ñùÇÝ í³ñÏ»ñÇ ïáÏáë³í×³ñÝ»ñ | C80: 441200 | J80: 0
A81: 1130300 | B81: -²ñï³ùÇÝ ³ñÅ»ÃÕÃ»ñÇ ·Íáí ïáÏáë³í×³ñÝ»ñ | C81: 442100 | J81: 0
A82: 1130400 | B82: -²ñï³ùÇÝ í³ñÏ»ñÇ ·Íáí ïáÏáë³í×³ñÝ»ñ | C82: 442200 | J82: 0
A83: 1131000 | B83: öáË³éáõÃÛáõÝÝ»ñÇ Ñ»ï Ï³åí³Í í×³ñÝ»ñ | C83: x | J83: 0
A84: 1131100 | B84: -öáË³Ý³ÏÙ³Ý Ïáõñë»ñÇ µ³ó³ë³Ï³Ý ï³ñµ»ñáõÃÛáõÝ | C84: 443100 | J84: 0
A85: 1131200 | B85: -îáõÛÅ»ñ | C85: 443200 | J85: 0
A86: 1131300 | B86: -öáË³éáõÃÛáõÝÝ»ñÇ ·Íáí ïáõñù»ñ | C86: 443300 | J86: 0
A87: 1140000 | B87: 4. êáõµëÇ¹Ç³Ý»ñ | C87: x | D87: 0 | E87: 0 | F87: 0 | G87: 0 | H87: 0 | I87: 0 | J87: 0
A88: 1141000 | B88: -êáõµëÇ¹Ç³Ý»ñ áã-ýÇÝ³Ýë³Ï³Ý å»ï³Ï³Ý Ï³½Ù³Ï»ñåáõÃÛáõÝÝ»ñÇÝ | C88: 451100 | J88: 0
A89: 1142000 | B89: -êáõµëÇ¹Ç³Ý»ñ ýÇÝ³Ýë³Ï³Ý å»ï³Ï³Ý Ï³½Ù³Ï»ñåáõÃÛáõÝÝ»ñÇÝ | C89: 451200 | J89: 0
A90: 1143000 | B90: -êáõµëÇ¹Ç³Ý»ñ áã å»ï³Ï³Ý áã ýÇÝ³Ýë³Ï³Ý Ï³½Ù³Ï»ñåáõÃÛáõÝÝ»ñÇÝ | C90: 452100 | J90: 0
A91: 1144000 | B91: -êáõµëÇ¹Ç³Ý»ñ áã å»ï³Ï³Ý ýÇÝ³Ýë³Ï³Ý Ï³½Ù³Ï»ñåáõÃÛáõÝÝ»ñÇÝ | C91: 452200 | J91: 0
A92: 1150000 | B92: 5.¸ñ³Ù³ßÝáñÑÝ»ñ | C92: x | D92: 0 | E92: 0 | F92: 0 | G92: 0 | H92: 0 | I92: 0 | J92: 0
A93: 1151000 | B93: -ÀÝÃ³óÇÏ ¹ñ³Ù³ßÝáñÑÝ»ñ ûï³ñ»ñÏñÛ³ Ï³é³í³ñáõÃÛáõÝÝ»ñÇÝ | C93: 461100 | J93: 0
A94: 1152000 | B94: -Î³åÇï³É ¹ñ³Ù³ßÝáñÑÝ»ñ ûï³ñ»ñÏñÛ³ Ï³é³í³ñáõÃÛáõÝÝ»ñÇÝ | C94: 461200 | J94: 0
A95: 1153000 | B95: -ÀÝÃ³óÇÏ ¹ñ³Ù³ßÝáñÑÝ»ñ ÙÇç³½·³ÛÇÝ Ï³½Ù³Ï»ñåáõÃÛáõÝÝ»ñÇÝ | C95: 462100 | J95: 0
A96: 1154000 | B96: -Î³åÇï³É ¹ñ³Ù³ßÝáñÑÝ»ñ ÙÇç³½·³ÛÇÝ Ï³½Ù³Ï»ñåáõÃÛáõÝÝ»ñÇÝ | C96: 462200 | J96: 0
A97: 1155000 | B97: -ÀÝÃ³óÇÏ ¹ñ³Ù³ßÝáñÑÝ»ñ å»ï³Ï³Ý Ñ³ïí³ÍÇ ³ÛÉ Ù³Ï³ñ¹³ÏÝ»ñÇÝ | C97: 463100 | J97: 0
A98: 1156000 | B98: -Î³åÇï³É ¹ñ³Ù³ßÝáñÑÝ»ñ å»ï³Ï³Ý Ñ³ïí³ÍÇ ³ÛÉ Ù³Ï³ñ¹³ÏÝ»ñÇÝ | C98: 463200 | J98: 0
A99: 1153300 | B99: ä»ï³Ï³Ý µÛáõç»Çó Ñ³Ù³ÛÝùÝ»ñÇ µÛáõç»Ý»ñÇÝ ýÇÝ³Ýë³Ï³Ý Ñ³Ù³Ñ³ñÃ»óÙ³Ý ëÏ½µáõÝùáí ïñíáÕ ¹áï³óÇ³Ý»ñ | C99: 463300 | J99: 0
A100: 1153400 | B100: úñ»ÝùÝ»ñÇ ÏÇñ³ñÏÙ³Ý ³ñ¹ÛáõÝùáõÙ Ñ³Ù³ÛÝùÝ»ñÇ µÛáõç»Ý»ñÇ ÏáñáõëïÝ»ñÇ ÷áËÑ³ïáõóáõÙ | C100: 463400 | J100: 0
A101: 1153500 | B101: ²ÛÉ ÁÝÃ³óÇÏ ¹ñ³Ù³ßÝáñÑÝ»ñ Ñ³Ù³ÛÝùÝ»ñÇÝ | C101: 463500 | J101: 0
A102: 1153700 | B102: ÀÝÃ³óÇÏ ¹ñ³Ù³ßÝáñÑÝ»ñ å»ï³Ï³Ý ¨ Ñ³Ù³ÛÝùÝ»ñÇ áã ³é¨ïñ³ÛÇÝ Ï³½Ù³Ï»ñåáõÃÛáõÝÝ»ñÇÝ | C102: 463700 | D102: 0 | E102: 0 | F102: =D102+E102 -> 0 | G102: 0 | H102: 0 | I102: 0 | J102: =F102 -> 0
A103: 1153800 | B103: ÀÝÃ³óÇÏ ¹ñ³Ù³ßÝáñÑÝ»ñ å»ï³Ï³Ý ¨ Ñ³Ù³ÛÝùÝ»ñÇ ³é¨ïñ³ÛÇÝ Ï³½Ù³Ï»ñåáõÃÛáõÝÝ»ñÇÝ | C103: 463800 | J103: 0
A104: 1153900 | B104: ²ÛÉ ÁÝÃ³óÇÏ ¹ñ³Ù³ßÝáñÑÝ»ñ | C104: 463900 | J104: 0
A105: 1154000 | B105: Î³åÇï³É ¹ñ³Ù³ßÝáñÑÝ»ñ å»ï³Ï³Ý Ñ³ïí³ÍÇ ³ÛÉ Ù³Ï³ñ¹³ÏÝ»ñÇÝ | C105: x | D105: 0 | F105: 0 | G105: 0 | H105: 0 | I105: 0 | J105: 0
A106: 1154100 | B106: Î³åÇï³É ¹ñ³Ù³ßÝáñÑÝ»ñ å»ï³Ï³Ý Ï³é³í³ñÙ³Ý Ñ³ïí³ÍÇÝ | C106: 465100 | J106: 0
A107: 1154200 | B107: Î³åÇï³É ëáõµí»ÝóÇ³Ý»ñ Ñ³Ù³ÛÝùÝ»ñÇÝ | C107: 465200 | D107: 0 | E107: 0 | F107: =D107 -> 0 | J107: =F107 -> 0
A108: 1154300 | B108: ²ÛÉ Ï³åÇï³É ¹ñ³Ù³ßÝáñÑÝ»ñ Ñ³Ù³ÛÝùÝ»ñÇÝ | C108: 465300 | J108: 0
A109: 1154500 | B109: Î³åÇï³É ¹ñ³Ù³ßÝáñÑÝ»ñ å»ï³Ï³Ý ¨ Ñ³Ù³ÛÝùÝ»ñÇ áã ³é¨ïñ³ÛÇÝ Ï³½Ù³Ï»ñåáõÃÛáõÝÝ»ñÇÝ | C109: 465500 | J109: 0
A110: 1154600 | B110: Î³åÇï³É ¹ñ³Ù³ßÝáñÑÝ»ñ å»ï³Ï³Ý ¨ Ñ³Ù³ÛÝù³ÛÇÝ ³é¨ïñ³ÛÇÝ Ï³½Ù³Ï»ñåáõÃÛáõÝÝ»ñÇÝ | C110: 465600 | J110: 0
A111: 1154700 | B111: ²ÛÉ Ï³åÇï³É ¹ñ³Ù³ßÝáñÑÝ»ñ | C111: 465700 | J111: 0
A112: 1162600 | B112: -ÐáõÕ³ñÏ³íáñáõÃÛ³Ý Ýå³ëïÝ»ñ µÛáõç»Çó | C112: 472600 | J112: 0
A113: 1162700 | B113: -ÎñÃ³Ï³Ý, Ùß³ÏáõÃ³ÛÇÝ ¨ ëåáñï³ÛÇÝ Ýå³ëïÝ»ñ µÛáõç»Çó | C113: 472700 | J113: 0
A114: 1162800 | B114: -´Ý³Ï³ñ³Ý³ÛÇÝ Ýå³ëïÝ»ñ µÛáõç»Çó | C114: 472800 | J114: 0
A115: 1162900 | B115: -²ÛÉ Ýå³ëïÝ»ñ µÛáõç»Çó | C115: 472900 | J115: 0
A116: 1170000 | B116: 7. ²ÚÈ Ì²Êêºð | C116: x | D116: 0 | E116: 0 | F116: 0 | G116: 0 | H116: 0 | I116: 0 | J116: 0
A117: 1171000 | B117: 7.1 ÜìÆð²îìàôÂÚàôÜÜºð àâ-Î²è²ì²ðâ²Î²Ü (Ð²ê²ð²Î²Î²Ü) Î²¼Ø²ÎºðäàôÂÚàôÜÜºðÆÜ | C117: x | D117: 0 | E117: 0 | F117: 0 | G117: 0 | H117: 0 | I117: 0 | J117: 0
A118: 1171100 | B118: -îÝ³ÛÇÝ ïÝï»ëáõÃÛáõÝÝ»ñÇÝ Í³é³ÛáõÃÛáõÝÝ»ñ Ù³ïáõóáÕ` ß³ÑáõÛÃ ãÑ»ï³åÝ¹áÕ Ï³½Ù³Ï»ñåáõÃÛáõÝÝ»ñÇÝ ÝíÇñ³ïíáõÃÛáõÝÝ»ñ | C118: 481100 | J118: 0
A119: 1171200 | B119: -ÜíÇñ³ïíáõÃÛáõÝÝ»ñ ³ÛÉ ß³ÑáõÛÃ ãÑ»ï³åÝ¹áÕ Ï³½Ù³Ï»ñåáõÃÛáõÝÝ»ñÇÝ | C119: 481900 | J119: 0
A120: 1172000 | B120: 7.2 Ð²ðÎºð, ä²ðî²¸Æð ìÖ²ðÜºð ºì îàôÚÄºð, àðàÜø Î²è²ì²ðØ²Ü î²ð´ºð Ø²Î²ð¸²ÎÜºðÆ ÎàÔØÆò ÎÆð²èìàôØ ºÜ ØÆØÚ²Üò ÜÎ²îØ²Ø´ | C120: x | D120: 0 | E120: 0 | F120: 0 | G120: 0 | H120: 0 | I120: 0 | J120: 0
A121: 1172100 | B121: -²ßË³ï³í³ñÓÇ ýáÝ¹ | C121: 482100 | J121: 0
A122: 1172200 | B122: -²ÛÉ Ñ³ñÏ»ñ | C122: 482200 | J122: 0
A123: 1172300 | B123: -ä³ñï³¹Çñ í×³ñÝ»ñ | C123: 482300 | E123: 0 | J123: 0
A124: 1172400 | B124: -ä»ï³Ï³Ý Ñ³ïí³ÍÇ ï³ñµ»ñ Ù³Ï³ñ¹³ÏÝ»ñÇ ÏáÕÙÇó ÙÇÙÛ³Ýó ÝÏ³ïÙ³Ùµ ÏÇñ³éíáÕ ïáõÛÅ»ñ | C124: 482400 | J124: 0
A125: 1173000 | B125: 7.3 ¸²î²ð²ÜÜºðÆ ÎàÔØÆò ÜÞ²Ü²Îì²Ì îàôÚÄºð ºì îàô¶²ÜøÜºð | C125: x | D125: 0 | E125: 0 | F125: 0 | G125: 0 | H125: 0 | I125: 0 | J125: 0
A126: 1173100 | B126: -¸³ï³ñ³ÝÝ»ñÇ ÏáÕÙÇó Ýß³Ý³Ïí³Í ïáõÛÅ»ñ ¨ ïáõ·³ÝùÝ»ñ | C126: 483100 | J126: 0
A127: 1174000 | B127: 7.4 ´Ü²Î²Ü ²ÔºîÜºðÆò Î²Ø ²ÚÈ ´Ü²Î²Ü ä²îÖ²èÜºðàì ²è²æ²ò²Ì ìÜ²êÜºðÆ Î²Ø ìÜ²êì²ÌøÜºðÆ ìºð²Î²Ü¶ÜàôØ | C127: x | D127: 0 | E127: 0 | F127: 0 | G127: 0 | H127: 0 | I127: 0 | J127: 0
A128: 1174100 | B128: -´Ý³Ï³Ý ³Õ»ïÝ»ñÇó ³é³ç³ó³Í íÝ³ëí³ÍùÝ»ñÇ Ï³Ù íÝ³ëÝ»ñÇ í»ñ³Ï³Ý·ÝáõÙ | C128: 484100 | J128: 0
A129: 1174200 | B129: -²ÛÉ µÝ³Ï³Ý å³ï×³éÝ»ñáí ëï³ó³Í íÝ³ëí³ÍùÝ»ñÇ í»ñ³Ï³Ý·ÝáõÙ | C129: 484200 | J129: 0
A130: 1175000 | B130: 7.5 Î²è²ì²ðØ²Ü Ø²ðØÆÜÜºðÆ ¶àðÌàôÜºàôÂÚ²Ü Ðºîºì²Üøàì ²è²æ²ò²Ì ìÜ²êÜºðÆ Î²Ø ìÜ²êì²ÌøÜºðÆ ìºð²Î²Ü¶ÜàôØ | C130: x | D130: 0 | E130: 0 | F130: 0 | G130: 0 | H130: 0 | I130: 0 | J130: 0
A131: 1175100 | B131: -Î³é³í³ñÙ³Ý Ù³ñÙÇÝÝ»ñÇ ·áñÍáõÝ»áõÃÛ³Ý Ñ»ï¨³Ýùáí ³é³ç³ó³Í íÝ³ëí³ÍùÝ»ñÇ Ï³Ù íÝ³ëÝ»ñÇ í»ñ³Ï³Ý·ÝáõÙ | C131: 485100 | J131: 0
A132: 1176000 | B132: 7.6 ²ÚÈ Ì²Êêºð | C132: x | D132: 0 | E132: 0 | F132: 0 | G132: 0 | H132: 0 | I132: 0 | J132: 0
A133: 1176100 | B133: -²ÛÉ Í³Ëë»ñ | C133: 486100 | J133: 0
A134: 1177000 | B134: 7.7 ä²Ðàôêî²ÚÆÜ ØÆæàòÜºð | C134: x | D134: 0 | E134: 0 | F134: 0 | G134: 0 | H134: 0 | I134: 0 | J134: 0
A135: 1177100 | B135: -ä³Ñáõëï³ÛÇÝ ÙÇçáóÝ»ñ | C135: 489100 | J135: 0
A136: ---- | B136: ------- | J136: 0
A137: 1200000 | B137: Բ, àâ-üÆÜ²Üê²Î²Ü ²ÎîÆìÜºðÆ ¶Ìàì Ì²Êêºð | C137: x | D137: =D140 -> 22054 | E137: 0 | F137: =F140 -> 22054 | G137: =G140 -> 22054 | H137: =H140 -> 22054 | I137: =I140 -> 22054 | J137: =J142+J143 -> 22054
B138: ³Û¹ ÃíáõÙ`
A139: ---- | B139: ------- | J139: 0
A140: 1210000 | B140: 1.ÐÆØÜ²Î²Ü ØÆæàòÜºð | C140: x | D140: =D142 -> 22054 | E140: 0 | F140: =F142 -> 22054 | G140: =G142 -> 22054 | H140: =H142 -> 22054 | I140: =I142 -> 22054 | J140: =J142 -> 22054
A141: 1211000 | B141: -Þ»Ýù»ñÇ ¨ ßÇÝáõÃÛáõÝÝ»ñÇ Ó»éù µ»ñáõÙ | C141: 511100 | J141: 0
A142: 1212000 | B142: -Þ»Ýù»ñÇ ¨ ßÇÝáõÃÛáõÝÝ»ñÇ Ï³éáõóáõÙ | C142: 511200 | D142: 22054 | E142: 0 | F142: =D142+E142 -> 22054 | G142: 22054 | H142: 22054 | I142: 22054 | J142: =F142 -> 22054 | K142: 22054 ջրամ լեռ
A143: 1213000 | B143: -Þ»Ýù»ñÇ ¨ ßÇÝáõÃÛáõÝÝ»ñÇ Ï³åÇï³É í»ñ³Ýáñá·áõÙ | C143: 511300 | D143: 0 | E143: 0 | F143: =D143+E143 -> 0 | G143: 0 | H143: 0 | I143: 0 | J143: =F143 -> 0
A144: 1214000 | B144: -îñ³Ýëåáñï³ÛÇÝ ë³ñù³íáñáõÙÝ»ñ | C144: 512100 | G144: 0 | J144: 0
A145: 1215000 | B145: -ì³ñã³Ï³Ý ë³ñù³íáñáõÙÝ»ñ | C145: 512200 | J145: 0
A146: 1216000 | B146: -²ÛÉ Ù»ù»Ý³Ý»ñ ¨ ë³ñù³íáñáõÙÝ»ñ | C146: 512900 | J146: 0
A147: 1217000 | B147: -²×»óíáÕ ³ÏïÇíÝ»ñ | C147: 513100 | J147: 0
A148: 1218000 | B148: -àã-ÝÛáõÃ³Ï³Ý ÑÇÙÝ³Ï³Ý ÙÇçáóÝ»ñ | C148: 513200 | J148: 0
A149: 1220000 | B149: 2.ä²Þ²ðÜºð | C149: x | D149: 0 | E149: 0 | F149: 0 | G149: 0 | H149: 0 | I149: 0 | J149: 0
A150: 1221000 | B150: -è³½Ù³í³ñ³Ï³Ý å³ß³ñÝ»ñ | C150: 521100 | J150: 0
A151: 1222000 | B151: -ÜÛáõÃ»ñ ¨ å³ñ³·³Ý»ñ | C151: 522100 | J151: 0
A152: 1223000 | B152: -ì»ñ³í³×³éùÇ Ñ³Ù³ñ Ý³Ë³ï»ëí³Í ³åñ³ÝùÝ»ñ | C152: 523100 | J152: 0
A153: 1224000 | B153: -êå³éÙ³Ý Ýå³ï³Ïáí å³ÑíáÕ å³ß³ñÝ»ñ | C153: 524100 | J153: 0
A154: 1230000 | B154: 3.´²ðÒð²ðÄºø ²ÎîÆìÜºð | C154: x | D154: 0 | E154: 0 | F154: 0 | G154: 0 | H154: 0 | I154: 0 | J154: 0
A155: 1231000 | B155: -´³ñÓñ³ñÅ»ù ³ÏïÇíÝ»ñ | C155: 531100 | J155: 0
A156: 1240000 | B156: 4.àâ ²ðî²¸ð²Î²Ü ԱԿՏԻՎՆԵՐ | C156: x | D156: 0 | E156: 0 | F156: 0 | G156: 0 | H156: 0 | I156: 0 | J156: 0
A157: 1241000 | B157: -ÐáÕ | C157: 541100 | J157: 0
A158: 1242000 | B158: -ÀÝ¹»ñù³ÛÇÝ ³ÏïÇíÝ»ñ | C158: 542100 | J158: 0
A159: 1243000 | B159: -²ÛÉ µÝ³Ï³Ý Í³·áõÙ áõÝ»óáÕ ³ÏïÇíÝ»ñ | C159: 543100 | J159: 0
A160: 1244000 | B160: -àã ÝÛáõÃ³Ï³Ý áã ³ñï³¹ñ³Ï³Ý ³ÏïÇíÝ»ñ | C160: 544100 | J160: 0
A161: 1000000 | B161: ԸՆԴԱՄԵՆԸ ºÈøºð` (ïáÕ 1100000+ïáÕ1200000) | C161: x | D161: =D32+D137 -> 22054 | E161: =E32 -> 0 | F161: =F32+F137 -> 22054 | G161: =G32+G137 -> 22054 | H161: =H32+H137 -> 22054 | I161: =I32+I137 -> 22054 | J161: =J140 -> 22054
A164: §17¦ § դեÏï»Ùµ»ñ ¦ 2020 Ã.
A166: ÐÆØÜ²ðÎÆ ÔºÎ²ì²ðª _______________ _________________ | G166: Է.Արշակյան
E167: (ëïáñ³·ñáõÃÛáõÝ) | G167: (².Ð.².)
A168: Î.î.
A169: üÆÜ²Üê²Î²Ü Ì²è²ÚàôÂÚ²Ü äºîª _______________ _________________ | G169: ն. Մուրադյան
B170: (¶ÈÊ²ìàð Ð²Þì²ä²Ð) | E170: (ëïáñ³·ñáõÃÛáõÝ) | G170: (².Ð.².)

Sheet rhamat (hidden)
F1: Ð³í»Éí³Í N 4
F3: úñÇÝ³Ï»ÉÇ Ó¨ N 3
F4: Ð³ëï³ïí»É ¿ ÐÐ ýÇÝ³ÝëÝ»ñÇ ¨ ¿ÏáÝáÙÇÏ³ÛÇ
B5: §Ð ² ê î ² î àô Ø ºØª¦ | G5: Ý³Ë³ñ³ñÇ 23 ÑáõÉÇëÇ 2007 Ãí³Ï³ÝÇ
F6: N 597-Ü Ññ³Ù³Ýáí
A7: Ý³Ë³Ñ³ßÇíÁ 1500,0 մեկ միլիոն հինգ հարյուր հազար դրամ
A8: ( ÁÝ¹³Ù»ÝÁ ·áõÙ³ñÁ Ãí»ñáí ¨ ï³é»ñáí****)
A10: ___________________________________________Է.Արշակյան____________________________________________ | G10: Î.î.
A11: (ÐÐ å»ï³Ï³Ý Ï³é³í³ñÙ³Ý Ï³Ù ï»Õ³Ï³Ý ÇÝùÝ³Ï³é³í³ñÙ³Ý Ù³ñÙÝÇ Õ»Ï³í³ñÇ ëïáñ³·ñáõÃÛáõÝÁ ¨ ².Ð.².)
A12: § ¦ դեկտեմբերի 2020թ
A13: Ü ² Ê ² Ð ² Þ Æ ì*
A14: ÐÇÙÝ³ñÏÝ»ñÇ ÏáÕÙÇó µÛáõç»ï³ÛÇÝ Ñ³ïÏ³óáõÙÝ»ñÇ Ñ³ßíÇÝ Çñ³Ï³Ý³óíáÕ Í³Ëë»ñÇ (»Éù»ñÇ) ³é³ÝÓÇÝ ï»ë³ÏÝ»ñÇ
A15: ¥Áëï ïÝï»ë³·Çï³Ï³Ý ¹³ë³Ï³ñ·Ù³Ý Ñá¹í³ÍÝ»ñÇ¤
A16: §01¦ §ÐáõÝí³ñÇ ¦ 2021 Ã. -- §30¦ §¹»Ïï»Ùµ»ñÇ ¦ 2021 Ã.
A18: 1. ÐÇÙÝ³ñÏÇ ³Ýí³ÝáõÙÁ î³ßÇñÇ ù³Õ³ù³»ï³ñ³Ý | F18: 8.***** ´Ûáõç»ï³ÛÇÝ Í³Ëë»ñÇ ·áñÍ³é³Ï³Ý ¹³ë³Ï³ñ·Ù³Ý
A19: 2. öáëï³ÛÇÝ Ñ³ëó»Ý ù, î³ßÇñ | F19: Í³ÍÏ³·Çñ | G19: 6 | H19: 3 | I19: 1
A20: 3. ÐÇÙÝ³ñÏÇ ï»Õ³µ³ßËÙ³Ý Ù³ñ½Ç ¨ Ñ³Ù³ÛÝùÇ Ïá¹Á
A21: Áëï µÛáõç»ï³ÛÇÝ Í³Ëë»ñÇ ï³ñ³Íù³ÛÇÝ ¹³ë³Ï³ñ·Ù³Ý | F21: 9. Ìñ³·ñÇ ³Ýí³ÝáõÙÁ _ջրամատակարարուÙ_
A22: 4. ** ä»ï³Ï³Ý Ï³é³í³ñÙ³Ý (ï»Õ³Ï³Ý ÇÝùÝ³Ï³é³í³ñÙ³Ý) Ù³ñÙÝÇ ³Ýí³ÝáõÙÁ | F22: 10. Ìñ³·ñÇ Ïá¹Á
A23: _______________________________________________________________________________________ | F23: 11. *** ä»ï³Ï³Ý Ï³é³í³ñÙ³Ý (ï»Õ³Ï³Ý .ÇÝù ÇÝùÝ³Ï³é³í³ñÙ³Ý)Ù³ñÙÇÝÝ»ñÇ ·»ñ³ï»ëã³Ï³Ý Ïá¹Á
A24: 5. ÐÇÙÝ³ñÏÁ ëå³ë³ñÏáÕ ï»Õ³Ï³Ý ·³ÝÓ³å»ï³Ï³Ý µ³ÅÝÇ (î¶´) ³Ýí³ÝáõÙÁ _Տաշիրի
A25: 6. ÐÇÙÝ³ñÏÇª ï»Õ³Ï³Ý ·³ÝÓ³å»ï³Ï³Ý µ³ÅÝáõÙ (î¶´) Ñ³ßí³éÙ³Ý Ñ³Ù³ñÁ
A26: 7. Ì³Ëë»ñÇ ýÇÝ³Ýë³íáñÙ³Ý ³ÕµÛáõñÇ Ïá¹Á` | G26: 12. â³÷Ç ÙÇ³íáñÁª Ñ³½³ñ ¹ñ³Ù
A27: (ÐÐ å»ï³Ï³Ý µÛáõç»ª 1, Ñ³Ù³ÛÝùÇ µÛáõç»ª 2)
A29: îáÕÇ NN | B29: ´Ûáõç»ï³ÛÇÝ Í³Ëë»ñÇ ïÝï»ë³·Çï³Ï³Ý ¹³ë³Ï³ñ·Ù³Ý ï³ññ»ñ | D29: ÜáõÛÝ Å³Ù³Ý³Ï³Ñ³ïí³ÍÇ Ñ³Ù³ñ Ý³ËÏÇÝáõÙ Ñ³ëï³ïí³Íª ·áñÍáÕ | F29: êáõÛÝ Ý³Ë³Ñ³ßíáí Ñ³ëï³ïíáÕ óáõó³ÝÇßÝ»ñÁ | G29: ³Û¹ ÃíáõÙª Áëï »é³ÙëÛ³ÏÝ»ñÇ (»é³ÙëÛ³ÏÇ ³ÙÇëÝ»ñÇ)³×áÕ³Ï³Ý
B30: ³Ýí³ÝáõÙÝ»ñÁ | C30: NN | D30: Ý³Ë³Ñ³ßíÇ óáõó³ÝÇßÝ»ñÁ | E30: Ý³Ë³Ñ³ßíáõÙ Ï³ï³ñí³Í ÷á÷áËáõÃÛáõÝ-Ý»ñÁ (³í»É³óáõÙÁª /+/, å³Ï³ë»óáõÙÁª/-/ | G30: I | H30: II | I30: III | J30: IV
A31: ² | B31: ´ | C31: ¶ | D31: 1 | E31: 2 | F31: 3 | G31: 4 | H31: 5 | I31: 6 | J31: 7
A32: 1100000 | B32: ². ÀÜÂ²òÆÎ Ì²Êêºðª ÀÜ¸²ØºÜÀ, ³Û¹ ÃíáõÙ` | C32: x | D32: =D67+D77+D102 -> 1500 | E32: =E102 -> 0 | F32: =F66+F77+F63+F107+F102 -> 1500 | G32: =G66+G77 -> 200 | H32: =H66+H77 -> 500 | I32: =I63+I66+I77+I102 -> 700 | J32: =F32 -> 1500
A33: 1110000 | B33: 1.äºî²Î²Ü, îºÔ²Î²Ü ÆÜøÜ²Î²è²ì²ðØ²Ü Ø²ðØÆÜÜºðÆ, ¸ð²Üò ºÜÂ²Î² ´Úàôæºî²ÚÆÜ ÐÆØÜ²ðÎÜºðÆ ²ÞÊ²îàÔÜºðÆ ²ÞÊ²î²ì²ðÒÀª ÀÜ¸²ØºÜÀ, ³Û¹ ÃíáõÙª | C33: x | D33: 0 | E33: 0 | F33: 0 | G33: 0 | H33: 0 | I33: 0 | J33: 0
A34: 1110000 | B34: 1,1 ²ßË³ï³ÝùÇ í³ñÓ³ïñáõÃÛáõÝ | C34: x | D34: 0 | E34: 0 | F34: 0 | G34: 0 | H34: 0 | I34: 0 | J34: 0
A35: 1111000 | B35: -²ßË³ïáÕÝ»ñÇ ³ßË³ï³í³ñÓ»ñ ¨ Ñ³í»É³í×³ñÝ»ñ | C35: 411100 | J35: 0
A36: 1112000 | B36: - ä³ñ·¨³ïñáõÙÝ»ñ, ¹ñ³Ù³Ï³Ý Ëñ³ËáõëáõÙÝ»ñ ¨ Ñ³ïáõÏ í×³ñÝ»ñ | C36: 411200 | J36: 0
A37: 1113000 | B37: -ø³Õ³ù³óÇ³Ï³Ý, ¹³ï³Ï³Ý ¨ å»ï³Ï³Ý Í³é³ÛáÕÝ»ñÇ å³ñ·¨³ïñáõÙ | C37: 411300 | J37: 0
A38: 1114000 | B38: -ÐÐ ýÇÝ³ÝëÝ»ñÇ ¨ ¿ÏáÝáÙÇÏ³ÛÇ Ý³Ë³ñ³ñáõÃÛ³Ý, Ñ³ñÏ³ÛÇÝ ¨ Ù³ùë³ÛÇÝ Ù³ñÙÇÝÝ»ñÇ ³ßË³ïáÕÝ»ñÇ å³ñ·¨³ïñáõÙ | C38: 411400 | J38: 0
A39: 1115000 | B39: -²ÛÉ í³ñÓ³ïñáõÃÛáõÝÝ»ñ | C39: 411500 | J39: 0
A40: 1116000 | B40: -´Ý»Õ»Ý ³ßË³ï³í³ñÓ»ñ ¨ Ñ³í»É³í×³ñÝ»ñ | C40: 412100 | J40: 0
A41: 1117000 | B41: -ì×³ñÝ»ñ êáóÇ³É³Ï³Ý ³å³Ñáí³·ñáõÃÛ³Ý å»ï³Ï³Ý ÑÇÙÝ³¹ñ³ÙÇÝ | C41: 413100 | J41: 0
A42: 1120000 | B42: 2 Ì³é³ÛáõÃÛáõÝÝ»ñÇ ¨ ³åñ³ÝùÝ»ñÇ Ó»éù µ»ñáõÙ | C42: x | D42: 0 | E42: 0 | F42: 6200 | G42: 1500 | H42: 3000 | I42: 4500 | J42: 6200
A43: 1121000 | B43: 2.1 Þ³ñáõÝ³Ï³Ï³Ý Í³Ëë»ñ | D43: 0 | E43: 0 | F43: 0 | G43: 0 | H43: 0 | I43: 0 | J43: 0
A44: 1121100 | B44: -·áñÍ³éÝ³Ï³Ý ¨ µ³ÝÏ³ÛÇÝ Í³é³ÛáõÃÛáõÝÝ»ñÇ Í³Ëë»ñ | C44: 421100 | J44: 0
A45: 1121200 | B45: -¿Ý»ñ·»ïÇÏ Í³é³ÛáõÃÛáõÝÝ»ñ | C45: 421200 | J45: 0
A46: 1121300 | B46: -ÎáÙáõÝ³É Í³é³ÛáõÃÛáõÝÝ»ñ | C46: 421300 | F46: 0 | G46: 0 | H46: 0 | I46: 0 | J46: 6200
A47: 1121400 | B47: -Î³åÇ Í³é³ÛáõÃÛáõÝÝ»ñ | C47: 421400 | J47: 0
A48: 1121500 | B48: -²å³Ñáí³·ñ³Ï³Ý Í³Ëë»ñ | C48: 421500 | J48: 0
A49: 1121600 | B49: -¶áõÛùÇ ¨ ë³ñù³íáñáõÙÝ»ñÇ í³ñÓ³Ï³ÉáõÃÛáõÝ | C49: 421600 | E49: 0 | J49: 0
A50: 1121700 | B50: -²ñï³·»ñ³ï»ëã³Ï³Ý Í³Ëë»ñ | C50: 421700 | J50: 0
A51: 1122000 | B51: 2.2 ¶áñÍáõÕáõÙÝ»ñÇ ¨ ßñç³·³ÛáõÃÛ³Ý Í³Ëë»ñ | C51: x | D51: 0 | E51: 0 | F51: 0 | G51: 0 | H51: 0 | I51: 0 | J51: 0
A52: 1122100 | B52: -Ü»ñùÇÝ ·áñÍáõÕáõÙÝ»ñ | C52: 422100 | J52: 0
A53: 1122200 | B53: -²ñï³ë³ÑÙ³ÝÛ³Ý ·áñÍáõÕáõÙÝ»ñÇ ·Íáí Í³Ëë»ñ | C53: 422200 | J53: 0
A54: 1122300 | B54: -²ÛÉ ïñ³Ýëåáñï³ÛÇÝ Í³Ëë»ñ | C54: 422900 | J54: 0
A55: 1123000 | B55: 2.3 ä³ÛÙ³Ý³·ñ³ÛÇÝ Í³é³ÛáõÃÛáõÝÝ»ñÇ Ó»éù µ»ñáõÙ | C55: x | D55: 0 | E55: 0 | F55: 0 | G55: 0 | H55: 0 | I55: 0 | J55: 0
A56: 1123100 | B56: -ì³ñã³Ï³Ý Í³é³ÛáõÃÛáõÝÝ»ñ | C56: 423100 | J56: 0
A57: 1123200 | B57: -Ð³Ù³Ï³ñ·ã³ÛÇÝ Í³é³ÛáõÃÛáõÝÝ»ñ | C57: 423200 | J57: 0
A58: 1123300 | B58: -²ßË³ï³Ï³½ÙÇ Ù³ëÝ³·Çï³Ï³Ý ½³ñ·³óÙ³Ý Í³é³ÛáõÃÛáõÝÝ»ñ | C58: 423300 | J58: 0
A59: 1123400 | B59: -î»Õ³Ï³ïí³Ï³Ý Í³é³ÛáõÃÛáõÝÝ»ñ | C59: 423400 | J59: 0
A60: 1123500 | B60: -Î³é³í³ñã³Ï³Ý Í³é³ÛáõÃÛáõÝÝ»ñ | C60: 423500 | J60: 0
A61: 1123600 | B61: - Î»Ýó³Õ³ÛÇÝ ¨ Ñ³Ýñ³ÛÇÝ ëÝÝ¹Ç Í³é³ÛáõÃÛáõÝÝ»ñ | C61: 423600 | J61: 0
A62: 1123700 | B62: -Ü»ñÏ³Û³óáõóã³Ï³Ý Í³Ëë»ñ | C62: 423700 | J62: 0
A63: 1123800 | B63: -ÀÝ¹Ñ³Ýáõñ µÝáõÛÃÇ ³ÛÉ Í³é³ÛáõÃÛáõÝÝ»ñ | C63: 423900 | E63: 0 | F63: 0 | I63: 0 | J63: =F63 -> 0
A64: 1124000 | B64: 2.4 ²ÛÉ Ù³ëÝ³·Çï³Ï³Ý Í³é³ÛáõÃÛáõÝÝ»ñÇ Ó»éù µ»ñáõÙ | C64: x | D64: 0 | E64: 0 | F64: 0 | G64: 0 | H64: 0 | I64: 0 | J64: 0
A65: 1124100 | B65: -Ø³ëÝ³·Çï³Ï³Ý Í³é³ÛáõÃÛáõÝÝ»ñ | C65: 424100 | J65: 0
A66: 1125000 | B66: 2.5 ÀÝÃ³óÇÏ Ýáñá·áõÙ ¨ å³Ñå³ÝáõÙ (Í³é³ÛáõÃÛáõÝÝ»ñ ¨ ÝÛáõÃ»ñ) | C66: x | D66: 0 | E66: 0 | F66: =F67 -> 1500 | G66: =G67 -> 200 | H66: =H67 -> 500 | I66: =I67 -> 700 | J66: =J67 -> 1500
A67: 1125100 | B67: -Þ»Ýù»ñÇ ¨ Ï³éáõÛóÝ»ñÇ ÁÝÃ³óÇÏ Ýáñá·áõÙ ¨ å³Ñå³ÝáõÙ | C67: 425100 | D67: 1500 | E67: 0 | F67: =D67+E67 -> 1500 | G67: 200 | H67: 500 | I67: 700 | J67: =F67 -> 1500
A68: 1125200 | B68: -Ø»ù»Ý³Ý»ñÇ ¨ ë³ñù³íáñáõÙÝ»ñÇ ÁÝÃ³óÇÏ Ýáñá·áõÙ ¨ å³Ñå³ÝáõÙ | C68: 425200 | J68: 0
A69: 1126000 | B69: 2.6 ÜÛáõÃ»ñ | C69: x | D69: 0 | E69: 0 | F69: 0 | G69: 0 | H69: 0 | I69: 0 | J69: 0
A70: 1126100 | B70: -¶ñ³ë»ÝÛ³Ï³ÛÇÝ ÝÛáõÃ»ñ ¨ Ñ³·áõëï | C70: 426100 | J70: 0
A71: 1126200 | B71: -¶ÛáõÕ³ïÝï»ë³Ï³Ý ³åñ³ÝùÝ»ñ | C71: 426200 | J71: 0
A72: 1126300 | B72: -ì»ñ³å³ïñ³ëïÙ³Ý ¨ áõëáõóÙ³Ý ÝÛáõÃ»ñ | C72: 426300 | J72: 0
A73: 1126400 | B73: -îñ³Ýëåáñï³ÛÇÝ ÝÛáõÃ»ñ | C73: 426400 | J73: 0
A74: 1126500 | B74: -Þñç³Ï³ ÙÇç³í³ÛñÇ å³ßïå³ÝáõÃÛ³Ý ¨ ·Çï³Ï³Ý ÝÛáõÃ»ñ | C74: 426500 | J74: 0
A75: 1126600 | B75: -²éáÕç³å³Ñ³Ï³Ý ¨ É³µáñ³ïáñ ÝÛáõÃ»ñ | C75: 426600 | J75: 0
A76: 1126700 | B76: -Î»Ýó³Õ³ÛÇÝ ¨ Ñ³Ýñ³ÛÇÝ ëÝÝ¹Ç ÝÛáõÃ»ñ | C76: 426700 | J76: 0
A77: 1126800 | B77: -Ð³ïáõÏ Ýå³ï³Ï³ÛÇÝ ³ÛÉ ÝÛáõÃ»ñ | C77: 426900 | D77: 0 | E77: 0 | F77: =D77 -> 0 | G77: 0 | H77: 0 | I77: 0 | J77: =F77 -> 0
A78: 1130000 | B78: 3 îáÏáë³í×³ñÝ»ñ | C78: x | D78: 0 | E78: 0 | F78: 0 | G78: 0 | H78: 0 | I78: 0 | J78: 0
A79: 1130100 | B79: -Ü»ñùÇÝ ³ñÅ»ÃÕÃ»ñÇ ïáÏáë³í×³ñÝ»ñ | C79: 441100 | J79: 0
A80: 1130200 | B80: -Ü»ñùÇÝ í³ñÏ»ñÇ ïáÏáë³í×³ñÝ»ñ | C80: 441200 | J80: 0
A81: 1130300 | B81: -²ñï³ùÇÝ ³ñÅ»ÃÕÃ»ñÇ ·Íáí ïáÏáë³í×³ñÝ»ñ | C81: 442100 | J81: 0
A82: 1130400 | B82: -²ñï³ùÇÝ í³ñÏ»ñÇ ·Íáí ïáÏáë³í×³ñÝ»ñ | C82: 442200 | J82: 0
A83: 1131000 | B83: öáË³éáõÃÛáõÝÝ»ñÇ Ñ»ï Ï³åí³Í í×³ñÝ»ñ | C83: x | J83: 0
A84: 1131100 | B84: -öáË³Ý³ÏÙ³Ý Ïáõñë»ñÇ µ³ó³ë³Ï³Ý ï³ñµ»ñáõÃÛáõÝ | C84: 443100 | J84: 0
A85: 1131200 | B85: -îáõÛÅ»ñ | C85: 443200 | J85: 0
A86: 1131300 | B86: -öáË³éáõÃÛáõÝÝ»ñÇ ·Íáí ïáõñù»ñ | C86: 443300 | J86: 0
A87: 1140000 | B87: 4. êáõµëÇ¹Ç³Ý»ñ | C87: x | D87: 0 | E87: 0 | F87: 0 | G87: 0 | H87: 0 | I87: 0 | J87: 0
A88: 1141000 | B88: -êáõµëÇ¹Ç³Ý»ñ áã-ýÇÝ³Ýë³Ï³Ý å»ï³Ï³Ý Ï³½Ù³Ï»ñåáõÃÛáõÝÝ»ñÇÝ | C88: 451100 | J88: 0
A89: 1142000 | B89: -êáõµëÇ¹Ç³Ý»ñ ýÇÝ³Ýë³Ï³Ý å»ï³Ï³Ý Ï³½Ù³Ï»ñåáõÃÛáõÝÝ»ñÇÝ | C89: 451200 | J89: 0
A90: 1143000 | B90: -êáõµëÇ¹Ç³Ý»ñ áã å»ï³Ï³Ý áã ýÇÝ³Ýë³Ï³Ý Ï³½Ù³Ï»ñåáõÃÛáõÝÝ»ñÇÝ | C90: 452100 | J90: 0
A91: 1144000 | B91: -êáõµëÇ¹Ç³Ý»ñ áã å»ï³Ï³Ý ýÇÝ³Ýë³Ï³Ý Ï³½Ù³Ï»ñåáõÃÛáõÝÝ»ñÇÝ | C91: 452200 | J91: 0
A92: 1150000 | B92: 5.¸ñ³Ù³ßÝáñÑÝ»ñ | C92: x | D92: 0 | E92: 0 | F92: 0 | G92: 0 | H92: 0 | I92: 0 | J92: 0
A93: 1151000 | B93: -ÀÝÃ³óÇÏ ¹ñ³Ù³ßÝáñÑÝ»ñ ûï³ñ»ñÏñÛ³ Ï³é³í³ñáõÃÛáõÝÝ»ñÇÝ | C93: 461100 | J93: 0
A94: 1152000 | B94: -Î³åÇï³É ¹ñ³Ù³ßÝáñÑÝ»ñ ûï³ñ»ñÏñÛ³ Ï³é³í³ñáõÃÛáõÝÝ»ñÇÝ | C94: 461200 | J94: 0
A95: 1153000 | B95: -ÀÝÃ³óÇÏ ¹ñ³Ù³ßÝáñÑÝ»ñ ÙÇç³½·³ÛÇÝ Ï³½Ù³Ï»ñåáõÃÛáõÝÝ»ñÇÝ | C95: 462100 | J95: 0
A96: 1154000 | B96: -Î³åÇï³É ¹ñ³Ù³ßÝáñÑÝ»ñ ÙÇç³½·³ÛÇÝ Ï³½Ù³Ï»ñåáõÃÛáõÝÝ»ñÇÝ | C96: 462200 | J96: 0
A97: 1155000 | B97: -ÀÝÃ³óÇÏ ¹ñ³Ù³ßÝáñÑÝ»ñ å»ï³Ï³Ý Ñ³ïí³ÍÇ ³ÛÉ Ù³Ï³ñ¹³ÏÝ»ñÇÝ | C97: 463100 | J97: 0
A98: 1156000 | B98: -Î³åÇï³É ¹ñ³Ù³ßÝáñÑÝ»ñ å»ï³Ï³Ý Ñ³ïí³ÍÇ ³ÛÉ Ù³Ï³ñ¹³ÏÝ»ñÇÝ | C98: 463200 | J98: 0
A99: 1153300 | B99: ä»ï³Ï³Ý µÛáõç»Çó Ñ³Ù³ÛÝùÝ»ñÇ µÛáõç»Ý»ñÇÝ ýÇÝ³Ýë³Ï³Ý Ñ³Ù³Ñ³ñÃ»óÙ³Ý ëÏ½µáõÝùáí ïñíáÕ ¹áï³óÇ³Ý»ñ | C99: 463300 | J99: 0
A100: 1153400 | B100: úñ»ÝùÝ»ñÇ ÏÇñ³ñÏÙ³Ý ³ñ¹ÛáõÝùáõÙ Ñ³Ù³ÛÝùÝ»ñÇ µÛáõç»Ý»ñÇ ÏáñáõëïÝ»ñÇ ÷áËÑ³ïáõóáõÙ | C100: 463400 | J100: 0
A101: 1153500 | B101: ²ÛÉ ÁÝÃ³óÇÏ ¹ñ³Ù³ßÝáñÑÝ»ñ Ñ³Ù³ÛÝùÝ»ñÇÝ | C101: 463500 | J101: 0
A102: 1153700 | B102: ÀÝÃ³óÇÏ ¹ñ³Ù³ßÝáñÑÝ»ñ å»ï³Ï³Ý ¨ Ñ³Ù³ÛÝùÝ»ñÇ áã ³é¨ïñ³ÛÇÝ Ï³½Ù³Ï»ñåáõÃÛáõÝÝ»ñÇÝ | C102: 463700 | D102: 0 | E102: 0 | F102: =D102+E102 -> 0 | G102: 0 | H102: 0 | I102: 0 | J102: =F102 -> 0
A103: 1153800 | B103: ÀÝÃ³óÇÏ ¹ñ³Ù³ßÝáñÑÝ»ñ å»ï³Ï³Ý ¨ Ñ³Ù³ÛÝùÝ»ñÇ ³é¨ïñ³ÛÇÝ Ï³½Ù³Ï»ñåáõÃÛáõÝÝ»ñÇÝ | C103: 463800 | J103: 0
A104: 1153900 | B104: ²ÛÉ ÁÝÃ³óÇÏ ¹ñ³Ù³ßÝáñÑÝ»ñ | C104: 463900 | J104: 0
A105: 1154000 | B105: Î³åÇï³É ¹ñ³Ù³ßÝáñÑÝ»ñ å»ï³Ï³Ý Ñ³ïí³ÍÇ ³ÛÉ Ù³Ï³ñ¹³ÏÝ»ñÇÝ | C105: x | D105: 0 | F105: 0 | G105: 0 | H105: 0 | I105: 0 | J105: 0
A106: 1154100 | B106: Î³åÇï³É ¹ñ³Ù³ßÝáñÑÝ»ñ å»ï³Ï³Ý Ï³é³í³ñÙ³Ý Ñ³ïí³ÍÇÝ | C106: 465100 | J106: 0
A107: 1154200 | B107: Î³åÇï³É ëáõµí»ÝóÇ³Ý»ñ Ñ³Ù³ÛÝùÝ»ñÇÝ | C107: 465200 | D107: 0 | E107: 0 | F107: =D107 -> 0 | J107: =F107 -> 0
A108: 1154300 | B108: ²ÛÉ Ï³åÇï³É ¹ñ³Ù³ßÝáñÑÝ»ñ Ñ³Ù³ÛÝùÝ»ñÇÝ | C108: 465300 | J108: 0
A109: 1154500 | B109: Î³åÇï³É ¹ñ³Ù³ßÝáñÑÝ»ñ å»ï³Ï³Ý ¨ Ñ³Ù³ÛÝùÝ»ñÇ áã ³é¨ïñ³ÛÇÝ Ï³½Ù³Ï»ñåáõÃÛáõÝÝ»ñÇÝ | C109: 465500 | J109: 0
A110: 1154600 | B110: Î³åÇï³É ¹ñ³Ù³ßÝáñÑÝ»ñ å»ï³Ï³Ý ¨ Ñ³Ù³ÛÝù³ÛÇÝ ³é¨ïñ³ÛÇÝ Ï³½Ù³Ï»ñåáõÃÛáõÝÝ»ñÇÝ | C110: 465600 | J110: 0
A111: 1154700 | B111: ²ÛÉ Ï³åÇï³É ¹ñ³Ù³ßÝáñÑÝ»ñ | C111: 465700 | J111: 0
A112: 1162600 | B112: -ÐáõÕ³ñÏ³íáñáõÃÛ³Ý Ýå³ëïÝ»ñ µÛáõç»Çó | C112: 472600 | J112: 0
A113: 1162700 | B113: -ÎñÃ³Ï³Ý, Ùß³ÏáõÃ³ÛÇÝ ¨ ëåáñï³ÛÇÝ Ýå³ëïÝ»ñ µÛáõç»Çó | C113: 472700 | J113: 0
A114: 1162800 | B114: -´Ý³Ï³ñ³Ý³ÛÇÝ Ýå³ëïÝ»ñ µÛáõç»Çó | C114: 472800 | J114: 0
A115: 1162900 | B115: -²ÛÉ Ýå³ëïÝ»ñ µÛáõç»Çó | C115: 472900 | J115: 0
A116: 1170000 | B116: 7. ²ÚÈ Ì²Êêºð | C116: x | D116: 0 | E116: 0 | F116: 0 | G116: 0 | H116: 0 | I116: 0 | J116: 0
A117: 1171000 | B117: 7.1 ÜìÆð²îìàôÂÚàôÜÜºð àâ-Î²è²ì²ðâ²Î²Ü (Ð²ê²ð²Î²Î²Ü) Î²¼Ø²ÎºðäàôÂÚàôÜÜºðÆÜ | C117: x | D117: 0 | E117: 0 | F117: 0 | G117: 0 | H117: 0 | I117: 0 | J117: 0
A118: 1171100 | B118: -îÝ³ÛÇÝ ïÝï»ëáõÃÛáõÝÝ»ñÇÝ Í³é³ÛáõÃÛáõÝÝ»ñ Ù³ïáõóáÕ` ß³ÑáõÛÃ ãÑ»ï³åÝ¹áÕ Ï³½Ù³Ï»ñåáõÃÛáõÝÝ»ñÇÝ ÝíÇñ³ïíáõÃÛáõÝÝ»ñ | C118: 481100 | J118: 0
A119: 1171200 | B119: -ÜíÇñ³ïíáõÃÛáõÝÝ»ñ ³ÛÉ ß³ÑáõÛÃ ãÑ»ï³åÝ¹áÕ Ï³½Ù³Ï»ñåáõÃÛáõÝÝ»ñÇÝ | C119: 481900 | J119: 0
A120: 1172000 | B120: 7.2 Ð²ðÎºð, ä²ðî²¸Æð ìÖ²ðÜºð ºì îàôÚÄºð, àðàÜø Î²è²ì²ðØ²Ü î²ð´ºð Ø²Î²ð¸²ÎÜºðÆ ÎàÔØÆò ÎÆð²èìàôØ ºÜ ØÆØÚ²Üò ÜÎ²îØ²Ø´ | C120: x | D120: 0 | E120: 0 | F120: 0 | G120: 0 | H120: 0 | I120: 0 | J120: 0
A121: 1172100 | B121: -²ßË³ï³í³ñÓÇ ýáÝ¹ | C121: 482100 | J121: 0
A122: 1172200 | B122: -²ÛÉ Ñ³ñÏ»ñ | C122: 482200 | J122: 0
A123: 1172300 | B123: -ä³ñï³¹Çñ í×³ñÝ»ñ | C123: 482300 | E123: 0 | J123: 0
A124: 1172400 | B124: -ä»ï³Ï³Ý Ñ³ïí³ÍÇ ï³ñµ»ñ Ù³Ï³ñ¹³ÏÝ»ñÇ ÏáÕÙÇó ÙÇÙÛ³Ýó ÝÏ³ïÙ³Ùµ ÏÇñ³éíáÕ ïáõÛÅ»ñ | C124: 482400 | J124: 0
A125: 1173000 | B125: 7.3 ¸²î²ð²ÜÜºðÆ ÎàÔØÆò ÜÞ²Ü²Îì²Ì îàôÚÄºð ºì îàô¶²ÜøÜºð | C125: x | D125: 0 | E125: 0 | F125: 0 | G125: 0 | H125: 0 | I125: 0 | J125: 0
A126: 1173100 | B126: -¸³ï³ñ³ÝÝ»ñÇ ÏáÕÙÇó Ýß³Ý³Ïí³Í ïáõÛÅ»ñ ¨ ïáõ·³ÝùÝ»ñ | C126: 483100 | J126: 0
A127: 1174000 | B127: 7.4 ´Ü²Î²Ü ²ÔºîÜºðÆò Î²Ø ²ÚÈ ´Ü²Î²Ü ä²îÖ²èÜºðàì ²è²æ²ò²Ì ìÜ²êÜºðÆ Î²Ø ìÜ²êì²ÌøÜºðÆ ìºð²Î²Ü¶ÜàôØ | C127: x | D127: 0 | E127: 0 | F127: 0 | G127: 0 | H127: 0 | I127: 0 | J127: 0
A128: 1174100 | B128: -´Ý³Ï³Ý ³Õ»ïÝ»ñÇó ³é³ç³ó³Í íÝ³ëí³ÍùÝ»ñÇ Ï³Ù íÝ³ëÝ»ñÇ í»ñ³Ï³Ý·ÝáõÙ | C128: 484100 | J128: 0
A129: 1174200 | B129: -²ÛÉ µÝ³Ï³Ý å³ï×³éÝ»ñáí ëï³ó³Í íÝ³ëí³ÍùÝ»ñÇ í»ñ³Ï³Ý·ÝáõÙ | C129: 484200 | J129: 0
A130: 1175000 | B130: 7.5 Î²è²ì²ðØ²Ü Ø²ðØÆÜÜºðÆ ¶àðÌàôÜºàôÂÚ²Ü Ðºîºì²Üøàì ²è²æ²ò²Ì ìÜ²êÜºðÆ Î²Ø ìÜ²êì²ÌøÜºðÆ ìºð²Î²Ü¶ÜàôØ | C130: x | D130: 0 | E130: 0 | F130: 0 | G130: 0 | H130: 0 | I130: 0 | J130: 0
A131: 1175100 | B131: -Î³é³í³ñÙ³Ý Ù³ñÙÇÝÝ»ñÇ ·áñÍáõÝ»áõÃÛ³Ý Ñ»ï¨³Ýùáí ³é³ç³ó³Í íÝ³ëí³ÍùÝ»ñÇ Ï³Ù íÝ³ëÝ»ñÇ í»ñ³Ï³Ý·ÝáõÙ | C131: 485100 | J131: 0
A132: 1176000 | B132: 7.6 ²ÚÈ Ì²Êêºð | C132: x | D132: 0 | E132: 0 | F132: 0 | G132: 0 | H132: 0 | I132: 0 | J132: 0
A133: 1176100 | B133: -²ÛÉ Í³Ëë»ñ | C133: 486100 | J133: 0
A134: 1177000 | B134: 7.7 ä²Ðàôêî²ÚÆÜ ØÆæàòÜºð | C134: x | D134: 0 | E134: 0 | F134: 0 | G134: 0 | H134: 0 | I134: 0 | J134: 0
A135: 1177100 | B135: -ä³Ñáõëï³ÛÇÝ ÙÇçáóÝ»ñ | C135: 489100 | J135: 0
A136: ---- | B136: ------- | J136: 0
A137: 1200000 | B137: Բ, àâ-üÆÜ²Üê²Î²Ü ²ÎîÆìÜºðÆ ¶Ìàì Ì²Êêºð | C137: x | D137: =D143 -> 0 | E137: 0 | F137: =F143 -> 0 | G137: =G143 -> 0 | H137: =H143 -> 0 | I137: =I143 -> 0 | J137: =J142+J143 -> 0
B138: ³Û¹ ÃíáõÙ` | J138: =J142 -> 0
A139: ---- | B139: ------- | J139: 0
A140: 1210000 | B140: 1.ÐÆØÜ²Î²Ü ØÆæàòÜºð | C140: x | D140: =D142 -> 0 | E140: 0 | F140: =F142 -> 0 | G140: =G142 -> 0 | H140: =H142 -> 0 | I140: =I142 -> 0 | J140: =J142 -> 0
A141: 1211000 | B141: -Þ»Ýù»ñÇ ¨ ßÇÝáõÃÛáõÝÝ»ñÇ Ó»éù µ»ñáõÙ | C141: 511100 | J141: 0
A142: 1212000 | B142: -Þ»Ýù»ñÇ ¨ ßÇÝáõÃÛáõÝÝ»ñÇ Ï³éáõóáõÙ | C142: 511200 | D142: 0 | E142: 0 | F142: =D142+E142 -> 0 | G142: 0 | H142: 0 | I142: 0 | J142: =F142 -> 0
A143: 1213000 | B143: -Þ»Ýù»ñÇ ¨ ßÇÝáõÃÛáõÝÝ»ñÇ Ï³åÇï³É í»ñ³Ýáñá·áõÙ | C143: 511300 | D143: 0 | E143: 0 | F143: =D143+E143 -> 0 | G143: 0 | H143: 0 | I143: 0 | J143: =F143 -> 0
A144: 1214000 | B144: -îñ³Ýëåáñï³ÛÇÝ ë³ñù³íáñáõÙÝ»ñ | C144: 512100 | G144: 1000 | J144: 0
A145: 1215000 | B145: -ì³ñã³Ï³Ý ë³ñù³íáñáõÙÝ»ñ | C145: 512200 | J145: 0
A146: 1216000 | B146: -²ÛÉ Ù»ù»Ý³Ý»ñ ¨ ë³ñù³íáñáõÙÝ»ñ | C146: 512900 | J146: 0
A147: 1217000 | B147: -²×»óíáÕ ³ÏïÇíÝ»ñ | C147: 513100 | J147: 0
A148: 1218000 | B148: -àã-ÝÛáõÃ³Ï³Ý ÑÇÙÝ³Ï³Ý ÙÇçáóÝ»ñ | C148: 513200 | J148: 0
A149: 1220000 | B149: 2.ä²Þ²ðÜºð | C149: x | D149: 0 | E149: 0 | F149: 0 | G149: 0 | H149: 0 | I149: 0 | J149: 0
A150: 1221000 | B150: -è³½Ù³í³ñ³Ï³Ý å³ß³ñÝ»ñ | C150: 521100 | J150: 0
A151: 1222000 | B151: -ÜÛáõÃ»ñ ¨ å³ñ³·³Ý»ñ | C151: 522100 | J151: 0
A152: 1223000 | B152: -ì»ñ³í³×³éùÇ Ñ³Ù³ñ Ý³Ë³ï»ëí³Í ³åñ³ÝùÝ»ñ | C152: 523100 | J152: 0
A153: 1224000 | B153: -êå³éÙ³Ý Ýå³ï³Ïáí å³ÑíáÕ å³ß³ñÝ»ñ | C153: 524100 | J153: 0
A154: 1230000 | B154: 3.´²ðÒð²ðÄºø ²ÎîÆìÜºð | C154: x | D154: 0 | E154: 0 | F154: 0 | G154: 0 | H154: 0 | I154: 0 | J154: 0
A155: 1231000 | B155: -´³ñÓñ³ñÅ»ù ³ÏïÇíÝ»ñ | C155: 531100 | J155: 0
A156: 1240000 | B156: 4.àâ ²ðî²¸ð²Î²Ü ԱԿՏԻՎՆԵՐ | C156: x | D156: 0 | E156: 0 | F156: 0 | G156: 0 | H156: 0 | I156: 0 | J156: 0
A157: 1241000 | B157: -ÐáÕ | C157: 541100 | J157: 0
A158: 1242000 | B158: -ÀÝ¹»ñù³ÛÇÝ ³ÏïÇíÝ»ñ | C158: 542100 | J158: 0
A159: 1243000 | B159: -²ÛÉ µÝ³Ï³Ý Í³·áõÙ áõÝ»óáÕ ³ÏïÇíÝ»ñ | C159: 543100 | J159: 0
A160: 1244000 | B160: -àã ÝÛáõÃ³Ï³Ý áã ³ñï³¹ñ³Ï³Ý ³ÏïÇíÝ»ñ | C160: 544100 | J160: 0
A161: 1000000 | B161: ԸՆԴԱՄԵՆԸ ºÈøºð` (ïáÕ 1100000+ïáÕ1200000) | C161: x | D161: =D32+D137 -> 1500 | E161: =E32 -> 0 | F161: =F32+F137 -> 1500 | G161: =G32+G137 -> 200 | H161: =H32+H137 -> 500 | I161: =I32+I137 -> 700 | J161: =J32+J142+J137 -> 1500
A164: §17¦ § դեÏï»Ùµ»ñ ¦ 2020 Ã.
A166: ÐÆØÜ²ðÎÆ ÔºÎ²ì²ðª _______________ _________________ | G166: Է.Արշակյան
E167: (ëïáñ³·ñáõÃÛáõÝ) | G167: (².Ð.².)
A168: Î.î.
A169: üÆÜ²Üê²Î²Ü Ì²è²ÚàôÂÚ²Ü äºîª _______________ _________________ | G169: ն. Մուրադյան
B170: (¶ÈÊ²ìàð Ð²Þì²ä²Ð) | E170: (ëïáñ³·ñáõÃÛáõÝ) | G170: (².Ð.².)

Sheet subv bnak (hidden)
I1: Ð³í»Éí³Í N 2
H3: úñÇÝ³Ï»ÉÇ Ó¨ N1
G4: h³ëï³ïí»É ¿ ÐÐ ýÇÝ³ÝëÝ»ñÇ ¨ ¿ÏáÝáÙÇÏ³ÛÇ
H5: Ý³Ë³ñ³ñÇ 23 ÑáõÉÇëÇ 2007 Ãí³Ï³ÝÇ
B6: §Ð ² ê î ² î àô Ø ºØª¦ | G6: N 597-Ü Ññ³Ù³Ýáí
A8: Ý³Ë³Ñ³ßÇíÁ 21050,0 քսանմեկ միլիոն հիսուն հազար դրամ
A9: ( ÁÝ¹³Ù»ÝÁ ·áõÙ³ñÁ Ãí»ñáí ¨ ï³é»ñáí****)
A10: _______________________________________________________________________________________________________________ Ñ³½³ñ ¹ñ³Ù ·áõÙ³ñáí:
A12: __________________________________________________________________________________________ | B12: Է. Արշակյան | H12: Î.î.
A13: (ÐÐ å»ï³Ï³Ý Ï³é³í³ñÙ³Ý Ù³ñÙÝÇ Õ»Ï³í³ñÇ /Ñ³Ù³ÛÝùÇ Õ»Ï³í³ñÇ/ ëïáñ³·ñáõÃÛáõÝÁ ¨ ².Ð.².)
A14: § ¦ դեկտեմբերի 2020թ
B15: Ü²Ê²Ð²ÞÆì*
B16: ´ Ú àô æ º î ² Ú Æ Ü Ð Æ Ø Ü ² ð Î Æ ä ² Ð ä ² Ü Ø ² Ü Ì ² Ê ê º ð Æ
B17: §01¦ §ÐáõÝí³ñÇ ¦ 2021 Ã. -- §30¦ §¹»Ïï»Ùµ»ñÇ ¦ 2021 Ã.
A19: 1. ÐÇÙÝ³ñÏÇ ³Ýí³ÝáõÙÁ Քաղաքապետարան | G19: 8. ***** ´Ûáõç»ï³ÛÇÝ Í³Ëë»ñÇ ·áñÍ³é³Ï³Ý ¹³ë³Ï³ñ·.
G20: Í³ÍÏ³·Çñ | H20: 6 | I20: 1 | J20: 1
A21: 3. ÐÇÙÝ³ñÏÇ ï»Õ³µ³ßËÙ³Ý Ù³ñ½Ç ¨ Ñ³Ù³ÛÝùÇ Ïá¹Ý Áëï | G21: 9. Ìñ³·ñÇ ³Ýí³ÝáõÙÁ_բնակարանային շինարարություն սուբվեն
A22: µÛáõç»ï³ÛÇÝ Í³Ëë»ñÇ ï³ñ³Íù³ÛÇÝ ¹³ë³Ï³ñ·Ù³Ý | G22: ________________________________
A23: 4. ** ÐÐ å»ï³Ï³Ý Ï³é³í³ñÙ³Ý (ï»Õ³Ï³Ý ÇÝùÝ³Ï³é³í³ñÙ³Ý) Ù³ñÙÝÇ | G23: 10. Ìñ³·ñÇ Ïá¹Á
A24: ³Ýí³ÝáõÙÁ Լոռու մարզպետարան | G24: 11.*** ÐÐ å»ï³Ï³Ý Ï³é³í³ñÙ³Ý (îÆ)
A25: 5. ÐÇÙÝ³ñÏÁ ëå³ë³ñÏáÕ ï»Õ³Ï³Ý ·³ÝÓ³å»ï³Ï³Ý µ³ÅÝÇ (î¶´) ³Ýí³ÝáõÙÁ Տաշիրի | G25: Ù³ñÙÝÇ Ïá¹Ý Áëï µÛáõç»ï³ÛÇÝ Í³Ëë»ñÇ ·»ñ³ï»ëã³Ï.
A26: 6. ÐÇÙÝ³ñÏÇª ï»Õ³Ï³Ý ·³ÝÓ³å»ï³Ï³Ý µ³ÅÝáõÙ (î¶´) Ñ³ßí³éÙ³Ý Ñ³Ù³ñÁ | G26: ¹³ë³Ï³ñ·Ù³Ý
A27: 7. üÇÝ³Ýë³íáñÙ³Ý ³ÕµÛáõñÇ Ïá¹Á (ÐÐ å»ï³Ï³Ý µÛáõç»ª 1, Ñ³Ù³ÛÝùÇ µÛáõç»ª 2) | E27: 2 | G27: 12. â³÷Ç ÙÇ³íáñÁª Ñ³½³ñ ¹ñ³Ù
A29: îáÕÇ NN | B29: ´Ûáõç»ï³ÛÇÝ Í³Ëë»ñÇ ïÝï»ë³·Çï³Ï³Ý ¹³ë³Ï³ñ·Ù³Ý ï³ññ»ñ | D29: ÜáõÛÝ Å³Ù³Ý³Ï³Ñ³ïí³ÍÇ Ñ³Ù³ñ Ý³ËÏÇÝáõÙ Ñ³ëï³ïí³Íª ·áñÍáÕ | F29: êáõÛÝ Ý³Ë³Ñ³ßíáí Ñ³ëï³ïíáÕ óáõó³ÝÇßÝ»ñÁ | G29: ³Û¹ ÃíáõÙª Áëï »é³ÙëÛ³ÏÝ»ñÇ (»é³ÙëÛ³ÏÇ ³ÙÇëÝ»ñÇ)³×áÕ³Ï³Ý
B30: ³Ýí³ÝáõÙÝ»ñÁ | C30: NN | D30: Ý³Ë³Ñ³ßíÇ óáõó³ÝÇßÝ»ñÁ | E30: Ý³Ë³Ñ³ßíáõÙ Ï³ï³ñí³Í ÷á÷áËáõÃÛáõÝ-Ý»ñÁ (³í»É³óáõÙÁª /+/, å³Ï³ë»óáõÙÁª/-/ | G30: I | H30: II | I30: III | J30: IV
A31: ² | B31: ´ | C31: ¶ | D31: 1 | E31: 2 | F31: 3 | G31: 4 | H31: 5 | I31: 6 | J31: 7
A32: 1100000 | B32: ². ÀÜÂ²òÆÎ Ì²Êêºðª ÀÜ¸²ØºÜÀ, | C32: x | D32: =D114+D67 -> 0 | E32: =E114 -> 0 | F32: =F114+F66 -> 0 | G32: =G33+G42+G131 -> 0 | H32: =H66 -> 0 | I32: =I66 -> 0 | J32: =F32 -> 0
A33: 1110000 | B33: 1.äºî²Î²Ü, îºÔ²Î²Ü ÆÜøÜ²Î²è²ì²ðØ²Ü Ø²ðØÆÜÜºðÆ, ¸ð²Üò ºÜÂ²Î² ´Úàôæºî²ÚÆÜ ÐÆØÜ²ðÎÜºðÆ ²ÞÊ²îàÔÜºðÆ ²ÞÊ²î²ì²ðÒÀª ÀÜ¸²ØºÜÀ, ³Û¹ ÃíáõÙª | C33: x | D33: =D34 -> 0 | F33: =F34 -> 0 | G33: =G34 -> 0 | H33: =H34 -> 0 | I33: =I34 -> 0 | J33: =J34 -> 0
A34: 1110000 | B34: 1,1 ²ßË³ï³ÝùÇ í³ñÓ³ïñáõÃÛáõÝ | C34: x | D34: =SUM(D35:D41) -> 0 | F34: =SUM(F35:F41) -> 0 | G34: =SUM(G35:G41) -> 0 | H34: =SUM(H35:H41) -> 0 | I34: =SUM(I35:I41) -> 0 | J34: =SUM(J35:J41) -> 0
A35: 1111000 | B35: -²ßË³ïáÕÝ»ñÇ ³ßË³ï³í³ñÓ»ñ ¨ Ñ³í»É³í×³ñÝ»ñ | C35: 411100 | D35: 0 | F35: =D35+E35 -> 0 | G35: 0 | H35: 0 | I35: 0 | J35: =F35 -> 0
A36: 1112000 | B36: - ä³ñ·¨³ïñáõÙÝ»ñ, ¹ñ³Ù³Ï³Ý Ëñ³ËáõëáõÙÝ»ñ ¨ Ñ³ïáõÏ í×³ñÝ»ñ | C36: 411200 | D36: 0 | F36: =D36+E36 -> 0 | H36: 0 | I36: 0 | J36: =F36 -> 0
A37: 1113000 | B37: -ø³Õ³ù³óÇ³Ï³Ý, ¹³ï³Ï³Ý ¨ å»ï³Ï³Ý Í³é³ÛáÕÝ»ñÇ å³ñ·¨³ïñáõÙ | C37: 411300 | F37: 0 | J37: 0
A38: 1114000 | B38: -ÐÐ ýÇÝ³ÝëÝ»ñÇ ¨ ¿ÏáÝáÙÇÏ³ÛÇ Ý³Ë³ñ³ñáõÃÛ³Ý, Ñ³ñÏ³ÛÇÝ ¨ Ù³ùë³ÛÇÝ Ù³ñÙÇÝÝ»ñÇ ³ßË³ïáÕÝ»ñÇ å³ñ·¨³ïñáõÙ | C38: 411400 | F38: 0 | J38: 0
A39: 1115000 | B39: -²ÛÉ í³ñÓ³ïñáõÃÛáõÝÝ»ñ | C39: 411500 | F39: 0 | J39: 0
A40: 1116000 | B40: -´Ý»Õ»Ý ³ßË³ï³í³ñÓ»ñ ¨ Ñ³í»É³í×³ñÝ»ñ | C40: 412100 | F40: 0 | J40: 0
A41: 1117000 | B41: - êáóÇ³É³Ï³Ý ³å³ÑáíáõÃÛ³Ý í×³ñÝ»ñ | C41: 413100 | D41: 0 | F41: 0 | G41: 0 | H41: 0 | I41: 0 | J41: =F41 -> 0
A42: 1120000 | B42: 2 Ì³é³ÛáõÃÛáõÝÝ»ñÇ ¨ ³åñ³ÝùÝ»ñÇ Ó»éù µ»ñáõÙ | C42: x | D42: =D43+D55+D66+D69+D51+D64 -> 0 | F42: =F43+F55+F66+F69+F51+F64 -> 0 | G42: =G43+G51+G55+G64+G66+G69 -> 0 | H42: =H43+H51+H55+H64+H66+H69 -> 0 | I42: =I43+I51+I55+I64+I66+I69 -> 0 | J42: =F42 -> 0
A43: 1121000 | B43: 2.1 Þ³ñáõÝ³Ï³Ï³Ý Í³Ëë»ñ | D43: =SUM(D44:D49) -> 0 | F43: =SUM(F44:F49) -> 0 | G43: =SUM(G44:G49) -> 0 | H43: =SUM(H44:H49) -> 0 | I43: =SUM(I44:I49) -> 0 | J43: =SUM(J44:J49) -> 0
A44: 1121100 | B44: -·áñÍ³éÝ³Ï³Ý ¨ µ³ÝÏ³ÛÇÝ Í³é³ÛáõÃÛáõÝÝ»ñÇ Í³Ëë»ñ | C44: 421100 | F44: =D44+E44 -> 0 | J44: 0
A45: 1121200 | B45: -¿Ý»ñ·»ïÇÏ Í³é³ÛáõÃÛáõÝÝ»ñ | C45: 421200 | D45: 0 | F45: 0 | G45: 0 | H45: 0 | I45: 0 | J45: =F45 -> 0
A46: 1121300 | B46: -ÎáÙáõÝ³É Í³é³ÛáõÃÛáõÝÝ»ñ | C46: 421300 | D46: 0 | F46: 0 | G46: 0 | H46: 0 | I46: 0 | J46: =F46 -> 0
A47: 1121400 | B47: -Î³åÇ Í³é³ÛáõÃÛáõÝÝ»ñ | C47: 421400 | D47: 0 | F47: 0 | G47: 0 | H47: 0 | I47: 0 | J47: =F47 -> 0
A48: 1121500 | B48: -²å³Ñáí³·ñ³Ï³Ý Í³Ëë»ñ | C48: 421500 | F48: 0 | J48: 0
A49: 1121600 | B49: -¶áõÛùÇ ¨ ë³ñù³íáñáõÙÝ»ñÇ í³ñÓ³Ï³ÉáõÃÛáõÝ | C49: 421600 | F49: 0 | J49: 0
A50: 1121700 | B50: -²ñï³·»ñ³ï»ëã³Ï³Ý Í³Ëë»ñ | C50: 421700 | J50: 0
A51: 1122000 | B51: 2.2 ¶áñÍáõÕáõÙÝ»ñÇ ¨ ßñç³·³ÛáõÃÛ³Ý Í³Ëë»ñ | C51: x | D51: =D52 -> 0 | F51: =F52 -> 0 | G51: =G52 -> 0 | H51: =H52 -> 0 | I51: =I52 -> 0 | J51: =J52 -> 0
A52: 1122100 | B52: -Ü»ñùÇÝ ·áñÍáõÕáõÙÝ»ñ | C52: 422100 | D52: 0 | F52: =D52+E52 -> 0 | G52: 0 | H52: 0 | I52: 0 | J52: =F52 -> 0
A53: 1122200 | B53: -²ñï³ë³ÑÙ³ÝÛ³Ý ·áñÍáõÕáõÙÝ»ñÇ ·Íáí Í³Ëë»ñ | C53: 422200 | F53: =D53+E53 -> 0 | J53: 0
A54: 1122300 | B54: -²ÛÉ ïñ³Ýëåáñï³ÛÇÝ Í³Ëë»ñ | C54: 422900 | F54: =D54+E54 -> 0 | J54: 0
A55: 1123000 | B55: 2.3 ä³ÛÙ³Ý³·ñ³ÛÇÝ ³ÛÉ Í³é³ÛáõÃÛáõÝÝ»ñÇ Ó»éù µ»ñáõÙ | C55: x | D55: =SUM(D56:D63) -> 0 | F55: =SUM(F56:F63) -> 0 | G55: =SUM(G56:G63) -> 0 | H55: =SUM(H56:H63) -> 0 | I55: =SUM(I56:I63) -> 0 | J55: =F55 -> 0
A56: 1123100 | B56: -ì³ñã³Ï³Ý Í³é³ÛáõÃÛáõÝÝ»ñ | C56: 423100 | F56: =D56+E56 -> 0 | J56: =F56 -> 0
A57: 1123200 | B57: -Ð³Ù³Ï³ñ·ã³ÛÇÝ Í³é³ÛáõÃÛáõÝÝ»ñ | C57: 423200 | D57: 0 | F57: =D57+E57 -> 0 | G57: 0 | H57: 0 | I57: 0 | J57: =F57 -> 0
A58: 1123300 | B58: -²ßË³ï³Ï³½ÙÇ Ù³ëÝ³·Çï³Ï³Ý ½³ñ·³óÙ³Ý Í³é³ÛáõÃÛáõÝÝ»ñ | C58: 423300 | F58: 0
A59: 1123400 | B59: -î»Õ³Ï³ïí³Ï³Ý Í³é³ÛáõÃÛáõÝÝ»ñ | C59: 423400 | D59: 0 | F59: 0 | G59: 0 | H59: 0 | I59: 0 | J59: =F59 -> 0
A60: 1123500 | B60: -Î³é³í³ñã³Ï³Ý Í³é³ÛáõÃÛáõÝÝ»ñ | C60: 423500 | F60: 0 | J60: 0
A61: 1123600 | B61: - Î»Ýó³Õ³ÛÇÝ ¨ Ñ³Ýñ³ÛÇÝ ëÝÝ¹Ç Í³é³ÛáõÃÛáõÝÝ»ñ | C61: 423600 | F61: 0 | J61: 0
A62: 1123700 | B62: -Ü»ñÏ³Û³óáõóã³Ï³Ý Í³Ëë»ñ | C62: 423700 | D62: 0 | F62: 0 | G62: 0 | H62: 0 | I62: 0 | J62: 0
A63: 1123800 | B63: -ÀÝ¹Ñ³Ýáõñ µÝáõÛÃÇ ³ÛÉ Í³é³ÛáõÃÛáõÝÝ»ñ | C63: 423900 | D63: 0 | F63: 0 | G63: 0 | H63: 0 | I63: 0 | J63: 0
A64: 1124000 | B64: 2.4 ²ÛÉ Ù³ëÝ³·Çï³Ï³Ý Í³é³ÛáõÃÛáõÝÝ»ñÇ Ó»éù µ»ñáõÙ | C64: x | D64: =D65 -> 0 | F64: =F65 -> 0 | G64: =G65 -> 0 | H64: =H65 -> 0 | I64: =I65 -> 0 | J64: 0
A65: 1124100 | B65: -Ø³ëÝ³·Çï³Ï³Ý Í³é³ÛáõÃÛáõÝÝ»ñ | C65: 424100 | D65: 0 | F65: 0 | J65: 0
A66: 1125000 | B66: 2.5 ÀÝÃ³óÇÏ Ýáñá·áõÙ ¨ å³Ñå³ÝáõÙ (Í³é³ÛáõÃÛáõÝÝ»ñ ¨ ÝÛáõÃ»ñ) | C66: x | D66: =D67+D68 -> 0 | E66: 0 | F66: =F67+F68 -> 0 | G66: =G67+G68 -> 0 | H66: =H67+H68 -> 0 | I66: =I67+I68 -> 0 | J66: =J67+J68 -> 0
A67: 1125100 | B67: -Þ»Ýù»ñÇ ¨ Ï³éáõÛóÝ»ñÇ ÁÝÃ³óÇÏ Ýáñá·áõÙ ¨ å³Ñå³ÝáõÙ | C67: 425100 | D67: 0 | E67: 0 | F67: =D67+E67 -> 0 | G67: 0 | H67: 0 | I67: 0 | J67: =F67 -> 0
A68: 1125200 | B68: -Ø»ù»Ý³Ý»ñÇ ¨ ë³ñù³íáñáõÙÝ»ñÇ ÁÝÃ³óÇÏ Ýáñá·áõÙ ¨ å³Ñå³ÝáõÙ | C68: 425200 | D68: 0 | F68: =D68+E68 -> 0 | G68: 0 | H68: 0 | I68: 0 | J68: 0
A69: 1126000 | B69: 2.6 ÜÛáõÃ»ñ | C69: x | D69: =SUM(D70:D77) -> 0 | F69: =SUM(F70:F77) -> 0 | G69: =SUM(G70:G77) -> 0 | H69: =SUM(H70:H77) -> 0 | I69: =SUM(I70:I77) -> 0 | J69: 0
A70: 1126100 | B70: -¶ñ³ë»ÝÛ³Ï³ÛÇÝ ÝÛáõÃ»ñ ¨ Ñ³·áõëï | C70: 426100 | D70: 0 | F70: =D70+E70 -> 0 | G70: 0 | H70: 0 | I70: 0 | J70: 0
A71: 1126200 | B71: -¶ÛáõÕ³ïÝï»ë³Ï³Ý ³åñ³ÝùÝ»ñ | C71: 426200 | F71: =D71+E71 -> 0 | J71: 0
A72: 1126300 | B72: -ì»ñ³å³ïñ³ëïÙ³Ý ¨ áõëáõóÙ³Ý ÝÛáõÃ»ñ | C72: 426300 | F72: 0 | J72: 0
A73: 1126400 | B73: -îñ³Ýëåáñï³ÛÇÝ ÝÛáõÃ»ñ | C73: 426400 | D73: 0 | F73: 0 | G73: 0 | H73: 0 | I73: 0 | J73: 0
A74: 1126500 | B74: -Þñç³Ï³ ÙÇç³í³ÛñÇ å³ßïå³ÝáõÃÛ³Ý ¨ ·Çï³Ï³Ý ÝÛáõÃ»ñ | C74: 426500 | F74: 0 | J74: 0
A75: 1126600 | B75: -²éáÕç³å³Ñ³Ï³Ý ¨ É³µáñ³ïáñ ÝÛáõÃ»ñ | C75: 426600 | F75: 0 | J75: =F75 -> 0
A76: 1126700 | B76: -Î»Ýó³Õ³ÛÇÝ ¨ Ñ³Ýñ³ÛÇÝ ëÝÝ¹Ç ÝÛáõÃ»ñ | C76: 426700 | D76: 0 | F76: 0 | G76: 0 | H76: 0 | I76: 0 | J76: =F76 -> 0
A77: 1126800 | B77: -Ð³ïáõÏ Ýå³ï³Ï³ÛÇÝ ³ÛÉ ÝÛáõÃ»ñ | C77: 426900 | D77: 0 | F77: 0 | G77: 0 | H77: 0 | I77: 0 | J77: =F77 -> 0
A78: 1130000 | B78: 3 îáÏáë³í×³ñÝ»ñ | C78: x | D78: 0 | F78: 0 | G78: 0 | H78: 0 | I78: 0 | J78: 0
A79: 1130100 | B79: -Ü»ñùÇÝ ³ñÅ»ÃÕÃ»ñÇ ïáÏáë³í×³ñÝ»ñ | C79: 441100 | J79: 0
A80: 1130200 | B80: -Ü»ñùÇÝ í³ñÏ»ñÇ ïáÏáë³í×³ñÝ»ñ | C80: 441200 | J80: 0
A81: 1130300 | B81: -²ñï³ùÇÝ ³ñÅ»ÃÕÃ»ñÇ ·Íáí ïáÏáë³í×³ñÝ»ñ | C81: 442100 | J81: 0
A82: 1130400 | B82: -²ñï³ùÇÝ í³ñÏ»ñÇ ·Íáí ïáÏáë³í×³ñÝ»ñ | C82: 442200 | J82: 0
A83: 1131000 | B83: öáË³éáõÃÛáõÝÝ»ñÇ Ñ»ï Ï³åí³Í í×³ñÝ»ñ | C83: x | J83: 0
A84: 1131100 | B84: -öáË³Ý³ÏÙ³Ý Ïáõñë»ñÇ µ³ó³ë³Ï³Ý ï³ñµ»ñáõÃÛáõÝ | C84: 443100 | J84: 0
A85: 1131200 | B85: -îáõÛÅ»ñ | C85: 443200 | J85: 0
A86: 1131300 | B86: -öáË³éáõÃÛáõÝÝ»ñÇ ·Íáí ïáõñù»ñ | C86: 443300 | J86: 0
A87: 1140000 | B87: 4. êáõµëÇ¹Ç³Ý»ñ | C87: x | D87: 0 | F87: 0 | G87: 0 | H87: 0 | I87: 0 | J87: 0
A88: 1141000 | B88: -êáõµëÇ¹Ç³Ý»ñ áã-ýÇÝ³Ýë³Ï³Ý å»ï³Ï³Ý Ï³½Ù³Ï»ñåáõÃÛáõÝÝ»ñÇÝ | C88: 451100 | J88: 0
A89: 1142000 | B89: -êáõµëÇ¹Ç³Ý»ñ ýÇÝ³Ýë³Ï³Ý å»ï³Ï³Ý Ï³½Ù³Ï»ñåáõÃÛáõÝÝ»ñÇÝ | C89: 451200 | J89: 0
A90: 1143000 | B90: -êáõµëÇ¹Ç³Ý»ñ áã å»ï³Ï³Ý áã ýÇÝ³Ýë³Ï³Ý Ï³½Ù³Ï»ñåáõÃÛáõÝÝ»ñÇÝ | C90: 452100 | J90: 0
A91: 1144000 | B91: -êáõµëÇ¹Ç³Ý»ñ áã å»ï³Ï³Ý ýÇÝ³Ýë³Ï³Ý Ï³½Ù³Ï»ñåáõÃÛáõÝÝ»ñÇÝ | C91: 452200 | J91: 0
A92: 1150000 | B92: 5.¸ñ³Ù³ßÝáñÑÝ»ñ | C92: x | D92: 0 | F92: 0 | G92: 0 | H92: 0 | I92: 0 | J92: 0
A93: 1151000 | B93: ¸ñ³Ù³ßÝáñÑÝ»ñ ûï³ñ»ñÏñÛ³ Ï³é³í³ñáõÃÛáõÝÝ»ñÇÝ | C93: x | D93: 0 | F93: 0 | G93: 0 | H93: 0 | I93: 0 | J93: 0
A94: 1151100 | B94: ÀÝÃ³óÇÏ ¹ñ³Ù³ßÝáñÑÝ»ñ ûï³ñ»ñÏñÛ³ Ï³é³í³ñáõÃÛáõÝÝ»ñÇÝ | C94: 461100 | J94: 0
A95: 1151200 | B95: Î³åÇï³É ¹ñ³Ù³ßÝáñÑÝ»ñ ûï³ñ»ñÏñÛ³ Ï³é³í³ñáõÃÛáõÝÝ»ñÇÝ | C95: 461200 | J95: 0
A96: 1152000 | B96: ¸ñ³Ù³ßÝáñÑÝ»ñ ÙÇç³½·³ÛÇÝ Ï³½Ù³Ï»ñåáõÃÛáõÝÝ»ñÇÝ | C96: x | D96: 0 | F96: 0 | G96: 0 | H96: 0 | I96: 0 | J96: 0
A97: 1152100 | B97: ÀÝÃ³óÇÏ ¹ñ³Ù³ßÝáñÑÝ»ñ ÙÇç³½·³ÛÇÝ Ï³½Ù³Ï»ñåáõÃÛáõÝÝ»ñÇÝ | C97: 462100 | J97: 0
A98: 1152200 | B98: Î³åÇï³É ¹ñ³Ù³ßÝáñÑ»ñ ÙÇç³½·³ÛÇÝ Ï³½Ù³Ï»ñåáõÃÛáõÝÝ»ñÇÝ | C98: 462200 | J98: 0
A99: 1153000 | B99: ÀÝÃ³óÇÏ ¹ñ³Ù³ßÝáñÑÝ»ñ å»ï³Ï³Ý Ñ³ïí³ÍÇ ³ÛÉ Ù³Ï³ñ¹³ÏÝ»ñÇÝ | C99: x | D99: =D114 -> 0 | F99: =F114 -> 0 | G99: =G114 -> 0 | H99: =H114 -> 0 | I99: =I114 -> 0 | J99: =F99 -> 0
A100: 1153100 | B100: ÀÝÃ³óÇÏ ¹ñ³Ù³ßÝáñÑÝ»ñ å»ï³Ï³Ý Ï³é³í³ñÙ³Ý Ñ³ïí³ÍÇÝ | C100: 463100 | J100: 0
A101: 1153200 | B101: ÀÝÃ³óÇÏ ëáõµí»ÝóÇ³Ý»ñ Ñ³Ù³ÛÝùÝ»ñÇÝ | C101: 463200 | J101: 0
A102: 1153300 | B102: ä»ï³Ï³Ý µÛáõç»Çó Ñ³Ù³ÛÝùÝ»ñÇ µÛáõç»Ý»ñÇÝ ýÇÝ³Ýë³Ï³Ý Ñ³Ù³Ñ³ñÃ»óÙ³Ý ëÏ½µáõÝùáí ïñíáÕ ¹áï³óÇ³Ý»ñ | C102: 463300 | J102: 0
A103: 1153400 | B103: úñ»ÝùÝ»ñÇ ÏÇñ³ñÏÙ³Ý ³ñ¹ÛáõÝùáõÙ Ñ³Ù³ÛÝùÝ»ñÇ µÛáõç»Ý»ñÇ ÏáñáõëïÝ»ñÇ ÷áËÑ³ïáõóáõÙ | C103: 463400 | J103: 0
A104: 1153500 | B104: ²ÛÉ ÁÝÃ³óÇÏ ¹ñ³Ù³ßÝáñÑÝ»ñ Ñ³Ù³ÛÝùÝ»ñÇÝ | C104: 463500 | J104: 0
A105: 1153700 | B105: ÀÝÃ³óÇÏ ¹ñ³Ù³ßÝáñÑÝ»ñ å»ï³Ï³Ý ¨ Ñ³Ù³ÛÝùÝ»ñÇ áã ³é¨ïñ³ÛÇÝ Ï³½Ù³Ï»ñåáõÃÛáõÝÝ»ñÇÝ | C105: 463700 | J105: 0
A106: 1153800 | B106: ÀÝÃ³óÇÏ ¹ñ³Ù³ßÝáñÑÝ»ñ å»ï³Ï³Ý ¨ Ñ³Ù³ÛÝùÝ»ñÇ ³é¨ïñ³ÛÇÝ Ï³½Ù³Ï»ñåáõÃÛáõÝÝ»ñÇÝ | C106: 463800 | J106: 0
A107: 1153900 | B107: ²ÛÉ ÁÝÃ³óÇÏ ¹ñ³Ù³ßÝáñÑÝ»ñ | C107: 463900 | J107: 0
A108: 1154000 | B108: Î³åÇï³É ¹ñ³Ù³ßÝáñÑÝ»ñ å»ï³Ï³Ý Ñ³ïí³ÍÇ ³ÛÉ Ù³Ï³ñ¹³ÏÝ»ñÇÝ | C108: x | D108: 0 | F108: 0 | G108: 0 | H108: 0 | I108: 0 | J108: 0
A109: 1154100 | B109: Î³åÇï³É ¹ñ³Ù³ßÝáñÑÝ»ñ å»ï³Ï³Ý Ï³é³í³ñÙ³Ý Ñ³ïí³ÍÇÝ | C109: 465100 | J109: 0
A110: 1154200 | B110: Î³åÇï³É ëáõµí»ÝóÇ³Ý»ñ Ñ³Ù³ÛÝùÝ»ñÇÝ | C110: 465200 | J110: 0
A111: 1154300 | B111: ²ÛÉ Ï³åÇï³É ¹ñ³Ù³ßÝáñÑÝ»ñ Ñ³Ù³ÛÝùÝ»ñÇÝ | C111: 465300 | J111: 0
A112: 1154500 | B112: Î³åÇï³É ¹ñ³Ù³ßÝáñÑÝ»ñ å»ï³Ï³Ý ¨ Ñ³Ù³ÛÝùÝ»ñÇ áã ³é¨ïñ³ÛÇÝ Ï³½Ù³Ï»ñåáõÃÛáõÝÝ»ñÇÝ | C112: 465500 | J112: 0
A113: 1154600 | B113: Î³åÇï³É ¹ñ³Ù³ßÝáñÑÝ»ñ å»ï³Ï³Ý ¨ Ñ³Ù³ÛÝù³ÛÇÝ ³é¨ïñ³ÛÇÝ Ï³½Ù³Ï»ñåáõÃÛáõÝÝ»ñÇÝ | C113: 465600 | J113: 0
A114: 1154700 | B114: ²ÛÉ Ï³åÇï³É ¹ñ³Ù³ßÝáñÑÝ»ñ | C114: 465700 | D114: 0 | E114: 0 | F114: =D114+E114 -> 0 | G114: 0 | H114: 0 | I114: 0 | J114: =F114 -> 0
A115: 1160000 | B115: 6. êàòÆ²È²Î²Ü Üä²êîÜºð ºì ÎºÜê²ÂàÞ²ÎÜºð | C115: x | D115: 0 | F115: 0 | G115: 0 | H115: 0 | I115: 0 | J115: 0
A116: 1161000 | B116: 6.1 êàòÆ²È²Î²Ü ²ä²ÐàìàôÂÚ²Ü Üä²êîÜºð | C116: x | D116: 0 | F116: 0 | G116: 0 | H116: 0 | I116: 0 | J116: 0
A117: 1161100 | B117: -îÝ³ÛÇÝ ïÝï»ëáõÃÛáõÝÝ»ñÇÝ ¹ñ³Ùáí í×³ñíáÕ ëáóÇ³É³Ï³Ý ³å³ÑáíáõÃÛ³Ý í×³ñÝ»ñ | C117: 471100 | J117: 0
A118: 1161200 | B118: -êáóÇ³É³Ï³Ý ³å³ÑáíáõÃÛ³Ý µÝ»Õ»Ý Ýå³ëïÝ»ñ Í³é³ÛáõÃÛáõÝÝ»ñ Ù³ïáõóáÕÝ»ñÇÝ | C118: 471200 | J118: 0
A119: 1162000 | B119: 6.2 êàòÆ²È²Î²Ü ú¶ÜàôÂÚ²Ü ¸ð²Ø²Î²Ü ²ðî²Ð²ÚîàôÂÚ²Ø´ Üä²êîÜºð (´ÚàôæºÆò) | C119: x | D119: 0 | F119: 0 | G119: 0 | H119: 0 | I119: 0 | J119: 0
A120: 1162100 | B120: -ÐÇí³Ý¹áõÃÛ³Ý ¨ Ñ³ßÙ³Ý¹³ÙáõÃÛ³Ý Ýå³ëïÝ»ñ µÛáõç»Çó | C120: 472100 | J120: 0
A121: 1162200 | B121: -Ø³ÛñáõÃÛ³Ý Ýå³ëïÝ»ñ µÛáõç»Çó | C121: 472200 | J121: 0
A122: 1162300 | B122: -ºñ»Ë³Ý»ñÇ Ï³Ù ÁÝï³Ý»Ï³Ý Ýå³ëïÝ»ñ µÛáõç»Çó | C122: 472300 | J122: 0
A123: 1162400 | B123: -¶áñÍ³½ñÏáõÃÛ³Ý Ýå³ëïÝ»ñ µÛáõç»Çó | C123: 472400 | J123: 0
